Workbook

Sheet Version
A1: Specification du document de référence | B1: Version | C1: Qui | D1: Date
A2: EP_MONEXT_SFD_COMPTA_ CRE_V1O_16042021.xlsx | B2: V1O | C2: A.LATAT | D2: 2021-06-30
A3: EP_MONEXT_SFD_COMPTA_ CRE_V1O_21072021.xlsx | B3: V10.1 | C3: S. Mougeolle | D3: 2021-07-21 | E3: Correction dans la creaton CTRE TI VMC ( erreur dans la concaténation des zones)
A4: EP_MONEXT_SFD_COMPTA_ CRE_V1O_21072021.xlsx | B4: V10.2 | C4: S. Mougeolle | D4: 2021-07-26 | E4: Ajouts des clients utilisés pour le R7 RMFEC CB dans l'onglet Liste déroulante
A5: EP_MONEXT_SFD_COMPTA_ CRE_V1O_21072021.xlsx | B5: V10.3 | C5: S. Mougeolle | D5: 2021-07-26 | E5: Ajouts dans les données à saisir sur l'onglet CREATION CRE TI CB '- Montant commission commerçant MTTTCITR '- Montant Scheme Fee ( Non présent dans le CRE - Toujours = 0)
B6: V10.3 | C6: S. Mougeolle | D6: 2021-07-26 | E6: Ajouts dans les données à saisir sur l'onglet CREATION CRE TI VMCde '- Montant commission commerçant MTTTCITR '- Montant commission banque Visa/ Mastercard MTBQVMC
E7: Note 1 : Problémaique des décimales ( Au délà de 2 décimales dans un montant commission, l'outil ne fonctionne pas
E8: Note 2 : NUARN n'est pas paddé correctement et trop de caractère
B9: V10.41 | C9: S. Mougeolle / Theodoros ZAMPETOGLOU | D9: 2021-07-28 | E9: Ajouts des clients utilisés pour le R7 RMFEC CB dans l'onglet Liste déroulante
B10: V10.42 | C10: S. Mougeolle | D10: 2021-07-28 | E10: Correction de alimentation de IDREM p477 pour CB et VMC ( No de remise différent pour Paiement et Remboursement )
B11: V10.43 | C11: S. Mougeolle | D11: 2021-08-04 | E11: Correction liste déroulante M36 à M40 Correction dans l'onglet Creation CRE TI VMC de la generation des zones MTINTVMC /MTRVMC/MTBQVMC sur 5 décimales ( et non sur 4)
B12: V10.44 | C12: S. Mougeolle / Theodoros ZAMPETOGLOU | D12: 2021-08-05 | E12: Ajouts des clients utilisés pour le R7 RMFEC dans l'onglet Liste déroulante
B13: V10.47 | C13: S. Mougeolle | D13: 2021-10-11 | E13: Correction création CRE Impayé Creation onglet création CRE Impayé RT
B14: V10.48 | C14: S. Mougeolle | D14: 2021-10-21 | E14: Ajout du contrat CM_16_RMFEC VAD2 dans la liste déroulante
B15: V10.48(3) | C15: S. Mougeolle | D15: 2022-01-01 | E15: Ajoute des frais de rejet impayé RT
B16: V10.49 (xlsm) | C16: P Fernandez | D16: 2022-03-30 | E16: Ajout bouton création de fichier
B17: V10.53 | C17: S. Mougeolle | D17: 2022-06-13 | E17: Modification IDRemise sur tous les onglets afin de mieux coller à la prod
B18: V10.57 | C18: S. Mougeolle / A. PELTIER | D18: 2022-12-06 | E18: Ajout commission agent
B19: V10.71 | C19: P Fernandez | D19: 2022-12-19 | E19: correctif nom impayé
B20: V10,8 | C20: S. Mougeolle | D20: 2025-10-20 | E20: MAJ de l'onglet CRE TI CB sur le format des CRE + Ajouts de 11 nouveaux clients dans la liste déroulante
D21: 2025-10-23 | E21: Verif les MAJ de l'onglet CRE TI VMC
E22: RAF Verif les MAJ de l'onglet CRE IMP CB/VMC

Sheet Création CRE TI CB
A1: CRE CONCATENE (données de sortie) | E1: DONNEES PARAMETRABLE (données en entrée) | Q1: CRE DECOUPE (détails intermédiaires)
P2: Début | Q2: 1 | R2: 3 | S2: 9 | T2: 11 | U2: 16 | V2: 21 | W2: 23 | X2: 26 | Y2: 30 | Z2: 32 | AA2: 34 | AB2: 35 | AC2: 40 | AD2: 45 | AE2: 64 | AF2: 72 | AG2: 87 | AH2: 103 | AI2: 106 | AJ2: 107 | AK2: 110 | AL2: 111 | AM2: 134 | AN2: 137 | AO2: 145 | AP2: 165 | AQ2: 167 | AR2: 170 | AS2: 190 | AT2: 202 | AU2: 206 | AV2: 207 | AW2: 212 | AX2: 217 | AY2: 228 | AZ2: 230 | BA2: 233 | BB2: 239 | BC2: 249 | BD2: 252 | BE2: 286 | BF2: 289 | BG2: 291 | BH2: 307 | BI2: 328 | BJ2: 352 | BK2: 358 | BL2: 364 | BM2: 369 | BN2: 385 | BO2: 401 | BP2: 402 | BQ2: 406 | BR2: 414 | BS2: 426 | BT2: 438 | BU2: 439 | BV2: 444 | BW2: 463 | BX2: 471 | BY2: 477 | BZ2: 502 | CA2: 541 | CB2: 542 | CC2: 543 | CD2: 546 | CE2: 553 | CF2: 558 | CG2: 658 | CH2: 670 | CI2: 682 | CJ2: 694 | CK2: 698 | CL2: 711 | CM2: 761 | CN2: 782
P3: Lg | Q3: 2 | R3: 6 | S3: 2 | T3: 5 | U3: 5 | V3: 2 | W3: 3 | X3: 4 | Y3: 2 | Z3: 2 | AA3: 1 | AB3: 5 | AC3: 5 | AD3: 19 | AE3: 8 | AF3: 15 | AG3: 16 | AH3: 3 | AI3: 1 | AJ3: 3 | AK3: 1 | AL3: 23 | AM3: 3 | AN3: 8 | AO3: 20 | AP3: 2 | AQ3: 3 | AR3: 20 | AS3: 12 | AT3: 4 | AU3: 1 | AV3: 5 | AW3: 5 | AX3: 11 | AY3: 2 | AZ3: 3 | BA3: 6 | BB3: 10 | BC3: 3 | BD3: 34 | BE3: 3 | BF3: 2 | BG3: 16 | BH3: 21 | BI3: 24 | BJ3: 6 | BK3: 6 | BL3: 5 | BM3: 16 | BN3: 16 | BO3: 1 | BP3: 4 | BQ3: 8 | BR3: 12 | BS3: 12 | BT3: 1 | BU3: 5 | BV3: 19 | BW3: 8 | BX3: 6 | BY3: 25 | BZ3: 39 | CA3: 1 | CB3: 1 | CC3: 3 | CD3: 7 | CE3: 5 | CF3: 100 | CG3: 12 | CH3: 12 | CI3: 12 | CJ3: 4 | CK3: 13 | CL3: 50 | CM3: 21 | CN3: 220
P4: Specification | Q4: « 14 » | R4: « 000000 » | S4: Domestique (CB) : « Z0 » : Transaction initiale « Z1 » : Impayés reçus | T4: Code banque de domiciliation du porteur | U4: Code banque gestionnaire du commerçant | V4: « XA » | W4: TRI si S04 = « 100 », « 101 », « 102 » ou « 140 » ATI si S04 = "400", "402", "408" TRI : Transaction Initiale ATI : Annulation de la TI | X4: Spaces | Y4: 0 | Z4: 0 | AA4: 1 : Porteur 2 : Commerçant 3 : Produit Financier | AB4: Code établissement gestionnaire de l’acquéreur | AC4: Code guichet de l’acquéreur issu de la télécollecte | AD4: Numéro de carte porteur : si généré en 16 caractères alors paddé à droite avec les espaces PAN est tokénisé | AE4: Date de vente au format SSAAMMJJ | AF4: Numéro SIRET commerçant | AG4: 2 décimales, pas de séparateur | AH4: Code 978 pour l'euro | AI4: « 2 » | AJ4: TI : Transaction Initiale IM : Impayé RP : représentation d'impayé | AK4: « S » pour Doméstique CB | AL4: RFARNO cadré à gauche | AM4: FAC : Paiement achat CAS : Retrait cash DAB : Retrait Dab AVO : Avoir A compléter pour les AOCT | AN4: SSAAMMJJ | AO4: Localisation | AP4: Les 2 premières positions de la zone DATA-B20-DD16 du fichier CB2C en sortie | AQ4: Code pays du système d’acceptation | AR4: Les 20 premières positions de la zone DATA-B17-DD18 du fichier CB2C en sortie | AS4: que pour l'impayé | AT4: Motif de l’impayé dans la codification du format de compensation reçu. | AU4: 1 : first chargeback 2 : second chargeback | AV4: Code banque issu du référentiel commerçant par rapport au SIRET | AW4: Code siège du RIB issu du référentiel commerçant par rapport au SIRET | AX4: Numéro de compte du RIB issu du référentiel commerçant par rapport au SIRET | AY4: Clé RIB | AZ4: TRCA-NUTPTR | BA4: spaces | BB4: N° cotrat commerçant issu du référentiel commerçant par rapport au SIRET | BC4: espaces | BD4: espaces | BE4: 978 pour euro | BF4: « 2 » | BG4: Montant compensé = Montant brut de la transaction – Commission d’Interchange | BH4: A blanc sauf pour CRE IMP | BI4: Issu du référentiel commerçant par rapport au SIRET | BJ4: Format : JJMMAA | BK4: Donnée uniquement pour les remises commerçant ou retrait | BL4: Donnée uniquement pour les remises commerçant ou retrait | BM4: 16 caractères, 2 décimales sans séparateur | BN4: 16 caractères, 2 décimales sans séparateur | BO4: Code usage | BP4: « LMA » si géré dans LMA | BQ4: Date de la transaction mis sous le format SSAAMMJJ | BR4: 2 décimales paddés à gauche | BS4: 2 décimales paddés à gauche | BT4: spaces | BU4: Code établissement gestionnaire de l’acquéreur | BV4: Numéro de carte porteur : si généré du 16 caractères, complété par des blancs | BW4: Date d’enregistrement de la transaction dans les tables au format SSAAMMJJ | BX4: Numéro attribué à l’impayé : ce numéro est crée par LMA lors de la prise en compte de l’impayé | BY4: Identifiant de remise issue de l’header CB2C (composé de 000001+DTVEN+MONEXT+5espaces) | BZ4: Filler | CA4: C - Usage Crédit D - Usage Débit P - Usage Prépayé U - Usage Universel b - Indéterminée (à blanc) | CB4: P - Compte Particulier E - Compte Entreprise b - Indéterminée (à blanc) | CC4: France: FRA Union européenne (27 pays sans la France) ; l’évolution de cette liste doit être prévue : UE Hors Union européenne : HUE | CD4: Filler VMC | CE4: INC - inconnu PDP - proxi avec contact PDPSC - proxi sans contact VAD - vente à distance | CF4: Filler | CG4: Champ 37 du CB2A fichier | CH4: Filler | CI4: Montant de la commission agent | CJ4: Filler | CK4: Filler | CL4: Filler | CM4: Filler | CN4: Filler
P5: Libellé | Q5: Code type d’enregistrement | R5: Numéro séquentiel | S5: Code opération | T5: Code banque émetteur | U5: Code banque destinataire | V5: Code application échange | W5: Code sous application | X5: Spaces | Y5: Code origine flux | Z5: Code destination flux | AA5: Code nature de flux comptable | AB5: Code établissement | AC5: Guichet accepteur | AD5: Numéro de carte | AE5: Date de vente | AF5: SIRET | AG5: Montant brut | AH5: Devise de réconciliation nationale liée au montant brut | AI5: Nombre de décimales du montant brut | AJ5: Type opération | AK5: Code réseau | AL5: Référence archivage | AM5: Code opération interne | AN5: Date de règlement interbancaire | AO5: Localisation | AP5: Code département | AQ5: Code pays | AR5: Raison sociale | AS5: Référence impayé reçue | AT5: Motif impayé | AU5: Code cycle impayé | AV5: Code établissement du RIB | AW5: Code Guichet du RIB | AX5: Numéro de compte | AY5: Clé RIB | AZ5: Numéro de terminal | BA5: Filler | BB5: Numéro de contrat accepteur | BC5: Code ICA | BD5: IBAN | BE5: Devise du montant compensé | BF5: nombre décimal mt compensé | BG5: Montant compensé | BH5: Référence externe | BI5: Nom du commerçant | BJ5: Date de Valeur | BK5: Nombre de factures | BL5: Numéro de remise | BM5: Montant net | BN5: Montant brut en euro | BO5: Code usage | BP5: Mode de Traitement du Litige | BQ5: Date envoi en compensation | BR5: Montant commission commerçant | BS5: Montant commission Interchange CB | BT5: Type de porteur | BU5: code établissement | BV5: Numéro de carte | BW5: Date archivage | BX5: Numéro séquentiel | BY5: Identifiant de Remise | BZ5: Filler | CA5: Code nature carte | CB5: Code type carte | CC5: Zone géographique | CD5: Filler | CE5: Type application carte | CF5: FILLER | CG5: Référence d'archivage Payline | CH5: FILLER | CI5: MTCOAG | CJ5: FILLER | CK5: FILLER | CL5: FILLER | CM5: FILLER | CN5: FILLER
A6: Mode d'alimentation de ce fichier | B6: Non actif si nb de ligne suffisante | C6: à copier/coller dans NotePad | D6: Données fixes | E6: Variable à saisir JJ/MM/AAAA | F6: Données fixes | G6: Variable liste déroulante | H6: Variable à saisir 0,00 | I6: Variable à saisir 0,00 | J6: Variable à saisir 0,00 | K6: Variable à saisir 0,00 | L6: Variable à saisir 0,00 | M6: Variable liste déroulante | N6: Variable liste déroulante | O6: Variable liste déroulante | P6: Mode d'alimentation de ce fichier | Q6: FIXE | R6: FIXE | S6: FIXE | T6: FIXE | U6: FIXE | V6: FIXE | W6: FIXE | X6: FIXE | Y6: FIXE | Z6: FIXE | AA6: FIXE | AB6: FIXE | AC6: FIXE | AD6: FIXE | AE6: DEDUITE | AF6: DEDUITE | AG6: DEDUITE | AH6: FIXE | AI6: FIXE | AJ6: FIXE | AK6: FIXE | AL6: FIXE | AM6: FIXE | AN6: DEDUITE | AO6: FIXE | AP6: FIXE | AQ6: FIXE | AR6: DEDUITE | AS6: FIXE | AT6: FIXE | AU6: FIXE | AV6: FIXE | AW6: FIXE | AX6: DEDUITE | AY6: DEDUITE | AZ6: FIXE | BA6: FIXE | BB6: DEDUITE | BC6: FIXE | BD6: FIXE | BE6: FIXE | BF6: FIXE | BG6: DEDUITE | BH6: FIXE | BI6: DEDUITE | BJ6: DEDUITE | BK6: FIXE | BL6: FIXE | BM6: DEDUITE | BN6: DEDUITE | BO6: FIXE | BP6: FIXE | BQ6: DEDUITE | BR6: DEDUITE | BS6: DEDUITE | BT6: FIXE | BU6: FIXE | BV6: FIXE | BW6: DEDUITE | BX6: FIXE | BY6: FIXE | BZ6: FIXE | CA6: DEDUITE | CB6: DEDUITE | CC6: DEDUITE | CD6: FIXE | CE6: DEDUITE | CF6: FIXE | CG6: FIXE | CH6: FIXE | CI6: FIXE | CJ6: FIXE | CK6: FIXE | CL6: FIXE | CM6: FIXE | CN6: FIXE
A7: CRE concerné | B7: CRE ACTIF | C7: CRE concaténé | D7: Opération (CDOPEI) | E7: Date de valeur (DTVAL) | F7: Réseau (IDSCPT) | G7: Commerçant | H7: Montant Brut (MTBRUT) | I7: Montant commission commerçant MTTTCITR | J7: Interchange Fee (MTCOMINT) | K7: Montant Scheme Fee ( Non présent dans le CRE - Toujours = 0) | L7: Montant Com agent | M7: Nature carte | N7: Type carte | O7: Zone géographique | P7: Code | Q7: CEENR | R7: NUSQC | S7: CEOPE | T7: CEEMI | U7: CEDES | V7: CEAPC | W7: CEMAP | X7: DTTRT | Y7: CECFTO | Z7: CECFTD | AA7: CDNAFL | AB7: CDETB9 | AC7: CDGUICH | AD7: NUISOA | AE7: DTVEN | AF7: ZSIRET | AG7: MTBRUT | AH7: CDDEV | AI7: NBDEC | AJ7: TYPOPE | AK7: IDSPCT | AL7: NUARN | AM7: CDOPEI | AN7: DTREGLI | AO7: LILOCA | AP7: CDDEPT | AQ7: CDPAYS | AR7: RAISOA | AS7: NURFI2 | AT7: COANO | AU7: COCYIM | AV7: CEETRX | AW7: Ceguix | AX7: NUCTEA | AY7: CLRIBX | AZ7: NUTP | BA7: Filler | BB7: NUMCO | BC7: CDICA | BD7: CDIBAN | BE7: CDDEVC | BF7: NBDECC | BG7: MTCOMP | BH7: REFEXT | BI7: NMCM | BJ7: DTVL | BK7: NBFCT | BL7: NUREM | BM7: MTNT (net) | BN7: MTBREUR | BO7: DSPUSG | BP7: MDTRLT | BQ7: DTCOMP | BR7: MTTTCITR (c.commerç) | BS7: MTCOMINT (comm int) | BT7: TYPO | BU7: CDETB9CL | BV7: NUISOACL | BW7: DTARCHCL | BX7: NUSDICL | BY7: IDREM | BZ7: FILLER | CA7: NATCARTE | CB7: TYPCARTE | CC7: ZONEGEO | CD7: FILLER | CE7: TYPAPPLI | CF7: FILLER | CG7: REFPAYLINE | CH7: FILLER | CI7: MTCOAG | CJ7: PAYMETHOD | CK7: FRAISACQ | CL7: NUMCO2LONG | CM7: NEW | CN7: FILLER
A8: Enregistrement 1 | B8: oui | C8: =IF(B8="OUI",CONCATENATE(Q8,R8,S8,T8,U8,V8,W8,X8,Y8,Z8,AA8,AB8,AC8,AD8,AE8,AF8,AG8,AH8,AI8,AJ8,AK8,AL8,AM8,AN8,AO8,AP8,AQ8,AR8,AS8,AT8,AU8,AV8,AW8,AX8,AY8,AZ8,BA8,BB8,BC8,BD8,BE8,BF8,BG8,BH8,BI8,BJ8,BK8,BL8,BM8,BN8,BO8,BP8,BQ8,BR8,BS8,BT8,BU8,BV8,BW8,BX8,BY8,BZ8,CA8,CB8,CC8,CD8,CE8,CF8,CG8,CH8,CI8,CJ8,CK8,CL8,CM8,CN8),"CRE NON ACTIF") -> 14000000Z01702817028XATRI 000021702892282513264KHYODHNJ313112025101960992700180001 00000000000125189782TI S224710856495 FAC000000001 RUE DES FLEURS 14250CM_01_COA/C 000000000000 17028922822829306014093001 9356031 978020000000000012493 CM_01 2010250000001561700000000000124430000000000012518 20251020000000000075000000000025 0000046432165461313564610000000000000000000120251019MONEXT DPFRA VAD 000000000000 20228380131 | D8: Payment | E8: 2025-10-20 | F8: CB | G8: CM_01 | H8: 125.18 | I8: 0.75 | J8: 0.25 | K8: 0 | L8: 0 | M8: Débit | N8: Particulier | O8: FRA | P8: CRE 1 | Q8: 14 | R8: 000000 | S8: Z0 | T8: 17028 | U8: 17028 | V8: XA | W8: TRI | Y8: 00 | Z8: 00 | AA8: 2 | AB8: 17028 | AC8: 92282 | AD8: 513264KHYODHNJ31311 | AE8: =TEXT(E8-1,"aaaammjj") -> 20251019 | AF8: =VLOOKUP(G8,'Listes déroulantes'!G:I,3,FALSE) -> 60992700180001 | AG8: =RIGHT(CONCATENATE("0000000000000000",H8*100),16) -> 0000000000012518 | AH8: 978 | AI8: 2 | AJ8: TI | AK8: S | AL8: 224710856495 | AM8: FAC | AN8: 00000000 | AO8: =VLOOKUP(G8,'Listes déroulantes'!G:O,9,FALSE) -> 1 RUE DES FLEURS | AP8: 14 | AQ8: 250 | AR8: =VLOOKUP(G8,'Listes déroulantes'!G:H,2,FALSE) -> CM_01_COA/C | AS8: 000000000000 | AV8: 17028 | AW8: 92282 | AX8: =VLOOKUP(G8,'Listes déroulantes'!G:N,8,FALSE) -> 28293060140 | AY8: 93 | AZ8: 001 | BB8: =VLOOKUP(G8,'Listes déroulantes'!G:J,4,FALSE) -> 9356031 | BE8: 978 | BF8: 02 | BG8: =RIGHT(CONCATENATE("0000000000000000",(H8-J8)*100),16) -> 0000000000012493 | BI8: =VLOOKUP(G8,'Listes déroulantes'!G:M,7,FALSE) -> CM_01 | BJ8: =TEXT(E8,"jjmmaa") -> 201025 | BK8: 000000 | BL8: 15617 | BM8: =RIGHT(CONCATENATE("0000000000000000",(H8-I8)*100),16) -> 0000000000012443 | BN8: =RIGHT(CONCATENATE("0000000000000000",H8*100),16) -> 0000000000012518 | BQ8: =TEXT(E8,"aaaammjj") -> 20251020 | BR8: =RIGHT(CONCATENATE("0000000000000000",(I8)*100),12) -> 000000000075 | BS8: =RIGHT(CONCATENATE("0000000000000000",J8*100),12) -> 000000000025 | BU8: 00000 | BV8: 4643216546131356461 | BW8: 00000000 | BX8: 000000 | BY8: =CONCATENATE("000001",TEXT(E8-1,"aaaammjj"),"MONEXT ") -> 00000120251019MONEXT | CA8: =IF(M8="Débit","D",IF(M8="Crédit","C",IF(M8="Prépayé","P",IF(M8="Universelle","U"," ")))) -> D | CB8: =IF(N8="Particulier","P",IF(N8="Entreprise","E"," ")) -> P | CC8: =O8 -> FRA | CE8: =VLOOKUP(G8,'Listes déroulantes'!G:L,6,FALSE) -> VAD | CI8: =RIGHT(CONCATENATE("0000000000000000",L8*100),12) -> 000000000000 | CM8: 20228380131
A9: Enregistrement 2 | B9: oui | C9: =IF(B9="OUI",CONCATENATE(Q9,R9,S9,T9,U9,V9,W9,X9,Y9,Z9,AA9,AB9,AC9,AD9,AE9,AF9,AG9,AH9,AI9,AJ9,AK9,AL9,AM9,AN9,AO9,AP9,AQ9,AR9,AS9,AT9,AU9,AV9,AW9,AX9,AY9,AZ9,BA9,BB9,BC9,BD9,BE9,BF9,BG9,BH9,BI9,BJ9,BK9,BL9,BM9,BN9,BO9,BP9,BQ9,BR9,BS9,BT9,BU9,BV9,BW9,BX9,BY9,BZ9,CA9,CB9,CC9,CD9,CE9,CF9,CG9,CH9,CI9,CJ9,CK9,CL9,CM9,CN9),"CRE NON ACTIF") -> 14000000Z01702817028XATRI 000021702892282513264KHYODHNJ313122025101960992700180001 00000000000250239782TI S224710856496 FAC000000001 RUE DES FLEURS 14250CM_01_COA/C 000000000000 17028922822829306014093001 9356031 978020000000000024973 CM_01 2010250000001561700000000000248730000000000025023 20251020000000000150000000000050 0000046432165461313564610000000000000000000120251019MONEXT CPFRA VAD 000000000000 20228380132 | D9: Payment | E9: 2025-10-20 | F9: CB | G9: CM_01 | H9: 250.23 | I9: 1.5 | J9: 0.5 | K9: 0 | L9: 0 | M9: Crédit | N9: Particulier | O9: FRA | P9: CRE 2 | Q9: 14 | R9: 000000 | S9: Z0 | T9: 17028 | U9: 17028 | V9: XA | W9: TRI | Y9: 00 | Z9: 00 | AA9: 2 | AB9: 17028 | AC9: 92282 | AD9: 513264KHYODHNJ31312 | AE9: =TEXT(E9-1,"aaaammjj") -> 20251019 | AF9: =VLOOKUP(G9,'Listes déroulantes'!G:I,3,FALSE) -> 60992700180001 | AG9: =RIGHT(CONCATENATE("0000000000000000",H9*100),16) -> 0000000000025023 | AH9: 978 | AI9: 2 | AJ9: TI | AK9: S | AL9: 224710856496 | AM9: FAC | AN9: 00000000 | AO9: =VLOOKUP(G9,'Listes déroulantes'!G:O,9,FALSE) -> 1 RUE DES FLEURS | AP9: 14 | AQ9: 250 | AR9: =VLOOKUP(G9,'Listes déroulantes'!G:H,2,FALSE) -> CM_01_COA/C | AS9: 000000000000 | AV9: 17028 | AW9: 92282 | AX9: =VLOOKUP(G9,'Listes déroulantes'!G:N,8,FALSE) -> 28293060140 | AY9: 93 | AZ9: 001 | BB9: =VLOOKUP(G9,'Listes déroulantes'!G:J,4,FALSE) -> 9356031 | BE9: 978 | BF9: 02 | BG9: 0000000000024973 | BI9: =VLOOKUP(G9,'Listes déroulantes'!G:M,7,FALSE) -> CM_01 | BJ9: =TEXT(E9,"jjmmaa") -> 201025 | BK9: 000000 | BL9: 15617 | BM9: =RIGHT(CONCATENATE("0000000000000000",(H9-I9)*100),16) -> 0000000000024873 | BN9: =RIGHT(CONCATENATE("0000000000000000",H9*100),16) -> 0000000000025023 | BQ9: =TEXT(E9,"aaaammjj") -> 20251020 | BR9: =RIGHT(CONCATENATE("0000000000000000",(I9)*100),12) -> 000000000150 | BS9: =RIGHT(CONCATENATE("0000000000000000",J9*100),12) -> 000000000050 | BU9: 00000 | BV9: 4643216546131356461 | BW9: 00000000 | BX9: 000000 | BY9: =CONCATENATE("000001",TEXT(E9-1,"aaaammjj"),"MONEXT ") -> 00000120251019MONEXT | CA9: =IF(M9="Débit","D",IF(M9="Crédit","C",IF(M9="Prépayé","P",IF(M9="Universelle","U"," ")))) -> C | CB9: =IF(N9="Particulier","P",IF(N9="Entreprise","E"," ")) -> P | CC9: =O9 -> FRA | CE9: =VLOOKUP(G9,'Listes déroulantes'!G:L,6,FALSE) -> VAD | CI9: =RIGHT(CONCATENATE("0000000000000000",L9*100),12) -> 000000000000 | CM9: 20228380132
A10: Enregistrement 3 | B10: oui | C10: 14000000Z01702817028XATRI 000021702892282513264KHYODHNJ313132025101960992700180002 00000000000045009782TI S224710856497 FAC000000002 RUE DES FLEURS 15250CM_02_COA/C 000000000000 17028922822829306014193001 9356032 978020000000000004491 CM_02 2010250000001561700000000000044730000000000004500 20251020000000000027000000000009 0000046432165461313564610000000000000000000120251019MONEXT CPFRA VAD 000000000000 20228380133 | D10: Payment | E10: 2025-10-20 | F10: CB | G10: CM_02 | H10: 45 | I10: 0.27 | J10: 0.09 | K10: 0 | L10: 0 | M10: Crédit | N10: Particulier | O10: FRA | P10: CRE 3 | Q10: 14 | R10: 000000 | S10: Z0 | T10: 17028 | U10: 17028 | V10: XA | W10: TRI | Y10: 00 | Z10: 00 | AA10: 2 | AB10: 17028 | AC10: 92282 | AD10: 513264KHYODHNJ31313 | AE10: 20251019 | AF10: =VLOOKUP(G10,'Listes déroulantes'!G:I,3,FALSE) -> 60992700180002 | AG10: 0000000000004500 | AH10: 978 | AI10: 2 | AJ10: TI | AK10: S | AL10: 224710856497 | AM10: FAC | AN10: 00000000 | AO10: =VLOOKUP(G10,'Listes déroulantes'!G:O,9,FALSE) -> 2 RUE DES FLEURS | AP10: 15 | AQ10: 250 | AR10: =VLOOKUP(G10,'Listes déroulantes'!G:H,2,FALSE) -> CM_02_COA/C | AS10: 000000000000 | AV10: 17028 | AW10: 92282 | AX10: =VLOOKUP(G10,'Listes déroulantes'!G:N,8,FALSE) -> 28293060141 | AY10: 93 | AZ10: 001 | BB10: =VLOOKUP(G10,'Listes déroulantes'!G:J,4,FALSE) -> 9356032 | BE10: 978 | BF10: 02 | BG10: 0000000000004491 | BI10: =VLOOKUP(G10,'Listes déroulantes'!G:M,7,FALSE) -> CM_02 | BJ10: 201025 | BK10: 000000 | BL10: 15617 | BM10: 0000000000004473 | BN10: 0000000000004500 | BQ10: 20251020 | BR10: 000000000027 | BS10: 000000000009 | BU10: 00000 | BV10: 4643216546131356461 | BW10: 00000000 | BX10: 000000 | BY10: 00000120251019MONEXT | CA10: C | CB10: P | CC10: FRA | CE10: =VLOOKUP(G10,'Listes déroulantes'!G:L,6,FALSE) -> VAD | CI10: 000000000000 | CM10: 20228380133
A11: Enregistrement 4 | B11: oui | C11: 14000000Z01702817028XATRI 000021702892282513264KHYODHNJ313142025101960992700180003 00000000000220009782TI S224710856498 FAC000000003 RUE DES FLEURS 16250CM_03_COM/C 000000000000 17028922822829306014293001 9356033 978020000000000021956 CM_03 2010250000001561700000000000218680000000000022000 20251020000000000132000000000044 0000046432165461313564610000000000000000000120251019MONEXT DEFRA PDP 000000000000 20228380134 | D11: Payment | E11: 2025-10-20 | F11: CB | G11: CM_03 | H11: 220 | I11: 1.32 | J11: 0.44 | K11: 0 | L11: 0 | M11: Débit | N11: Entreprise | O11: FRA | P11: CRE 4 | Q11: 14 | R11: 000000 | S11: Z0 | T11: 17028 | U11: 17028 | V11: XA | W11: TRI | Y11: 00 | Z11: 00 | AA11: 2 | AB11: 17028 | AC11: 92282 | AD11: 513264KHYODHNJ31314 | AE11: 20251019 | AF11: =VLOOKUP(G11,'Listes déroulantes'!G:I,3,FALSE) -> 60992700180003 | AG11: 0000000000022000 | AH11: 978 | AI11: 2 | AJ11: TI | AK11: S | AL11: 224710856498 | AM11: FAC | AN11: 00000000 | AO11: =VLOOKUP(G11,'Listes déroulantes'!G:O,9,FALSE) -> 3 RUE DES FLEURS | AP11: 16 | AQ11: 250 | AR11: =VLOOKUP(G11,'Listes déroulantes'!G:H,2,FALSE) -> CM_03_COM/C | AS11: 000000000000 | AV11: 17028 | AW11: 92282 | AX11: =VLOOKUP(G11,'Listes déroulantes'!G:N,8,FALSE) -> 28293060142 | AY11: 93 | AZ11: 001 | BB11: =VLOOKUP(G11,'Listes déroulantes'!G:J,4,FALSE) -> 9356033 | BE11: 978 | BF11: 02 | BG11: 0000000000021956 | BI11: =VLOOKUP(G11,'Listes déroulantes'!G:M,7,FALSE) -> CM_03 | BJ11: 201025 | BK11: 000000 | BL11: 15617 | BM11: 0000000000021868 | BN11: 0000000000022000 | BQ11: 20251020 | BR11: 000000000132 | BS11: 000000000044 | BU11: 00000 | BV11: 4643216546131356461 | BW11: 00000000 | BX11: 000000 | BY11: 00000120251019MONEXT | CA11: D | CB11: E | CC11: FRA | CE11: =VLOOKUP(G11,'Listes déroulantes'!G:L,6,FALSE) -> PDP | CI11: 000000000000 | CM11: 20228380134
A12: Enregistrement 5 | B12: oui | C12: 14000000Z01702817028XATRI 000021702892282513264KHYODHNJ313152025101960992700180004 00000000000100009782TI S224710856496 FAC000000004 RUE DES FLEURS 17250CM_04_COA/C 000000000000 17028922822829306014393001 9356034 978020000000000009980 CM_04 2010250000001561700000000000099400000000000010000 20251020000000000060000000000020 0000046432165461313564610000000000000000000120251019MONEXT DPFRA VAD 000000000000 20228380135 | D12: Payment | E12: 2025-10-20 | F12: CB | G12: CM_04 | H12: 100 | I12: 0.6 | J12: 0.2 | K12: 0 | L12: 0 | M12: Débit | N12: Particulier | O12: FRA | P12: CRE 5 | Q12: 14 | R12: 000000 | S12: Z0 | T12: 17028 | U12: 17028 | V12: XA | W12: TRI | Y12: 00 | Z12: 00 | AA12: 2 | AB12: 17028 | AC12: 92282 | AD12: 513264KHYODHNJ31315 | AE12: 20251019 | AF12: =VLOOKUP(G12,'Listes déroulantes'!G:I,3,FALSE) -> 60992700180004 | AG12: 0000000000010000 | AH12: 978 | AI12: 2 | AJ12: TI | AK12: S | AL12: 224710856496 | AM12: FAC | AN12: 00000000 | AO12: =VLOOKUP(G12,'Listes déroulantes'!G:O,9,FALSE) -> 4 RUE DES FLEURS | AP12: 17 | AQ12: 250 | AR12: =VLOOKUP(G12,'Listes déroulantes'!G:H,2,FALSE) -> CM_04_COA/C | AS12: 000000000000 | AV12: 17028 | AW12: 92282 | AX12: =VLOOKUP(G12,'Listes déroulantes'!G:N,8,FALSE) -> 28293060143 | AY12: 93 | AZ12: 001 | BB12: =VLOOKUP(G12,'Listes déroulantes'!G:J,4,FALSE) -> 9356034 | BE12: 978 | BF12: 02 | BG12: 0000000000009980 | BI12: =VLOOKUP(G12,'Listes déroulantes'!G:M,7,FALSE) -> CM_04 | BJ12: 201025 | BK12: 000000 | BL12: 15617 | BM12: 0000000000009940 | BN12: 0000000000010000 | BQ12: 20251020 | BR12: 000000000060 | BS12: 000000000020 | BU12: 00000 | BV12: 4643216546131356461 | BW12: 00000000 | BX12: 000000 | BY12: 00000120251019MONEXT | CA12: D | CB12: P | CC12: FRA | CE12: =VLOOKUP(G12,'Listes déroulantes'!G:L,6,FALSE) -> VAD | CI12: 000000000000 | CM12: 20228380135
A13: Enregistrement 6 | B13: oui | C13: 14000000Z01702817028XATRI 000021702892282513264KHYODHNJ313162025101960992700180005 00000000000320009782TI S224710856497 FAC000000005 RUE DES FLEURS 18250CM_05_COA/M 000000000000 17028922822829306014493001 9356035 978020000000000031936 CM_05 2010250000001561700000000000318080000000000032000 20251020000000000192000000000064 0000046432165461313564610000000000000000000120251019MONEXT CPFRA VAD 000000000000 20228380136 | D13: Payment | E13: 2025-10-20 | F13: CB | G13: CM_05 | H13: 320 | I13: 1.92 | J13: 0.64 | K13: 0 | L13: 0 | M13: Crédit | N13: Particulier | O13: FRA | P13: CRE 6 | Q13: 14 | R13: 000000 | S13: Z0 | T13: 17028 | U13: 17028 | V13: XA | W13: TRI | Y13: 00 | Z13: 00 | AA13: 2 | AB13: 17028 | AC13: 92282 | AD13: 513264KHYODHNJ31316 | AE13: 20251019 | AF13: =VLOOKUP(G13,'Listes déroulantes'!G:I,3,FALSE) -> 60992700180005 | AG13: 0000000000032000 | AH13: 978 | AI13: 2 | AJ13: TI | AK13: S | AL13: 224710856497 | AM13: FAC | AN13: 00000000 | AO13: =VLOOKUP(G13,'Listes déroulantes'!G:O,9,FALSE) -> 5 RUE DES FLEURS | AP13: 18 | AQ13: 250 | AR13: =VLOOKUP(G13,'Listes déroulantes'!G:H,2,FALSE) -> CM_05_COA/M | AS13: 000000000000 | AV13: 17028 | AW13: 92282 | AX13: =VLOOKUP(G13,'Listes déroulantes'!G:N,8,FALSE) -> 28293060144 | AY13: 93 | AZ13: 001 | BB13: =VLOOKUP(G13,'Listes déroulantes'!G:J,4,FALSE) -> 9356035 | BE13: 978 | BF13: 02 | BG13: 0000000000031936 | BI13: =VLOOKUP(G13,'Listes déroulantes'!G:M,7,FALSE) -> CM_05 | BJ13: 201025 | BK13: 000000 | BL13: 15617 | BM13: 0000000000031808 | BN13: 0000000000032000 | BQ13: 20251020 | BR13: 000000000192 | BS13: 000000000064 | BU13: 00000 | BV13: 4643216546131356461 | BW13: 00000000 | BX13: 000000 | BY13: 00000120251019MONEXT | CA13: C | CB13: P | CC13: FRA | CE13: =VLOOKUP(G13,'Listes déroulantes'!G:L,6,FALSE) -> VAD | CI13: 000000000000 | CM13: 20228380136
A14: Enregistrement 7 | B14: oui | C14: 14000000Z01702817028XATRI 000021702892282513264KHYODHNJ313172025101960992700180006 00000000000245239782TI S224710856495 FAC000000006 RUE DES FLEURS 19250CM_06 _COA/M 000000000000 17028922822829306014593001 9356036 978020000000000024474 CM_06 2010250000001561700000000000243760000000000024523 20251020000000000147000000000049 0000046432165461313564610000000000000000000120251019MONEXT CPFRA VAD 000000000000 20228380137 | D14: Payment | E14: 2025-10-20 | F14: CB | G14: CM_06 | H14: 245.23 | I14: 1.47 | J14: 0.49 | K14: 0 | L14: 0 | M14: Crédit | N14: Particulier | O14: FRA | P14: CRE 7 | Q14: 14 | R14: 000000 | S14: Z0 | T14: 17028 | U14: 17028 | V14: XA | W14: TRI | Y14: 00 | Z14: 00 | AA14: 2 | AB14: 17028 | AC14: 92282 | AD14: 513264KHYODHNJ31317 | AE14: 20251019 | AF14: =VLOOKUP(G14,'Listes déroulantes'!G:I,3,FALSE) -> 60992700180006 | AG14: 0000000000024523 | AH14: 978 | AI14: 2 | AJ14: TI | AK14: S | AL14: 224710856495 | AM14: FAC | AN14: 00000000 | AO14: =VLOOKUP(G14,'Listes déroulantes'!G:O,9,FALSE) -> 6 RUE DES FLEURS | AP14: 19 | AQ14: 250 | AR14: =VLOOKUP(G14,'Listes déroulantes'!G:H,2,FALSE) -> CM_06 _COA/M | AS14: 000000000000 | AV14: 17028 | AW14: 92282 | AX14: =VLOOKUP(G14,'Listes déroulantes'!G:N,8,FALSE) -> 28293060145 | AY14: 93 | AZ14: 001 | BB14: =VLOOKUP(G14,'Listes déroulantes'!G:J,4,FALSE) -> 9356036 | BE14: 978 | BF14: 02 | BG14: 0000000000024474 | BI14: =VLOOKUP(G14,'Listes déroulantes'!G:M,7,FALSE) -> CM_06 | BJ14: 201025 | BK14: 000000 | BL14: 15617 | BM14: 0000000000024376 | BN14: 0000000000024523 | BQ14: 20251020 | BR14: 000000000147 | BS14: 000000000049 | BU14: 00000 | BV14: 4643216546131356461 | BW14: 00000000 | BX14: 000000 | BY14: 00000120251019MONEXT | CA14: C | CB14: P | CC14: FRA | CE14: =VLOOKUP(G14,'Listes déroulantes'!G:L,6,FALSE) -> VAD | CI14: 000000000000 | CM14: 20228380137
A15: Enregistrement 8 | B15: oui | C15: 14000000Z01702817028XATRI 000021702892282513264KHYODHNJ313182025101960992700180008 00000000000080239782TI S224710856496 FAC000000008 RUE DES FLEURS 20250CM_08_COA/C/CL1AG1 000000000000 17028922822829306013493001 9356038 978020000000000008007 CM_08 2010250000001561700000000000079750000000000008023 20251020000000000048000000000016 0000046432165461313564610000000000000000000120251019MONEXT DEFRA PDP 000000000004 20228380138 | D15: Payment | E15: 2025-10-20 | F15: CB | G15: CM_08 | H15: 80.23 | I15: 0.48 | J15: 0.16 | K15: 0 | L15: 0.04 | M15: Débit | N15: Entreprise | O15: FRA | P15: CRE 8 | Q15: 14 | R15: 000000 | S15: Z0 | T15: 17028 | U15: 17028 | V15: XA | W15: TRI | Y15: 00 | Z15: 00 | AA15: 2 | AB15: 17028 | AC15: 92282 | AD15: 513264KHYODHNJ31318 | AE15: 20251019 | AF15: =VLOOKUP(G15,'Listes déroulantes'!G:I,3,FALSE) -> 60992700180008 | AG15: 0000000000008023 | AH15: 978 | AI15: 2 | AJ15: TI | AK15: S | AL15: 224710856496 | AM15: FAC | AN15: 00000000 | AO15: =VLOOKUP(G15,'Listes déroulantes'!G:O,9,FALSE) -> 8 RUE DES FLEURS | AP15: 20 | AQ15: 250 | AR15: =VLOOKUP(G15,'Listes déroulantes'!G:H,2,FALSE) -> CM_08_COA/C/CL1AG1 | AS15: 000000000000 | AV15: 17028 | AW15: 92282 | AX15: =VLOOKUP(G15,'Listes déroulantes'!G:N,8,FALSE) -> 28293060134 | AY15: 93 | AZ15: 001 | BB15: =VLOOKUP(G15,'Listes déroulantes'!G:J,4,FALSE) -> 9356038 | BE15: 978 | BF15: 02 | BG15: 0000000000008007 | BI15: =VLOOKUP(G15,'Listes déroulantes'!G:M,7,FALSE) -> CM_08 | BJ15: 201025 | BK15: 000000 | BL15: 15617 | BM15: 0000000000007975 | BN15: 0000000000008023 | BQ15: 20251020 | BR15: 000000000048 | BS15: 000000000016 | BU15: 00000 | BV15: 4643216546131356461 | BW15: 00000000 | BX15: 000000 | BY15: 00000120251019MONEXT | CA15: D | CB15: E | CC15: FRA | CE15: =VLOOKUP(G15,'Listes déroulantes'!G:L,6,FALSE) -> PDP | CI15: 000000000004 | CM15: 20228380138
A16: Enregistrement 9 | B16: oui | C16: 14000000Z01702817028XATRI 000021702892282513264KHYODHNJ313192025101960992700180009 00000000000102009782TI S224710856495 FAC000000009 RUE DES FLEURS 21250CM_09_COA/C/CL2AG1 000000000000 17028922822829306013493001 9356039 978020000000000010180 CM_09 2010250000001561700000000000101390000000000010200 20251020000000000061000000000020 0000046432165461313564610000000000000000000120251019MONEXT DPFRA PDP 000000000005 20228380139 | D16: Payment | E16: 2025-10-20 | F16: CB | G16: CM_09 | H16: 102 | I16: 0.61 | J16: 0.2 | K16: 0 | L16: 0.05 | M16: Débit | N16: Particulier | O16: FRA | P16: CRE 9 | Q16: 14 | R16: 000000 | S16: Z0 | T16: 17028 | U16: 17028 | V16: XA | W16: TRI | Y16: 00 | Z16: 00 | AA16: 2 | AB16: 17028 | AC16: 92282 | AD16: 513264KHYODHNJ31319 | AE16: 20251019 | AF16: =VLOOKUP(G16,'Listes déroulantes'!G:I,3,FALSE) -> 60992700180009 | AG16: 0000000000010200 | AH16: 978 | AI16: 2 | AJ16: TI | AK16: S | AL16: 224710856495 | AM16: FAC | AN16: 00000000 | AO16: =VLOOKUP(G16,'Listes déroulantes'!G:O,9,FALSE) -> 9 RUE DES FLEURS | AP16: 21 | AQ16: 250 | AR16: =VLOOKUP(G16,'Listes déroulantes'!G:H,2,FALSE) -> CM_09_COA/C/CL2AG1 | AS16: 000000000000 | AV16: 17028 | AW16: 92282 | AX16: =VLOOKUP(G16,'Listes déroulantes'!G:N,8,FALSE) -> 28293060134 | AY16: 93 | AZ16: 001 | BB16: =VLOOKUP(G16,'Listes déroulantes'!G:J,4,FALSE) -> 9356039 | BE16: 978 | BF16: 02 | BG16: 0000000000010180 | BI16: =VLOOKUP(G16,'Listes déroulantes'!G:M,7,FALSE) -> CM_09 | BJ16: 201025 | BK16: 000000 | BL16: 15617 | BM16: 0000000000010139 | BN16: 0000000000010200 | BQ16: 20251020 | BR16: 000000000061 | BS16: 000000000020 | BU16: 00000 | BV16: 4643216546131356461 | BW16: 00000000 | BX16: 000000 | BY16: 00000120251019MONEXT | CA16: D | CB16: P | CC16: FRA | CE16: =VLOOKUP(G16,'Listes déroulantes'!G:L,6,FALSE) -> PDP | CI16: 000000000005 | CM16: 20228380139
A17: Enregistrement 10 | B17: oui | C17: 14000000Z01702817028XATRI 000021702892282513264KHYODHNJ313202025101960992700180010 00000000000078009782TI S224710856496 FAC0000000010 RUE DES FLEURS 22250CM_10_COM/C 000000000000 17028922822829306013593001 9356040 978020000000000007784 CM_10 2010250000001561700000000000077530000000000007800 20251020000000000047000000000016 0000046432165461313564610000000000000000000120251019MONEXT DPFRA VAD 000000000000 20228380140 | D17: Payment | E17: 2025-10-20 | F17: CB | G17: CM_10 | H17: 78 | I17: 0.47 | J17: 0.16 | K17: 0 | L17: 0 | M17: Débit | N17: Particulier | O17: FRA | P17: CRE 10 | Q17: 14 | R17: 000000 | S17: Z0 | T17: 17028 | U17: 17028 | V17: XA | W17: TRI | Y17: 00 | Z17: 00 | AA17: 2 | AB17: 17028 | AC17: 92282 | AD17: 513264KHYODHNJ31320 | AE17: 20251019 | AF17: =VLOOKUP(G17,'Listes déroulantes'!G:I,3,FALSE) -> 60992700180010 | AG17: 0000000000007800 | AH17: 978 | AI17: 2 | AJ17: TI | AK17: S | AL17: 224710856496 | AM17: FAC | AN17: 00000000 | AO17: =VLOOKUP(G17,'Listes déroulantes'!G:O,9,FALSE) -> 10 RUE DES FLEURS | AP17: 22 | AQ17: 250 | AR17: =VLOOKUP(G17,'Listes déroulantes'!G:H,2,FALSE) -> CM_10_COM/C | AS17: 000000000000 | AV17: 17028 | AW17: 92282 | AX17: =VLOOKUP(G17,'Listes déroulantes'!G:N,8,FALSE) -> 28293060135 | AY17: 93 | AZ17: 001 | BB17: =VLOOKUP(G17,'Listes déroulantes'!G:J,4,FALSE) -> 9356040 | BE17: 978 | BF17: 02 | BG17: 0000000000007784 | BI17: =VLOOKUP(G17,'Listes déroulantes'!G:M,7,FALSE) -> CM_10 | BJ17: 201025 | BK17: 000000 | BL17: 15617 | BM17: 0000000000007753 | BN17: 0000000000007800 | BQ17: 20251020 | BR17: 000000000047 | BS17: 000000000016 | BU17: 00000 | BV17: 4643216546131356461 | BW17: 00000000 | BX17: 000000 | BY17: 00000120251019MONEXT | CA17: D | CB17: P | CC17: FRA | CE17: =VLOOKUP(G17,'Listes déroulantes'!G:L,6,FALSE) -> VAD | CI17: 000000000000 | CM17: 20228380140
A18: Enregistrement 11 | B18: non | C18: CRE NON ACTIF | D18: Payment | E18: 2022-12-19 | F18: CB | G18: CM_32_VAD | H18: 220 | I18: 1.32 | J18: 0.44 | K18: 0 | L18: 0 | M18: Débit | N18: Particulier | O18: FRA | P18: CRE 11 | Q18: 14 | R18: 000000 | S18: Z0 | T18: 17028 | U18: 17028 | V18: XA | W18: TRI | Y18: 00 | Z18: 00 | AA18: 2 | AB18: 17028 | AC18: 92282 | AD18: 513264KHYODHNJ31321 | AE18: 20221218 | AF18: =VLOOKUP(G18,'Listes déroulantes'!G:I,3,FALSE) -> 60903200190001 | AG18: 0000000000022000 | AH18: 978 | AI18: 2 | AJ18: TI | AK18: S | AL18: 224710856495 | AM18: FAC | AN18: 00000000 | AO18: =VLOOKUP(G18,'Listes déroulantes'!G:O,9,FALSE) -> 32 RUE DU TEST | AP18: 23 | AQ18: 250 | AR18: =VLOOKUP(G18,'Listes déroulantes'!G:H,2,FALSE) -> CM_32 | AS18: 000000000000 | AV18: 17028 | AW18: 92282 | AX18: =VLOOKUP(G18,'Listes déroulantes'!G:N,8,FALSE) -> 28293060232 | AY18: 93 | AZ18: 001 | BB18: =VLOOKUP(G18,'Listes déroulantes'!G:J,4,FALSE) -> 9556032 | BE18: 978 | BF18: 02 | BG18: 0000000000021956 | BI18: =VLOOKUP(G18,'Listes déroulantes'!G:M,7,FALSE) -> CM_32 | BJ18: 191222 | BK18: 000000 | BL18: 15617 | BM18: 0000000000021868 | BN18: 0000000000022000 | BQ18: 20221219 | BR18: 000000000132 | BS18: 000000000044 | BU18: 00000 | BV18: 4643216546131356461 | BW18: 00000000 | BX18: 000000 | BY18: 00000120221218MONEXT | CA18: D | CB18: P | CC18: FRA | CE18: =VLOOKUP(G18,'Listes déroulantes'!G:L,6,FALSE) -> VAD | CI18: 000000000000 | CM18: 20228380141
A19: Enregistrement 12 | B19: non | C19: CRE NON ACTIF | D19: Payment | E19: 2022-12-19 | F19: CB | G19: CM_32_VAD | H19: 80.23 | I19: 0.48 | J19: 0.16 | K19: 0 | L19: 0 | M19: Débit | N19: Particulier | O19: FRA | P19: CRE 12 | Q19: 14 | R19: 000000 | S19: Z0 | T19: 17028 | U19: 17028 | V19: XA | W19: TRI | Y19: 00 | Z19: 00 | AA19: 2 | AB19: 17028 | AC19: 92282 | AD19: 513264KHYODHNJ31322 | AE19: 20221218 | AF19: =VLOOKUP(G19,'Listes déroulantes'!G:I,3,FALSE) -> 60903200190001 | AG19: 0000000000008023 | AH19: 978 | AI19: 2 | AJ19: TI | AK19: S | AL19: 224710856496 | AM19: FAC | AN19: 00000000 | AO19: =VLOOKUP(G19,'Listes déroulantes'!G:O,9,FALSE) -> 32 RUE DU TEST | AP19: 24 | AQ19: 250 | AR19: =VLOOKUP(G19,'Listes déroulantes'!G:H,2,FALSE) -> CM_32 | AS19: 000000000000 | AV19: 17028 | AW19: 92282 | AX19: =VLOOKUP(G19,'Listes déroulantes'!G:N,8,FALSE) -> 28293060232 | AY19: 93 | AZ19: 001 | BB19: =VLOOKUP(G19,'Listes déroulantes'!G:J,4,FALSE) -> 9556032 | BE19: 978 | BF19: 02 | BG19: 0000000000008007 | BI19: =VLOOKUP(G19,'Listes déroulantes'!G:M,7,FALSE) -> CM_32 | BJ19: 191222 | BK19: 000000 | BL19: 15617 | BM19: 0000000000007975 | BN19: 0000000000008023 | BQ19: 20221219 | BR19: 000000000048 | BS19: 000000000016 | BU19: 00000 | BV19: 4643216546131356461 | BW19: 00000000 | BX19: 000000 | BY19: 00000120221218MONEXT | CA19: D | CB19: P | CC19: FRA | CE19: =VLOOKUP(G19,'Listes déroulantes'!G:L,6,FALSE) -> VAD | CI19: 000000000000 | CM19: 20228380142
A20: Enregistrement 13 | B20: non | C20: CRE NON ACTIF | D20: Payment | E20: 2022-12-19 | F20: CB | G20: CM_34_AG1 | H20: 102 | I20: 0.61 | J20: 0.2 | K20: 0 | L20: 0 | M20: Débit | N20: Particulier | O20: FRA | P20: CRE 13 | Q20: 14 | R20: 000000 | S20: Z0 | T20: 17028 | U20: 17028 | V20: XA | W20: TRI | Y20: 00 | Z20: 00 | AA20: 2 | AB20: 17028 | AC20: 92282 | AD20: 513264KHYODHNJ31323 | AE20: 20221218 | AF20: =VLOOKUP(G20,'Listes déroulantes'!G:I,3,FALSE) -> 60903400190001 | AG20: 0000000000010200 | AH20: 978 | AI20: 2 | AJ20: TI | AK20: S | AL20: 224710856495 | AM20: FAC | AN20: 00000000 | AO20: =VLOOKUP(G20,'Listes déroulantes'!G:O,9,FALSE) -> 34 RUE DU TEST | AP20: 25 | AQ20: 250 | AR20: =VLOOKUP(G20,'Listes déroulantes'!G:H,2,FALSE) -> CM_34_AG1 | AS20: 000000000000 | AV20: 17028 | AW20: 92282 | AX20: =VLOOKUP(G20,'Listes déroulantes'!G:N,8,FALSE) -> 28293060234 | AY20: 93 | AZ20: 001 | BB20: =VLOOKUP(G20,'Listes déroulantes'!G:J,4,FALSE) -> 9556034 | BE20: 978 | BF20: 02 | BG20: 0000000000010180 | BI20: =VLOOKUP(G20,'Listes déroulantes'!G:M,7,FALSE) -> CM_34 | BJ20: 191222 | BK20: 000000 | BL20: 15617 | BM20: 0000000000010139 | BN20: 0000000000010200 | BQ20: 20221219 | BR20: 000000000061 | BS20: 000000000020 | BU20: 00000 | BV20: 4643216546131356461 | BW20: 00000000 | BX20: 000000 | BY20: 00000120221218MONEXT | CA20: D | CB20: P | CC20: FRA | CE20: =VLOOKUP(G20,'Listes déroulantes'!G:L,6,FALSE) -> VAD | CI20: 000000000000 | CM20: 20228380143
A21: Enregistrement 14 | B21: non | C21: CRE NON ACTIF | D21: Payment | E21: 2022-12-19 | F21: CB | G21: CM_34_AG1 | H21: 78 | I21: 0.47 | J21: 0.16 | K21: 0 | L21: 0 | M21: Débit | N21: Particulier | O21: FRA | P21: CRE 14 | Q21: 14 | R21: 000000 | S21: Z0 | T21: 17028 | U21: 17028 | V21: XA | W21: TRI | Y21: 00 | Z21: 00 | AA21: 2 | AB21: 17028 | AC21: 92282 | AD21: 513264KHYODHNJ31324 | AE21: 20221218 | AF21: =VLOOKUP(G21,'Listes déroulantes'!G:I,3,FALSE) -> 60903400190001 | AG21: 0000000000007800 | AH21: 978 | AI21: 2 | AJ21: TI | AK21: S | AL21: 224710856496 | AM21: FAC | AN21: 00000000 | AO21: =VLOOKUP(G21,'Listes déroulantes'!G:O,9,FALSE) -> 34 RUE DU TEST | AP21: 26 | AQ21: 250 | AR21: =VLOOKUP(G21,'Listes déroulantes'!G:H,2,FALSE) -> CM_34_AG1 | AS21: 000000000000 | AV21: 17028 | AW21: 92282 | AX21: =VLOOKUP(G21,'Listes déroulantes'!G:N,8,FALSE) -> 28293060234 | AY21: 93 | AZ21: 001 | BB21: =VLOOKUP(G21,'Listes déroulantes'!G:J,4,FALSE) -> 9556034 | BE21: 978 | BF21: 02 | BG21: 0000000000007784 | BI21: =VLOOKUP(G21,'Listes déroulantes'!G:M,7,FALSE) -> CM_34 | BJ21: 191222 | BK21: 000000 | BL21: 15617 | BM21: 0000000000007753 | BN21: 0000000000007800 | BQ21: 20221219 | BR21: 000000000047 | BS21: 000000000016 | BU21: 00000 | BV21: 4643216546131356461 | BW21: 00000000 | BX21: 000000 | BY21: 00000120221218MONEXT | CA21: D | CB21: P | CC21: FRA | CE21: =VLOOKUP(G21,'Listes déroulantes'!G:L,6,FALSE) -> VAD | CI21: 000000000000 | CM21: 20228380144
A22: Enregistrement 15 | B22: non | C22: CRE NON ACTIF | D22: Payment | E22: 2022-12-19 | F22: CB | G22: CM_34_AG1 | H22: 0 | I22: 0 | J22: 0 | K22: 0 | L22: 0 | M22: Débit | N22: Particulier | O22: FRA | P22: CRE 15 | Q22: 14 | R22: 000000 | S22: Z0 | T22: 17028 | U22: 17028 | V22: XA | W22: TRI | Y22: 00 | Z22: 00 | AA22: 2 | AB22: 17028 | AC22: 92282 | AD22: 513264KHYODHNJ31325 | AE22: 20221218 | AF22: =VLOOKUP(G22,'Listes déroulantes'!G:I,3,FALSE) -> 60903400190001 | AG22: 0000000000000000 | AH22: 978 | AI22: 2 | AJ22: TI | AK22: S | AL22: 224710856495 | AM22: FAC | AN22: 00000000 | AO22: =VLOOKUP(G22,'Listes déroulantes'!G:O,9,FALSE) -> 34 RUE DU TEST | AP22: 27 | AQ22: 250 | AR22: =VLOOKUP(G22,'Listes déroulantes'!G:H,2,FALSE) -> CM_34_AG1 | AS22: 000000000000 | AV22: 17028 | AW22: 92282 | AX22: =VLOOKUP(G22,'Listes déroulantes'!G:N,8,FALSE) -> 28293060234 | AY22: 93 | AZ22: 001 | BB22: =VLOOKUP(G22,'Listes déroulantes'!G:J,4,FALSE) -> 9556034 | BE22: 978 | BF22: 02 | BG22: 0000000000000000 | BI22: =VLOOKUP(G22,'Listes déroulantes'!G:M,7,FALSE) -> CM_34 | BJ22: 191222 | BK22: 000000 | BL22: 15617 | BM22: 0000000000000000 | BN22: 0000000000000000 | BQ22: 20221219 | BR22: 000000000000 | BS22: 000000000000 | BU22: 00000 | BV22: 4643216546131356461 | BW22: 00000000 | BX22: 000000 | BY22: 00000120221218MONEXT | CA22: D | CB22: P | CC22: FRA | CE22: =VLOOKUP(G22,'Listes déroulantes'!G:L,6,FALSE) -> VAD | CI22: 000000000000 | CM22: 20228380145
A23: Enregistrement 16 | B23: non | C23: CRE NON ACTIF | D23: Payment | E23: 2022-12-19 | F23: CB | G23: CM_34_AG1 | H23: 100 | I23: 2.5 | J23: 0.5 | K23: 0 | L23: 0 | M23: Débit | N23: Particulier | O23: FRA | P23: CRE 16 | Q23: 14 | R23: 000000 | S23: Z0 | T23: 17028 | U23: 17028 | V23: XA | W23: TRI | Y23: 00 | Z23: 00 | AA23: 2 | AB23: 17028 | AC23: 92282 | AD23: 513264KHYODHNJ31326 | AE23: 20221218 | AF23: =VLOOKUP(G23,'Listes déroulantes'!G:I,3,FALSE) -> 60903400190001 | AG23: 0000000000010000 | AH23: 978 | AI23: 2 | AJ23: TI | AK23: S | AL23: 224710856496 | AM23: FAC | AN23: 00000000 | AO23: =VLOOKUP(G23,'Listes déroulantes'!G:O,9,FALSE) -> 34 RUE DU TEST | AP23: 28 | AQ23: 250 | AR23: =VLOOKUP(G23,'Listes déroulantes'!G:H,2,FALSE) -> CM_34_AG1 | AS23: 000000000000 | AV23: 17028 | AW23: 92282 | AX23: =VLOOKUP(G23,'Listes déroulantes'!G:N,8,FALSE) -> 28293060234 | AY23: 93 | AZ23: 001 | BB23: =VLOOKUP(G23,'Listes déroulantes'!G:J,4,FALSE) -> 9556034 | BE23: 978 | BF23: 02 | BG23: 0000000000009950 | BI23: =VLOOKUP(G23,'Listes déroulantes'!G:M,7,FALSE) -> CM_34 | BJ23: 191222 | BK23: 000000 | BL23: 15617 | BM23: 0000000000009750 | BN23: 0000000000010000 | BQ23: 20221219 | BR23: 000000000250 | BS23: 000000000050 | BU23: 00000 | BV23: 4643216546131356461 | BW23: 00000000 | BX23: 000000 | BY23: 00000120221218MONEXT | CA23: D | CB23: P | CC23: FRA | CE23: =VLOOKUP(G23,'Listes déroulantes'!G:L,6,FALSE) -> VAD | CI23: 000000000000 | CM23: 20228380146
A24: Enregistrement 17 | B24: non | C24: CRE NON ACTIF | D24: Payment | E24: 2022-12-19 | F24: CB | G24: SAS MONEXT PDP | H24: 246 | I24: 2.5 | J24: 1 | K24: 0 | L24: 0 | M24: Débit | N24: Particulier | O24: FRA | P24: CRE 17 | Q24: 14 | R24: 000000 | S24: Z0 | T24: 17028 | U24: 17028 | V24: XA | W24: TRI | Y24: 00 | Z24: 00 | AA24: 2 | AB24: 17028 | AC24: 92282 | AD24: 513264KHYODHNJ31327 | AE24: 20221218 | AF24: =VLOOKUP(G24,'Listes déroulantes'!G:I,3,FALSE) -> 50318500100032 | AG24: 0000000000024600 | AH24: 978 | AI24: 2 | AJ24: TI | AK24: S | AL24: 224710856495 | AM24: FAC | AN24: 00000000 | AO24: =VLOOKUP(G24,'Listes déroulantes'!G:O,9,FALSE) -> 260 RUE CLAUDE NICOL | AP24: 29 | AQ24: 250 | AR24: =VLOOKUP(G24,'Listes déroulantes'!G:H,2,FALSE) -> SAS MONEXT | AS24: 000000000000 | AV24: 17028 | AW24: 92282 | AX24: =VLOOKUP(G24,'Listes déroulantes'!G:N,8,FALSE) -> 20289045644 | AY24: 93 | AZ24: 001 | BB24: =VLOOKUP(G24,'Listes déroulantes'!G:J,4,FALSE) -> 9255001 | BE24: 978 | BF24: 02 | BG24: 0000000000024500 | BI24: =VLOOKUP(G24,'Listes déroulantes'!G:M,7,FALSE) -> MONEXT | BJ24: 191222 | BK24: 000000 | BL24: 15617 | BM24: 0000000000024350 | BN24: 0000000000024600 | BQ24: 20221219 | BR24: 000000000250 | BS24: 000000000100 | BU24: 00000 | BV24: 4643216546131356461 | BW24: 00000000 | BX24: 000000 | BY24: 00000120221218MONEXT | CA24: D | CB24: P | CC24: FRA | CE24: =VLOOKUP(G24,'Listes déroulantes'!G:L,6,FALSE) -> PDP | CI24: 000000000000 | CM24: 20228380147
A25: Enregistrement 18 | B25: non | C25: CRE NON ACTIF | D25: Payment | E25: 2022-12-19 | F25: CB | G25: CM_7_RMFEC VAD | H25: 100 | I25: 2.5 | J25: 0.5 | K25: 0 | L25: 0 | M25: Débit | N25: Particulier | O25: FRA | P25: CRE 18 | Q25: 14 | R25: 000000 | S25: Z0 | T25: 17028 | U25: 17028 | V25: XA | W25: TRI | Y25: 00 | Z25: 00 | AA25: 2 | AB25: 17028 | AC25: 92282 | AD25: 513264KHYODHNJ31328 | AE25: 20221218 | AF25: =VLOOKUP(G25,'Listes déroulantes'!G:I,3,FALSE) -> 60920700180001 | AG25: 0000000000010000 | AH25: 978 | AI25: 2 | AJ25: TI | AK25: S | AL25: 224710856496 | AM25: FAC | AN25: 00000000 | AO25: =VLOOKUP(G25,'Listes déroulantes'!G:O,9,FALSE) -> 20 RUE CARDINALE | AP25: 30 | AQ25: 250 | AR25: =VLOOKUP(G25,'Listes déroulantes'!G:H,2,FALSE) -> CM_7_RMFEC | AS25: 000000000000 | AV25: 17028 | AW25: 92282 | AX25: =VLOOKUP(G25,'Listes déroulantes'!G:N,8,FALSE) -> 28293060129 | AY25: 93 | AZ25: 001 | BB25: =VLOOKUP(G25,'Listes déroulantes'!G:J,4,FALSE) -> 9256012 | BE25: 978 | BF25: 02 | BG25: 0000000000009950 | BI25: =VLOOKUP(G25,'Listes déroulantes'!G:M,7,FALSE) -> CM_7_RMFEC VAD | BJ25: 191222 | BK25: 000000 | BL25: 15617 | BM25: 0000000000009750 | BN25: 0000000000010000 | BQ25: 20221219 | BR25: 000000000250 | BS25: 000000000050 | BU25: 00000 | BV25: 4643216546131356461 | BW25: 00000000 | BX25: 000000 | BY25: 00000120221218MONEXT | CA25: D | CB25: P | CC25: FRA | CE25: =VLOOKUP(G25,'Listes déroulantes'!G:L,6,FALSE) -> VAD | CI25: 000000000000 | CM25: 20228380148
A26: Enregistrement 19 | B26: non | C26: CRE NON ACTIF | D26: Payment | E26: 2022-12-19 | F26: CB | G26: CM_6_RMFEC VAD | H26: 45.22 | I26: 2.5 | J26: 0.5 | K26: 0 | L26: 0 | M26: Débit | N26: Particulier | O26: FRA | P26: CRE 19 | Q26: 14 | R26: 000000 | S26: Z0 | T26: 17028 | U26: 17028 | V26: XA | W26: TRI | Y26: 00 | Z26: 00 | AA26: 2 | AB26: 17028 | AC26: 92282 | AD26: 513264KHYODHNJ31329 | AE26: 20221218 | AF26: =VLOOKUP(G26,'Listes déroulantes'!G:I,3,FALSE) -> 60919700180001 | AG26: 0000000000004522 | AH26: 978 | AI26: 2 | AJ26: TI | AK26: S | AL26: 224710856495 | AM26: FAC | AN26: 00000000 | AO26: =VLOOKUP(G26,'Listes déroulantes'!G:O,9,FALSE) -> 20 RUE JEAN JAURES | AP26: 31 | AQ26: 250 | AR26: =VLOOKUP(G26,'Listes déroulantes'!G:H,2,FALSE) -> CM_6_RMFEC | AS26: 000000000000 | AV26: 17028 | AW26: 92282 | AX26: =VLOOKUP(G26,'Listes déroulantes'!G:N,8,FALSE) -> 28293060128 | AY26: 93 | AZ26: 001 | BB26: =VLOOKUP(G26,'Listes déroulantes'!G:J,4,FALSE) -> 9256010 | BE26: 978 | BF26: 02 | BG26: 0000000000004472 | BI26: =VLOOKUP(G26,'Listes déroulantes'!G:M,7,FALSE) -> CM_6_RMFEC VAD | BJ26: 191222 | BK26: 000000 | BL26: 15617 | BM26: 0000000000004272 | BN26: 0000000000004522 | BQ26: 20221219 | BR26: 000000000250 | BS26: 000000000050 | BU26: 00000 | BV26: 4643216546131356461 | BW26: 00000000 | BX26: 000000 | BY26: 00000120221218MONEXT | CA26: D | CB26: P | CC26: FRA | CE26: =VLOOKUP(G26,'Listes déroulantes'!G:L,6,FALSE) -> VAD | CI26: 000000000000 | CM26: 20228380149
A27: Enregistrement 20 | B27: non | C27: CRE NON ACTIF | D27: Payment | E27: 2022-12-19 | F27: CB | G27: CM_5_RMFEC VAD | H27: 100 | I27: 2.5 | J27: 0.5 | K27: 0 | L27: 0 | M27: Débit | N27: Particulier | O27: FRA | P27: CRE 20 | Q27: 14 | R27: 000000 | S27: Z0 | T27: 17028 | U27: 17028 | V27: XA | W27: TRI | Y27: 00 | Z27: 00 | AA27: 2 | AB27: 17028 | AC27: 92282 | AD27: 513264KHYODHNJ31330 | AE27: 20221218 | AF27: =VLOOKUP(G27,'Listes déroulantes'!G:I,3,FALSE) -> 60819700180001 | AG27: 0000000000010000 | AH27: 978 | AI27: 2 | AJ27: TI | AK27: S | AL27: 224710856496 | AM27: FAC | AN27: 00000000 | AO27: =VLOOKUP(G27,'Listes déroulantes'!G:O,9,FALSE) -> 43 RUE CLEMENCE | AP27: 32 | AQ27: 250 | AR27: =VLOOKUP(G27,'Listes déroulantes'!G:H,2,FALSE) -> CM_5_RMFEC | AS27: 000000000000 | AV27: 17028 | AW27: 92282 | AX27: =VLOOKUP(G27,'Listes déroulantes'!G:N,8,FALSE) -> 28293060127 | AY27: 93 | AZ27: 001 | BB27: =VLOOKUP(G27,'Listes déroulantes'!G:J,4,FALSE) -> 9256009 | BE27: 978 | BF27: 02 | BG27: 0000000000009950 | BI27: =VLOOKUP(G27,'Listes déroulantes'!G:M,7,FALSE) -> CM_5_RMFEC VAD | BJ27: 191222 | BK27: 000000 | BL27: 15617 | BM27: 0000000000009750 | BN27: 0000000000010000 | BQ27: 20221219 | BR27: 000000000250 | BS27: 000000000050 | BU27: 00000 | BV27: 4643216546131356461 | BW27: 00000000 | BX27: 000000 | BY27: 00000120221218MONEXT | CA27: D | CB27: P | CC27: FRA | CE27: =VLOOKUP(G27,'Listes déroulantes'!G:L,6,FALSE) -> VAD | CI27: 000000000000 | CM27: 20228380150
A28: Enregistrement 21 | B28: non | C28: CRE NON ACTIF | D28: Payment | E28: 2022-12-19 | F28: CB | G28: SAS MONEXT PDP | H28: 250 | I28: 2.5 | J28: 1 | K28: 0 | L28: 0 | M28: Débit | N28: Particulier | O28: FRA | P28: CRE 21 | Q28: 14 | R28: 000000 | S28: Z0 | T28: 17028 | U28: 17028 | V28: XA | W28: TRI | Y28: 00 | Z28: 00 | AA28: 2 | AB28: 17028 | AC28: 92282 | AD28: 513264KHYODHNJ31331 | AE28: 20221218 | AF28: =VLOOKUP(G28,'Listes déroulantes'!G:I,3,FALSE) -> 50318500100032 | AG28: 0000000000025000 | AH28: 978 | AI28: 2 | AJ28: TI | AK28: S | AL28: 224710856495 | AM28: FAC | AN28: 00000000 | AO28: =VLOOKUP(G28,'Listes déroulantes'!G:O,9,FALSE) -> 260 RUE CLAUDE NICOL | AP28: 33 | AQ28: 250 | AR28: =VLOOKUP(G28,'Listes déroulantes'!G:H,2,FALSE) -> SAS MONEXT | AS28: 000000000000 | AV28: 17028 | AW28: 92282 | AX28: =VLOOKUP(G28,'Listes déroulantes'!G:N,8,FALSE) -> 20289045644 | AY28: 93 | AZ28: 001 | BB28: =VLOOKUP(G28,'Listes déroulantes'!G:J,4,FALSE) -> 9255001 | BE28: 978 | BF28: 02 | BG28: 0000000000024900 | BI28: =VLOOKUP(G28,'Listes déroulantes'!G:M,7,FALSE) -> MONEXT | BJ28: 191222 | BK28: 000000 | BL28: 15617 | BM28: 0000000000024750 | BN28: 0000000000025000 | BQ28: 20221219 | BR28: 000000000250 | BS28: 000000000100 | BU28: 00000 | BV28: 4643216546131356461 | BW28: 00000000 | BX28: 000000 | BY28: 00000120221218MONEXT | CA28: D | CB28: P | CC28: FRA | CE28: =VLOOKUP(G28,'Listes déroulantes'!G:L,6,FALSE) -> PDP | CI28: 000000000000 | CM28: 20228380151
A29: Enregistrement 22 | B29: oui | C29: 14000000Z01702817028XATRI 000021702892282513264KHYODHNJ313322025101960992700180001 00000000000066009782TI S224710856496 AVO000000001 RUE DES FLEURS 34250CM_01_COA/C 000000000000 17028922822829306014093001 9356031 978020000000000006587 CM_01 2010250000001561700000000000066000000000000006600 20251020000000000000000000000013 0000046432165461313564610000000000000000000220251019MONEXT DPFRA VAD 000000000000 20228380152 | D29: Refund | E29: 2025-10-20 | F29: CB | G29: CM_01 | H29: 66 | I29: 0 | J29: 0.13 | K29: 0 | L29: 0 | M29: Débit | N29: Particulier | O29: FRA | P29: CRE 22 | Q29: 14 | R29: 000000 | S29: Z0 | T29: 17028 | U29: 17028 | V29: XA | W29: TRI | Y29: 00 | Z29: 00 | AA29: 2 | AB29: 17028 | AC29: 92282 | AD29: 513264KHYODHNJ31332 | AE29: 20251019 | AF29: =VLOOKUP(G29,'Listes déroulantes'!G:I,3,FALSE) -> 60992700180001 | AG29: 0000000000006600 | AH29: 978 | AI29: 2 | AJ29: TI | AK29: S | AL29: 224710856496 | AM29: AVO | AN29: 00000000 | AO29: =VLOOKUP(G29,'Listes déroulantes'!G:O,9,FALSE) -> 1 RUE DES FLEURS | AP29: 34 | AQ29: 250 | AR29: =VLOOKUP(G29,'Listes déroulantes'!G:H,2,FALSE) -> CM_01_COA/C | AS29: 000000000000 | AV29: 17028 | AW29: 92282 | AX29: =VLOOKUP(G29,'Listes déroulantes'!G:N,8,FALSE) -> 28293060140 | AY29: 93 | AZ29: 001 | BB29: =VLOOKUP(G29,'Listes déroulantes'!G:J,4,FALSE) -> 9356031 | BE29: 978 | BF29: 02 | BG29: 0000000000006587 | BI29: =VLOOKUP(G29,'Listes déroulantes'!G:M,7,FALSE) -> CM_01 | BJ29: 201025 | BK29: 000000 | BL29: 15617 | BM29: 0000000000006600 | BN29: 0000000000006600 | BQ29: 20251020 | BR29: 000000000000 | BS29: 000000000013 | BU29: 00000 | BV29: 4643216546131356461 | BW29: 00000000 | BX29: 000000 | BY29: =CONCATENATE("000002",TEXT(E29-1,"aaaammjj"),"MONEXT ") -> 00000220251019MONEXT | CA29: D | CB29: P | CC29: FRA | CE29: =VLOOKUP(G29,'Listes déroulantes'!G:L,6,FALSE) -> VAD | CI29: 000000000000 | CM29: 20228380152
A30: Enregistrement 23 | B30: oui | C30: 14000000Z01702817028XATRI 000021702892282513264KHYODHNJ313332025101960992700180004 00000000000060009782TI S224710856495 AVO000000004 RUE DES FLEURS 35250CM_04_COA/C 000000000000 17028922822829306014393001 9356034 978020000000000005988 CM_04 2010250000001561700000000000059640000000000006000 20251020000000000036000000000012 0000046432165461313564610000000000000000000220251019MONEXT DPFRA VAD 000000000000 20228380153 | D30: Refund | E30: 2025-10-20 | F30: CB | G30: CM_04 | H30: 60 | I30: 0.36 | J30: 0.12 | K30: 0 | L30: 0 | M30: Débit | N30: Particulier | O30: FRA | P30: CRE 23 | Q30: 14 | R30: 000000 | S30: Z0 | T30: 17028 | U30: 17028 | V30: XA | W30: TRI | Y30: 00 | Z30: 00 | AA30: 2 | AB30: 17028 | AC30: 92282 | AD30: 513264KHYODHNJ31333 | AE30: 20251019 | AF30: =VLOOKUP(G30,'Listes déroulantes'!G:I,3,FALSE) -> 60992700180004 | AG30: 0000000000006000 | AH30: 978 | AI30: 2 | AJ30: TI | AK30: S | AL30: 224710856495 | AM30: AVO | AN30: 00000000 | AO30: =VLOOKUP(G30,'Listes déroulantes'!G:O,9,FALSE) -> 4 RUE DES FLEURS | AP30: 35 | AQ30: 250 | AR30: =VLOOKUP(G30,'Listes déroulantes'!G:H,2,FALSE) -> CM_04_COA/C | AS30: 000000000000 | AV30: 17028 | AW30: 92282 | AX30: =VLOOKUP(G30,'Listes déroulantes'!G:N,8,FALSE) -> 28293060143 | AY30: 93 | AZ30: 001 | BB30: =VLOOKUP(G30,'Listes déroulantes'!G:J,4,FALSE) -> 9356034 | BE30: 978 | BF30: 02 | BG30: 0000000000005988 | BI30: =VLOOKUP(G30,'Listes déroulantes'!G:M,7,FALSE) -> CM_04 | BJ30: 201025 | BK30: 000000 | BL30: 15617 | BM30: 0000000000005964 | BN30: 0000000000006000 | BQ30: 20251020 | BR30: 000000000036 | BS30: 000000000012 | BU30: 00000 | BV30: 4643216546131356461 | BW30: 00000000 | BX30: 000000 | BY30: =CONCATENATE("000002",TEXT(E30-1,"aaaammjj"),"MONEXT ") -> 00000220251019MONEXT | CA30: D | CB30: P | CC30: FRA | CE30: =VLOOKUP(G30,'Listes déroulantes'!G:L,6,FALSE) -> VAD | CI30: 000000000000 | CM30: 20228380153
A31: Enregistrement 24 | B31: oui | C31: 14000000Z01702817028XATRI 000021702892282513264KHYODHNJ313342025101960992700180004 00000000000080009782TI S224710856496 AVO000000004 RUE DES FLEURS 36250CM_04_COA/C 000000000000 17028922822829306014393001 9356034 978020000000000007984 CM_04 2010250000001561700000000000079520000000000008000 20251020000000000048000000000016 0000046432165461313564610000000000000000000220251019MONEXT DPFRA VAD 000000000000 20228380154 | D31: Refund | E31: 2025-10-20 | F31: CB | G31: CM_04 | H31: 80 | I31: 0.48 | J31: 0.16 | K31: 0 | L31: 0 | M31: Débit | N31: Particulier | O31: FRA | P31: CRE 24 | Q31: 14 | R31: 000000 | S31: Z0 | T31: 17028 | U31: 17028 | V31: XA | W31: TRI | Y31: 00 | Z31: 00 | AA31: 2 | AB31: 17028 | AC31: 92282 | AD31: 513264KHYODHNJ31334 | AE31: 20251019 | AF31: =VLOOKUP(G31,'Listes déroulantes'!G:I,3,FALSE) -> 60992700180004 | AG31: 0000000000008000 | AH31: 978 | AI31: 2 | AJ31: TI | AK31: S | AL31: 224710856496 | AM31: AVO | AN31: 00000000 | AO31: =VLOOKUP(G31,'Listes déroulantes'!G:O,9,FALSE) -> 4 RUE DES FLEURS | AP31: 36 | AQ31: 250 | AR31: =VLOOKUP(G31,'Listes déroulantes'!G:H,2,FALSE) -> CM_04_COA/C | AS31: 000000000000 | AV31: 17028 | AW31: 92282 | AX31: =VLOOKUP(G31,'Listes déroulantes'!G:N,8,FALSE) -> 28293060143 | AY31: 93 | AZ31: 001 | BB31: =VLOOKUP(G31,'Listes déroulantes'!G:J,4,FALSE) -> 9356034 | BE31: 978 | BF31: 02 | BG31: 0000000000007984 | BI31: =VLOOKUP(G31,'Listes déroulantes'!G:M,7,FALSE) -> CM_04 | BJ31: 201025 | BK31: 000000 | BL31: 15617 | BM31: 0000000000007952 | BN31: 0000000000008000 | BQ31: 20251020 | BR31: 000000000048 | BS31: 000000000016 | BU31: 00000 | BV31: 4643216546131356461 | BW31: 00000000 | BX31: 000000 | BY31: 00000220251019MONEXT | CA31: D | CB31: P | CC31: FRA | CE31: =VLOOKUP(G31,'Listes déroulantes'!G:L,6,FALSE) -> VAD | CI31: 000000000000 | CM31: 20228380154
A32: Enregistrement 25 | B32: oui | C32: 14000000Z01702817028XATRI 000021702892282513264KHYODHNJ313352025101960992700180005 00000000000067009782TI S224710856495 AVO000000005 RUE DES FLEURS 37250CM_05_COA/M 000000000000 17028922822829306014493001 9356035 978020000000000006687 CM_05 2010250000001561700000000000066600000000000006700 20251020000000000040000000000013 0000046432165461313564610000000000000000000220251019MONEXT DPFRA VAD 000000000000 20228380155 | D32: Refund | E32: 2025-10-20 | F32: CB | G32: CM_05 | H32: 67 | I32: 0.4 | J32: 0.13 | K32: 0 | L32: 0 | M32: Débit | N32: Particulier | O32: FRA | P32: CRE 25 | Q32: 14 | R32: 000000 | S32: Z0 | T32: 17028 | U32: 17028 | V32: XA | W32: TRI | Y32: 00 | Z32: 00 | AA32: 2 | AB32: 17028 | AC32: 92282 | AD32: 513264KHYODHNJ31335 | AE32: 20251019 | AF32: =VLOOKUP(G32,'Listes déroulantes'!G:I,3,FALSE) -> 60992700180005 | AG32: 0000000000006700 | AH32: 978 | AI32: 2 | AJ32: TI | AK32: S | AL32: 224710856495 | AM32: AVO | AN32: 00000000 | AO32: =VLOOKUP(G32,'Listes déroulantes'!G:O,9,FALSE) -> 5 RUE DES FLEURS | AP32: 37 | AQ32: 250 | AR32: =VLOOKUP(G32,'Listes déroulantes'!G:H,2,FALSE) -> CM_05_COA/M | AS32: 000000000000 | AV32: 17028 | AW32: 92282 | AX32: =VLOOKUP(G32,'Listes déroulantes'!G:N,8,FALSE) -> 28293060144 | AY32: 93 | AZ32: 001 | BB32: =VLOOKUP(G32,'Listes déroulantes'!G:J,4,FALSE) -> 9356035 | BE32: 978 | BF32: 02 | BG32: 0000000000006687 | BI32: =VLOOKUP(G32,'Listes déroulantes'!G:M,7,FALSE) -> CM_05 | BJ32: 201025 | BK32: 000000 | BL32: 15617 | BM32: 0000000000006660 | BN32: 0000000000006700 | BQ32: 20251020 | BR32: 000000000040 | BS32: 000000000013 | BU32: 00000 | BV32: 4643216546131356461 | BW32: 00000000 | BX32: 000000 | BY32: 00000220251019MONEXT | CA32: D | CB32: P | CC32: FRA | CE32: =VLOOKUP(G32,'Listes déroulantes'!G:L,6,FALSE) -> VAD | CI32: 000000000000 | CM32: 20228380155
A33: Enregistrement 26 | B33: oui | C33: 14000000Z01702817028XATRI 000021702892282513264KHYODHNJ313362025101960992700180008 00000000000022009782TI S224710856496 AVO000000008 RUE DES FLEURS 38250CM_08_COA/C/CL1AG1 000000000000 17028922822829306013493001 9356038 978020000000000002196 CM_08 2010250000001561700000000000021870000000000002200 20251020000000000013000000000004 0000046432165461313564610000000000000000000220251019MONEXT DPFRA PDP 000000000001 20228380156 | D33: Refund | E33: 2025-10-20 | F33: CB | G33: CM_08 | H33: 22 | I33: 0.13 | J33: 0.04 | K33: 0 | L33: 0.01 | M33: Débit | N33: Particulier | O33: FRA | P33: CRE 26 | Q33: 14 | R33: 000000 | S33: Z0 | T33: 17028 | U33: 17028 | V33: XA | W33: TRI | Y33: 00 | Z33: 00 | AA33: 2 | AB33: 17028 | AC33: 92282 | AD33: 513264KHYODHNJ31336 | AE33: 20251019 | AF33: =VLOOKUP(G33,'Listes déroulantes'!G:I,3,FALSE) -> 60992700180008 | AG33: 0000000000002200 | AH33: 978 | AI33: 2 | AJ33: TI | AK33: S | AL33: 224710856496 | AM33: AVO | AN33: 00000000 | AO33: =VLOOKUP(G33,'Listes déroulantes'!G:O,9,FALSE) -> 8 RUE DES FLEURS | AP33: 38 | AQ33: 250 | AR33: =VLOOKUP(G33,'Listes déroulantes'!G:H,2,FALSE) -> CM_08_COA/C/CL1AG1 | AS33: 000000000000 | AV33: 17028 | AW33: 92282 | AX33: =VLOOKUP(G33,'Listes déroulantes'!G:N,8,FALSE) -> 28293060134 | AY33: 93 | AZ33: 001 | BB33: =VLOOKUP(G33,'Listes déroulantes'!G:J,4,FALSE) -> 9356038 | BE33: 978 | BF33: 02 | BG33: 0000000000002196 | BI33: =VLOOKUP(G33,'Listes déroulantes'!G:M,7,FALSE) -> CM_08 | BJ33: 201025 | BK33: 000000 | BL33: 15617 | BM33: 0000000000002187 | BN33: 0000000000002200 | BQ33: 20251020 | BR33: 000000000013 | BS33: 000000000004 | BU33: 00000 | BV33: 4643216546131356461 | BW33: 00000000 | BX33: 000000 | BY33: 00000220251019MONEXT | CA33: D | CB33: P | CC33: FRA | CE33: =VLOOKUP(G33,'Listes déroulantes'!G:L,6,FALSE) -> PDP | CI33: 000000000001 | CM33: 20228380156
A34: Enregistrement 27 | B34: oui | C34: 14000000Z01702817028XATRI 000021702892282513264KHYODHNJ313372025101960992700180008 00000000000082009782TI S224710856495 AVO000000008 RUE DES FLEURS 39250CM_08_COA/C/CL1AG1 000000000000 17028922822829306013493001 9356038 978020000000000008184 CM_08 2010250000001561700000000000081510000000000008200 20251020000000000049000000000016 0000046432165461313564610000000000000000000220251019MONEXT DPFRA PDP 000000000004 20228380157 | D34: Refund | E34: 2025-10-20 | F34: CB | G34: CM_08 | H34: 82 | I34: 0.49 | J34: 0.16 | K34: 0 | L34: 0.04 | M34: Débit | N34: Particulier | O34: FRA | P34: CRE 27 | Q34: 14 | R34: 000000 | S34: Z0 | T34: 17028 | U34: 17028 | V34: XA | W34: TRI | Y34: 00 | Z34: 00 | AA34: 2 | AB34: 17028 | AC34: 92282 | AD34: 513264KHYODHNJ31337 | AE34: 20251019 | AF34: =VLOOKUP(G34,'Listes déroulantes'!G:I,3,FALSE) -> 60992700180008 | AG34: 0000000000008200 | AH34: 978 | AI34: 2 | AJ34: TI | AK34: S | AL34: 224710856495 | AM34: AVO | AN34: 00000000 | AO34: =VLOOKUP(G34,'Listes déroulantes'!G:O,9,FALSE) -> 8 RUE DES FLEURS | AP34: 39 | AQ34: 250 | AR34: =VLOOKUP(G34,'Listes déroulantes'!G:H,2,FALSE) -> CM_08_COA/C/CL1AG1 | AS34: 000000000000 | AV34: 17028 | AW34: 92282 | AX34: =VLOOKUP(G34,'Listes déroulantes'!G:N,8,FALSE) -> 28293060134 | AY34: 93 | AZ34: 001 | BB34: =VLOOKUP(G34,'Listes déroulantes'!G:J,4,FALSE) -> 9356038 | BE34: 978 | BF34: 02 | BG34: 0000000000008184 | BI34: =VLOOKUP(G34,'Listes déroulantes'!G:M,7,FALSE) -> CM_08 | BJ34: 201025 | BK34: 000000 | BL34: 15617 | BM34: 0000000000008151 | BN34: 0000000000008200 | BQ34: 20251020 | BR34: 000000000049 | BS34: 000000000016 | BU34: 00000 | BV34: 4643216546131356461 | BW34: 00000000 | BX34: 000000 | BY34: 00000220251019MONEXT | CA34: D | CB34: P | CC34: FRA | CE34: =VLOOKUP(G34,'Listes déroulantes'!G:L,6,FALSE) -> PDP | CI34: 000000000004 | CM34: 20228380157
A35: Enregistrement 28 | B35: non | C35: CRE NON ACTIF | D35: Refund | E35: 2022-12-19 | F35: CB | G35: CM_41_PDPAG2 | H35: 40.25 | I35: 0.24 | J35: 0.08 | K35: 0 | L35: 0 | M35: Débit | N35: Particulier | O35: FRA | P35: CRE 28 | Q35: 14 | R35: 000000 | S35: Z0 | T35: 17028 | U35: 17028 | V35: XA | W35: TRI | Y35: 00 | Z35: 00 | AA35: 2 | AB35: 17028 | AC35: 92282 | AD35: 513264KHYODHNJ31338 | AE35: 20221218 | AF35: =VLOOKUP(G35,'Listes déroulantes'!G:I,3,FALSE) -> 60904100190001 | AG35: 0000000000004025 | AH35: 978 | AI35: 2 | AJ35: TI | AK35: S | AL35: 224710856496 | AM35: AVO | AN35: 00000000 | AO35: =VLOOKUP(G35,'Listes déroulantes'!G:O,9,FALSE) -> 41 RUE DU TEST | AP35: 40 | AQ35: 250 | AR35: =VLOOKUP(G35,'Listes déroulantes'!G:H,2,FALSE) -> CM_41 | AS35: 000000000000 | AV35: 17028 | AW35: 92282 | AX35: =VLOOKUP(G35,'Listes déroulantes'!G:N,8,FALSE) -> 28293060241 | AY35: 93 | AZ35: 001 | BB35: =VLOOKUP(G35,'Listes déroulantes'!G:J,4,FALSE) -> 9556041 | BE35: 978 | BF35: 02 | BG35: 0000000000004017 | BI35: =VLOOKUP(G35,'Listes déroulantes'!G:M,7,FALSE) -> CM_41 | BJ35: 191222 | BK35: 000000 | BL35: 15617 | BM35: 0000000000004001 | BN35: 0000000000004025 | BQ35: 20221219 | BR35: 000000000024 | BS35: 000000000008 | BU35: 00000 | BV35: 4643216546131356461 | BW35: 00000000 | BX35: 000000 | BY35: 00000220221218MONEXT | CA35: D | CB35: P | CC35: FRA | CE35: =VLOOKUP(G35,'Listes déroulantes'!G:L,6,FALSE) -> PDP | CI35: 000000000000 | CM35: 20228380158
A36: Enregistrement 29 | B36: non | C36: CRE NON ACTIF | D36: Refund | E36: 2022-12-19 | F36: CB | G36: CM_33_PDP | H36: 22 | I36: 0.13 | J36: 0.04 | K36: 0 | L36: 0 | M36: Débit | N36: Particulier | O36: FRA | P36: CRE 29 | Q36: 14 | R36: 000000 | S36: Z0 | T36: 17028 | U36: 17028 | V36: XA | W36: TRI | Y36: 00 | Z36: 00 | AA36: 2 | AB36: 17028 | AC36: 92282 | AD36: 513264KHYODHNJ31339 | AE36: 20221218 | AF36: =VLOOKUP(G36,'Listes déroulantes'!G:I,3,FALSE) -> 60903300190001 | AG36: 0000000000002200 | AH36: 978 | AI36: 2 | AJ36: TI | AK36: S | AL36: 224710856495 | AM36: AVO | AN36: 00000000 | AO36: =VLOOKUP(G36,'Listes déroulantes'!G:O,9,FALSE) -> 33 RUE DU TEST | AP36: 41 | AQ36: 250 | AR36: =VLOOKUP(G36,'Listes déroulantes'!G:H,2,FALSE) -> CM_33 | AS36: 000000000000 | AV36: 17028 | AW36: 92282 | AX36: =VLOOKUP(G36,'Listes déroulantes'!G:N,8,FALSE) -> 28293060233 | AY36: 93 | AZ36: 001 | BB36: =VLOOKUP(G36,'Listes déroulantes'!G:J,4,FALSE) -> 9556033 | BE36: 978 | BF36: 02 | BG36: 0000000000002196 | BI36: =VLOOKUP(G36,'Listes déroulantes'!G:M,7,FALSE) -> CM_33 | BJ36: 191222 | BK36: 000000 | BL36: 15617 | BM36: 0000000000002187 | BN36: 0000000000002200 | BQ36: 20221219 | BR36: 000000000013 | BS36: 000000000004 | BU36: 00000 | BV36: 4643216546131356461 | BW36: 00000000 | BX36: 000000 | BY36: 00000220221218MONEXT | CA36: D | CB36: P | CC36: FRA | CE36: =VLOOKUP(G36,'Listes déroulantes'!G:L,6,FALSE) -> PDP | CI36: 000000000000 | CM36: 20228380159
A37: Enregistrement 30 | B37: non | C37: CRE NON ACTIF | D37: Refund | E37: 2022-12-19 | F37: CB | G37: CM_33_PDP | H37: 12 | I37: 0.07 | J37: 0.02 | K37: 0 | L37: 0 | M37: Débit | N37: Particulier | O37: FRA | P37: CRE 30 | Q37: 14 | R37: 000000 | S37: Z0 | T37: 17028 | U37: 17028 | V37: XA | W37: TRI | Y37: 00 | Z37: 00 | AA37: 2 | AB37: 17028 | AC37: 92282 | AD37: 513264KHYODHNJ31340 | AE37: 20221218 | AF37: =VLOOKUP(G37,'Listes déroulantes'!G:I,3,FALSE) -> 60903300190001 | AG37: 0000000000001200 | AH37: 978 | AI37: 2 | AJ37: TI | AK37: S | AL37: 224710856496 | AM37: AVO | AN37: 00000000 | AO37: =VLOOKUP(G37,'Listes déroulantes'!G:O,9,FALSE) -> 33 RUE DU TEST | AP37: 42 | AQ37: 250 | AR37: =VLOOKUP(G37,'Listes déroulantes'!G:H,2,FALSE) -> CM_33 | AS37: 000000000000 | AV37: 17028 | AW37: 92282 | AX37: =VLOOKUP(G37,'Listes déroulantes'!G:N,8,FALSE) -> 28293060233 | AY37: 93 | AZ37: 001 | BB37: =VLOOKUP(G37,'Listes déroulantes'!G:J,4,FALSE) -> 9556033 | BE37: 978 | BF37: 02 | BG37: 0000000000001198 | BI37: =VLOOKUP(G37,'Listes déroulantes'!G:M,7,FALSE) -> CM_33 | BJ37: 191222 | BK37: 000000 | BL37: 15617 | BM37: 0000000000001193 | BN37: 0000000000001200 | BQ37: 20221219 | BR37: 000000000007 | BS37: 000000000002 | BU37: 00000 | BV37: 4643216546131356461 | BW37: 00000000 | BX37: 000000 | BY37: 00000220221218MONEXT | CA37: D | CB37: P | CC37: FRA | CE37: =VLOOKUP(G37,'Listes déroulantes'!G:L,6,FALSE) -> PDP | CI37: 000000000000 | CM37: 20228380160
A38: Enregistrement 31 | B38: non | C38: CRE NON ACTIF | D38: Refund | E38: 2022-12-19 | F38: CB | G38: CM_34_AG1 | H38: 22.5 | I38: 0 | J38: 0.05 | K38: 0 | L38: 0 | M38: Débit | N38: Particulier | O38: FRA | P38: CRE 31 | Q38: 14 | R38: 000000 | S38: Z0 | T38: 17028 | U38: 17028 | V38: XA | W38: TRI | Y38: 00 | Z38: 00 | AA38: 2 | AB38: 17028 | AC38: 92282 | AD38: 513264KHYODHNJ31341 | AE38: 20221218 | AF38: =VLOOKUP(G38,'Listes déroulantes'!G:I,3,FALSE) -> 60903400190001 | AG38: 0000000000002250 | AH38: 978 | AI38: 2 | AJ38: TI | AK38: S | AL38: 224710856495 | AM38: AVO | AN38: 00000000 | AO38: =VLOOKUP(G38,'Listes déroulantes'!G:O,9,FALSE) -> 34 RUE DU TEST | AP38: 43 | AQ38: 250 | AR38: =VLOOKUP(G38,'Listes déroulantes'!G:H,2,FALSE) -> CM_34_AG1 | AS38: 000000000000 | AV38: 17028 | AW38: 92282 | AX38: =VLOOKUP(G38,'Listes déroulantes'!G:N,8,FALSE) -> 28293060234 | AY38: 93 | AZ38: 001 | BB38: =VLOOKUP(G38,'Listes déroulantes'!G:J,4,FALSE) -> 9556034 | BE38: 978 | BF38: 02 | BG38: 0000000000002245 | BI38: =VLOOKUP(G38,'Listes déroulantes'!G:M,7,FALSE) -> CM_34 | BJ38: 191222 | BK38: 000000 | BL38: 15617 | BM38: 0000000000002250 | BN38: 0000000000002250 | BQ38: 20221219 | BR38: 000000000000 | BS38: 000000000005 | BU38: 00000 | BV38: 4643216546131356461 | BW38: 00000000 | BX38: 000000 | BY38: 00000220221218MONEXT | CA38: D | CB38: P | CC38: FRA | CE38: =VLOOKUP(G38,'Listes déroulantes'!G:L,6,FALSE) -> VAD | CI38: 000000000000 | CM38: 20228380161
A39: Enregistrement 32 | B39: non | C39: CRE NON ACTIF | D39: Refund | E39: 2022-12-19 | F39: CB | G39: CM_32_VAD | H39: 27 | I39: 0 | J39: 1 | K39: 0 | L39: 0 | M39: Débit | N39: Particulier | O39: FRA | P39: CRE 32 | Q39: 14 | R39: 000000 | S39: Z0 | T39: 17028 | U39: 17028 | V39: XA | W39: TRI | Y39: 00 | Z39: 00 | AA39: 2 | AB39: 17028 | AC39: 92282 | AD39: 513264KHYODHNJ31342 | AE39: 20221218 | AF39: =VLOOKUP(G39,'Listes déroulantes'!G:I,3,FALSE) -> 60903200190001 | AG39: 0000000000002700 | AH39: 978 | AI39: 2 | AJ39: TI | AK39: S | AL39: 224710856496 | AM39: AVO | AN39: 00000000 | AO39: =VLOOKUP(G39,'Listes déroulantes'!G:O,9,FALSE) -> 32 RUE DU TEST | AP39: 44 | AQ39: 250 | AR39: =VLOOKUP(G39,'Listes déroulantes'!G:H,2,FALSE) -> CM_32 | AS39: 000000000000 | AV39: 17028 | AW39: 92282 | AX39: =VLOOKUP(G39,'Listes déroulantes'!G:N,8,FALSE) -> 28293060232 | AY39: 93 | AZ39: 001 | BB39: =VLOOKUP(G39,'Listes déroulantes'!G:J,4,FALSE) -> 9556032 | BE39: 978 | BF39: 02 | BG39: 0000000000002600 | BI39: =VLOOKUP(G39,'Listes déroulantes'!G:M,7,FALSE) -> CM_32 | BJ39: 191222 | BK39: 000000 | BL39: 15617 | BM39: 0000000000002700 | BN39: 0000000000002700 | BQ39: 20221219 | BR39: 000000000000 | BS39: 000000000100 | BU39: 00000 | BV39: 4643216546131356461 | BW39: 00000000 | BX39: 000000 | BY39: 00000220221218MONEXT | CA39: D | CB39: P | CC39: FRA | CE39: =VLOOKUP(G39,'Listes déroulantes'!G:L,6,FALSE) -> VAD | CI39: 000000000000 | CM39: 20228380162
A40: Enregistrement 33 | B40: non | C40: CRE NON ACTIF | D40: Refund | E40: 2022-12-19 | F40: CB | G40: CM_36_PDPAG1 | H40: 45.22 | I40: 0 | J40: 0.5 | K40: 0 | L40: 0 | M40: Débit | N40: Particulier | O40: FRA | P40: CRE 33 | Q40: 14 | R40: 000000 | S40: Z0 | T40: 17028 | U40: 17028 | V40: XA | W40: TRI | Y40: 00 | Z40: 00 | AA40: 2 | AB40: 17028 | AC40: 92282 | AD40: 513264KHYODHNJ31343 | AE40: 20221218 | AF40: =VLOOKUP(G40,'Listes déroulantes'!G:I,3,FALSE) -> 60903600190001 | AG40: 0000000000004522 | AH40: 978 | AI40: 2 | AJ40: TI | AK40: S | AL40: 224710856495 | AM40: AVO | AN40: 00000000 | AO40: =VLOOKUP(G40,'Listes déroulantes'!G:O,9,FALSE) -> 36 RUE DU TEST | AP40: 45 | AQ40: 250 | AR40: =VLOOKUP(G40,'Listes déroulantes'!G:H,2,FALSE) -> CM_36 | AS40: 000000000000 | AV40: 17028 | AW40: 92282 | AX40: =VLOOKUP(G40,'Listes déroulantes'!G:N,8,FALSE) -> 28293060236 | AY40: 93 | AZ40: 001 | BB40: =VLOOKUP(G40,'Listes déroulantes'!G:J,4,FALSE) -> 9556036 | BE40: 978 | BF40: 02 | BG40: 0000000000004472 | BI40: =VLOOKUP(G40,'Listes déroulantes'!G:M,7,FALSE) -> CM_36 | BJ40: 191222 | BK40: 000000 | BL40: 15617 | BM40: 0000000000004522 | BN40: 0000000000004522 | BQ40: 20221219 | BR40: 000000000000 | BS40: 000000000050 | BU40: 00000 | BV40: 4643216546131356461 | BW40: 00000000 | BX40: 000000 | BY40: 00000220221218MONEXT | CA40: D | CB40: P | CC40: FRA | CE40: =VLOOKUP(G40,'Listes déroulantes'!G:L,6,FALSE) -> PDP | CI40: 000000000000 | CM40: 20228380163
A41: Enregistrement 34 | B41: non | C41: CRE NON ACTIF | D41: Refund | E41: 2022-12-19 | F41: CB | G41: CM_37_VADAG1 | H41: 28 | I41: 0 | J41: 1 | K41: 0 | L41: 0 | M41: Débit | N41: Particulier | O41: FRA | P41: CRE 34 | Q41: 14 | R41: 000000 | S41: Z0 | T41: 17028 | U41: 17028 | V41: XA | W41: TRI | Y41: 00 | Z41: 00 | AA41: 2 | AB41: 17028 | AC41: 92282 | AD41: 513264KHYODHNJ31344 | AE41: 20221218 | AF41: =VLOOKUP(G41,'Listes déroulantes'!G:I,3,FALSE) -> 60903700190001 | AG41: 0000000000002800 | AH41: 978 | AI41: 2 | AJ41: TI | AK41: S | AL41: 224710856496 | AM41: AVO | AN41: 00000000 | AO41: =VLOOKUP(G41,'Listes déroulantes'!G:O,9,FALSE) -> 37 RUE DU TEST | AP41: 46 | AQ41: 250 | AR41: =VLOOKUP(G41,'Listes déroulantes'!G:H,2,FALSE) -> CM_37 | AS41: 000000000000 | AV41: 17028 | AW41: 92282 | AX41: =VLOOKUP(G41,'Listes déroulantes'!G:N,8,FALSE) -> 28293060237 | AY41: 93 | AZ41: 001 | BB41: =VLOOKUP(G41,'Listes déroulantes'!G:J,4,FALSE) -> 9556037 | BE41: 978 | BF41: 02 | BG41: 0000000000002700 | BI41: =VLOOKUP(G41,'Listes déroulantes'!G:M,7,FALSE) -> CM_37 | BJ41: 191222 | BK41: 000000 | BL41: 15617 | BM41: 0000000000002800 | BN41: 0000000000002800 | BQ41: 20221219 | BR41: 000000000000 | BS41: 000000000100 | BU41: 00000 | BV41: 4643216546131356461 | BW41: 00000000 | BX41: 000000 | BY41: 00000220221218MONEXT | CA41: D | CB41: P | CC41: FRA | CE41: =VLOOKUP(G41,'Listes déroulantes'!G:L,6,FALSE) -> VAD | CI41: 000000000000 | CM41: 20228380164
A42: Enregistrement 35 | B42: non | C42: CRE NON ACTIF | D42: Refund | E42: 2022-09-26 | F42: CB | G42: CM_16_RMFEC VAD2 | H42: 28.5 | I42: 0 | J42: 0 | K42: 0 | L42: 0.8 | M42: Débit | N42: Particulier | O42: FRA | P42: CRE 35 | Q42: 14 | R42: 000000 | S42: Z0 | T42: 17028 | U42: 17028 | V42: XA | W42: TRI | Y42: 00 | Z42: 00 | AA42: 2 | AB42: 17028 | AC42: 92282 | AD42: 513264KHYODHNJ31345 | AE42: 20220925 | AF42: =VLOOKUP(G42,'Listes déroulantes'!G:I,3,FALSE) -> 60929700180001 | AG42: 0000000000002850 | AH42: 978 | AI42: 2 | AJ42: TI | AK42: S | AL42: 224710856495 | AM42: AVO | AN42: 00000000 | AO42: =VLOOKUP(G42,'Listes déroulantes'!G:O,9,FALSE) -> 27 AVENUE DE LA CROI | AP42: 47 | AQ42: 250 | AR42: =VLOOKUP(G42,'Listes déroulantes'!G:H,2,FALSE) -> CM_16_RMFEC | AS42: 000000000000 | AV42: 17028 | AW42: 92282 | AX42: =VLOOKUP(G42,'Listes déroulantes'!G:N,8,FALSE) -> 28293060137 | AY42: 93 | AZ42: 001 | BB42: =VLOOKUP(G42,'Listes déroulantes'!G:J,4,FALSE) -> 9256127 | BE42: 978 | BF42: 02 | BG42: 0000000000002850 | BI42: =VLOOKUP(G42,'Listes déroulantes'!G:M,7,FALSE) -> CM_16_RMFEC VAD | BJ42: 260922 | BK42: 000000 | BL42: 15617 | BM42: 0000000000002850 | BN42: 0000000000002850 | BQ42: 20220926 | BR42: 000000000000 | BS42: 000000000000 | BU42: 00000 | BV42: 4643216546131356461 | BW42: 00000000 | BX42: 000000 | BY42: 00000220220925MONEXT | CA42: D | CB42: P | CC42: FRA | CE42: =VLOOKUP(G42,'Listes déroulantes'!G:L,6,FALSE) -> VAD | CI42: 000000000080 | CM42: 20228380165
A43: Enregistrement 36 | B43: non | C43: CRE NON ACTIF | D43: Refund | E43: 2022-09-26 | F43: CB | G43: SAS MONEXT PDP | H43: 265 | I43: 0 | J43: 1 | K43: 0 | L43: 0.8 | M43: Débit | N43: Particulier | O43: FRA | P43: CRE 36 | Q43: 14 | R43: 000000 | S43: Z0 | T43: 17028 | U43: 17028 | V43: XA | W43: TRI | Y43: 00 | Z43: 00 | AA43: 2 | AB43: 17028 | AC43: 92282 | AD43: 513264KHYODHNJ31346 | AE43: 20220925 | AF43: =VLOOKUP(G43,'Listes déroulantes'!G:I,3,FALSE) -> 50318500100032 | AG43: 0000000000026500 | AH43: 978 | AI43: 2 | AJ43: TI | AK43: S | AL43: 224710856496 | AM43: AVO | AN43: 00000000 | AO43: =VLOOKUP(G43,'Listes déroulantes'!G:O,9,FALSE) -> 260 RUE CLAUDE NICOL | AP43: 48 | AQ43: 250 | AR43: =VLOOKUP(G43,'Listes déroulantes'!G:H,2,FALSE) -> SAS MONEXT | AS43: 000000000000 | AV43: 17028 | AW43: 92282 | AX43: =VLOOKUP(G43,'Listes déroulantes'!G:N,8,FALSE) -> 20289045644 | AY43: 93 | AZ43: 001 | BB43: =VLOOKUP(G43,'Listes déroulantes'!G:J,4,FALSE) -> 9255001 | BE43: 978 | BF43: 02 | BG43: 0000000000026400 | BI43: =VLOOKUP(G43,'Listes déroulantes'!G:M,7,FALSE) -> MONEXT | BJ43: 260922 | BK43: 000000 | BL43: 15617 | BM43: 0000000000026500 | BN43: 0000000000026500 | BQ43: 20220926 | BR43: 000000000000 | BS43: 000000000100 | BU43: 00000 | BV43: 4643216546131356461 | BW43: 00000000 | BX43: 000000 | BY43: 00000220220925MONEXT | CA43: D | CB43: P | CC43: FRA | CE43: =VLOOKUP(G43,'Listes déroulantes'!G:L,6,FALSE) -> PDP | CI43: 000000000080 | CM43: 20228380166
A44: Enregistrement 37 | B44: non | C44: CRE NON ACTIF | D44: Refund | E44: 2022-09-26 | F44: CB | G44: SAS MONEXT PDP | H44: 266 | I44: 0 | J44: 1 | K44: 0 | L44: 0.8 | M44: Débit | N44: Particulier | O44: FRA | P44: CRE 37 | Q44: 14 | R44: 000000 | S44: Z0 | T44: 17028 | U44: 17028 | V44: XA | W44: TRI | Y44: 00 | Z44: 00 | AA44: 2 | AB44: 17028 | AC44: 92282 | AD44: 513264KHYODHNJ31347 | AE44: 20220925 | AF44: =VLOOKUP(G44,'Listes déroulantes'!G:I,3,FALSE) -> 50318500100032 | AG44: 0000000000026600 | AH44: 978 | AI44: 2 | AJ44: TI | AK44: S | AL44: 224710856495 | AM44: AVO | AN44: 00000000 | AO44: =VLOOKUP(G44,'Listes déroulantes'!G:O,9,FALSE) -> 260 RUE CLAUDE NICOL | AP44: 49 | AQ44: 250 | AR44: =VLOOKUP(G44,'Listes déroulantes'!G:H,2,FALSE) -> SAS MONEXT | AS44: 000000000000 | AV44: 17028 | AW44: 92282 | AX44: =VLOOKUP(G44,'Listes déroulantes'!G:N,8,FALSE) -> 20289045644 | AY44: 93 | AZ44: 001 | BB44: =VLOOKUP(G44,'Listes déroulantes'!G:J,4,FALSE) -> 9255001 | BE44: 978 | BF44: 02 | BG44: 0000000000026500 | BI44: =VLOOKUP(G44,'Listes déroulantes'!G:M,7,FALSE) -> MONEXT | BJ44: 260922 | BK44: 000000 | BL44: 15617 | BM44: 0000000000026600 | BN44: 0000000000026600 | BQ44: 20220926 | BR44: 000000000000 | BS44: 000000000100 | BU44: 00000 | BV44: 4643216546131356461 | BW44: 00000000 | BX44: 000000 | BY44: 00000220220925MONEXT | CA44: D | CB44: P | CC44: FRA | CE44: =VLOOKUP(G44,'Listes déroulantes'!G:L,6,FALSE) -> PDP | CI44: 000000000080 | CM44: 20228380167
A45: Enregistrement 38 | B45: non | C45: CRE NON ACTIF | D45: Refund | E45: 2022-09-26 | F45: CB | G45: SAS MONEXT PDP | H45: 267 | I45: 0 | J45: 1 | K45: 0 | L45: 0.8 | M45: Débit | N45: Particulier | O45: FRA | P45: CRE 38 | Q45: 14 | R45: 000000 | S45: Z0 | T45: 17028 | U45: 17028 | V45: XA | W45: TRI | Y45: 00 | Z45: 00 | AA45: 2 | AB45: 17028 | AC45: 92282 | AD45: 513264KHYODHNJ31348 | AE45: 20220925 | AF45: =VLOOKUP(G45,'Listes déroulantes'!G:I,3,FALSE) -> 50318500100032 | AG45: 0000000000026700 | AH45: 978 | AI45: 2 | AJ45: TI | AK45: S | AL45: 224710856496 | AM45: AVO | AN45: 00000000 | AO45: =VLOOKUP(G45,'Listes déroulantes'!G:O,9,FALSE) -> 260 RUE CLAUDE NICOL | AP45: 50 | AQ45: 250 | AR45: =VLOOKUP(G45,'Listes déroulantes'!G:H,2,FALSE) -> SAS MONEXT | AS45: 000000000000 | AV45: 17028 | AW45: 92282 | AX45: =VLOOKUP(G45,'Listes déroulantes'!G:N,8,FALSE) -> 20289045644 | AY45: 93 | AZ45: 001 | BB45: =VLOOKUP(G45,'Listes déroulantes'!G:J,4,FALSE) -> 9255001 | BE45: 978 | BF45: 02 | BG45: 0000000000026600 | BI45: =VLOOKUP(G45,'Listes déroulantes'!G:M,7,FALSE) -> MONEXT | BJ45: 260922 | BK45: 000000 | BL45: 15617 | BM45: 0000000000026700 | BN45: 0000000000026700 | BQ45: 20220926 | BR45: 000000000000 | BS45: 000000000100 | BU45: 00000 | BV45: 4643216546131356461 | BW45: 00000000 | BX45: 000000 | BY45: 00000220220925MONEXT | CA45: D | CB45: P | CC45: FRA | CE45: =VLOOKUP(G45,'Listes déroulantes'!G:L,6,FALSE) -> PDP | CI45: 000000000080 | CM45: 20228380168
A46: Enregistrement 39 | B46: non | C46: CRE NON ACTIF | D46: Refund | E46: 2022-09-26 | F46: CB | G46: SAS MONEXT PDP | H46: 268 | I46: 0 | J46: 1 | K46: 0 | L46: 0.8 | M46: Débit | N46: Particulier | O46: FRA | P46: CRE 39 | Q46: 14 | R46: 000000 | S46: Z0 | T46: 17028 | U46: 17028 | V46: XA | W46: TRI | Y46: 00 | Z46: 00 | AA46: 2 | AB46: 17028 | AC46: 92282 | AD46: 513264KHYODHNJ31349 | AE46: 20220925 | AF46: =VLOOKUP(G46,'Listes déroulantes'!G:I,3,FALSE) -> 50318500100032 | AG46: 0000000000026800 | AH46: 978 | AI46: 2 | AJ46: TI | AK46: S | AL46: 224710856495 | AM46: AVO | AN46: 00000000 | AO46: =VLOOKUP(G46,'Listes déroulantes'!G:O,9,FALSE) -> 260 RUE CLAUDE NICOL | AP46: 51 | AQ46: 250 | AR46: =VLOOKUP(G46,'Listes déroulantes'!G:H,2,FALSE) -> SAS MONEXT | AS46: 000000000000 | AV46: 17028 | AW46: 92282 | AX46: =VLOOKUP(G46,'Listes déroulantes'!G:N,8,FALSE) -> 20289045644 | AY46: 93 | AZ46: 001 | BB46: =VLOOKUP(G46,'Listes déroulantes'!G:J,4,FALSE) -> 9255001 | BE46: 978 | BF46: 02 | BG46: 0000000000026700 | BI46: =VLOOKUP(G46,'Listes déroulantes'!G:M,7,FALSE) -> MONEXT | BJ46: 260922 | BK46: 000000 | BL46: 15617 | BM46: 0000000000026800 | BN46: 0000000000026800 | BQ46: 20220926 | BR46: 000000000000 | BS46: 000000000100 | BU46: 00000 | BV46: 4643216546131356461 | BW46: 00000000 | BX46: 000000 | BY46: 00000220220925MONEXT | CA46: D | CB46: P | CC46: FRA | CE46: =VLOOKUP(G46,'Listes déroulantes'!G:L,6,FALSE) -> PDP | CI46: 000000000080 | CM46: 20228380169
A47: Enregistrement 40 | B47: non | C47: CRE NON ACTIF | D47: Refund | E47: 2022-09-26 | F47: CB | G47: SAS MONEXT PDP | H47: 269 | I47: 0 | J47: 1 | K47: 0 | L47: 0.8 | M47: Débit | N47: Particulier | O47: FRA | P47: CRE 40 | Q47: 14 | R47: 000000 | S47: Z0 | T47: 17028 | U47: 17028 | V47: XA | W47: TRI | Y47: 00 | Z47: 00 | AA47: 2 | AB47: 17028 | AC47: 92282 | AD47: 513264KHYODHNJ31350 | AE47: 20220925 | AF47: =VLOOKUP(G47,'Listes déroulantes'!G:I,3,FALSE) -> 50318500100032 | AG47: 0000000000026900 | AH47: 978 | AI47: 2 | AJ47: TI | AK47: S | AL47: 224710856496 | AM47: AVO | AN47: 00000000 | AO47: =VLOOKUP(G47,'Listes déroulantes'!G:O,9,FALSE) -> 260 RUE CLAUDE NICOL | AP47: 52 | AQ47: 250 | AR47: =VLOOKUP(G47,'Listes déroulantes'!G:H,2,FALSE) -> SAS MONEXT | AS47: 000000000000 | AV47: 17028 | AW47: 92282 | AX47: =VLOOKUP(G47,'Listes déroulantes'!G:N,8,FALSE) -> 20289045644 | AY47: 93 | AZ47: 001 | BB47: =VLOOKUP(G47,'Listes déroulantes'!G:J,4,FALSE) -> 9255001 | BE47: 978 | BF47: 02 | BG47: 0000000000026800 | BI47: =VLOOKUP(G47,'Listes déroulantes'!G:M,7,FALSE) -> MONEXT | BJ47: 260922 | BK47: 000000 | BL47: 15617 | BM47: 0000000000026900 | BN47: 0000000000026900 | BQ47: 20220926 | BR47: 000000000000 | BS47: 000000000100 | BU47: 00000 | BV47: 4643216546131356461 | BW47: 00000000 | BX47: 000000 | BY47: 00000220220925MONEXT | CA47: D | CB47: P | CC47: FRA | CE47: =VLOOKUP(G47,'Listes déroulantes'!G:L,6,FALSE) -> PDP | CI47: 000000000080 | CM47: 20228380170
A48: Enregistrement 41 | B48: non | C48: =IF(B48="OUI",CONCATENATE(Q48,R48,S48,T48,U48,V48,W48,X48,Y48,Z48,AA48,AB48,AC48,AD48,AE48,AF48,AG48,AH48,AI48,AJ48,AK48,AL48,AM48,AN48,AO48,AP48,AQ48,AR48,AS48,AT48,AU48,AV48,AW48,AX48,AY48,AZ48,BA48,BB48,BC48,BD48,BE48,BF48,BG48,BH48,BI48,BJ48,BK48,BL48,BM48,BN48,BO48,BP48,BQ48,BR48,BS48,BT48,BU48,BV48,BW48,BX48,BY48,BZ48,CA48,CB48,CC48,CD48,CE48,CF48,CG14,CH48,CI48,CJ48),"CRE NON ACTIF") -> CRE NON ACTIF | D48: Refund | E48: 2022-09-26 | F48: CB | G48: SAS MONEXT PDP | H48: 270 | I48: 0 | J48: 1 | K48: 0 | L48: 0.8 | M48: Débit | N48: Particulier | O48: FRA | P48: CRE 41 | Q48: 14 | R48: 000000 | S48: Z0 | T48: 17028 | U48: 17028 | V48: XA | W48: TRI | Y48: 00 | Z48: 00 | AA48: 2 | AB48: 17028 | AC48: 92282 | AD48: 513264KHYODHNJ31351 | AE48: 20220925 | AF48: =VLOOKUP(G48,'Listes déroulantes'!G:I,3,FALSE) -> 50318500100032 | AG48: 0000000000027000 | AH48: 978 | AI48: 2 | AJ48: TI | AK48: S | AL48: 224710856495 | AM48: AVO | AN48: 00000000 | AO48: =VLOOKUP(G48,'Listes déroulantes'!G:O,9,FALSE) -> 260 RUE CLAUDE NICOL | AP48: 53 | AQ48: 250 | AR48: =VLOOKUP(G48,'Listes déroulantes'!G:H,2,FALSE) -> SAS MONEXT | AS48: 000000000000 | AV48: 17028 | AW48: 92282 | AX48: =VLOOKUP(G48,'Listes déroulantes'!G:N,8,FALSE) -> 20289045644 | AY48: 93 | AZ48: 001 | BB48: =VLOOKUP(G48,'Listes déroulantes'!G:J,4,FALSE) -> 9255001 | BE48: 978 | BF48: 02 | BG48: 0000000000026900 | BI48: =VLOOKUP(G48,'Listes déroulantes'!G:M,7,FALSE) -> MONEXT | BJ48: 260922 | BK48: 000000 | BL48: 15617 | BM48: 0000000000027000 | BN48: 0000000000027000 | BQ48: 20220926 | BR48: 000000000000 | BS48: 000000000100 | BU48: 00000 | BV48: 4643216546131356461 | BW48: 00000000 | BX48: 000000 | BY48: 00000220220925MONEXT | CA48: D | CB48: P | CC48: FRA | CE48: =VLOOKUP(G48,'Listes déroulantes'!G:L,6,FALSE) -> PDP | CI48: 000000000080 | CM48: 20228380171
CH49: =LEN(CH8) -> 12 | CI49: =LEN(CI8) -> 12 | CJ49: =LEN(CJ8) -> 4
Q50: =LEN(Q8) -> 2 | R50: =LEN(R8) -> 6 | S50: 2 | T50: 5 | U50: 5 | V50: 2 | W50: 3 | X50: 4 | Y50: 2 | Z50: 2 | AA50: 1 | AB50: 5 | AC50: 5 | AD50: 19 | AE50: 8 | AF50: 15 | AG50: 16 | AH50: 3 | AI50: 1 | AJ50: 3 | AK50: 1 | AL50: 23 | AM50: 3 | AN50: 8 | AO50: 20 | AP50: 2 | AQ50: 3 | AR50: 20 | AS50: 12 | AT50: 4 | AU50: 1 | AV50: 5 | AW50: 5 | AX50: 11 | AY50: 2 | AZ50: 3 | BA50: 6 | BB50: =LEN(BB8) -> 10 | BC50: 3 | BD50: 34 | BE50: 3 | BF50: 2 | BG50: 16 | BH50: 21 | BI50: 24 | BJ50: 6 | BK50: 6 | BL50: 5 | BM50: 16 | BN50: 16 | BO50: 1 | BP50: 4 | BQ50: 8 | BR50: 12 | BS50: 12 | BT50: 1 | BU50: 5 | BV50: 19 | BW50: 8 | BX50: 6 | BY50: 25 | BZ50: 39 | CA50: 1 | CB50: 1 | CC50: 3 | CD50: =LEN(CD8) -> 7 | CE50: 5 | CF50: 100 | CG50: =LEN(CG8) -> 12 | CH50: 12 | CI50: 12 | CJ50: 4 | CK50: 13 | CL50: 50 | CM50: =LEN(CM8) -> 21 | CN50: 220 | CO50: 0 | CP50: 0 | CQ50: 0 | CR50: 0 | CS50: 0 | CT50: 0 | CU50: 0 | CV50: 0 | CW50: 0 | CX50: 0 | CY50: 0 | CZ50: 0 | DA50: 0 | DB50: 0 | DC50: 0 | DD50: 0 | DE50: 0 | DF50: 0 | DG50: 0 | DH50: 0 | DI50: 0 | DJ50: 0 | DK50: 0 | DL50: 0 | DM50: 0 | DN50: 0 | DO50: 0 | DP50: 0 | DQ50: 0 | DR50: 0 | DS50: 0 | DT50: 0 | DU50: 0 | DV50: 0 | DW50: 0 | DX50: 0 | DY50: 0 | DZ50: 0 | EA50: 0 | EB50: 0 | EC50: 0 | ED50: 0 | EE50: 0 | EF50: 0 | EG50: 0 | EH50: 0 | EI50: 0 | EJ50: 0 | EK50: 0 | EL50: 0 | EM50: 0 | EN50: 0 | EO50: 0 | EP50: =LEN(EP8) -> 0 | EQ50: 0 | ER50: 0 | ES50: 0 | ET50: 0 | EU50: 0 | EV50: 0 | EW50: 0 | EX50: 0 | EY50: 0 | EZ50: 0 | FA50: 0 | FB50: 0 | FC50: 0 | FD50: 0 | FE50: 0 | FF50: 0 | FG50: 0 | FH50: 0 | FI50: 0 | FJ50: 0 | FK50: 0 | FL50: 0 | FM50: 0 | FN50: 0 | FO50: 0
AO51: =LEN(AO9) -> 20 | AR51: =LEN(AR9) -> 20 | CG51: =LEN(CG9) -> 12 | CH51: 12 | CI51: 12 | CJ51: 4 | CK51: 13 | CL51: 50 | CM51: 21 | CN51: 220
AO52: 20 | AR52: 20 | CG52: =LEN(CG10) -> 12 | CH52: 12 | CI52: 12 | CJ52: 4 | CK52: 13 | CL52: 50 | CM52: 21 | CN52: 220
AO53: 20 | AR53: 20 | CG53: =LEN(CG11) -> 12 | CH53: 12 | CI53: 12 | CJ53: 4 | CK53: 13 | CL53: 50 | CM53: 21 | CN53: 220
AO54: 20 | AR54: 20 | CG54: =LEN(CG12) -> 12 | CH54: 12 | CI54: 12 | CJ54: 4 | CK54: 13 | CL54: 50 | CM54: 21 | CN54: 220
AO55: 20 | AR55: 20 | CG55: =LEN(CG13) -> 12 | CH55: 12 | CI55: 12 | CJ55: 4 | CK55: 13 | CL55: 50 | CM55: 21 | CN55: 220
AO56: 20 | AR56: 20 | CG56: =LEN(CG14) -> 12 | CH56: 12 | CI56: 12 | CJ56: 4 | CK56: 13 | CL56: 50 | CM56: 21 | CN56: 220
AO57: 20 | AR57: 20 | CG57: =LEN(CG15) -> 12 | CH57: 12 | CI57: 12 | CJ57: 4 | CK57: 13 | CL57: 50 | CM57: 21 | CN57: 220
AO58: 20 | AR58: 20 | CG58: =LEN(CG16) -> 12 | CH58: 12 | CI58: 12 | CJ58: 4 | CK58: 13 | CL58: 50 | CM58: 21 | CN58: 220
AO59: 20 | AR59: 20 | CG59: =LEN(CG17) -> 12 | CH59: 12 | CI59: 12 | CJ59: 4 | CK59: 13 | CL59: 50 | CM59: 21 | CN59: 220
AO60: 20 | AR60: 20 | CG60: =LEN(CG18) -> 12 | CH60: 12 | CI60: 12 | CJ60: 4 | CK60: 13 | CL60: 50 | CM60: 21 | CN60: 220
AO61: 20 | AR61: 20 | CG61: =LEN(CG19) -> 12 | CH61: 12 | CI61: 12 | CJ61: 4 | CK61: 13 | CL61: 50 | CM61: 21 | CN61: 220
AO62: 20 | AR62: 20 | CG62: =LEN(CG20) -> 12 | CH62: 12 | CI62: 12 | CJ62: 4 | CK62: 13 | CL62: 50 | CM62: 21 | CN62: 220
AO63: 20 | AR63: 20 | CG63: =LEN(CG21) -> 12 | CH63: 12 | CI63: 12 | CJ63: 4 | CK63: 13 | CL63: 50 | CM63: 21 | CN63: 220
AO64: 20 | AR64: 20 | CG64: =LEN(CG22) -> 12 | CH64: 12 | CI64: 12 | CJ64: 4 | CK64: 13 | CL64: 50 | CM64: 21 | CN64: 220
AO65: 20 | AR65: 20 | CG65: =LEN(CG23) -> 12 | CH65: 12 | CI65: 12 | CJ65: 4 | CK65: 13 | CL65: 50 | CM65: 21 | CN65: 220
AO66: 20 | AR66: 20 | CG66: =LEN(CG24) -> 12 | CH66: 12 | CI66: 12 | CJ66: 4 | CK66: 13 | CL66: 50 | CM66: 21 | CN66: 220
AO67: 20 | AR67: 20 | CG67: =LEN(CG25) -> 12 | CH67: 12 | CI67: 12 | CJ67: 4 | CK67: 13 | CL67: 50 | CM67: 21 | CN67: 220
AO68: 20 | AR68: 20 | CG68: =LEN(CG26) -> 12 | CH68: 12 | CI68: 12 | CJ68: 4 | CK68: 13 | CL68: 50 | CM68: 21 | CN68: 220
AO69: 20 | AR69: 20 | CG69: =LEN(CG27) -> 12 | CH69: 12 | CI69: 12 | CJ69: 4 | CK69: 13 | CL69: 50 | CM69: 21 | CN69: 220
AO70: 20 | AR70: 20 | CG70: =LEN(CG28) -> 12 | CH70: 12 | CI70: 12 | CJ70: 4 | CK70: 13 | CL70: 50 | CM70: 21 | CN70: 220
AO71: 20 | CG71: =LEN(CG29) -> 12 | CH71: 12 | CI71: 12 | CJ71: 4 | CK71: 13 | CL71: 50 | CM71: 21 | CN71: 220
AO72: 20 | CG72: =LEN(CG30) -> 12 | CH72: 12 | CI72: 12 | CJ72: 4 | CK72: 13 | CL72: 50 | CM72: 21 | CN72: 220
CG73: =LEN(CG31) -> 12 | CH73: 12 | CI73: 12 | CJ73: 4 | CK73: 13 | CL73: 50 | CM73: 21 | CN73: 220
CG74: =LEN(CG32) -> 12 | CH74: 12 | CI74: 12 | CJ74: 4 | CK74: 13 | CL74: 50 | CM74: 21 | CN74: 220
CG75: =LEN(CG33) -> 12 | CH75: 12 | CI75: 12 | CJ75: 4 | CK75: 13 | CL75: 50 | CM75: 21 | CN75: 220
CG76: =LEN(CG34) -> 12 | CH76: 12 | CI76: 12 | CJ76: 4 | CK76: 13 | CL76: 50 | CM76: 21 | CN76: 220
CG77: =LEN(CG35) -> 12 | CH77: 12 | CI77: 12 | CJ77: 4 | CK77: 13 | CL77: 50 | CM77: 21 | CN77: 220
CG78: =LEN(CG36) -> 12 | CH78: 12 | CI78: 12 | CJ78: 4 | CK78: 13 | CL78: 50 | CM78: 21 | CN78: 220
CG79: =LEN(CG37) -> 12 | CH79: 12 | CI79: 12 | CJ79: 4 | CK79: 13 | CL79: 50 | CM79: 21 | CN79: 220
CG80: =LEN(CG38) -> 12 | CH80: 12 | CI80: 12 | CJ80: 4 | CK80: 13 | CL80: 50 | CM80: 21 | CN80: 220
CG81: =LEN(CG39) -> 12 | CH81: 12 | CI81: 12 | CJ81: 4 | CK81: 13 | CL81: 50 | CM81: 21 | CN81: 220
CG82: =LEN(CG40) -> 12 | CH82: 12 | CI82: 12 | CJ82: 4 | CK82: 13 | CL82: 50 | CM82: 21 | CN82: 220
CG83: =LEN(CG41) -> 12 | CH83: 12 | CI83: 12 | CJ83: 4 | CK83: 13 | CL83: 50 | CM83: 21 | CN83: 220
CG84: =LEN(CG42) -> 12 | CH84: 12 | CI84: 12 | CJ84: 4 | CK84: 13 | CL84: 50 | CM84: 21 | CN84: 220
CG85: =LEN(CG43) -> 12 | CH85: 12 | CI85: 12 | CJ85: 4 | CK85: 13 | CL85: 50 | CM85: 21 | CN85: 220
CG86: =LEN(CG44) -> 12 | CH86: 12 | CI86: 12 | CJ86: 4 | CK86: 13 | CL86: 50 | CM86: 21 | CN86: 220
CG87: =LEN(CG45) -> 12 | CH87: 12 | CI87: 12 | CJ87: 4 | CK87: 13 | CL87: 50 | CM87: 21 | CN87: 220
CG88: =LEN(CG46) -> 12 | CH88: 12 | CI88: 12 | CJ88: 4 | CK88: 13 | CL88: 50 | CM88: 21 | CN88: 220
CG89: =LEN(CG47) -> 12 | CH89: 12 | CI89: 12 | CJ89: 4 | CK89: 13 | CL89: 50 | CM89: 21 | CN89: 220
CG90: =LEN(CG48) -> 12 | CH90: 12 | CI90: 12 | CJ90: 4 | CK90: 13 | CL90: 50 | CM90: 21 | CN90: 220
CG91: =LEN(CG49) -> 0 | CH91: 2 | CI91: 2 | CJ91: 1 | CK91: 0 | CL91: 0 | CM91: 0 | CN91: 0
CG92: =LEN(CG50) -> 2 | CH92: 2 | CI92: 2 | CJ92: 1 | CK92: 2 | CL92: 2 | CM92: 2 | CN92: 3
CG93: =LEN(CG51) -> 2 | CH93: 2 | CI93: 2 | CJ93: 1 | CK93: 2 | CL93: 2 | CM93: 2 | CN93: 3
CG94: =LEN(CG52) -> 2 | CH94: 2 | CI94: 2 | CJ94: 1 | CK94: 2 | CL94: 2 | CM94: 2 | CN94: 3
CG95: =LEN(CG53) -> 2 | CH95: 2 | CI95: 2 | CJ95: 1 | CK95: 2 | CL95: 2 | CM95: 2 | CN95: 3
CG96: =LEN(CG54) -> 2 | CH96: 2 | CI96: 2 | CJ96: 1 | CK96: 2 | CL96: 2 | CM96: 2 | CN96: 3
CG97: =LEN(CG55) -> 2 | CH97: 2 | CI97: 2 | CJ97: 1 | CK97: 2 | CL97: 2 | CM97: 2 | CN97: 3
CG98: =LEN(CG56) -> 2 | CH98: 2 | CI98: 2 | CJ98: 1 | CK98: 2 | CL98: 2 | CM98: 2 | CN98: 3
CG99: =LEN(CG57) -> 2 | CH99: 2 | CI99: 2 | CJ99: 1 | CK99: 2 | CL99: 2 | CM99: 2 | CN99: 3
CG100: =LEN(CG58) -> 2 | CH100: 2 | CI100: 2 | CJ100: 1 | CK100: 2 | CL100: 2 | CM100: 2 | CN100: 3

Sheet Feuil13 (hidden)
A1: réseau
A2: S
A3: V
A4: I
A7: FAC
A8: AVO
N24: 5.04
N25: =IF(RIGHT(N24,1)<5,"oui","non") -> non
N26: =RIGHT(N24,1) -> 4

Sheet Création CRE TI VMC
A1: CRE CONCATENE | D1: DONNEES PARAMETRABLES | R1: CRE DECOUPE
Q2: Début | R2: 1 | S2: 3 | T2: 9 | U2: 11 | V2: 16 | W2: 21 | X2: 23 | Y2: 26 | Z2: 30 | AA2: 32 | AB2: 34 | AC2: 35 | AD2: 40 | AE2: 45 | AF2: 64 | AG2: 72 | AH2: 87 | AI2: 103 | AJ2: 106 | AK2: 107 | AL2: 110 | AM2: 111 | AN2: 134 | AO2: 137 | AP2: 145 | AQ2: 165 | AR2: 167 | AS2: 170 | AT2: 190 | AU2: 202 | AV2: 206 | AW2: 207 | AX2: 212 | AY2: 217 | AZ2: 228 | BA2: 230 | BB2: 233 | BC2: 239 | BD2: 249 | BE2: 252 | BF2: 286 | BG2: 289 | BH2: 291 | BI2: 307 | BJ2: 328 | BK2: 352 | BL2: 358 | BM2: 364 | BN2: 369 | BO2: 385 | BP2: 401 | BQ2: 402 | BR2: 406 | BS2: 414 | BT2: 426 | BU2: 438 | BV2: 439 | BW2: 444 | BX2: 463 | BY2: 471 | BZ2: 477 | CA2: 502 | CB2: 515 | CC2: 528 | CD2: 541 | CE2: 542 | CF2: 543 | CG2: 546 | CH2: 553 | CI2: 558 | CJ2: 658 | CK2: 670 | CL2: 682 | CM2: 694 | CN2: 698 | CO2: 711 | CP2: 761 | CQ2: 782
Q3: Lg | R3: 2 | S3: 6 | T3: 2 | U3: 5 | V3: 5 | W3: 2 | X3: 3 | Y3: 4 | Z3: 2 | AA3: 2 | AB3: 1 | AC3: 5 | AD3: 5 | AE3: 19 | AF3: 8 | AG3: 15 | AH3: 16 | AI3: 3 | AJ3: 1 | AK3: 3 | AL3: 1 | AM3: 23 | AN3: 3 | AO3: 8 | AP3: 20 | AQ3: 2 | AR3: 3 | AS3: 20 | AT3: 12 | AU3: 4 | AV3: 1 | AW3: 5 | AX3: 5 | AY3: 11 | AZ3: 2 | BA3: 3 | BB3: 6 | BC3: 10 | BD3: 3 | BE3: 34 | BF3: 3 | BG3: 2 | BH3: 16 | BI3: 21 | BJ3: 24 | BK3: 6 | BL3: 6 | BM3: 5 | BN3: 16 | BO3: 16 | BP3: 1 | BQ3: 4 | BR3: 8 | BS3: 12 | BT3: 12 | BU3: 1 | BV3: 5 | BW3: 19 | BX3: 8 | BY3: 6 | BZ3: 25 | CA3: 13 | CB3: 13 | CC3: 13 | CD3: 1 | CE3: 1 | CF3: 3 | CG3: 7 | CH3: 5 | CI3: 100 | CJ3: 12 | CK3: 12 | CL3: 12 | CM3: 4 | CN3: 13 | CO3: 50 | CP3: 21 | CQ3: 220
Q4: Specification | R4: « 14 » | S4: « 000000 » | T4: MasterCard : « X0 » : Transaction initiale « X5 » : Impayés reçus « X6 » : Frais reçus « X7 » : Frais émis (créés par les ihm) « X1 » : Décisions émises « Y1 » : Rejet technique reçu « Y2 » : Rejet représenté Visa : « Y0 » : Transaction initiale « X4 » : Impayés reçus « X8 » : Frais reçus « X9 » : Frais émis (créés par les ihm) « X2 » : Décisions émises « Y3 » : Rejet technique reçu « Y4 » : Rejet représenté | U4: Code banque de domiciliation du porteur | V4: Code banque gestionnaire du commerçant | W4: « XA » | X4: TRI si S04 = « 100 », « 101 », « 102 » ou « 140 » ATI si S04 = "400", "402", "408" TRI : Transaction Initiale ATI : Annulation de la TI | Y4: Spaces | Z4: 0 | AA4: 0 | AB4: 1 : Porteur 2 : Commerçant 3 : Produit Financier | AC4: Code établissement gestionnaire de l’acquéreur | AD4: Code guichet de l’acquéreur issu de la télécollecte | AE4: Numéro de carte porteur : si généré en 16 caractères alors paddé à droite avec les espaces PAN est tokénisé | AF4: Date de vente au format SSAAMMJJ | AG4: Numéro SIRET commerçant | AH4: 2 décimales, pas de séparateur | AI4: Code 978 pour l'euro | AJ4: « 2 » | AK4: TI : Transaction Initiale IM : Impayé RP : représentation d'impayé | AL4: « S » pour Doméstique CB | AM4: RFARNO cadré à gauche | AN4: FAC : Paiement achat CAS : Retrait cash DAB : Retrait Dab AVO : Avoir A compléter pour les AOCT | AO4: SSAAMMJJ | AP4: Localisation | AQ4: Les 2 premières positions de la zone DATA-B20-DD16 du fichier CB2C en sortie | AR4: Code pays du système d’acceptation | AS4: Les 20 premières positions de la zone DATA-B17-DD18 du fichier CB2C en sortie | AT4: que pour l'impayé | AU4: Motif de l’impayé dans la codification du format de compensation reçu. | AV4: 1 : first chargeback 2 : second chargeback | AW4: Code banque issu du référentiel commerçant par rapport au SIRET | AX4: Code siège du RIB issu du référentiel commerçant par rapport au SIRET | AY4: Numéro de compte du RIB issu du référentiel commerçant par rapport au SIRET | AZ4: Clé RIB | BA4: TRCA-NUTPTR | BB4: spaces | BC4: N° cotrat commerçant issu du référentiel commerçant par rapport au SIRET | BD4: espaces | BE4: espaces | BF4: 978 pour euro | BG4: « 2 » | BH4: Montant compensé = Montant brut de la transaction – Commission d’Interchange | BI4: A blanc sauf pour CRE IMP | BJ4: Issu du référentiel commerçant par rapport au SIRET | BK4: Format : JJMMAA | BL4: Donnée uniquement pour les remises commerçant ou retrait | BM4: Donnée uniquement pour les remises commerçant ou retrait | BN4: 16 caractères, 2 décimales sans séparateur | BO4: 16 caractères, 2 décimales sans séparateur | BP4: Code usage | BQ4: « LMA » si géré dans LMA | BR4: Date de la transaction mis sous le format SSAAMMJJ | BS4: 2 décimales paddés à gauche | BT4: 2 décimales paddés à gauche | BU4: spaces | BV4: Code établissement gestionnaire de l’acquéreur | BW4: Numéro de carte porteur : si généré du 16 caractères, complété par des blancs | BX4: Date d’enregistrement de la transaction dans les tables au format SSAAMMJJ | BY4: Numéro attribué à l’impayé : ce numéro est crée par LMA lors de la prise en compte de l’impayé | BZ4: Identifiant de remise issue de l’header CB2C (composé de 000001+DTVEN+MONEXT+5espaces) | CA4: 12 caractères signés à droite, 4 décimales sans séparateur, dernier caractère signe de la commission | CB4: 12 caractères signés à droite, 4 décimales sans séparateur, dernier caractère signe de la commission | CC4: 12 caractères signés à droite, 4 décimales sans séparateur, dernier caractère signe de la commission | CD4: C - Usage Crédit D - Usage Débit P - Usage Prépayé U - Usage Universel b - Indéterminée (à blanc) | CE4: P - Compte Particulier E - Compte Entreprise b - Indéterminée (à blanc) | CF4: France: FRA Union européenne (27 pays sans la France) ; l’évolution de cette liste doit être prévue : UE Hors Union européenne : HUE | CG4: Contrat secondo venant du RB189 venant de la BNPP | CH4: INC - inconnu PDP - proxi avec contact PDPSC - proxi sans contact VAD - vente à distance | CI4: Filler | CJ4: Champ 37 du CB2A fichier | CK4: Filler | CL4: Montant de la commission agent | CM4: Filler | CN4: Filler | CO4: Filler | CP4: Filler | CQ4: Filler
Q5: Libellé | R5: Code type d’enregistrement | S5: Numéro séquentiel | T5: Code opération | U5: Code banque émetteur | V5: Code banque destinataire | W5: Code application échange | X5: Code sous application | Y5: Spaces | Z5: Code origine flux | AA5: Code destination flux | AB5: Code nature de flux comptable | AC5: Code établissement | AD5: Guichet accepteur | AE5: Numéro de carte | AF5: Date de vente | AG5: SIRET | AH5: Montant brut | AI5: Devise de réconciliation nationale liée au montant brut | AJ5: Nombre de décimales du montant brut | AK5: Type opération | AL5: Code réseau | AM5: Référence archivage | AN5: Code opération interne | AO5: Date de règlement interbancaire | AP5: Localisation | AQ5: Code département | AR5: Code pays | AS5: Raison sociale | AT5: Référence impayé reçue | AU5: Motif impayé | AV5: Code cycle impayé | AW5: Code établissement du RIB | AX5: Code Guichet du RIB | AY5: Numéro de compte | AZ5: Clé RIB | BA5: Numéro de terminal | BB5: Filler | BC5: Numéro de contrat accepteur | BD5: Code ICA | BE5: IBAN | BF5: Devise du montant compensé | BG5: nombre décimal mt compensé | BH5: Montant compensé | BI5: Référence externe | BJ5: Nom du commerçant | BK5: Date de Valeur | BL5: Nombre de factures | BM5: Numéro de remise | BN5: Montant net | BO5: Montant brut en euro | BP5: Code usage | BQ5: Mode de Traitement du Litige | BR5: Date envoi en compensation | BS5: Montant commission commerçant | BT5: Montant commission Interchange CB | BU5: Type de porteur | BV5: code établissement | BW5: Numéro de carte | BX5: Date archivage | BY5: Numéro séquentiel | BZ5: Identifiant de Remise | CA5: Montant commission interchange Visa/ Mastercard | CB5: Montant commission réseau Visa/ Mastercard | CC5: Montant commission banque Visa/ Mastercard | CD5: Code nature carte | CE5: Code type carte | CF5: Zone géographique | CG5: Numéro de contrat secondo | CH5: Type application carte | CI5: FILLER | CJ5: Référence d'archivage Payline | CK5: FILLER | CL5: MTCOAG | CM5: FILLER | CN5: FILLER | CO5: FILLER | CP5: FILLER | CQ5: FILLER
A6: Mode d'alimentation de ce fichier | C6: Généré automatiquement, à copier coller dans Notepad) | D6: Fixe | E6: Variable à saisir JJ/MM/AAAA | F6: Variable liste déroulante | G6: Variable liste déroulante | H6: Variable à saisir 0,00 | I6: Variable à saisir 0,00 | J6: Variable à saisir 0,00 | K6: Variable à saisir 0,00 | L6: Variable à saisir 0,00 | M6: Variable à saisir 0,00 | N6: Variable liste déroulante | O6: Variable liste déroulante | P6: Variable liste déroulante | Q6: Mode d'alimentation de ce fichier | R6: FIXE | S6: FIXE | T6: FIXE | U6: FIXE | V6: FIXE | W6: FIXE | X6: FIXE | Y6: FIXE | Z6: FIXE | AA6: FIXE | AB6: FIXE | AC6: FIXE | AD6: FIXE | AE6: FIXE | AF6: DEDUITE | AG6: DEDUITE | AH6: DEDUITE | AI6: FIXE | AJ6: FIXE | AK6: FIXE | AL6: FIXE | AM6: FIXE | AN6: FIXE | AO6: DEDUITE | AP6: FIXE | AQ6: FIXE | AR6: FIXE | AS6: DEDUITE | AT6: FIXE | AU6: FIXE | AV6: FIXE | AW6: FIXE | AX6: FIXE | AY6: DEDUITE | AZ6: DEDUITE | BA6: FIXE | BB6: FIXE | BC6: DEDUITE | BD6: FIXE | BE6: FIXE | BF6: FIXE | BG6: FIXE | BH6: DEDUITE | BI6: FIXE | BJ6: DEDUITE | BK6: DEDUITE | BL6: FIXE | BM6: FIXE | BN6: DEDUITE | BO6: DEDUITE | BP6: FIXE | BQ6: FIXE | BR6: DEDUITE | BS6: DEDUITE | BT6: FIXE | BU6: FIXE | BV6: FIXE | BW6: FIXE | BX6: DEDUITE | BY6: FIXE | BZ6: FIXE | CA6: DEDUITE | CB6: DEDUITE | CC6: FIXE | CD6: DEDUITE | CE6: DEDUITE | CF6: DEDUITE | CG6: FIXE | CH6: DEDUITE | CI6: FIXE | CJ6: FIXE | CK6: FIXE | CL6: FIXE | CM6: FIXE | CN6: FIXE | CO6: FIXE | CP6: FIXE | CQ6: FIXE
A7: CRE concerné | B7: CRE ACTIF | C7: CRE concaténé | D7: Opération (CDOPEI) | E7: Date de valeur (DTVAL) | F7: Réseau (IDSCPT) | G7: Commerçant | H7: Montant Brut (MTBRUT) | I7: Montant commission commerçant MTTTCITR | J7: Montant Com agent | K7: Interchange Fee (MTINTVMC) | L7: Scheme Fee (MTRVMC) | M7: Montant commission banque Visa/ Mastercard MTBQVMC | N7: Nature carte | O7: Type carte | P7: Zone géographique | Q7: Code | R7: CEENR | S7: NUSQC | T7: CEOPE | U7: CEEMI | V7: CEDES | W7: CEAPC | X7: CEMAP | Y7: DTTRT | Z7: CECFTO | AA7: CECFTD | AB7: CDNAFL | AC7: CDETB9 | AD7: CDGUICH | AE7: NUISOA | AF7: DTVEN | AG7: ZSIRET | AH7: MTBRUT | AI7: CDDEV | AJ7: NBDEC | AK7: TYPOPE | AL7: IDSPCT | AM7: NUARN | AN7: CDOPEI | AO7: DTREGLI | AP7: LILOCA | AQ7: CDDEPT | AR7: CDPAYS | AS7: RAISOA | AT7: NURFI2 | AU7: COANO | AV7: COCYIM | AW7: CEETRX | AX7: Ceguix | AY7: NUCTEA | AZ7: CLRIBX | BA7: NUTP | BB7: Filler | BC7: NUMCO | BD7: CDICA | BE7: CDIBAN | BF7: CDDEVC | BG7: NBDECC | BH7: MTCOMP | BI7: REFEXT | BJ7: NMCM | BK7: DTVL | BL7: NBFCT | BM7: NUREM | BN7: MTNT (net) | BO7: MTBREUR | BP7: DSPUSG | BQ7: MDTRLT | BR7: DTCOMP | BS7: MTTTCITR (c.commerç) | BT7: MTCOMINT (comm int) | BU7: TYPO | BV7: CDETB9CL | BW7: NUISOACL | BX7: DTARCHCL | BY7: NUSDICL | BZ7: IDREM | CA7: MTINTVMC | CB7: MTRVMC | CC7: MTBQVMC | CD7: NATCARTE | CE7: TYPCARTE | CF7: ZONEGEO | CG7: NUMCO2 | CH7: TYPAPPLI | CI7: FILLER | CJ7: REFPAYLINE | CK7: FILLER | CL7: MTCOAG | CM7: PAYMETHOD | CN7: FRAISACQ | CO7: NUMCO2LONG | CP7: NEW | CQ7: FILLER
A8: Enregistrement 1 | B8: oui | C8: =IF(B8="OUI",CONCATENATE(R8,S8,T8,U8,V8,W8,X8,Y8,Z8,AA8,AB8,AC8,AD8,AE8,AF8,AG8,AH8,AI8,AJ8,AK8,AL8,AM8,AN8,AO8,AP8,AQ8,AR8,AS8,AT8,AU8,AV8,AW8,AX8,AY8,AZ8,BA8,BB8,BC8,BD8,BE8,BF8,BG8,BH8,BI8,BJ8,BK8,BL8,BM8,BN8,BO8,BP8,BQ8,BR8,BS8,BT8,BU8,BV8,BW8,BX8,BY8,BZ8,CA8,CB8,CC8,CD8,CE8,CF8,CG8,CH8,CI8,CJ8,CK8,CL8,CM8,CN8,CO8,CP8,CQ8),"CRE NON ACTIF") -> 14000000Y00000030004XATRI 000021702892282513264KHYODHNJ313512025101960992700180002 00000000000050009782TI V FAC20251020 9356032 978020000000000004990 201025000000 00000000000049700000000000005000 20251020000000000030 3000446432165461313564612025102000000000244400049020251020 000000010000+000000005000+000000005000+CPFRA4111182VAD 000000000000 20228380131 | D8: Payment | E8: 2025-10-20 | F8: VISA | G8: CM_02 | H8: 50 | I8: 0.3 | J8: 0 | K8: 0.1 | L8: 0.05 | M8: 0.05 | N8: Crédit | O8: Particulier | P8: FRA | Q8: CRE 1 | R8: 14 | S8: 000000 | T8: =IF(F8="VISA","Y0","X0") -> Y0 | U8: 00000 | V8: 30004 | W8: XA | X8: TRI | Z8: 00 | AA8: 00 | AB8: 2 | AC8: 17028 | AD8: 92282 | AE8: 513264KHYODHNJ31351 | AF8: =TEXT(E8-1,"aaaammjj") -> 20251019 | AG8: =VLOOKUP(G8,'Listes déroulantes'!G:I,3,FALSE) -> 60992700180002 | AH8: =RIGHT(CONCATENATE("0000000000000000",H8*100),16) -> 0000000000005000 | AI8: 978 | AJ8: 2 | AK8: TI | AL8: =IF(F8="VISA","V","I") -> V | AN8: FAC | AO8: =TEXT(E8,"aaaammjj") -> 20251020 | BC8: =VLOOKUP(G8,'Listes déroulantes'!G:J,4,FALSE) -> 9356032 | BF8: 978 | BG8: 02 | BH8: =RIGHT(CONCATENATE("0000000000000000",(H8-K8)*100),16) -> 0000000000004990 | BK8: =TEXT(E8,"jjmmaa") -> 201025 | BL8: 000000 | BN8: =RIGHT(CONCATENATE("0000000000000000",(H8-I8)*100),16) -> 0000000000004970 | BO8: =RIGHT(CONCATENATE("0000000000000000",H8*100),16) -> 0000000000005000 | BR8: =TEXT(E8,"aaaammjj") -> 20251020 | BS8: =RIGHT(CONCATENATE("0000000000000000",(I8)*100),12) -> 000000000030 | BV8: 30004 | BW8: 4643216546131356461 | BX8: =TEXT(E8,"aaaammjj") -> 20251020 | BY8: 000000 | BZ8: =CONCATENATE("00244400049020",TEXT(E8,"aammjj")," ") -> 00244400049020251020 | CA8: =CONCATENATE(RIGHT(CONCATENATE("0000000000000000",K8*100000),12),"+") -> 000000010000+ | CB8: =CONCATENATE(RIGHT(CONCATENATE("0000000000000000",L8*100000),12),"+") -> 000000005000+ | CC8: =CONCATENATE(RIGHT(CONCATENATE("0000000000000000",M8*100000),12),"+") -> 000000005000+ | CD8: =IF(N8="Débit","D",IF(N8="Crédit","C",IF(N8="Prépayé","P",IF(N8="Universelle","U"," ")))) -> C | CE8: =IF(O8="Particulier","P",IF(O8="Entreprise","E"," ")) -> P | CF8: =P8 -> FRA | CG8: =VLOOKUP(G8,'Listes déroulantes'!G:K,5,FALSE) -> 4111182 | CH8: =VLOOKUP(G8,'Listes déroulantes'!G:L,6,FALSE) -> VAD | CL8: =RIGHT(CONCATENATE("0000000000000000",J8*100),12) -> 000000000000 | CP8: 20228380131
A9: Enregistrement 2 | B9: non | C9: =IF(B9="OUI",CONCATENATE(R9,S9,T9,U9,V9,W9,X9,Y9,Z9,AA9,AB9,AC9,AD9,AE9,AF9,AG9,AH9,AI9,AJ9,AK9,AL9,AM9,AN9,AO9,AP9,AQ9,AR9,AS9,AT9,AU9,AV9,AW9,AX9,AY9,AZ9,BA9,BB9,BC9,BD9,BE9,BF9,BG9,BH9,BI9,BJ9,BK9,BL9,BM9,BN9,BO9,BP9,BQ9,BR9,BS9,BT9,BU9,BV9,BW9,BX9,BY9,BZ9,CA9,CB9,CC9,CD9,CE9,CF9,CG9,CH9,CI9,CJ9,CK9,CL9,CM9,CN9,CO9,CP9,CQ9),"CRE NON ACTIF") -> CRE NON ACTIF | D9: Payment | E9: 2025-10-20 | F9: VISA | G9: CM_02 | H9: 55 | I9: 0.33 | J9: 0 | K9: 0.11 | L9: 0.06 | M9: 0.06 | N9: Débit | O9: Particulier | P9: UE | Q9: CRE 2 | R9: 14 | S9: 000000 | T9: Y0 | U9: 00000 | V9: 30004 | W9: XA | X9: TRI | Z9: 00 | AA9: 00 | AB9: 2 | AC9: 17028 | AD9: 92282 | AE9: 513264KHYODHNJ31352 | AF9: 20251019 | AG9: =VLOOKUP(G9,'Listes déroulantes'!G:I,3,FALSE) -> 60992700180002 | AH9: 0000000000005500 | AI9: 978 | AJ9: 2 | AK9: TI | AL9: V | AN9: FAC | AO9: 20251020 | BC9: =VLOOKUP(G9,'Listes déroulantes'!G:J,4,FALSE) -> 9356032 | BF9: 978 | BG9: 02 | BH9: 0000000000005489 | BK9: 201025 | BL9: 000000 | BN9: 0000000000005467 | BO9: 0000000000005500 | BR9: 20251020 | BS9: 000000000033 | BV9: 30004 | BW9: 4643216546131356461 | BX9: 20251020 | BY9: 000000 | BZ9: 00244400049020251020 | CA9: 000000011000+ | CB9: 000000006000+ | CC9: 000000006000+ | CD9: =IF(N9="Débit","D",IF(N9="Crédit","C",IF(N9="Prépayé","P",IF(N9="Universelle","U"," ")))) -> D | CE9: =IF(O9="Particulier","P",IF(O9="Entreprise","E"," ")) -> P | CF9: =P9 -> UE | CG9: =VLOOKUP(G9,'Listes déroulantes'!G:K,5,FALSE) -> 4111182 | CH9: =VLOOKUP(G9,'Listes déroulantes'!G:L,6,FALSE) -> VAD | CL9: =RIGHT(CONCATENATE("0000000000000000",J9*100),12) -> 000000000000 | CP9: 20228380132
A10: Enregistrement 3 | B10: oui | C10: 14000000X00000030004XATRI 000021702892282513264KHYODHNJ313532025101960992700180003 00000000000050009782TI I FAC20251020 9356033 978020000000000004990 201025000000 00000000000049700000000000005000 20251020000000000030 3000446432165461313564612025102000000000244400049020251020 000000010000+000000005000+000000005000+DEFRA4111183PDP 000000000000 20228380133 | D10: Payment | E10: 2025-10-20 | F10: MC | G10: CM_03 | H10: 50 | I10: 0.3 | J10: 0 | K10: 0.1 | L10: 0.05 | M10: 0.05 | N10: Débit | O10: Entreprise | P10: FRA | Q10: CRE 3 | R10: 14 | S10: 000000 | T10: X0 | U10: 00000 | V10: 30004 | W10: XA | X10: TRI | Z10: 00 | AA10: 00 | AB10: 2 | AC10: 17028 | AD10: 92282 | AE10: 513264KHYODHNJ31353 | AF10: 20251019 | AG10: =VLOOKUP(G10,'Listes déroulantes'!G:I,3,FALSE) -> 60992700180003 | AH10: 0000000000005000 | AI10: 978 | AJ10: 2 | AK10: TI | AL10: I | AN10: FAC | AO10: 20251020 | BC10: =VLOOKUP(G10,'Listes déroulantes'!G:J,4,FALSE) -> 9356033 | BF10: 978 | BG10: 02 | BH10: 0000000000004990 | BK10: 201025 | BL10: 000000 | BN10: 0000000000004970 | BO10: 0000000000005000 | BR10: 20251020 | BS10: 000000000030 | BV10: 30004 | BW10: 4643216546131356461 | BX10: 20251020 | BY10: 000000 | BZ10: 00244400049020251020 | CA10: 000000010000+ | CB10: 000000005000+ | CC10: 000000005000+ | CD10: D | CE10: E | CF10: FRA | CG10: =VLOOKUP(G10,'Listes déroulantes'!G:K,5,FALSE) -> 4111183 | CH10: =VLOOKUP(G10,'Listes déroulantes'!G:L,6,FALSE) -> PDP | CL10: 000000000000 | CP10: 20228380133
A11: Enregistrement 4 | B11: oui | C11: 14000000Y00000030004XATRI 000021702892282513264KHYODHNJ313542025101960992700180004 00000000000015239782TI V FAC20251020 9356034 978020000000000001520 201025000000 00000000000015140000000000001523 20251020000000000009 3000446432165461313564612025102000000000244400049020251020 000000003000+000000002000+000000002000+UEUE 4111184VAD 000000000000 20228380134 | D11: Payment | E11: 2025-10-20 | F11: VISA | G11: CM_04 | H11: 15.23 | I11: 0.09 | J11: 0 | K11: 0.03 | L11: 0.02 | M11: 0.02 | N11: Universelle | O11: Entreprise | P11: UE | Q11: CRE 4 | R11: 14 | S11: 000000 | T11: Y0 | U11: 00000 | V11: 30004 | W11: XA | X11: TRI | Z11: 00 | AA11: 00 | AB11: 2 | AC11: 17028 | AD11: 92282 | AE11: 513264KHYODHNJ31354 | AF11: 20251019 | AG11: =VLOOKUP(G11,'Listes déroulantes'!G:I,3,FALSE) -> 60992700180004 | AH11: 0000000000001523 | AI11: 978 | AJ11: 2 | AK11: TI | AL11: V | AN11: FAC | AO11: 20251020 | BC11: =VLOOKUP(G11,'Listes déroulantes'!G:J,4,FALSE) -> 9356034 | BF11: 978 | BG11: 02 | BH11: 0000000000001520 | BK11: 201025 | BL11: 000000 | BN11: 0000000000001514 | BO11: 0000000000001523 | BR11: 20251020 | BS11: 000000000009 | BV11: 30004 | BW11: 4643216546131356461 | BX11: 20251020 | BY11: 000000 | BZ11: 00244400049020251020 | CA11: 000000003000+ | CB11: 000000002000+ | CC11: 000000002000+ | CD11: U | CE11: E | CF11: UE | CG11: =VLOOKUP(G11,'Listes déroulantes'!G:K,5,FALSE) -> 4111184 | CH11: =VLOOKUP(G11,'Listes déroulantes'!G:L,6,FALSE) -> VAD | CL11: 000000000000 | CP11: 20228380134
A12: Enregistrement 5 | B12: oui | C12: 14000000Y00000030004XATRI 000021702892282513264KHYODHNJ313552025101960992700180006 00000000000022559782TI V FAC20251020 9356036 978020000000000002250 201025000000 00000000000022410000000000002255 20251020000000000014 3000446432165461313564612025102000000000244400049020251020 000000005000+000000002000+000000002000+DPHUE4111186VAD 000000000000 20228380135 | D12: Payment | E12: 2025-10-20 | F12: VISA | G12: CM_06 | H12: 22.55 | I12: 0.14 | J12: 0 | K12: 0.05 | L12: 0.02 | M12: 0.02 | N12: Débit | O12: Particulier | P12: HUE | Q12: CRE 5 | R12: 14 | S12: 000000 | T12: Y0 | U12: 00000 | V12: 30004 | W12: XA | X12: TRI | Z12: 00 | AA12: 00 | AB12: 2 | AC12: 17028 | AD12: 92282 | AE12: 513264KHYODHNJ31355 | AF12: 20251019 | AG12: =VLOOKUP(G12,'Listes déroulantes'!G:I,3,FALSE) -> 60992700180006 | AH12: 0000000000002255 | AI12: 978 | AJ12: 2 | AK12: TI | AL12: V | AN12: FAC | AO12: 20251020 | BC12: =VLOOKUP(G12,'Listes déroulantes'!G:J,4,FALSE) -> 9356036 | BF12: 978 | BG12: 02 | BH12: 0000000000002250 | BK12: 201025 | BL12: 000000 | BN12: 0000000000002241 | BO12: 0000000000002255 | BR12: 20251020 | BS12: 000000000014 | BV12: 30004 | BW12: 4643216546131356461 | BX12: 20251020 | BY12: 000000 | BZ12: 00244400049020251020 | CA12: 000000005000+ | CB12: 000000002000+ | CC12: 000000002000+ | CD12: D | CE12: P | CF12: HUE | CG12: =VLOOKUP(G12,'Listes déroulantes'!G:K,5,FALSE) -> 4111186 | CH12: =VLOOKUP(G12,'Listes déroulantes'!G:L,6,FALSE) -> VAD | CL12: 000000000000 | CP12: 20228380135
A13: Enregistrement 6 | B13: oui | C13: 14000000Y00000030004XATRI 000021702892282513264KHYODHNJ313562025101960992700180009 00000000000052569782TI V FAC20251020 9356039 978020000000000005245 201025000000 00000000000052240000000000005256 20251020000000000032 3000446432165461313564612025102000000000244400049020251020 000000011000+000000005000+000000005000+UEHUE4111189PDP 000000000003 20228380136 | D13: Payment | E13: 2025-10-20 | F13: VISA | G13: CM_09 | H13: 52.56 | I13: 0.32 | J13: 0.03 | K13: 0.11 | L13: 0.05 | M13: 0.05 | N13: Universelle | O13: Entreprise | P13: HUE | Q13: CRE 6 | R13: 14 | S13: 000000 | T13: Y0 | U13: 00000 | V13: 30004 | W13: XA | X13: TRI | Z13: 00 | AA13: 00 | AB13: 2 | AC13: 17028 | AD13: 92282 | AE13: 513264KHYODHNJ31356 | AF13: 20251019 | AG13: =VLOOKUP(G13,'Listes déroulantes'!G:I,3,FALSE) -> 60992700180009 | AH13: 0000000000005256 | AI13: 978 | AJ13: 2 | AK13: TI | AL13: V | AN13: FAC | AO13: 20251020 | BC13: =VLOOKUP(G13,'Listes déroulantes'!G:J,4,FALSE) -> 9356039 | BF13: 978 | BG13: 02 | BH13: 0000000000005245 | BK13: 201025 | BL13: 000000 | BN13: 0000000000005224 | BO13: 0000000000005256 | BR13: 20251020 | BS13: 000000000032 | BV13: 30004 | BW13: 4643216546131356461 | BX13: 20251020 | BY13: 000000 | BZ13: 00244400049020251020 | CA13: 000000011000+ | CB13: 000000005000+ | CC13: 000000005000+ | CD13: U | CE13: E | CF13: HUE | CG13: =VLOOKUP(G13,'Listes déroulantes'!G:K,5,FALSE) -> 4111189 | CH13: =VLOOKUP(G13,'Listes déroulantes'!G:L,6,FALSE) -> PDP | CL13: 000000000003 | CP13: 20228380136
A14: Enregistrement 7 | B14: oui | C14: 14000000X00000030004XATRI 000021702892282513264KHYODHNJ313572025101960992700180010 00000000000066559782TI I FAC20251020 9356040 978020000000000006642 201025000000 00000000000066150000000000006655 20251020000000000040 3000446432165461313564612025102000000000244400049020251020 000000013000+000000007000+000000007000+CPFRA4111190VAD 000000000000 20228380137 | D14: Payment | E14: 2025-10-20 | F14: MC | G14: CM_10 | H14: 66.55 | I14: 0.4 | J14: 0 | K14: 0.13 | L14: 0.07 | M14: 0.07 | N14: Crédit | O14: Particulier | P14: FRA | Q14: CRE 7 | R14: 14 | S14: 000000 | T14: X0 | U14: 00000 | V14: 30004 | W14: XA | X14: TRI | Z14: 00 | AA14: 00 | AB14: 2 | AC14: 17028 | AD14: 92282 | AE14: 513264KHYODHNJ31357 | AF14: 20251019 | AG14: =VLOOKUP(G14,'Listes déroulantes'!G:I,3,FALSE) -> 60992700180010 | AH14: 0000000000006655 | AI14: 978 | AJ14: 2 | AK14: TI | AL14: I | AN14: FAC | AO14: 20251020 | BC14: =VLOOKUP(G14,'Listes déroulantes'!G:J,4,FALSE) -> 9356040 | BF14: 978 | BG14: 02 | BH14: 0000000000006642 | BK14: 201025 | BL14: 000000 | BN14: 0000000000006615 | BO14: 0000000000006655 | BR14: 20251020 | BS14: 000000000040 | BV14: 30004 | BW14: 4643216546131356461 | BX14: 20251020 | BY14: 000000 | BZ14: 00244400049020251020 | CA14: 000000013000+ | CB14: 000000007000+ | CC14: 000000007000+ | CD14: C | CE14: P | CF14: FRA | CG14: =VLOOKUP(G14,'Listes déroulantes'!G:K,5,FALSE) -> 4111190 | CH14: =VLOOKUP(G14,'Listes déroulantes'!G:L,6,FALSE) -> VAD | CL14: 000000000000 | CP14: 20228380137
A15: Enregistrement 8 | B15: oui | C15: 14000000Y00000030004XATRI 000021702892282513264KHYODHNJ313582025101960992700180010 00000000000118509782TI V FAC20251020 9356040 978020000000000011826 201025000000 00000000000117790000000000011850 20251020000000000071 3000446432165461313564612025102000000000244400049020251020 000000024000+000000012000+000000012000+DPUE 4111190VAD 000000000000 20228380138 | D15: Payment | E15: 2025-10-20 | F15: VISA | G15: CM_10 | H15: 118.5 | I15: 0.71 | J15: 0 | K15: 0.24 | L15: 0.12 | M15: 0.12 | N15: Débit | O15: Particulier | P15: UE | Q15: CRE 8 | R15: 14 | S15: 000000 | T15: Y0 | U15: 00000 | V15: 30004 | W15: XA | X15: TRI | Z15: 00 | AA15: 00 | AB15: 2 | AC15: 17028 | AD15: 92282 | AE15: 513264KHYODHNJ31358 | AF15: 20251019 | AG15: =VLOOKUP(G15,'Listes déroulantes'!G:I,3,FALSE) -> 60992700180010 | AH15: 0000000000011850 | AI15: 978 | AJ15: 2 | AK15: TI | AL15: V | AN15: FAC | AO15: 20251020 | BC15: =VLOOKUP(G15,'Listes déroulantes'!G:J,4,FALSE) -> 9356040 | BF15: 978 | BG15: 02 | BH15: 0000000000011826 | BK15: 201025 | BL15: 000000 | BN15: 0000000000011779 | BO15: 0000000000011850 | BR15: 20251020 | BS15: 000000000071 | BV15: 30004 | BW15: 4643216546131356461 | BX15: 20251020 | BY15: 000000 | BZ15: 00244400049020251020 | CA15: 000000024000+ | CB15: 000000012000+ | CC15: 000000012000+ | CD15: D | CE15: P | CF15: UE | CG15: =VLOOKUP(G15,'Listes déroulantes'!G:K,5,FALSE) -> 4111190 | CH15: =VLOOKUP(G15,'Listes déroulantes'!G:L,6,FALSE) -> VAD | CL15: 000000000000 | CP15: 20228380138
A16: Enregistrement 9 | B16: non | C16: CRE NON ACTIF | D16: Payment | E16: 2022-12-19 | F16: MC | G16: CM_36_PDPAG1 | H16: 25 | I16: 0 | J16: 0 | K16: 0.05 | L16: 0.03 | M16: 0.03 | N16: Débit | O16: Entreprise | P16: FRA | Q16: CRE 9 | R16: 14 | S16: 000000 | T16: X0 | U16: 00000 | V16: 30004 | W16: XA | X16: TRI | Z16: 00 | AA16: 00 | AB16: 2 | AC16: 17028 | AD16: 92282 | AE16: 513264KHYODHNJ31359 | AF16: 20221218 | AG16: =VLOOKUP(G16,'Listes déroulantes'!G:I,3,FALSE) -> 60903600190001 | AH16: 0000000000002500 | AI16: 978 | AJ16: 2 | AK16: TI | AL16: I | AN16: FAC | AO16: 20221219 | BC16: =VLOOKUP(G16,'Listes déroulantes'!G:J,4,FALSE) -> 9556036 | BF16: 978 | BG16: 02 | BH16: 0000000000002495 | BK16: 191222 | BL16: 000000 | BN16: 0000000000002500 | BO16: 0000000000002500 | BR16: 20221219 | BS16: 000000000000 | BV16: 30004 | BW16: 4643216546131356461 | BX16: 20221219 | BY16: 000000 | BZ16: 00244400049020221219 | CA16: 000000005000+ | CB16: 000000003000+ | CC16: 000000003000+ | CD16: D | CE16: E | CF16: FRA | CG16: =VLOOKUP(G16,'Listes déroulantes'!G:K,5,FALSE) -> 4102036 | CH16: =VLOOKUP(G16,'Listes déroulantes'!G:L,6,FALSE) -> PDP | CL16: 000000000000 | CP16: 20228380139
A17: Enregistrement 10 | B17: non | C17: CRE NON ACTIF | D17: Payment | E17: 2022-12-19 | F17: MC | G17: CM_36_PDPAG1 | H17: 360.03 | I17: 0 | J17: 0 | K17: 0.72 | L17: 0.36 | M17: 0.36 | N17: Universelle | O17: Entreprise | P17: UE | Q17: CRE 10 | R17: 14 | S17: 000000 | T17: X0 | U17: 00000 | V17: 30004 | W17: XA | X17: TRI | Z17: 00 | AA17: 00 | AB17: 2 | AC17: 17028 | AD17: 92282 | AE17: 513264KHYODHNJ31360 | AF17: 20221218 | AG17: =VLOOKUP(G17,'Listes déroulantes'!G:I,3,FALSE) -> 60903600190001 | AH17: 0000000000036003 | AI17: 978 | AJ17: 2 | AK17: TI | AL17: I | AN17: FAC | AO17: 20221219 | BC17: =VLOOKUP(G17,'Listes déroulantes'!G:J,4,FALSE) -> 9556036 | BF17: 978 | BG17: 02 | BH17: 0000000000035931 | BK17: 191222 | BL17: 000000 | BN17: 0000000000036003 | BO17: 0000000000036003 | BR17: 20221219 | BS17: 000000000000 | BV17: 30004 | BW17: 4643216546131356461 | BX17: 20221219 | BY17: 000000 | BZ17: 00244400049020221219 | CA17: 000000072000+ | CB17: 000000036000+ | CC17: 000000036000+ | CD17: U | CE17: E | CF17: UE | CG17: =VLOOKUP(G17,'Listes déroulantes'!G:K,5,FALSE) -> 4102036 | CH17: =VLOOKUP(G17,'Listes déroulantes'!G:L,6,FALSE) -> PDP | CL17: 000000000000 | CP17: 20228380140
A18: Enregistrement 11 | B18: non | C18: CRE NON ACTIF | D18: Payment | E18: 2022-12-19 | F18: MC | G18: CM_32_VAD | H18: 50.23 | I18: 0 | J18: 0 | K18: 0.1 | L18: 0.05 | M18: 0.05 | N18: Débit | O18: Entreprise | P18: HUE | Q18: CRE 11 | R18: 14 | S18: 000000 | T18: X0 | U18: 00000 | V18: 30004 | W18: XA | X18: TRI | Z18: 00 | AA18: 00 | AB18: 2 | AC18: 17028 | AD18: 92282 | AE18: 513264KHYODHNJ31361 | AF18: 20221218 | AG18: =VLOOKUP(G18,'Listes déroulantes'!G:I,3,FALSE) -> 60903200190001 | AH18: 0000000000005023 | AI18: 978 | AJ18: 2 | AK18: TI | AL18: I | AN18: FAC | AO18: 20221219 | BC18: =VLOOKUP(G18,'Listes déroulantes'!G:J,4,FALSE) -> 9556032 | BF18: 978 | BG18: 02 | BH18: 0000000000005013 | BK18: 191222 | BL18: 000000 | BN18: 0000000000005023 | BO18: 0000000000005023 | BR18: 20221219 | BS18: 000000000000 | BV18: 30004 | BW18: 4643216546131356461 | BX18: 20221219 | BY18: 000000 | BZ18: 00244400049020221219 | CA18: 000000010000+ | CB18: 000000005000+ | CC18: 000000005000+ | CD18: D | CE18: E | CF18: HUE | CG18: =VLOOKUP(G18,'Listes déroulantes'!G:K,5,FALSE) -> 4102032 | CH18: =VLOOKUP(G18,'Listes déroulantes'!G:L,6,FALSE) -> VAD | CL18: 000000000000 | CP18: 20228380141
A19: Enregistrement 12 | B19: non | C19: CRE NON ACTIF | D19: Payment | E19: 2022-12-19 | F19: VISA | G19: CM_34_AG1 | H19: 102.56 | I19: 0 | J19: 0 | K19: 0.21 | L19: 0.1 | M19: 0.1 | N19: Débit | O19: Entreprise | P19: HUE | Q19: CRE 12 | R19: 14 | S19: 000000 | T19: Y0 | U19: 00000 | V19: 30004 | W19: XA | X19: TRI | Z19: 00 | AA19: 00 | AB19: 2 | AC19: 17028 | AD19: 92282 | AE19: 513264KHYODHNJ31362 | AF19: 20221218 | AG19: =VLOOKUP(G19,'Listes déroulantes'!G:I,3,FALSE) -> 60903400190001 | AH19: 0000000000010256 | AI19: 978 | AJ19: 2 | AK19: TI | AL19: V | AN19: FAC | AO19: 20221219 | BC19: =VLOOKUP(G19,'Listes déroulantes'!G:J,4,FALSE) -> 9556034 | BF19: 978 | BG19: 02 | BH19: 0000000000010235 | BK19: 191222 | BL19: 000000 | BN19: 0000000000010256 | BO19: 0000000000010256 | BR19: 20221219 | BS19: 000000000000 | BV19: 30004 | BW19: 4643216546131356461 | BX19: 20221219 | BY19: 000000 | BZ19: 00244400049020221219 | CA19: 000000021000+ | CB19: 000000010000+ | CC19: 000000010000+ | CD19: D | CE19: E | CF19: HUE | CG19: =VLOOKUP(G19,'Listes déroulantes'!G:K,5,FALSE) -> 4102034 | CH19: =VLOOKUP(G19,'Listes déroulantes'!G:L,6,FALSE) -> VAD | CL19: 000000000000 | CP19: 20228380142
A20: Enregistrement 13 | B20: non | C20: CRE NON ACTIF | D20: Payment | E20: 2022-12-19 | F20: VISA | G20: CM_34_AG1 | H20: 45 | I20: 0 | J20: 0 | K20: 0.09 | L20: 0.05 | M20: 0.05 | N20: Universelle | O20: Particulier | P20: FRA | Q20: CRE 13 | R20: 14 | S20: 000000 | T20: Y0 | U20: 00000 | V20: 30004 | W20: XA | X20: TRI | Z20: 00 | AA20: 00 | AB20: 2 | AC20: 17028 | AD20: 92282 | AE20: 513264KHYODHNJ31363 | AF20: 20221218 | AG20: =VLOOKUP(G20,'Listes déroulantes'!G:I,3,FALSE) -> 60903400190001 | AH20: 0000000000004500 | AI20: 978 | AJ20: 2 | AK20: TI | AL20: V | AN20: FAC | AO20: 20221219 | BC20: =VLOOKUP(G20,'Listes déroulantes'!G:J,4,FALSE) -> 9556034 | BF20: 978 | BG20: 02 | BH20: 0000000000004491 | BK20: 191222 | BL20: 000000 | BN20: 0000000000004500 | BO20: 0000000000004500 | BR20: 20221219 | BS20: 000000000000 | BV20: 30004 | BW20: 4643216546131356461 | BX20: 20221219 | BY20: 000000 | BZ20: 00244400049020221219 | CA20: 000000009000+ | CB20: 000000005000+ | CC20: 000000005000+ | CD20: U | CE20: P | CF20: FRA | CG20: =VLOOKUP(G20,'Listes déroulantes'!G:K,5,FALSE) -> 4102034 | CH20: =VLOOKUP(G20,'Listes déroulantes'!G:L,6,FALSE) -> VAD | CL20: 000000000000 | CP20: 20228380143
A21: Enregistrement 14 | B21: non | C21: CRE NON ACTIF | D21: Payment | E21: 2022-12-19 | F21: VISA | G21: CM_34_AG1 | H21: 250 | I21: 1.5 | J21: 0 | K21: 0.5 | L21: 0.25 | M21: 0.25 | N21: Débit | O21: Entreprise | P21: HUE | Q21: CRE 14 | R21: 14 | S21: 000000 | T21: Y0 | U21: 00000 | V21: 30004 | W21: XA | X21: TRI | Z21: 00 | AA21: 00 | AB21: 2 | AC21: 17028 | AD21: 92282 | AE21: 513264KHYODHNJ31364 | AF21: 20221218 | AG21: =VLOOKUP(G21,'Listes déroulantes'!G:I,3,FALSE) -> 60903400190001 | AH21: 0000000000025000 | AI21: 978 | AJ21: 2 | AK21: TI | AL21: V | AN21: FAC | AO21: 20221219 | BC21: =VLOOKUP(G21,'Listes déroulantes'!G:J,4,FALSE) -> 9556034 | BF21: 978 | BG21: 02 | BH21: 0000000000024950 | BK21: 191222 | BL21: 000000 | BN21: 0000000000024850 | BO21: 0000000000025000 | BR21: 20221219 | BS21: 000000000150 | BV21: 30004 | BW21: 4643216546131356461 | BX21: 20221219 | BY21: 000000 | BZ21: 00244400049020221219 | CA21: 000000050000+ | CB21: 000000025000+ | CC21: 000000025000+ | CD21: D | CE21: E | CF21: HUE | CG21: =VLOOKUP(G21,'Listes déroulantes'!G:K,5,FALSE) -> 4102034 | CH21: =VLOOKUP(G21,'Listes déroulantes'!G:L,6,FALSE) -> VAD | CL21: 000000000000 | CP21: 20228380144
A22: Enregistrement 15 | B22: non | C22: CRE NON ACTIF | D22: Payment | E22: 2022-12-19 | F22: MC | G22: CM_34_AG1 | H22: 77 | I22: 0.46 | J22: 0 | K22: 0.15 | L22: 0.08 | M22: 0.08 | N22: Universelle | O22: Particulier | P22: FRA | Q22: CRE 15 | R22: 14 | S22: 000000 | T22: X0 | U22: 00000 | V22: 30004 | W22: XA | X22: TRI | Z22: 00 | AA22: 00 | AB22: 2 | AC22: 17028 | AD22: 92282 | AE22: 513264KHYODHNJ31365 | AF22: 20221218 | AG22: =VLOOKUP(G22,'Listes déroulantes'!G:I,3,FALSE) -> 60903400190001 | AH22: 0000000000007700 | AI22: 978 | AJ22: 2 | AK22: TI | AL22: I | AN22: FAC | AO22: 20221219 | BC22: =VLOOKUP(G22,'Listes déroulantes'!G:J,4,FALSE) -> 9556034 | BF22: 978 | BG22: 02 | BH22: 0000000000007685 | BK22: 191222 | BL22: 000000 | BN22: 0000000000007654 | BO22: 0000000000007700 | BR22: 20221219 | BS22: 000000000046 | BV22: 30004 | BW22: 4643216546131356461 | BX22: 20221219 | BY22: 000000 | BZ22: 00244400049020221219 | CA22: 000000015000+ | CB22: 000000008000+ | CC22: 000000008000+ | CD22: U | CE22: P | CF22: FRA | CG22: =VLOOKUP(G22,'Listes déroulantes'!G:K,5,FALSE) -> 4102034 | CH22: =VLOOKUP(G22,'Listes déroulantes'!G:L,6,FALSE) -> VAD | CL22: 000000000000 | CP22: 20228380145
A23: Enregistrement 16 | B23: non | C23: CRE NON ACTIF | D23: Payment | E23: 2022-12-19 | F23: MC | G23: CM_34_AG1 | H23: 1088.8 | I23: 6.53 | J23: 0 | K23: 2.18 | L23: 1.09 | M23: 1.09 | N23: Crédit | O23: Entreprise | P23: FRA | Q23: CRE 16 | R23: 14 | S23: 000000 | T23: X0 | U23: 00000 | V23: 30004 | W23: XA | X23: TRI | Z23: 00 | AA23: 00 | AB23: 2 | AC23: 17028 | AD23: 92282 | AE23: 513264KHYODHNJ31366 | AF23: 20221218 | AG23: =VLOOKUP(G23,'Listes déroulantes'!G:I,3,FALSE) -> 60903400190001 | AH23: 0000000000108880 | AI23: 978 | AJ23: 2 | AK23: TI | AL23: I | AN23: FAC | AO23: 20221219 | BC23: =VLOOKUP(G23,'Listes déroulantes'!G:J,4,FALSE) -> 9556034 | BF23: 978 | BG23: 02 | BH23: 0000000000108662 | BK23: 191222 | BL23: 000000 | BN23: 0000000000108227 | BO23: 0000000000108880 | BR23: 20221219 | BS23: 000000000653 | BV23: 30004 | BW23: 4643216546131356461 | BX23: 20221219 | BY23: 000000 | BZ23: 00244400049020221219 | CA23: 000000218000+ | CB23: 000000109000+ | CC23: 000000109000+ | CD23: C | CE23: E | CF23: FRA | CG23: =VLOOKUP(G23,'Listes déroulantes'!G:K,5,FALSE) -> 4102034 | CH23: =VLOOKUP(G23,'Listes déroulantes'!G:L,6,FALSE) -> VAD | CL23: 000000000000 | CP23: 20228380146
A24: Enregistrement 17 | B24: non | C24: CRE NON ACTIF | D24: Payment | E24: 2022-12-19 | F24: MC | G24: CM_36_PDPAG1 | H24: 20 | I24: 0.12 | J24: 0 | K24: 0.04 | L24: 0.02 | M24: 0.02 | N24: Débit | O24: Particulier | P24: HUE | Q24: CRE 17 | R24: 14 | S24: 000000 | T24: X0 | U24: 00000 | V24: 30004 | W24: XA | X24: TRI | Z24: 00 | AA24: 00 | AB24: 2 | AC24: 17028 | AD24: 92282 | AE24: 513264KHYODHNJ31367 | AF24: 20221218 | AG24: =VLOOKUP(G24,'Listes déroulantes'!G:I,3,FALSE) -> 60903600190001 | AH24: 0000000000002000 | AI24: 978 | AJ24: 2 | AK24: TI | AL24: I | AN24: FAC | AO24: 20221219 | BC24: =VLOOKUP(G24,'Listes déroulantes'!G:J,4,FALSE) -> 9556036 | BF24: 978 | BG24: 02 | BH24: 0000000000001996 | BK24: 191222 | BL24: 000000 | BN24: 0000000000001988 | BO24: 0000000000002000 | BR24: 20221219 | BS24: 000000000012 | BV24: 30004 | BW24: 4643216546131356461 | BX24: 20221219 | BY24: 000000 | BZ24: 00244400049020221219 | CA24: 000000004000+ | CB24: 000000002000+ | CC24: 000000002000+ | CD24: D | CE24: P | CF24: HUE | CG24: =VLOOKUP(G24,'Listes déroulantes'!G:K,5,FALSE) -> 4102036 | CH24: =VLOOKUP(G24,'Listes déroulantes'!G:L,6,FALSE) -> PDP | CL24: 000000000000 | CP24: 20228380147
A25: Enregistrement 18 | B25: non | C25: CRE NON ACTIF | D25: Payment | E25: 2022-12-19 | F25: MC | G25: CM_36_PDPAG1 | H25: 45.26 | I25: 0.27 | J25: 0 | K25: 0.09 | L25: 0.05 | M25: 0.05 | N25: Universelle | O25: Entreprise | P25: HUE | Q25: CRE 18 | R25: 14 | S25: 000000 | T25: X0 | U25: 00000 | V25: 30004 | W25: XA | X25: TRI | Z25: 00 | AA25: 00 | AB25: 2 | AC25: 17028 | AD25: 92282 | AE25: 513264KHYODHNJ31368 | AF25: 20221218 | AG25: =VLOOKUP(G25,'Listes déroulantes'!G:I,3,FALSE) -> 60903600190001 | AH25: 0000000000004526 | AI25: 978 | AJ25: 2 | AK25: TI | AL25: I | AN25: FAC | AO25: 20221219 | BC25: =VLOOKUP(G25,'Listes déroulantes'!G:J,4,FALSE) -> 9556036 | BF25: 978 | BG25: 02 | BH25: 0000000000004517 | BK25: 191222 | BL25: 000000 | BN25: 0000000000004499 | BO25: 0000000000004526 | BR25: 20221219 | BS25: 000000000027 | BV25: 30004 | BW25: 4643216546131356461 | BX25: 20221219 | BY25: 000000 | BZ25: 00244400049020221219 | CA25: 000000009000+ | CB25: 000000005000+ | CC25: 000000005000+ | CD25: U | CE25: E | CF25: HUE | CG25: =VLOOKUP(G25,'Listes déroulantes'!G:K,5,FALSE) -> 4102036 | CH25: =VLOOKUP(G25,'Listes déroulantes'!G:L,6,FALSE) -> PDP | CL25: 000000000000 | CP25: 20228380148
A26: Enregistrement 19 | B26: non | C26: CRE NON ACTIF | D26: Payment | E26: 2022-12-19 | F26: VISA | G26: CM_37_VADAG1 | H26: 100 | I26: 2.5 | J26: 0 | K26: 0.5 | L26: 0 | M26: 0 | N26: Crédit | O26: Entreprise | P26: FRA | Q26: CRE 19 | R26: 14 | S26: 000000 | T26: Y0 | U26: 00000 | V26: 30004 | W26: XA | X26: TRI | Z26: 00 | AA26: 00 | AB26: 2 | AC26: 17028 | AD26: 92282 | AE26: 513264KHYODHNJ31369 | AF26: 20221218 | AG26: =VLOOKUP(G26,'Listes déroulantes'!G:I,3,FALSE) -> 60903700190001 | AH26: 0000000000010000 | AI26: 978 | AJ26: 2 | AK26: TI | AL26: V | AN26: FAC | AO26: 20221219 | BC26: =VLOOKUP(G26,'Listes déroulantes'!G:J,4,FALSE) -> 9556037 | BF26: 978 | BG26: 02 | BH26: 0000000000009950 | BK26: 191222 | BL26: 000000 | BN26: 0000000000009750 | BO26: 0000000000010000 | BR26: 20221219 | BS26: 000000000250 | BV26: 30004 | BW26: 4643216546131356461 | BX26: 20221219 | BY26: 000000 | BZ26: 00244400049020221219 | CA26: 000000050000+ | CB26: 000000000000+ | CC26: 000000000000+ | CD26: C | CE26: E | CF26: FRA | CG26: =VLOOKUP(G26,'Listes déroulantes'!G:K,5,FALSE) -> 4102037 | CH26: =VLOOKUP(G26,'Listes déroulantes'!G:L,6,FALSE) -> VAD | CL26: 000000000000 | CP26: 20228380149
A27: Enregistrement 20 | B27: non | C27: CRE NON ACTIF | D27: Payment | E27: 2022-12-19 | F27: MC | G27: CM_37_VADAG1 | H27: 100 | I27: 2.5 | J27: 0 | K27: 0.5 | L27: 0 | M27: 0 | N27: Crédit | O27: Entreprise | P27: FRA | Q27: CRE 20 | R27: 14 | S27: 000000 | T27: X0 | U27: 00000 | V27: 30004 | W27: XA | X27: TRI | Z27: 00 | AA27: 00 | AB27: 2 | AC27: 17028 | AD27: 92282 | AE27: 513264KHYODHNJ31370 | AF27: 20221218 | AG27: =VLOOKUP(G27,'Listes déroulantes'!G:I,3,FALSE) -> 60903700190001 | AH27: 0000000000010000 | AI27: 978 | AJ27: 2 | AK27: TI | AL27: I | AN27: FAC | AO27: 20221219 | BC27: =VLOOKUP(G27,'Listes déroulantes'!G:J,4,FALSE) -> 9556037 | BF27: 978 | BG27: 02 | BH27: 0000000000009950 | BK27: 191222 | BL27: 000000 | BN27: 0000000000009750 | BO27: 0000000000010000 | BR27: 20221219 | BS27: 000000000250 | BV27: 30004 | BW27: 4643216546131356461 | BX27: 20221219 | BY27: 000000 | BZ27: 00244400049020221219 | CA27: 000000050000+ | CB27: 000000000000+ | CC27: 000000000000+ | CD27: C | CE27: E | CF27: FRA | CG27: =VLOOKUP(G27,'Listes déroulantes'!G:K,5,FALSE) -> 4102037 | CH27: =VLOOKUP(G27,'Listes déroulantes'!G:L,6,FALSE) -> VAD | CL27: 000000000000 | CP27: 20228380150
A28: Enregistrement 21 | B28: non | C28: CRE NON ACTIF | D28: Payment | E28: 2022-12-19 | F28: VISA | G28: SAS MONEXT PDP | H28: 250 | I28: 2.5 | J28: 0 | K28: 1 | L28: 0.39 | M28: 0.05 | N28: Crédit | O28: Entreprise | P28: FRA | Q28: CRE 21 | R28: 14 | S28: 000000 | T28: Y0 | U28: 00000 | V28: 30004 | W28: XA | X28: TRI | Z28: 00 | AA28: 00 | AB28: 2 | AC28: 17028 | AD28: 92282 | AE28: 513264KHYODHNJ31371 | AF28: 20221218 | AG28: =VLOOKUP(G28,'Listes déroulantes'!G:I,3,FALSE) -> 50318500100032 | AH28: 0000000000025000 | AI28: 978 | AJ28: 2 | AK28: TI | AL28: V | AN28: FAC | AO28: 20221219 | BC28: =VLOOKUP(G28,'Listes déroulantes'!G:J,4,FALSE) -> 9255001 | BF28: 978 | BG28: 02 | BH28: 0000000000024900 | BK28: 191222 | BL28: 000000 | BN28: 0000000000024750 | BO28: 0000000000025000 | BR28: 20221219 | BS28: 000000000250 | BV28: 30004 | BW28: 4643216546131356461 | BX28: 20221219 | BY28: 000000 | BZ28: 00244400049020221219 | CA28: 000000100000+ | CB28: 000000039000+ | CC28: 000000005000+ | CD28: C | CE28: E | CF28: FRA | CG28: =VLOOKUP(G28,'Listes déroulantes'!G:K,5,FALSE) -> 4319211 | CH28: =VLOOKUP(G28,'Listes déroulantes'!G:L,6,FALSE) -> PDP | CL28: 000000000000 | CP28: 20228380151
A29: Enregistrement 22 | B29: non | C29: CRE NON ACTIF | D29: Refund | E29: 2022-12-19 | F29: VISA | G29: CM_36_PDPAG1 | H29: 20.5 | I29: 0.12 | J29: 0 | K29: 0.04 | L29: 0.02 | M29: 0.02 | N29: Débit | O29: Entreprise | P29: UE | Q29: CRE 22 | R29: 14 | S29: 000000 | T29: Y0 | U29: 00000 | V29: 30004 | W29: XA | X29: TRI | Z29: 00 | AA29: 00 | AB29: 2 | AC29: 17028 | AD29: 92282 | AE29: 513264KHYODHNJ31372 | AF29: 20221218 | AG29: =VLOOKUP(G29,'Listes déroulantes'!G:I,3,FALSE) -> 60903600190001 | AH29: 0000000000002050 | AI29: 978 | AJ29: 2 | AK29: TI | AL29: V | AN29: AVO | AO29: 20221219 | BC29: =VLOOKUP(G29,'Listes déroulantes'!G:J,4,FALSE) -> 9556036 | BF29: 978 | BG29: 02 | BH29: 0000000000002046 | BK29: 191222 | BL29: 000000 | BN29: 0000000000002038 | BO29: 0000000000002050 | BR29: 20221219 | BS29: 000000000012 | BV29: 30004 | BW29: 4643216546131356461 | BX29: 20221219 | BY29: 000000 | BZ29: 00244400049020221219 | CA29: 000000004000+ | CB29: 000000002000+ | CC29: 000000002000+ | CD29: D | CE29: E | CF29: UE | CG29: =VLOOKUP(G29,'Listes déroulantes'!G:K,5,FALSE) -> 4102036 | CH29: =VLOOKUP(G29,'Listes déroulantes'!G:L,6,FALSE) -> PDP | CL29: 000000000000 | CP29: 20228380152
A30: Enregistrement 23 | B30: non | C30: CRE NON ACTIF | D30: Refund | E30: 2022-12-19 | F30: MC | G30: CM_36_PDPAG1 | H30: 150 | I30: 0.9 | J30: 0 | K30: 0.3 | L30: 0.15 | M30: 0.15 | N30: Débit | O30: Entreprise | P30: UE | Q30: CRE 23 | R30: 14 | S30: 000000 | T30: X0 | U30: 00000 | V30: 30004 | W30: XA | X30: TRI | Z30: 00 | AA30: 00 | AB30: 2 | AC30: 17028 | AD30: 92282 | AE30: 513264KHYODHNJ31373 | AF30: 20221218 | AG30: =VLOOKUP(G30,'Listes déroulantes'!G:I,3,FALSE) -> 60903600190001 | AH30: 0000000000015000 | AI30: 978 | AJ30: 2 | AK30: TI | AL30: I | AN30: AVO | AO30: 20221219 | BC30: =VLOOKUP(G30,'Listes déroulantes'!G:J,4,FALSE) -> 9556036 | BF30: 978 | BG30: 02 | BH30: 0000000000014970 | BK30: 191222 | BL30: 000000 | BN30: 0000000000014910 | BO30: 0000000000015000 | BR30: 20221219 | BS30: 000000000090 | BV30: 30004 | BW30: 4643216546131356461 | BX30: 20221219 | BY30: 000000 | BZ30: 00244400049020221219 | CA30: 000000030000+ | CB30: 000000015000+ | CC30: 000000015000+ | CD30: D | CE30: E | CF30: UE | CG30: =VLOOKUP(G30,'Listes déroulantes'!G:K,5,FALSE) -> 4102036 | CH30: =VLOOKUP(G30,'Listes déroulantes'!G:L,6,FALSE) -> PDP | CL30: 000000000000 | CP30: 20228380153
A31: Enregistrement 24 | B31: non | C31: CRE NON ACTIF | D31: Refund | E31: 2022-12-19 | F31: VISA | G31: CM_37_VADAG1 | H31: 26 | I31: 0.16 | J31: 0 | K31: 0.05 | L31: 0.03 | M31: 0.03 | N31: Crédit | O31: Entreprise | P31: FRA | Q31: CRE 24 | R31: 14 | S31: 000000 | T31: Y0 | U31: 00000 | V31: 30004 | W31: XA | X31: TRI | Z31: 00 | AA31: 00 | AB31: 2 | AC31: 17028 | AD31: 92282 | AE31: 513264KHYODHNJ31374 | AF31: 20221218 | AG31: =VLOOKUP(G31,'Listes déroulantes'!G:I,3,FALSE) -> 60903700190001 | AH31: 0000000000002600 | AI31: 978 | AJ31: 2 | AK31: TI | AL31: V | AN31: AVO | AO31: 20221219 | BC31: =VLOOKUP(G31,'Listes déroulantes'!G:J,4,FALSE) -> 9556037 | BF31: 978 | BG31: 02 | BH31: 0000000000002595 | BK31: 191222 | BL31: 000000 | BN31: 0000000000002584 | BO31: 0000000000002600 | BR31: 20221219 | BS31: 000000000016 | BV31: 30004 | BW31: 4643216546131356461 | BX31: 20221219 | BY31: 000000 | BZ31: 00244400049020221219 | CA31: 000000005000+ | CB31: 000000003000+ | CC31: 000000003000+ | CD31: C | CE31: E | CF31: FRA | CG31: =VLOOKUP(G31,'Listes déroulantes'!G:K,5,FALSE) -> 4102037 | CH31: =VLOOKUP(G31,'Listes déroulantes'!G:L,6,FALSE) -> VAD | CL31: 000000000000 | CP31: 20228380154
A32: Enregistrement 25 | B32: non | C32: CRE NON ACTIF | D32: Refund | E32: 2022-12-19 | F32: VISA | G32: CM_38_PDPAG1 | H32: 252 | I32: 1.51 | J32: 0 | K32: 0.5 | L32: 0.25 | M32: 0.25 | N32: Crédit | O32: Entreprise | P32: FRA | Q32: CRE 25 | R32: 14 | S32: 000000 | T32: Y0 | U32: 00000 | V32: 30004 | W32: XA | X32: TRI | Z32: 00 | AA32: 00 | AB32: 2 | AC32: 17028 | AD32: 92282 | AE32: 513264KHYODHNJ31375 | AF32: 20221218 | AG32: =VLOOKUP(G32,'Listes déroulantes'!G:I,3,FALSE) -> 60903800190001 | AH32: 0000000000025200 | AI32: 978 | AJ32: 2 | AK32: TI | AL32: V | AN32: AVO | AO32: 20221219 | BC32: =VLOOKUP(G32,'Listes déroulantes'!G:J,4,FALSE) -> 9556038 | BF32: 978 | BG32: 02 | BH32: 0000000000025150 | BK32: 191222 | BL32: 000000 | BN32: 0000000000025049 | BO32: 0000000000025200 | BR32: 20221219 | BS32: 000000000151 | BV32: 30004 | BW32: 4643216546131356461 | BX32: 20221219 | BY32: 000000 | BZ32: 00244400049020221219 | CA32: 000000050000+ | CB32: 000000025000+ | CC32: 000000025000+ | CD32: C | CE32: E | CF32: FRA | CG32: =VLOOKUP(G32,'Listes déroulantes'!G:K,5,FALSE) -> 4102038 | CH32: =VLOOKUP(G32,'Listes déroulantes'!G:L,6,FALSE) -> PDP | CL32: 000000000000 | CP32: 20228380155
A33: Enregistrement 26 | B33: non | C33: CRE NON ACTIF | D33: Refund | E33: 2022-12-19 | F33: MC | G33: CM_39_PDPAG2 | H33: 80 | I33: 0.48 | J33: 0 | K33: 0.16 | L33: 0.08 | M33: 0.08 | N33: Universelle | O33: Particulier | P33: FRA | Q33: CRE 26 | R33: 14 | S33: 000000 | T33: X0 | U33: 00000 | V33: 30004 | W33: XA | X33: TRI | Z33: 00 | AA33: 00 | AB33: 2 | AC33: 17028 | AD33: 92282 | AE33: 513264KHYODHNJ31376 | AF33: 20221218 | AG33: =VLOOKUP(G33,'Listes déroulantes'!G:I,3,FALSE) -> 60903900190001 | AH33: 0000000000008000 | AI33: 978 | AJ33: 2 | AK33: TI | AL33: I | AN33: AVO | AO33: 20221219 | BC33: =VLOOKUP(G33,'Listes déroulantes'!G:J,4,FALSE) -> 9556039 | BF33: 978 | BG33: 02 | BH33: 0000000000007984 | BK33: 191222 | BL33: 000000 | BN33: 0000000000007952 | BO33: 0000000000008000 | BR33: 20221219 | BS33: 000000000048 | BV33: 30004 | BW33: 4643216546131356461 | BX33: 20221219 | BY33: 000000 | BZ33: 00244400049020221219 | CA33: 000000016000+ | CB33: 000000008000+ | CC33: 000000008000+ | CD33: U | CE33: P | CF33: FRA | CG33: =VLOOKUP(G33,'Listes déroulantes'!G:K,5,FALSE) -> 4102039 | CH33: =VLOOKUP(G33,'Listes déroulantes'!G:L,6,FALSE) -> PDP | CL33: 000000000000 | CP33: 20228380156
A34: Enregistrement 27 | B34: non | C34: CRE NON ACTIF | D34: Refund | E34: 2022-12-19 | F34: VISA | G34: CM_40_VADAG2 | H34: 10 | I34: 0.06 | J34: 0 | K34: 0.02 | L34: 0.01 | M34: 0.01 | N34: Débit | O34: Entreprise | P34: UE | Q34: CRE 27 | R34: 14 | S34: 000000 | T34: Y0 | U34: 00000 | V34: 30004 | W34: XA | X34: TRI | Z34: 00 | AA34: 00 | AB34: 2 | AC34: 17028 | AD34: 92282 | AE34: 513264KHYODHNJ31377 | AF34: 20221218 | AG34: =VLOOKUP(G34,'Listes déroulantes'!G:I,3,FALSE) -> 60904000190001 | AH34: 0000000000001000 | AI34: 978 | AJ34: 2 | AK34: TI | AL34: V | AN34: AVO | AO34: 20221219 | BC34: =VLOOKUP(G34,'Listes déroulantes'!G:J,4,FALSE) -> 9556040 | BF34: 978 | BG34: 02 | BH34: 0000000000000998 | BK34: 191222 | BL34: 000000 | BN34: 0000000000000994 | BO34: 0000000000001000 | BR34: 20221219 | BS34: 000000000006 | BV34: 30004 | BW34: 4643216546131356461 | BX34: 20221219 | BY34: 000000 | BZ34: 00244400049020221219 | CA34: 000000002000+ | CB34: 000000001000+ | CC34: 000000001000+ | CD34: D | CE34: E | CF34: UE | CG34: =VLOOKUP(G34,'Listes déroulantes'!G:K,5,FALSE) -> 4102040 | CH34: =VLOOKUP(G34,'Listes déroulantes'!G:L,6,FALSE) -> VAD | CL34: 000000000000 | CP34: 20228380157
A35: Enregistrement 28 | B35: non | C35: CRE NON ACTIF | D35: Refund | E35: 2022-12-19 | F35: MC | G35: CM_40_VADAG2 | H35: 86.23 | I35: 0.52 | J35: 0 | K35: 0.17 | L35: 0.09 | M35: 0.09 | N35: Débit | O35: Entreprise | P35: UE | Q35: CRE 28 | R35: 14 | S35: 000000 | T35: X0 | U35: 00000 | V35: 30004 | W35: XA | X35: TRI | Z35: 00 | AA35: 00 | AB35: 2 | AC35: 17028 | AD35: 92282 | AE35: 513264KHYODHNJ31378 | AF35: 20221218 | AG35: =VLOOKUP(G35,'Listes déroulantes'!G:I,3,FALSE) -> 60904000190001 | AH35: 0000000000008623 | AI35: 978 | AJ35: 2 | AK35: TI | AL35: I | AN35: AVO | AO35: 20221219 | BC35: =VLOOKUP(G35,'Listes déroulantes'!G:J,4,FALSE) -> 9556040 | BF35: 978 | BG35: 02 | BH35: 0000000000008606 | BK35: 191222 | BL35: 000000 | BN35: 0000000000008571 | BO35: 0000000000008623 | BR35: 20221219 | BS35: 000000000052 | BV35: 30004 | BW35: 4643216546131356461 | BX35: 20221219 | BY35: 000000 | BZ35: 00244400049020221219 | CA35: 000000017000+ | CB35: 000000009000+ | CC35: 000000009000+ | CD35: D | CE35: E | CF35: UE | CG35: =VLOOKUP(G35,'Listes déroulantes'!G:K,5,FALSE) -> 4102040 | CH35: =VLOOKUP(G35,'Listes déroulantes'!G:L,6,FALSE) -> VAD | CL35: 000000000000 | CP35: 20228380158
A36: Enregistrement 29 | B36: non | C36: CRE NON ACTIF | D36: Refund | E36: 2022-12-19 | F36: VISA | G36: CM_32_VAD | H36: 33 | I36: 0.2 | J36: 0 | K36: 0.07 | L36: 0.03 | M36: 0.03 | N36: Débit | O36: Entreprise | P36: UE | Q36: CRE 29 | R36: 14 | S36: 000000 | T36: Y0 | U36: 00000 | V36: 30004 | W36: XA | X36: TRI | Z36: 00 | AA36: 00 | AB36: 2 | AC36: 17028 | AD36: 92282 | AE36: 513264KHYODHNJ31379 | AF36: 20221218 | AG36: =VLOOKUP(G36,'Listes déroulantes'!G:I,3,FALSE) -> 60903200190001 | AH36: 0000000000003300 | AI36: 978 | AJ36: 2 | AK36: TI | AL36: V | AN36: AVO | AO36: 20221219 | BC36: =VLOOKUP(G36,'Listes déroulantes'!G:J,4,FALSE) -> 9556032 | BF36: 978 | BG36: 02 | BH36: 0000000000003293 | BK36: 191222 | BL36: 000000 | BN36: 0000000000003280 | BO36: 0000000000003300 | BR36: 20221219 | BS36: 000000000020 | BV36: 30004 | BW36: 4643216546131356461 | BX36: 20221219 | BY36: 000000 | BZ36: 00244400049020221219 | CA36: 000000007000+ | CB36: 000000003000+ | CC36: 000000003000+ | CD36: D | CE36: E | CF36: UE | CG36: =VLOOKUP(G36,'Listes déroulantes'!G:K,5,FALSE) -> 4102032 | CH36: =VLOOKUP(G36,'Listes déroulantes'!G:L,6,FALSE) -> VAD | CL36: 000000000000 | CP36: 20228380159
A37: Enregistrement 30 | B37: non | C37: CRE NON ACTIF | D37: Refund | E37: 2022-12-19 | F37: MC | G37: CM_32_VAD | H37: 25.23 | I37: 0.15 | J37: 0 | K37: 0.05 | L37: 0.03 | M37: 0.03 | N37: Débit | O37: Entreprise | P37: FRA | Q37: CRE 30 | R37: 14 | S37: 000000 | T37: X0 | U37: 00000 | V37: 30004 | W37: XA | X37: TRI | Z37: 00 | AA37: 00 | AB37: 2 | AC37: 17028 | AD37: 92282 | AE37: 513264KHYODHNJ31380 | AF37: 20221218 | AG37: =VLOOKUP(G37,'Listes déroulantes'!G:I,3,FALSE) -> 60903200190001 | AH37: 0000000000002523 | AI37: 978 | AJ37: 2 | AK37: TI | AL37: I | AN37: AVO | AO37: 20221219 | BC37: =VLOOKUP(G37,'Listes déroulantes'!G:J,4,FALSE) -> 9556032 | BF37: 978 | BG37: 02 | BH37: 0000000000002518 | BK37: 191222 | BL37: 000000 | BN37: 0000000000002508 | BO37: 0000000000002523 | BR37: 20221219 | BS37: 000000000015 | BV37: 30004 | BW37: 4643216546131356461 | BX37: 20221219 | BY37: 000000 | BZ37: 00244400049020221219 | CA37: 000000005000+ | CB37: 000000003000+ | CC37: 000000003000+ | CD37: D | CE37: E | CF37: FRA | CG37: =VLOOKUP(G37,'Listes déroulantes'!G:K,5,FALSE) -> 4102032 | CH37: =VLOOKUP(G37,'Listes déroulantes'!G:L,6,FALSE) -> VAD | CL37: 000000000000 | CP37: 20228380160
A38: Enregistrement 31 | B38: oui | C38: 14000000X00000030004XATRI 000021702892282513264KHYODHNJ313812025101960992700180010 00000000000300229782TI I AVO20251020 9356040 978020000000000029962 201025000000 00000000000298420000000000030022 20251020000000000180 3000446432165461313564612025102000000000244400049020251020 000000060000+000000030000+000000030000+CEFRA4111190VAD 000000000000 20228380161 | D38: Refund | E38: 2025-10-20 | F38: MC | G38: CM_10 | H38: 300.22 | I38: 1.8 | J38: 0 | K38: 0.6 | L38: 0.3 | M38: 0.3 | N38: Crédit | O38: Entreprise | P38: FRA | Q38: CRE 31 | R38: 14 | S38: 000000 | T38: X0 | U38: 00000 | V38: 30004 | W38: XA | X38: TRI | Z38: 00 | AA38: 00 | AB38: 2 | AC38: 17028 | AD38: 92282 | AE38: 513264KHYODHNJ31381 | AF38: 20251019 | AG38: =VLOOKUP(G38,'Listes déroulantes'!G:I,3,FALSE) -> 60992700180010 | AH38: 0000000000030022 | AI38: 978 | AJ38: 2 | AK38: TI | AL38: I | AN38: AVO | AO38: 20251020 | BC38: =VLOOKUP(G38,'Listes déroulantes'!G:J,4,FALSE) -> 9356040 | BF38: 978 | BG38: 02 | BH38: 0000000000029962 | BK38: 201025 | BL38: 000000 | BN38: 0000000000029842 | BO38: 0000000000030022 | BR38: 20251020 | BS38: 000000000180 | BV38: 30004 | BW38: 4643216546131356461 | BX38: 20251020 | BY38: 000000 | BZ38: 00244400049020251020 | CA38: 000000060000+ | CB38: 000000030000+ | CC38: 000000030000+ | CD38: C | CE38: E | CF38: FRA | CG38: =VLOOKUP(G38,'Listes déroulantes'!G:K,5,FALSE) -> 4111190 | CH38: =VLOOKUP(G38,'Listes déroulantes'!G:L,6,FALSE) -> VAD | CL38: 000000000000 | CP38: 20228380161
A39: Enregistrement 32 | B39: oui | C39: 14000000Y00000030004XATRI 000021702892282513264KHYODHNJ313822025101960992700180010 00000000000002339782TI V AVO20251020 9356040 978020000000000000233 201025000000 00000000000002320000000000000233 20251020000000000001 3000446432165461313564612025102000000000244400049020251020 000000000000+000000000000+000000000000+CEFRA4111190VAD 000000000000 20228380162 | D39: Refund | E39: 2025-10-20 | F39: VISA | G39: CM_10 | H39: 2.33 | I39: 0.01 | J39: 0 | K39: 0 | L39: 0 | M39: 0 | N39: Crédit | O39: Entreprise | P39: FRA | Q39: CRE 32 | R39: 14 | S39: 000000 | T39: Y0 | U39: 00000 | V39: 30004 | W39: XA | X39: TRI | Z39: 00 | AA39: 00 | AB39: 2 | AC39: 17028 | AD39: 92282 | AE39: 513264KHYODHNJ31382 | AF39: 20251019 | AG39: =VLOOKUP(G39,'Listes déroulantes'!G:I,3,FALSE) -> 60992700180010 | AH39: 0000000000000233 | AI39: 978 | AJ39: 2 | AK39: TI | AL39: V | AN39: AVO | AO39: 20251020 | BC39: =VLOOKUP(G39,'Listes déroulantes'!G:J,4,FALSE) -> 9356040 | BF39: 978 | BG39: 02 | BH39: 0000000000000233 | BK39: 201025 | BL39: 000000 | BN39: 0000000000000232 | BO39: 0000000000000233 | BR39: 20251020 | BS39: 000000000001 | BV39: 30004 | BW39: 4643216546131356461 | BX39: 20251020 | BY39: 000000 | BZ39: 00244400049020251020 | CA39: 000000000000+ | CB39: 000000000000+ | CC39: 000000000000+ | CD39: C | CE39: E | CF39: FRA | CG39: =VLOOKUP(G39,'Listes déroulantes'!G:K,5,FALSE) -> 4111190 | CH39: =VLOOKUP(G39,'Listes déroulantes'!G:L,6,FALSE) -> VAD | CL39: 000000000000 | CP39: 20228380162
A40: Enregistrement 33 | B40: oui | C40: 14000000Y00000030004XATRI 000021702892282513264KHYODHNJ313832025101960992700180002 00000000000055009782TI V AVO20251020 9356032 978020000000000005489 201025000000 00000000000054670000000000005500 20251020000000000033 3000446432165461313564612025102000000000244400049020251020 000000011000+000000006000+000000006000+CEFRA4111182VAD 000000000000 20228380163 | D40: Refund | E40: 2025-10-20 | F40: VISA | G40: CM_02 | H40: 55 | I40: 0.33 | J40: 0 | K40: 0.11 | L40: 0.06 | M40: 0.06 | N40: Crédit | O40: Entreprise | P40: FRA | Q40: CRE 33 | R40: 14 | S40: 000000 | T40: Y0 | U40: 00000 | V40: 30004 | W40: XA | X40: TRI | Z40: 00 | AA40: 00 | AB40: 2 | AC40: 17028 | AD40: 92282 | AE40: 513264KHYODHNJ31383 | AF40: 20251019 | AG40: =VLOOKUP(G40,'Listes déroulantes'!G:I,3,FALSE) -> 60992700180002 | AH40: 0000000000005500 | AI40: 978 | AJ40: 2 | AK40: TI | AL40: V | AN40: AVO | AO40: 20251020 | BC40: =VLOOKUP(G40,'Listes déroulantes'!G:J,4,FALSE) -> 9356032 | BF40: 978 | BG40: 02 | BH40: 0000000000005489 | BK40: 201025 | BL40: 000000 | BN40: 0000000000005467 | BO40: 0000000000005500 | BR40: 20251020 | BS40: 000000000033 | BV40: 30004 | BW40: 4643216546131356461 | BX40: 20251020 | BY40: 000000 | BZ40: 00244400049020251020 | CA40: 000000011000+ | CB40: 000000006000+ | CC40: 000000006000+ | CD40: C | CE40: E | CF40: FRA | CG40: =VLOOKUP(G40,'Listes déroulantes'!G:K,5,FALSE) -> 4111182 | CH40: =VLOOKUP(G40,'Listes déroulantes'!G:L,6,FALSE) -> VAD | CL40: 000000000000 | CP40: 20228380163
A41: Enregistrement 34 | B41: non | C41: CRE NON ACTIF | D41: Refund | E41: 2022-12-19 | F41: VISA | G41: CM_36_PDPAG1 | H41: 45.25 | I41: 0 | J41: 0 | K41: 0.09 | L41: 0.05 | M41: 0.05 | N41: Crédit | O41: Entreprise | P41: FRA | Q41: CRE 34 | R41: 14 | S41: 000000 | T41: Y0 | U41: 00000 | V41: 30004 | W41: XA | X41: TRI | Z41: 00 | AA41: 00 | AB41: 2 | AC41: 17028 | AD41: 92282 | AE41: 513264KHYODHNJ31384 | AF41: 20221218 | AG41: =VLOOKUP(G41,'Listes déroulantes'!G:I,3,FALSE) -> 60903600190001 | AH41: 0000000000004525 | AI41: 978 | AJ41: 2 | AK41: TI | AL41: V | AN41: AVO | AO41: 20221219 | BC41: =VLOOKUP(G41,'Listes déroulantes'!G:J,4,FALSE) -> 9556036 | BF41: 978 | BG41: 02 | BH41: 0000000000004516 | BK41: 191222 | BL41: 000000 | BN41: 0000000000004525 | BO41: 0000000000004525 | BR41: 20221219 | BS41: 000000000000 | BV41: 30004 | BW41: 4643216546131356461 | BX41: 20221219 | BY41: 000000 | BZ41: 00244400049020221219 | CA41: 000000009000+ | CB41: 000000005000+ | CC41: 000000005000+ | CD41: C | CE41: E | CF41: FRA | CG41: =VLOOKUP(G41,'Listes déroulantes'!G:K,5,FALSE) -> 4102036 | CH41: =VLOOKUP(G41,'Listes déroulantes'!G:L,6,FALSE) -> PDP | CL41: 000000000000 | CP41: 20228380164
A42: Enregistrement 35 | B42: non | C42: CRE NON ACTIF | D42: Refund | E42: 2022-12-19 | F42: MC | G42: CM_36_PDPAG1 | H42: 152.56 | I42: 0 | J42: 0 | K42: 0.31 | L42: 0.15 | M42: 0.15 | N42: Crédit | O42: Entreprise | P42: FRA | Q42: CRE 35 | R42: 14 | S42: 000000 | T42: X0 | U42: 00000 | V42: 30004 | W42: XA | X42: TRI | Z42: 00 | AA42: 00 | AB42: 2 | AC42: 17028 | AD42: 92282 | AE42: 513264KHYODHNJ31385 | AF42: 20221218 | AG42: =VLOOKUP(G42,'Listes déroulantes'!G:I,3,FALSE) -> 60903600190001 | AH42: 0000000000015256 | AI42: 978 | AJ42: 2 | AK42: TI | AL42: I | AN42: AVO | AO42: 20221219 | BC42: =VLOOKUP(G42,'Listes déroulantes'!G:J,4,FALSE) -> 9556036 | BF42: 978 | BG42: 02 | BH42: 0000000000015225 | BK42: 191222 | BL42: 000000 | BN42: 0000000000015256 | BO42: 0000000000015256 | BR42: 20221219 | BS42: 000000000000 | BV42: 30004 | BW42: 4643216546131356461 | BX42: 20221219 | BY42: 000000 | BZ42: 00244400049020221219 | CA42: 000000031000+ | CB42: 000000015000+ | CC42: 000000015000+ | CD42: C | CE42: E | CF42: FRA | CG42: =VLOOKUP(G42,'Listes déroulantes'!G:K,5,FALSE) -> 4102036 | CH42: =VLOOKUP(G42,'Listes déroulantes'!G:L,6,FALSE) -> PDP | CL42: 000000000000 | CP42: 20228380165
A43: Enregistrement 36 | B43: non | C43: CRE NON ACTIF | D43: Refund | E43: 2022-12-19 | F43: VISA | G43: CM_37_VADAG1 | H43: 54 | I43: 0.32 | J43: 0 | K43: 0.11 | L43: 0.05 | M43: 0.05 | N43: Crédit | O43: Entreprise | P43: FRA | Q43: CRE 36 | R43: 14 | S43: 000000 | T43: Y0 | U43: 00000 | V43: 30004 | W43: XA | X43: TRI | Z43: 00 | AA43: 00 | AB43: 2 | AC43: 17028 | AD43: 92282 | AE43: 513264KHYODHNJ31386 | AF43: 20221218 | AG43: =VLOOKUP(G43,'Listes déroulantes'!G:I,3,FALSE) -> 60903700190001 | AH43: 0000000000005400 | AI43: 978 | AJ43: 2 | AK43: TI | AL43: V | AN43: AVO | AO43: 20221219 | BC43: =VLOOKUP(G43,'Listes déroulantes'!G:J,4,FALSE) -> 9556037 | BF43: 978 | BG43: 02 | BH43: 0000000000005389 | BK43: 191222 | BL43: 000000 | BN43: 0000000000005368 | BO43: 0000000000005400 | BR43: 20221219 | BS43: 000000000032 | BV43: 30004 | BW43: 4643216546131356461 | BX43: 20221219 | BY43: 000000 | BZ43: 00244400049020221219 | CA43: 000000011000+ | CB43: 000000005000+ | CC43: 000000005000+ | CD43: C | CE43: E | CF43: FRA | CG43: =VLOOKUP(G43,'Listes déroulantes'!G:K,5,FALSE) -> 4102037 | CH43: =VLOOKUP(G43,'Listes déroulantes'!G:L,6,FALSE) -> VAD | CL43: 000000000000 | CP43: 20228380166
A44: Enregistrement 37 | B44: non | C44: CRE NON ACTIF | D44: Refund | E44: 2022-12-19 | F44: MC | G44: CM_37_VADAG1 | H44: 17 | I44: 0 | J44: 0 | K44: 1 | L44: 0.39 | M44: 0 | N44: Crédit | O44: Entreprise | P44: FRA | Q44: CRE 37 | R44: 14 | S44: 000000 | T44: X0 | U44: 00000 | V44: 30004 | W44: XA | X44: TRI | Z44: 00 | AA44: 00 | AB44: 2 | AC44: 17028 | AD44: 92282 | AE44: 513264KHYODHNJ31387 | AF44: 20221218 | AG44: =VLOOKUP(G44,'Listes déroulantes'!G:I,3,FALSE) -> 60903700190001 | AH44: 0000000000001700 | AI44: 978 | AJ44: 2 | AK44: TI | AL44: I | AN44: AVO | AO44: 20221219 | BC44: =VLOOKUP(G44,'Listes déroulantes'!G:J,4,FALSE) -> 9556037 | BF44: 978 | BG44: 02 | BH44: 0000000000001600 | BK44: 191222 | BL44: 000000 | BN44: 0000000000001700 | BO44: 0000000000001700 | BR44: 20221219 | BS44: 000000000000 | BV44: 30004 | BW44: 4643216546131356461 | BX44: 20221219 | BY44: 000000 | BZ44: 00244400049020221219 | CA44: 000000100000+ | CB44: 000000039000+ | CC44: 000000000000+ | CD44: C | CE44: E | CF44: FRA | CG44: =VLOOKUP(G44,'Listes déroulantes'!G:K,5,FALSE) -> 4102037 | CH44: =VLOOKUP(G44,'Listes déroulantes'!G:L,6,FALSE) -> VAD | CL44: 000000000000 | CP44: 20228380167
A45: Enregistrement 38 | B45: non | C45: CRE NON ACTIF | D45: Refund | E45: 2022-12-19 | F45: VISA | G45: GUY DEMARLE VAD | H45: 18 | I45: 0 | J45: 0 | K45: 1 | L45: 0.39 | M45: 0 | N45: Crédit | O45: Entreprise | P45: FRA | Q45: CRE 38 | R45: 14 | S45: 000000 | T45: Y0 | U45: 00000 | V45: 30004 | W45: XA | X45: TRI | Z45: 00 | AA45: 00 | AB45: 2 | AC45: 17028 | AD45: 92282 | AE45: 513264KHYODHNJ31388 | AF45: 20221218 | AG45: =VLOOKUP(G45,'Listes déroulantes'!G:I,3,FALSE) -> 49769047900025 | AH45: 0000000000001800 | AI45: 978 | AJ45: 2 | AK45: TI | AL45: V | AN45: AVO | AO45: 20221219 | BC45: =VLOOKUP(G45,'Listes déroulantes'!G:J,4,FALSE) -> 9255005 | BF45: 978 | BG45: 02 | BH45: 0000000000001700 | BK45: 191222 | BL45: 000000 | BN45: 0000000000001800 | BO45: 0000000000001800 | BR45: 20221219 | BS45: 000000000000 | BV45: 30004 | BW45: 4643216546131356461 | BX45: 20221219 | BY45: 000000 | BZ45: 00244400049020221219 | CA45: 000000100000+ | CB45: 000000039000+ | CC45: 000000000000+ | CD45: C | CE45: E | CF45: FRA | CG45: =VLOOKUP(G45,'Listes déroulantes'!G:K,5,FALSE) -> 4319669 | CH45: =VLOOKUP(G45,'Listes déroulantes'!G:L,6,FALSE) -> VAD | CL45: 000000000000 | CP45: 20228380168
A46: Enregistrement 39 | B46: non | C46: CRE NON ACTIF | D46: Refund | E46: 2022-12-19 | F46: VISA | G46: SAS MONEXT PDP | H46: 19 | I46: 0 | J46: 0 | K46: 1 | L46: 0.39 | M46: 0 | N46: Crédit | O46: Entreprise | P46: FRA | Q46: CRE 39 | R46: 14 | S46: 000000 | T46: Y0 | U46: 00000 | V46: 30004 | W46: XA | X46: TRI | Z46: 00 | AA46: 00 | AB46: 2 | AC46: 17028 | AD46: 92282 | AE46: 513264KHYODHNJ31389 | AF46: 20221218 | AG46: =VLOOKUP(G46,'Listes déroulantes'!G:I,3,FALSE) -> 50318500100032 | AH46: 0000000000001900 | AI46: 978 | AJ46: 2 | AK46: TI | AL46: V | AN46: AVO | AO46: 20221219 | BC46: =VLOOKUP(G46,'Listes déroulantes'!G:J,4,FALSE) -> 9255001 | BF46: 978 | BG46: 02 | BH46: 0000000000001800 | BK46: 191222 | BL46: 000000 | BN46: 0000000000001900 | BO46: 0000000000001900 | BR46: 20221219 | BS46: 000000000000 | BV46: 30004 | BW46: 4643216546131356461 | BX46: 20221219 | BY46: 000000 | BZ46: 00244400049020221219 | CA46: 000000100000+ | CB46: 000000039000+ | CC46: 000000000000+ | CD46: C | CE46: E | CF46: FRA | CG46: =VLOOKUP(G46,'Listes déroulantes'!G:K,5,FALSE) -> 4319211 | CH46: =VLOOKUP(G46,'Listes déroulantes'!G:L,6,FALSE) -> PDP | CL46: 000000000000 | CP46: 20228380169
A47: Enregistrement 40 | B47: non | C47: CRE NON ACTIF | D47: Refund | E47: 2022-12-19 | F47: VISA | G47: SAS MONEXT PDP | H47: 269 | I47: 0 | J47: 0 | K47: 1 | L47: 0.39 | M47: 0 | N47: Crédit | O47: Entreprise | P47: FRA | Q47: CRE 40 | R47: 14 | S47: 000000 | T47: Y0 | U47: 00000 | V47: 30004 | W47: XA | X47: TRI | Z47: 00 | AA47: 00 | AB47: 2 | AC47: 17028 | AD47: 92282 | AE47: 513264KHYODHNJ31390 | AF47: 20221218 | AG47: =VLOOKUP(G47,'Listes déroulantes'!G:I,3,FALSE) -> 50318500100032 | AH47: 0000000000026900 | AI47: 978 | AJ47: 2 | AK47: TI | AL47: V | AN47: AVO | AO47: 20221219 | BC47: =VLOOKUP(G47,'Listes déroulantes'!G:J,4,FALSE) -> 9255001 | BF47: 978 | BG47: 02 | BH47: 0000000000026800 | BK47: 191222 | BL47: 000000 | BN47: 0000000000026900 | BO47: 0000000000026900 | BR47: 20221219 | BS47: 000000000000 | BV47: 30004 | BW47: 4643216546131356461 | BX47: 20221219 | BY47: 000000 | BZ47: 00244400049020221219 | CA47: 000000100000+ | CB47: 000000039000+ | CC47: 000000000000+ | CD47: C | CE47: E | CF47: FRA | CG47: =VLOOKUP(G47,'Listes déroulantes'!G:K,5,FALSE) -> 4319211 | CH47: =VLOOKUP(G47,'Listes déroulantes'!G:L,6,FALSE) -> PDP | CL47: 000000000000 | CP47: 20228380170
A48: Enregistrement 41 | B48: non | C48: CRE NON ACTIF | D48: Refund | E48: 2022-12-19 | F48: VISA | G48: SAS MONEXT PDP | H48: 270 | I48: 0 | J48: 0 | K48: 1 | L48: 0.39 | M48: 0 | N48: Crédit | O48: Entreprise | P48: FRA | Q48: CRE 41 | R48: 14 | S48: 000000 | T48: Y0 | U48: 00000 | V48: 30004 | W48: XA | X48: TRI | Z48: 00 | AA48: 00 | AB48: 2 | AC48: 17028 | AD48: 92282 | AE48: 513264KHYODHNJ31391 | AF48: 20221218 | AG48: =VLOOKUP(G48,'Listes déroulantes'!G:I,3,FALSE) -> 50318500100032 | AH48: 0000000000027000 | AI48: 978 | AJ48: 2 | AK48: TI | AL48: V | AN48: AVO | AO48: 20221219 | BC48: =VLOOKUP(G48,'Listes déroulantes'!G:J,4,FALSE) -> 9255001 | BF48: 978 | BG48: 02 | BH48: 0000000000026900 | BK48: 191222 | BL48: 000000 | BN48: 0000000000027000 | BO48: 0000000000027000 | BR48: 20221219 | BS48: 000000000000 | BV48: 30004 | BW48: 4643216546131356461 | BX48: 20221219 | BY48: 000000 | BZ48: 00244400049020221219 | CA48: 000000100000+ | CB48: 000000039000+ | CC48: 000000000000+ | CD48: C | CE48: E | CF48: FRA | CG48: =VLOOKUP(G48,'Listes déroulantes'!G:K,5,FALSE) -> 4319211 | CH48: =VLOOKUP(G48,'Listes déroulantes'!G:L,6,FALSE) -> PDP | CL48: 000000000000 | CP48: 20228380171
AM49: =LEN(AM8) -> 23 | BJ49: =LEN(BJ47) -> 24 | CI49: =LEN(CI8) -> 100 | CJ49: =LEN(CJ8) -> 12 | CK49: =LEN(CK8) -> 12
AM50: =LEN(AM9) -> 23 | CI50: =LEN(CI9) -> 100 | CJ50: 12 | CK50: 12
AM51: 23 | CI51: 100 | CJ51: 12 | CK51: 12
AM52: 23 | BZ52: =LEN(BZ8) -> 25 | CI52: 100 | CJ52: 12 | CK52: 12
AM53: 23 | CI53: 100 | CJ53: 12 | CK53: 12
AM54: 23 | CI54: 100 | CJ54: 12 | CK54: 12
AM55: 23 | CI55: 100 | CJ55: 12 | CK55: 12
AM56: 23 | CI56: 100 | CJ56: 12 | CK56: 12
CI57: 100 | CJ57: 12 | CK57: 12
CI58: 100 | CJ58: 12 | CK58: 12
CI59: 100 | CJ59: 12 | CK59: 12
CI60: 100 | CJ60: 12 | CK60: 12
CI61: 100 | CJ61: 12 | CK61: 12
CI62: 100 | CJ62: 12 | CK62: 12
CI63: 100 | CJ63: 12 | CK63: 12
CI64: 100 | CJ64: 12 | CK64: 12
CI65: 100 | CJ65: 12 | CK65: 12
CI66: =LEN(CI25) -> 100 | CJ66: 12 | CK66: 12
CI67: 100 | CJ67: 12 | CK67: 12
CI68: 100 | CJ68: 12 | CK68: 12
CI69: 100 | CJ69: 12 | CK69: 12
CI70: 100 | CJ70: 12 | CK70: 12
CI71: 100 | CJ71: 12 | CK71: 12
CI72: 100 | CJ72: 12 | CK72: 12
CI73: 100 | CJ73: 12 | CK73: 12
CI74: 100 | CJ74: 12 | CK74: 12
CI75: 100 | CJ75: 12 | CK75: 12
CI76: 100 | CJ76: 12 | CK76: 12
CI77: 100 | CJ77: 12 | CK77: 12
CI78: 100 | CJ78: 12 | CK78: 12
CI79: 100 | CJ79: 12 | CK79: 12
CI80: 100 | CJ80: 12 | CK80: 12
CI81: =LEN(CI40) -> 100 | CJ81: 12 | CK81: 12
CI82: 100 | CJ82: 12 | CK82: 12
CI83: 100 | CJ83: 12 | CK83: 12
CI84: 100 | CJ84: 12 | CK84: 12
CI85: 100 | CJ85: 12 | CK85: 12
CI86: 100 | CJ86: 12 | CK86: 12
CI87: 100 | CJ87: 12 | CK87: 12
CI88: 100 | CJ88: 12 | CK88: 12
CI89: 100 | CJ89: 12 | CK89: 12
CI90: 3 | CJ90: 2 | CK90: 2
CI91: 3 | CJ91: 2 | CK91: 2
CI92: 3 | CJ92: 2 | CK92: 2
CI93: 3 | CJ93: 2 | CK93: 2
CI94: 3 | CJ94: 2 | CK94: 2
CI95: 3 | CJ95: 2 | CK95: 2
CI96: 3 | CJ96: 2 | CK96: 2
CI97: 3 | CJ97: 2 | CK97: 2
CI98: 3 | CJ98: 2 | CK98: 2
CI99: 3 | CJ99: 2 | CK99: 2
CI100: 3 | CJ100: 2 | CK100: 2
CI101: =LEN(CI60) -> 3 | CJ101: 2 | CK101: 2
CI102: 3 | CJ102: 2 | CK102: 2
CI103: 3 | CJ103: 2 | CK103: 2
CI104: 3 | CJ104: 2 | CK104: 2
CI105: 3 | CJ105: 2 | CK105: 2
CI106: 3 | CJ106: 2 | CK106: 2
CI107: 3 | CJ107: 2 | CK107: 2
CI108: 3 | CJ108: 2 | CK108: 2
CI109: 3 | CJ109: 2 | CK109: 2
CI110: 3 | CJ110: 2 | CK110: 2
CI111: 3 | CJ111: 2 | CK111: 2
CI112: 3 | CJ112: 2 | CK112: 2
CI113: 3 | CJ113: 2 | CK113: 2
CI114: 3 | CJ114: 2 | CK114: 2
CI115: 3 | CJ115: 2 | CK115: 2
CI116: 3 | CJ116: 2 | CK116: 2
CI117: 3 | CJ117: 2 | CK117: 2
CI118: 3 | CJ118: 2 | CK118: 2
CI119: 3 | CJ119: 2 | CK119: 2
CI120: 3 | CJ120: 2 | CK120: 2
CI121: =LEN(CI80) -> 3 | CJ121: 2 | CK121: 2
CI122: 3 | CJ122: 2 | CK122: 2
CI123: 3 | CJ123: 2 | CK123: 2
CI124: 3 | CJ124: 2 | CK124: 2
CI125: 3 | CJ125: 2 | CK125: 2
CI126: 3 | CJ126: 2 | CK126: 2
CI127: 3 | CJ127: 2 | CK127: 2
CI128: 3 | CJ128: 2 | CK128: 2
CI129: 3 | CJ129: 2 | CK129: 2
CI130: 3 | CJ130: 2 | CK130: 2
CI131: 1 | CJ131: 1 | CK131: 1
CI132: 1 | CJ132: 1 | CK132: 1
CI133: 1 | CJ133: 1 | CK133: 1
CI134: 1 | CJ134: 1 | CK134: 1
CI135: 1 | CJ135: 1 | CK135: 1
CI136: 1 | CJ136: 1 | CK136: 1
CI137: 1 | CJ137: 1 | CK137: 1
CI138: 1 | CJ138: 1 | CK138: 1

Sheet Création CRE IMP
A1: CRE CONCATENE (données de sortie) | E1: DONNEES PARAMETRABLES | M1: CRE DECOUPE (détails intermédiaires)
L2: Début | M2: 1 | N2: 3 | O2: 9 | P2: 11 | Q2: 16 | R2: 21 | S2: 23 | T2: 26 | U2: 30 | V2: 32 | W2: 34 | X2: 35 | Y2: 40 | Z2: 45 | AA2: 64 | AB2: 72 | AC2: 87 | AD2: 103 | AE2: 106 | AF2: 107 | AG2: 110 | AH2: 111 | AI2: 134 | AJ2: 137 | AK2: 145 | AL2: 165 | AM2: 167 | AN2: 170 | AO2: 190 | AP2: 202 | AQ2: 206 | AR2: 207 | AS2: 212 | AT2: 217 | AU2: 228 | AV2: 230 | AW2: 233 | AX2: 239 | AY2: 249 | AZ2: 252 | BA2: 286 | BB2: 289 | BC2: 291 | BD2: 307 | BE2: 328 | BF2: 352 | BG2: 358 | BH2: 364 | BI2: 369 | BJ2: 385 | BK2: 401 | BL2: 402 | BM2: 406 | BN2: 414 | BO2: 426 | BP2: 438 | BQ2: 439 | BR2: 444 | BS2: 463 | BT2: 471 | BU2: 477 | BV2: 502 | BW2: 670 | BX2: 682 | BY2: 694 | BZ2: 698 | CA2: 711 | CB2: 761 | CC2: 782
L3: Lg | M3: 2 | N3: 6 | O3: 2 | P3: 5 | Q3: 5 | R3: 2 | S3: 3 | T3: 4 | U3: 2 | V3: 2 | W3: 1 | X3: 5 | Y3: 5 | Z3: 19 | AA3: 8 | AB3: 15 | AC3: 16 | AD3: 3 | AE3: 1 | AF3: 3 | AG3: 1 | AH3: 23 | AI3: 3 | AJ3: 8 | AK3: 20 | AL3: 2 | AM3: 3 | AN3: 20 | AO3: 12 | AP3: 4 | AQ3: 1 | AR3: 5 | AS3: 5 | AT3: 11 | AU3: 2 | AV3: 3 | AW3: 6 | AX3: 10 | AY3: 3 | AZ3: 34 | BA3: 3 | BB3: 2 | BC3: 16 | BD3: 21 | BE3: 24 | BF3: 6 | BG3: 6 | BH3: 5 | BI3: 16 | BJ3: 16 | BK3: 1 | BL3: 4 | BM3: 8 | BN3: 12 | BO3: 12 | BP3: 1 | BQ3: 5 | BR3: 19 | BS3: 8 | BT3: 6 | BU3: 25 | BV3: 168 | BW3: 12 | BX3: 12 | BY3: 4 | BZ3: 13 | CA3: 50 | CB3: 21 | CC3: 220
L4: Specification | M4: ‘14’ | N4: 0 | O4: Domestique : « Z1 » : pour impayés reçus MasterCard : « X5 » : pour impayés reçus Visa : « X4 » : pour impayés reçus | P4: Code banque de domiciliation du porteur | Q4: Code banque de domiciliation du commerçant | R4: ‘XA’ | S4: CR1 : si code opération « 500», « 501», « 502», « 540» CRA : AOCT impayé reçu si code «401», «403» | T4: Spaces | U4: Si CDOPEI (table impayé) = 'FAC' ou 'CAS' ou 'AVO' alors ‘09’ Si CDOPEI (table impayé) = 'DAB' è ‘29’ | V4: Si CDOPEI (table impayé) = 'FAC' ou 'CAS' ou 'AVO' alors ‘03’ Si CDOPEI (table impayé) = 'DAB' è ‘23’ | W4: 2 : commerçant | X4: CDETB9 de l’impayé | Y4: CDGUICH de l’impayé | Z4: Numéro de carte porteur de l'impayé : si généré en 16 caractères alors paddé à droite avec les espaces PAN est tokénisé | AA4: Date de vente (SSAAMMJJ) pour une transaction de litige Date de remise pour une remise de paiement ou de retrait | AB4: SIRET de l’impayé | AC4: Montant brut en centimes correspondant à l’opération de : '- CR1 : Impayé (ou AOCT impayé) du montant brut de l’impayé partiel ou total reçu '- RP1 : Représentation ou AOCT de représentation montant brut de la représentation (correspondant au montant total ou partiel de l’impayé reçu) '- IC1 : Imputation commerçant è montant brut de l’impayé partiel ou total reçu '- PPT : Perte et profit du montant brut de l’impayé partiel ou total reçu '- AI1 : Annulation imputation commerçant du montant brut de l’impayé partiel ou total reçu | AD4: "978" | AE4: Nombre de décimales du montant brut | AF4: « IM» pour impayé « AIM » pour annulation impayé | AG4: Code réseau de l'impayé | AH4: NUARN de l’impayé | AI4: FAC si SR04 = 500 ou 403 AVO si SR04 = 502 ou 401 | AJ4: Selon le réseau au format SSAAMMJJ | AK4: LILOCA de l’impayé | AL4: CDDEPT de l’impayé | AM4: CDPAYS de l’impayé | AN4: RAISOA de l’impayé | AO4: NURFI2 de l’impayé | AP4: Motif de l’impayé dans la codification du format de compensation reçu | AQ4: 1 : first chargeback 2 : second chargeback | AR4: Code banque issu du référentiel commerçant par rapport au SIRET | AS4: Code siège du RIB issu du référentiel commerçant par rapport au SIRET | AT4: Numéro de compte du RIB issu du référentiel commerçant par rapport au SIRET | AU4: Clé RIB calculée (YD04-CLRIBA) en se servant des informations issues du référentiel commerçant par rapport au SIRET | AV4: Numéro de terminal pour une remise commerçant | AW4: spaces | AX4: NUMCO de l'impayé | AY4: Code ICA de l’impayé reçu | AZ4: A blanc pour l’instant | BA4: Devise du montant compensé de l’impayé reçu en code ISO 3166-1 | BB4: NB décimale du montant compensé de l’impayé reçu | BC4: Montant compensé de l’impayé reçu | BD4: ex : LMA-16638-I-1911-0009 | BF4: Format : JJMMAA | BG4: Donnée uniquement pour les remises commerçant ou retrait | BH4: Donnée uniquement pour les remises commerçant ou retrait | BI4: Donnée uniquement pour les remises commerçant ou retrait | BJ4: Montant brut en euro | BK4: Code usage | BL4: Indique si le litige est géré dans LMA ou dans un outil réseau (VROL pour Visa) « LMA » si géré dans LMA « RSX » si géré dans les outils Réseaux (VROL pour Visa) | BM4: DTCERE de la transaction mis sous le format ssaammjj (non rempli pour imp) | BN4: Pas de comm commerçant | BO4: Différence entre (montant brut en euro et montant compensé) sur 2 décimales | BP4: spaces | BQ4: Code établissement gestionnaire de l’acquéreur | BR4: numéro de carte porteur : si généré du 16 caractères, complété par des blancs | BS4: Date d’enregistrement de la transaction dans les tables au format SSAAMMJJ | BT4: Numéro attribué à l’impayé : ce numéro est crée par LMA lors de la prise en compte de l’impayé | BU4: Identifiant de remise issue de l’header CB2C | BW4: Filler | BX4: Montant de la commission agent | BY4: Filler | BZ4: Filler | CA4: Filler | CB4: Filler | CC4: Filler
L5: Libellé | M5: Code type d’enregistrement | N5: Numéro séquentiel | O5: Code opération | P5: Code banque émetteur | Q5: Code banque destinataire | R5: Code application échange | S5: Code sous application | U5: Code origine flux | V5: Code destination flux | W5: Code nature de flux comptable | X5: Code établissement | Y5: Guichet accepteur | Z5: Numéro de carte | AA5: Date de vente | AB5: SIRET | AC5: Montant brut | AD5: Devise de réconciliation nationale liée au montant brut | AE5: Nombre de décimales du montant brut | AF5: Type opération | AG5: Code réseau | AH5: Référence archivage | AI5: Code opération interne | AJ5: Date de règlement interbancaire | AK5: Localisation | AL5: Code département | AM5: Code pays | AN5: Raison sociale | AO5: Référence impayé reçue | AP5: Motif impayé | AQ5: Code cycle impayé | AR5: Code établissement du RIB | AS5: Code Guichet du RIB | AT5: Numéro de compte | AU5: Clé RIB | AV5: Numéro de terminal | AW5: Filler | AX5: Numéro de contrat accepteur | AY5: Code ICA | AZ5: IBAN | BA5: Devise du montant compensé | BB5: nombre décimal mt compensé | BC5: Montant compensé | BD5: Référence externe | BE5: Nom du commerçant | BF5: Date de Valeur | BG5: Nombre de factures | BH5: Numéro de remise | BI5: Montant net | BJ5: Montant brut en euro | BK5: Code usage | BL5: Mode de Traitement du Litige | BM5: Date envoi en compensation | BN5: Montant commission commerçant | BO5: Montant commission Interchange | BP5: Type de porteur | BQ5: code établissement | BR5: Numéro de carte | BS5: Date archivage | BT5: Numéro séquentiel | BU5: Identifiant de Remise | BV5: FILLER | BW5: FILLER | BX5: MTCOAG | BY5: FILLER | BZ5: FILLER | CA5: FILLER | CB5: FILLER | CC5: FILLER
A6: Mode d'alimentation de ce fichier | C6: Généré automatiquement, nb de ligne voulu à copier coller dans Notepad) | D6: Fixe | E6: Variable à saisir JJ/MM/AAAA | F6: Variable liste déroulante | G6: Variable liste déroulante | H6: Variable à saisir 0,00 | I6: Variable à saisir 0,00 | J6: Variable à saisir 0,00 | K6: Variable à saisir | L6: Mode d'alimentation de ce fichier | M6: FIXE | N6: FIXE | O6: FIXE | P6: FIXE | Q6: FIXE | R6: FIXE | S6: FIXE | T6: FIXE | U6: FIXE | V6: FIXE | W6: FIXE | X6: FIXE | Y6: FIXE | Z6: FIXE | AA6: DEDUITE | AB6: DEDUITE | AC6: DEDUITE | AD6: FIXE | AE6: FIXE | AF6: FIXE | AG6: FIXE | AH6: FIXE | AI6: FIXE | AJ6: DEDUITE | AK6: FIXE | AL6: FIXE | AM6: FIXE | AN6: DEDUITE | AO6: FIXE | AP6: FIXE | AQ6: FIXE | AR6: FIXE | AS6: FIXE | AT6: DEDUITE | AU6: DEDUITE | AV6: FIXE | AW6: FIXE | AX6: DEDUITE | AY6: FIXE | AZ6: FIXE | BA6: FIXE | BB6: FIXE | BC6: DEDUITE | BD6: FIXE | BE6: DEDUITE | BF6: DEDUITE | BG6: FIXE | BH6: FIXE | BI6: DEDUITE | BJ6: DEDUITE | BK6: FIXE | BL6: FIXE | BM6: DEDUITE | BN6: DEDUITE | BO6: DEDUITE | BP6: FIXE | BQ6: FIXE | BR6: DEDUITE | BS6: FIXE | BT6: FIXE | BU6: FIXE | BV6: FIXE | BW6: FIXE | BX6: FIXE | BY6: FIXE | BZ6: FIXE | CA6: FIXE | CB6: FIXE | CC6: FIXE
A7: CRE concerné | B7: CRE ACTIF | C7: CRE concaténé | D7: Opération (CDOPEI) | E7: Date de valeur de l'impayé (DTVAL) | F7: Réseau (IDSCPT) | G7: Commerçant | H7: Montant Brut impayé | I7: Montant Frais rejet | J7: Montant interchange (non facturée au client) (MTINTVMC) | K7: Code motif impayé | L7: Code | M7: CEENR | N7: NUSQC | O7: CEOPE | P7: CEEMI | Q7: CEDES | R7: CEAPC | S7: CEMAP | T7: FILLER | U7: CECFTO | V7: CECFTD | W7: CDNAFL | X7: CDETB9 | Y7: CDGUICH | Z7: NUISOA | AA7: DTVEN | AB7: ZSIRET | AC7: MTBRUT | AD7: CDDEV | AE7: NBDEC | AF7: TYPOPE | AG7: IDSPCT | AH7: NUARN | AI7: CDOPEI | AJ7: DTREGLI | AK7: LILOCA | AL7: CDDEPT | AM7: CDPAYS | AN7: RAISOA | AO7: NURFI2 | AP7: COANO | AQ7: COCYIM | AR7: CEETRX | AS7: CEGUIX | AT7: NUCTEA | AU7: CLRIBX | AV7: NUTP | AW7: Filler | AX7: NUMCO | AY7: CDICA | AZ7: CDIBAN | BA7: CDDEVC | BB7: NBDECC | BC7: MTCOMP | BD7: REFEXT | BE7: NMCM | BF7: DTVL | BG7: NBFCT | BH7: NUREM | BI7: MTNT | BJ7: MTBREUR | BK7: DSPUSG | BL7: MDTRLT | BM7: DTCOMP | BN7: MTTTCITR | BO7: MTCOMINT | BP7: TYPO | BQ7: CDETB9 | BR7: NUISOA | BS7: DTARCH | BT7: NUSDI | BU7: IDREM | BV7: FILLER1 | BW7: Frais IMP | BX7: MTCOAG | BY7: PAYMETHOD | BZ7: FRAISACQ | CA7: NUMCO2LONG | CB7: NEW | CC7: FILLER
A8: Enregistrement 1 | B8: oui | C8: =IF(B8="OUI",CONCATENATE(M8,N8,O8,P8,Q8,R8,S8,T8,U8,V8,W8,X8,Y8,Z8,AA8,AB8,AC8,AD8,AE8,AF8,AG8,AH8,AI8,AJ8,AK8,AL8,AM8,AN8,AO8,AP8,AQ8,AR8,AS8,AT8,AU8,AV8,AW8,AX8,AY8,AZ8,BA8,BB8,BC8,BD8,BE8,BF8,BG8,BH8,BI8,BJ8,BK8,BL8,BM8,BN8,BO8,BP8,BQ8,BR8,BS8,BT8,BU8,BV8,BW8,BX8),"CRE NON ACTIF") -> 14000000X41702817028XACR1 090321702892282513264KHYODHNJ313112022121860903400190001 00000000000020509782IM V af2342567891FAC2022121934 RUE DU TEST 13FRACM_34_AG1 4286489705710073117028922822829306023493001 9556034 EUR020000000000002050LMA-17028-I-2105-0003CM_34 191222000000 00000000000020500000000000002050 000000000000000000000000 00000464321654613135646120221219000003002252 000000000000000000000000 | D8: PaymentChargeback | E8: 2022-12-19 | F8: VISA | G8: CM_34_AG1 | H8: 20.5 | I8: 0 | J8: 0 | K8: 0073 | L8: CRE 1 | M8: 14 | N8: 000000 | O8: =IF(F8="CB","Z1",IF(F8="MC","X5","X4")) -> X4 | P8: 17028 | Q8: 17028 | R8: XA | S8: CR1 | U8: 09 | V8: 03 | W8: 2 | X8: 17028 | Y8: 92282 | Z8: 513264KHYODHNJ31311 | AA8: =TEXT(E8-1,"aaaammjj") -> 20221218 | AB8: =VLOOKUP(G8,'Listes déroulantes'!G:I,3,FALSE) -> 60903400190001 | AC8: =RIGHT(CONCATENATE("0000000000000000",H8*100),16) -> 0000000000002050 | AD8: 978 | AE8: 2 | AF8: IM | AG8: =IF(F8="CB","S",IF(F8="MC","I","V")) -> V | AH8: af2342567891 | AI8: FAC | AJ8: =TEXT(E8,"aaaammjj") -> 20221219 | AK8: =VLOOKUP(G8,'Listes déroulantes'!G:O,9,FALSE) -> 34 RUE DU TEST | AL8: 13 | AM8: FRA | AN8: =VLOOKUP(G8,'Listes déroulantes'!G:H,2,FALSE) -> CM_34_AG1 | AO8: 428648970571 | AP8: =K8 -> 0073 | AQ8: 1 | AR8: 17028 | AS8: 92282 | AT8: =VLOOKUP(G8,'Listes déroulantes'!G:N,8,FALSE) -> 28293060234 | AU8: 93 | AV8: 001 | AX8: =VLOOKUP(G8,'Listes déroulantes'!G:J,4,FALSE) -> 9556034 | BA8: EUR | BB8: 02 | BC8: =RIGHT(CONCATENATE("0000000000000000",(H8-J8)*100),16) -> 0000000000002050 | BD8: LMA-17028-I-2105-0003 | BE8: =VLOOKUP(G8,'Listes déroulantes'!G:M,7,FALSE) -> CM_34 | BF8: =TEXT(E8,"jjmmaa") -> 191222 | BG8: 000000 | BI8: =RIGHT(CONCATENATE("0000000000000000",H8*100),16) -> 0000000000002050 | BJ8: =RIGHT(CONCATENATE("0000000000000000",H8*100),16) -> 0000000000002050 | BN8: 000000000000 | BO8: =RIGHT(CONCATENATE("0000000000000000",J8*100),12) -> 000000000000 | BQ8: 00000 | BR8: 4643216546131356461 | BS8: =TEXT(E8,"aaaammjj") -> 20221219 | BT8: 000003 | BU8: =IF(F8="CB",(CONCATENATE("50003056125",TEXT(E8-1,"aammjj"),"0300 ")),"002252 ") -> 002252 | BW8: =RIGHT(CONCATENATE("0000000000000000",I8*100),12) -> 000000000000 | BX8: 000000000000 | CB8: 20228380131
A9: Enregistrement 2 | B9: oui | C9: =IF(B9="OUI",CONCATENATE(M9,N9,O9,P9,Q9,R9,S9,T9,U9,V9,W9,X9,Y9,Z9,AA9,AB9,AC9,AD9,AE9,AF9,AG9,AH9,AI9,AJ9,AK9,AL9,AM9,AN9,AO9,AP9,AQ9,AR9,AS9,AT9,AU9,AV9,AW9,AX9,AY9,AZ9,BA9,BB9,BC9,BD9,BE9,BF9,BG9,BH9,BI9,BJ9,BK9,BL9,BM9,BN9,BO9,BP9,BQ9,BR9,BS9,BT9,BU9,BV9,BW9,BX9),"CRE NON ACTIF") -> 14000000X51702817028XACR1 090321702892282513264KHYODHNJ313122022121860903400190001 00000000000054009782IM I af2342567892FAC2022121934 RUE DU TEST 13FRACM_34_AG1 4286489705720073117028922822829306023493001 9556034 EUR020000000000005400LMA-17028-I-2105-0004CM_34 191222000000 00000000000054000000000000005400 000000000000000000000000 00000464321654613135646120221219000004002252 000000000000000000000000 | D9: PaymentChargeback | E9: 2022-12-19 | F9: MC | G9: CM_34_AG1 | H9: 54 | I9: 0 | J9: 0 | K9: 0073 | L9: CRE 2 | M9: 14 | N9: 000000 | O9: =IF(F9="CB","Z1",IF(F9="MC","X5","X4")) -> X5 | P9: 17028 | Q9: 17028 | R9: XA | S9: CR1 | U9: 09 | V9: 03 | W9: 2 | X9: 17028 | Y9: 92282 | Z9: 513264KHYODHNJ31312 | AA9: =TEXT(E9-1,"aaaammjj") -> 20221218 | AB9: =VLOOKUP(G9,'Listes déroulantes'!G:I,3,FALSE) -> 60903400190001 | AC9: 0000000000005400 | AD9: 978 | AE9: 2 | AF9: IM | AG9: =IF(F9="CB","S",IF(F9="MC","I","V")) -> I | AH9: af2342567892 | AI9: FAC | AJ9: =TEXT(E9,"aaaammjj") -> 20221219 | AK9: =VLOOKUP(G9,'Listes déroulantes'!G:O,9,FALSE) -> 34 RUE DU TEST | AL9: 13 | AM9: FRA | AN9: =VLOOKUP(G9,'Listes déroulantes'!G:H,2,FALSE) -> CM_34_AG1 | AO9: 428648970572 | AP9: =K9 -> 0073 | AQ9: 1 | AR9: 17028 | AS9: 92282 | AT9: =VLOOKUP(G9,'Listes déroulantes'!G:N,8,FALSE) -> 28293060234 | AU9: 93 | AV9: 001 | AX9: =VLOOKUP(G9,'Listes déroulantes'!G:J,4,FALSE) -> 9556034 | BA9: EUR | BB9: 02 | BC9: 0000000000005400 | BD9: LMA-17028-I-2105-0004 | BE9: =VLOOKUP(G9,'Listes déroulantes'!G:M,7,FALSE) -> CM_34 | BF9: =TEXT(E9,"jjmmaa") -> 191222 | BG9: 000000 | BI9: =RIGHT(CONCATENATE("0000000000000000",H9*100),16) -> 0000000000005400 | BJ9: 0000000000005400 | BN9: 000000000000 | BO9: 000000000000 | BQ9: 00000 | BR9: 4643216546131356461 | BS9: =TEXT(E9,"aaaammjj") -> 20221219 | BT9: 000004 | BU9: 002252 | BW9: =RIGHT(CONCATENATE("0000000000000000",I9*100),12) -> 000000000000 | BX9: 000000000000 | CB9: 20228380132
A10: Enregistrement 3 | B10: oui | C10: =IF(B10="OUI",CONCATENATE(M10,N10,O10,P10,Q10,R10,S10,T10,U10,V10,W10,X10,Y10,Z10,AA10,AB10,AC10,AD10,AE10,AF10,AG10,AH10,AI10,AJ10,AK10,AL10,AM10,AN10,AO10,AP10,AQ10,AR10,AS10,AT10,AU10,AV10,AW10,AX10,AY10,AZ10,BA10,BB10,BC10,BD10,BE10,BF10,BG10,BH10,BI10,BJ10,BK10,BL10,BM10,BN10,BO10,BP10,BQ10,BR10,BS10,BT10,BU10,BV10,BW10,BX10),"CRE NON ACTIF") -> 14000000Z11702817028XACR1 090321702892282513264KHYODHNJ313132022121860903400190001 00000000000101009782IM S af2342567893FAC2022121934 RUE DU TEST 13FRACM_34_AG1 4286489705734853117028922822829306023493001 9556034 EUR020000000000010100LMA-17028-I-2105-0005CM_34 191222000000 00000000000101000000000000010100 000000000000000000000000 00000464321654613135646120221219000005500030561252212180300 000000000000000000000000 | D10: PaymentChargeback | E10: 2022-12-19 | F10: CB | G10: CM_34_AG1 | H10: 101 | I10: 0 | J10: 0 | K10: 4853 | L10: CRE 3 | M10: 14 | N10: 000000 | O10: Z1 | P10: 17028 | Q10: 17028 | R10: XA | S10: CR1 | U10: 09 | V10: 03 | W10: 2 | X10: 17028 | Y10: 92282 | Z10: 513264KHYODHNJ31313 | AA10: 20221218 | AB10: =VLOOKUP(G10,'Listes déroulantes'!G:I,3,FALSE) -> 60903400190001 | AC10: 0000000000010100 | AD10: 978 | AE10: 2 | AF10: IM | AG10: S | AH10: af2342567893 | AI10: FAC | AJ10: 20221219 | AK10: =VLOOKUP(G10,'Listes déroulantes'!G:O,9,FALSE) -> 34 RUE DU TEST | AL10: 13 | AM10: FRA | AN10: =VLOOKUP(G10,'Listes déroulantes'!G:H,2,FALSE) -> CM_34_AG1 | AO10: 428648970573 | AP10: 4853 | AQ10: 1 | AR10: 17028 | AS10: 92282 | AT10: =VLOOKUP(G10,'Listes déroulantes'!G:N,8,FALSE) -> 28293060234 | AU10: 93 | AV10: 001 | AX10: =VLOOKUP(G10,'Listes déroulantes'!G:J,4,FALSE) -> 9556034 | BA10: EUR | BB10: 02 | BC10: 0000000000010100 | BD10: LMA-17028-I-2105-0005 | BE10: =VLOOKUP(G10,'Listes déroulantes'!G:M,7,FALSE) -> CM_34 | BF10: 191222 | BG10: 000000 | BI10: 0000000000010100 | BJ10: 0000000000010100 | BN10: 000000000000 | BO10: 000000000000 | BQ10: 00000 | BR10: 4643216546131356461 | BS10: 20221219 | BT10: 000005 | BU10: 500030561252212180300 | BW10: 000000000000 | BX10: 000000000000 | CB10: 20228380133
A11: Enregistrement 4 | B11: oui | C11: 14000000X41702817028XACR1 090321702892282513264KHYODHNJ313142022121860903200190001 00000000000086239782IM V af2342567894FAC2022121932 RUE DU TEST 13FRACM_32 4286489705744853117028922822829306023293001 9556032 EUR020000000000008623LMA-17028-I-2105-0006CM_32 191222000000 00000000000086230000000000008623 000000000000000000000000 00000464321654613135646120221219000006002252 000000000000000000000000 | D11: PaymentChargeback | E11: 2022-12-19 | F11: VISA | G11: CM_32_VAD | H11: 86.23 | I11: 0 | J11: 0 | K11: 4853 | L11: CRE 4 | M11: 14 | N11: 000000 | O11: X4 | P11: 17028 | Q11: 17028 | R11: XA | S11: CR1 | U11: 09 | V11: 03 | W11: 2 | X11: 17028 | Y11: 92282 | Z11: 513264KHYODHNJ31314 | AA11: 20221218 | AB11: =VLOOKUP(G11,'Listes déroulantes'!G:I,3,FALSE) -> 60903200190001 | AC11: 0000000000008623 | AD11: 978 | AE11: 2 | AF11: IM | AG11: V | AH11: af2342567894 | AI11: FAC | AJ11: 20221219 | AK11: =VLOOKUP(G11,'Listes déroulantes'!G:O,9,FALSE) -> 32 RUE DU TEST | AL11: 13 | AM11: FRA | AN11: =VLOOKUP(G11,'Listes déroulantes'!G:H,2,FALSE) -> CM_32 | AO11: 428648970574 | AP11: 4853 | AQ11: 1 | AR11: 17028 | AS11: 92282 | AT11: =VLOOKUP(G11,'Listes déroulantes'!G:N,8,FALSE) -> 28293060232 | AU11: 93 | AV11: 001 | AX11: =VLOOKUP(G11,'Listes déroulantes'!G:J,4,FALSE) -> 9556032 | BA11: EUR | BB11: 02 | BC11: 0000000000008623 | BD11: LMA-17028-I-2105-0006 | BE11: =VLOOKUP(G11,'Listes déroulantes'!G:M,7,FALSE) -> CM_32 | BF11: 191222 | BG11: 000000 | BI11: 0000000000008623 | BJ11: 0000000000008623 | BN11: 000000000000 | BO11: 000000000000 | BQ11: 00000 | BR11: 4643216546131356461 | BS11: 20221219 | BT11: 000006 | BU11: 002252 | BW11: 000000000000 | BX11: 000000000000 | CB11: 20228380134
A12: Enregistrement 5 | B12: oui | C12: 14000000X51702817028XACR1 090321702892282513264KHYODHNJ313152022121860903200190001 00000000000150009782IM I af2342567895FAC2022121932 RUE DU TEST 13FRACM_32 4286489705750045117028922822829306023293001 9556032 EUR020000000000014970LMA-17028-I-2105-0007CM_32 191222000000 00000000000150000000000000015000 000000000000000000000030 00000464321654613135646120221219000007002252 000000000000000000000000 | D12: PaymentChargeback | E12: 2022-12-19 | F12: MC | G12: CM_32_VAD | H12: 150 | I12: 0 | J12: 0.3 | K12: 0045 | L12: CRE 5 | M12: 14 | N12: 000000 | O12: X5 | P12: 17028 | Q12: 17028 | R12: XA | S12: CR1 | U12: 09 | V12: 03 | W12: 2 | X12: 17028 | Y12: 92282 | Z12: 513264KHYODHNJ31315 | AA12: 20221218 | AB12: =VLOOKUP(G12,'Listes déroulantes'!G:I,3,FALSE) -> 60903200190001 | AC12: 0000000000015000 | AD12: 978 | AE12: 2 | AF12: IM | AG12: I | AH12: af2342567895 | AI12: FAC | AJ12: 20221219 | AK12: =VLOOKUP(G12,'Listes déroulantes'!G:O,9,FALSE) -> 32 RUE DU TEST | AL12: 13 | AM12: FRA | AN12: =VLOOKUP(G12,'Listes déroulantes'!G:H,2,FALSE) -> CM_32 | AO12: 428648970575 | AP12: 0045 | AQ12: 1 | AR12: 17028 | AS12: 92282 | AT12: =VLOOKUP(G12,'Listes déroulantes'!G:N,8,FALSE) -> 28293060232 | AU12: 93 | AV12: 001 | AX12: =VLOOKUP(G12,'Listes déroulantes'!G:J,4,FALSE) -> 9556032 | BA12: EUR | BB12: 02 | BC12: 0000000000014970 | BD12: LMA-17028-I-2105-0007 | BE12: =VLOOKUP(G12,'Listes déroulantes'!G:M,7,FALSE) -> CM_32 | BF12: 191222 | BG12: 000000 | BI12: 0000000000015000 | BJ12: 0000000000015000 | BN12: 000000000000 | BO12: 000000000030 | BQ12: 00000 | BR12: 4643216546131356461 | BS12: 20221219 | BT12: 000007 | BU12: 002252 | BW12: 000000000000 | BX12: 000000000000 | CB12: 20228380135
A13: Enregistrement 6 | B13: oui | C13: 14000000Z11702817028XACR1 090321702892282513264KHYODHNJ313162022121860903200190001 00000000000013559782IM S af2342567896FAC2022121932 RUE DU TEST 13FRACM_32 4286489705760045117028922822829306023293001 9556032 EUR020000000000001352LMA-17028-I-2105-0008CM_32 191222000000 00000000000013550000000000001355 000000000000000000000003 00000464321654613135646120221219000008500030561252212180300 000000000000000000000000 | D13: PaymentChargeback | E13: 2022-12-19 | F13: CB | G13: CM_32_VAD | H13: 13.55 | I13: 0 | J13: 0.03 | K13: 0045 | L13: CRE 6 | M13: 14 | N13: 000000 | O13: Z1 | P13: 17028 | Q13: 17028 | R13: XA | S13: CR1 | U13: 09 | V13: 03 | W13: 2 | X13: 17028 | Y13: 92282 | Z13: 513264KHYODHNJ31316 | AA13: 20221218 | AB13: =VLOOKUP(G13,'Listes déroulantes'!G:I,3,FALSE) -> 60903200190001 | AC13: 0000000000001355 | AD13: 978 | AE13: 2 | AF13: IM | AG13: S | AH13: af2342567896 | AI13: FAC | AJ13: 20221219 | AK13: =VLOOKUP(G13,'Listes déroulantes'!G:O,9,FALSE) -> 32 RUE DU TEST | AL13: 13 | AM13: FRA | AN13: =VLOOKUP(G13,'Listes déroulantes'!G:H,2,FALSE) -> CM_32 | AO13: 428648970576 | AP13: 0045 | AQ13: 1 | AR13: 17028 | AS13: 92282 | AT13: =VLOOKUP(G13,'Listes déroulantes'!G:N,8,FALSE) -> 28293060232 | AU13: 93 | AV13: 001 | AX13: =VLOOKUP(G13,'Listes déroulantes'!G:J,4,FALSE) -> 9556032 | BA13: EUR | BB13: 02 | BC13: 0000000000001352 | BD13: LMA-17028-I-2105-0008 | BE13: =VLOOKUP(G13,'Listes déroulantes'!G:M,7,FALSE) -> CM_32 | BF13: 191222 | BG13: 000000 | BI13: 0000000000001355 | BJ13: 0000000000001355 | BN13: 000000000000 | BO13: 000000000003 | BQ13: 00000 | BR13: 4643216546131356461 | BS13: 20221219 | BT13: 000008 | BU13: 500030561252212180300 | BW13: 000000000000 | BX13: 000000000000 | CB13: 20228380136
A14: Enregistrement 7 | B14: oui | C14: 14000000Z11702817028XACR1 090321702892282513264KHYODHNJ313172022121860903600190001 00000000000032009782IM S af2342567897FAC2022121936 RUE DU TEST 13FRACM_36 4286489705770045117028922822829306023693001 9556036 EUR020000000000003194LMA-17028-I-2105-0009CM_36 191222000000 00000000000032000000000000003200 000000000000000000000006 00000464321654613135646120221219000009500030561252212180300 000000000000000000000000 | D14: PaymentChargeback | E14: 2022-12-19 | F14: CB | G14: CM_36_PDPAG1 | H14: 32 | I14: 0 | J14: 0.06 | K14: 0045 | L14: CRE 7 | M14: 14 | N14: 000000 | O14: Z1 | P14: 17028 | Q14: 17028 | R14: XA | S14: CR1 | U14: 09 | V14: 03 | W14: 2 | X14: 17028 | Y14: 92282 | Z14: 513264KHYODHNJ31317 | AA14: =TEXT(E14-1,"aaaammjj") -> 20221218 | AB14: =VLOOKUP(G14,'Listes déroulantes'!G:I,3,FALSE) -> 60903600190001 | AC14: 0000000000003200 | AD14: 978 | AE14: 2 | AF14: IM | AG14: S | AH14: af2342567897 | AI14: FAC | AJ14: =TEXT(E14,"aaaammjj") -> 20221219 | AK14: =VLOOKUP(G14,'Listes déroulantes'!G:O,9,FALSE) -> 36 RUE DU TEST | AL14: 13 | AM14: FRA | AN14: =VLOOKUP(G14,'Listes déroulantes'!G:H,2,FALSE) -> CM_36 | AO14: 428648970577 | AP14: 0045 | AQ14: 1 | AR14: 17028 | AS14: 92282 | AT14: =VLOOKUP(G14,'Listes déroulantes'!G:N,8,FALSE) -> 28293060236 | AU14: 93 | AV14: 001 | AX14: =VLOOKUP(G14,'Listes déroulantes'!G:J,4,FALSE) -> 9556036 | BA14: EUR | BB14: 02 | BC14: 0000000000003194 | BD14: LMA-17028-I-2105-0009 | BE14: =VLOOKUP(G14,'Listes déroulantes'!G:M,7,FALSE) -> CM_36 | BF14: =TEXT(E14,"jjmmaa") -> 191222 | BG14: 000000 | BI14: 0000000000003200 | BJ14: 0000000000003200 | BN14: 000000000000 | BO14: 000000000006 | BQ14: 00000 | BR14: 4643216546131356461 | BS14: =TEXT(E14,"aaaammjj") -> 20221219 | BT14: 000009 | BU14: =IF(F14="CB",(CONCATENATE("50003056125",TEXT(E14-1,"aammjj"),"0300 ")),"002252 ") -> 500030561252212180300 | BW14: 000000000000 | BX14: 000000000000 | CB14: 20228380137
A15: Enregistrement 8 | B15: oui | C15: 14000000X41702817028XACR1 090321702892282513264KHYODHNJ313182022121860903600190001 00000000000150259782IM V af2342567898FAC2022121936 RUE DU TEST 13FRACM_36 4286489705780045117028922822829306023693001 9556036 EUR020000000000014995LMA-17028-I-2105-0010CM_36 191222000000 00000000000150250000000000015025 000000000000000000000030 00000464321654613135646120221219000010002252 000000000000000000000000 | D15: PaymentChargeback | E15: 2022-12-19 | F15: VISA | G15: CM_36_PDPAG1 | H15: 150.25 | I15: 0 | J15: 0.3 | K15: 0045 | L15: CRE 8 | M15: 14 | N15: 000000 | O15: X4 | P15: 17028 | Q15: 17028 | R15: XA | S15: CR1 | U15: 09 | V15: 03 | W15: 2 | X15: 17028 | Y15: 92282 | Z15: 513264KHYODHNJ31318 | AA15: 20221218 | AB15: =VLOOKUP(G15,'Listes déroulantes'!G:I,3,FALSE) -> 60903600190001 | AC15: 0000000000015025 | AD15: 978 | AE15: 2 | AF15: IM | AG15: V | AH15: af2342567898 | AI15: FAC | AJ15: 20221219 | AK15: =VLOOKUP(G15,'Listes déroulantes'!G:O,9,FALSE) -> 36 RUE DU TEST | AL15: 13 | AM15: FRA | AN15: =VLOOKUP(G15,'Listes déroulantes'!G:H,2,FALSE) -> CM_36 | AO15: 428648970578 | AP15: 0045 | AQ15: 1 | AR15: 17028 | AS15: 92282 | AT15: =VLOOKUP(G15,'Listes déroulantes'!G:N,8,FALSE) -> 28293060236 | AU15: 93 | AV15: 001 | AX15: =VLOOKUP(G15,'Listes déroulantes'!G:J,4,FALSE) -> 9556036 | BA15: EUR | BB15: 02 | BC15: 0000000000014995 | BD15: LMA-17028-I-2105-0010 | BE15: =VLOOKUP(G15,'Listes déroulantes'!G:M,7,FALSE) -> CM_36 | BF15: 191222 | BG15: 000000 | BI15: 0000000000015025 | BJ15: 0000000000015025 | BN15: 000000000000 | BO15: 000000000030 | BQ15: 00000 | BR15: 4643216546131356461 | BS15: 20221219 | BT15: 000010 | BU15: =IF(F15="CB",(CONCATENATE("50003056125",TEXT(E15-1,"aammjj"),"0300 ")),"002252 ") -> 002252 | BW15: 000000000000 | BX15: 000000000000 | CB15: 20228380138
A16: Enregistrement 9 | B16: oui | C16: 14000000X51702817028XACR1 090321702892282513264KHYODHNJ313192022121860903600190001 00000000000240259782IM I af2342567899FAC2022121936 RUE DU TEST 13FRACM_36 4286489705790045117028922822829306023693001 9556036 EUR020000000000023977LMA-17028-I-2105-0011CM_36 191222000000 00000000000240250000000000024025 000000000000000000000048 00000464321654613135646120221219000011002252 000000000000000000000000 | D16: PaymentChargeback | E16: 2022-12-19 | F16: MC | G16: CM_36_PDPAG1 | H16: 240.25 | I16: 0 | J16: 0.48 | K16: 0045 | L16: CRE 9 | M16: 14 | N16: 000000 | O16: X5 | P16: 17028 | Q16: 17028 | R16: XA | S16: CR1 | U16: 09 | V16: 03 | W16: 2 | X16: 17028 | Y16: 92282 | Z16: 513264KHYODHNJ31319 | AA16: 20221218 | AB16: =VLOOKUP(G16,'Listes déroulantes'!G:I,3,FALSE) -> 60903600190001 | AC16: 0000000000024025 | AD16: 978 | AE16: 2 | AF16: IM | AG16: I | AH16: af2342567899 | AI16: FAC | AJ16: 20221219 | AK16: =VLOOKUP(G16,'Listes déroulantes'!G:O,9,FALSE) -> 36 RUE DU TEST | AL16: 13 | AM16: FRA | AN16: =VLOOKUP(G16,'Listes déroulantes'!G:H,2,FALSE) -> CM_36 | AO16: 428648970579 | AP16: 0045 | AQ16: 1 | AR16: 17028 | AS16: 92282 | AT16: =VLOOKUP(G16,'Listes déroulantes'!G:N,8,FALSE) -> 28293060236 | AU16: 93 | AV16: 001 | AX16: =VLOOKUP(G16,'Listes déroulantes'!G:J,4,FALSE) -> 9556036 | BA16: EUR | BB16: 02 | BC16: 0000000000023977 | BD16: LMA-17028-I-2105-0011 | BE16: =VLOOKUP(G16,'Listes déroulantes'!G:M,7,FALSE) -> CM_36 | BF16: 191222 | BG16: 000000 | BI16: 0000000000024025 | BJ16: 0000000000024025 | BN16: 000000000000 | BO16: 000000000048 | BQ16: 00000 | BR16: 4643216546131356461 | BS16: 20221219 | BT16: 000011 | BU16: 002252 | BW16: 000000000000 | BX16: 000000000000 | CB16: 20228380139
A17: Enregistrement 10 | B17: oui | C17: 14000000Z11702817028XACR1 090321702892282513264KHYODHNJ313202022121860903700190001 00000000000150259782IM S af2342567900FAC2022121937 RUE DU TEST 13FRACM_37 4286489705800045117028922822829306023793001 9556037 EUR020000000000014995LMA-17028-I-2105-0012CM_37 191222000000 00000000000150250000000000015025 000000000000000000000030 00000464321654613135646120221219000012500030561252212180300 000000000000000000000000 | D17: PaymentChargeback | E17: 2022-12-19 | F17: CB | G17: CM_37_VADAG1 | H17: 150.25 | I17: 0 | J17: 0.3 | K17: 0045 | L17: CRE 10 | M17: 14 | N17: 000000 | O17: Z1 | P17: 17028 | Q17: 17028 | R17: XA | S17: CR1 | U17: 09 | V17: 03 | W17: 2 | X17: 17028 | Y17: 92282 | Z17: 513264KHYODHNJ31320 | AA17: 20221218 | AB17: =VLOOKUP(G17,'Listes déroulantes'!G:I,3,FALSE) -> 60903700190001 | AC17: 0000000000015025 | AD17: 978 | AE17: 2 | AF17: IM | AG17: S | AH17: af2342567900 | AI17: FAC | AJ17: 20221219 | AK17: =VLOOKUP(G17,'Listes déroulantes'!G:O,9,FALSE) -> 37 RUE DU TEST | AL17: 13 | AM17: FRA | AN17: =VLOOKUP(G17,'Listes déroulantes'!G:H,2,FALSE) -> CM_37 | AO17: 428648970580 | AP17: 0045 | AQ17: 1 | AR17: 17028 | AS17: 92282 | AT17: =VLOOKUP(G17,'Listes déroulantes'!G:N,8,FALSE) -> 28293060237 | AU17: 93 | AV17: 001 | AX17: =VLOOKUP(G17,'Listes déroulantes'!G:J,4,FALSE) -> 9556037 | BA17: EUR | BB17: 02 | BC17: 0000000000014995 | BD17: LMA-17028-I-2105-0012 | BE17: =VLOOKUP(G17,'Listes déroulantes'!G:M,7,FALSE) -> CM_37 | BF17: 191222 | BG17: 000000 | BI17: 0000000000015025 | BJ17: 0000000000015025 | BN17: 000000000000 | BO17: 000000000030 | BQ17: 00000 | BR17: 4643216546131356461 | BS17: 20221219 | BT17: 000012 | BU17: 500030561252212180300 | BW17: 000000000000 | BX17: 000000000000 | CB17: 20228380140
A18: Enregistrement 11 | B18: oui | C18: 14000000X41702817028XACR1 090321702892282513264KHYODHNJ313212022121860903700190001 00000000000240259782IM V af2342567901FAC2022121937 RUE DU TEST 13FRACM_37 4286489705810045117028922822829306023793001 9556037 EUR020000000000023977LMA-17028-I-2105-0013CM_37 191222000000 00000000000240250000000000024025 000000000000000000000048 00000464321654613135646120221219000013002252 000000000000000000000000 | D18: PaymentChargeback | E18: 2022-12-19 | F18: VISA | G18: CM_37_VADAG1 | H18: 240.25 | I18: 0 | J18: 0.48 | K18: 0045 | L18: CRE 11 | M18: 14 | N18: 000000 | O18: X4 | P18: 17028 | Q18: 17028 | R18: XA | S18: CR1 | U18: 09 | V18: 03 | W18: 2 | X18: 17028 | Y18: 92282 | Z18: 513264KHYODHNJ31321 | AA18: 20221218 | AB18: =VLOOKUP(G18,'Listes déroulantes'!G:I,3,FALSE) -> 60903700190001 | AC18: 0000000000024025 | AD18: 978 | AE18: 2 | AF18: IM | AG18: V | AH18: af2342567901 | AI18: FAC | AJ18: 20221219 | AK18: =VLOOKUP(G18,'Listes déroulantes'!G:O,9,FALSE) -> 37 RUE DU TEST | AL18: 13 | AM18: FRA | AN18: =VLOOKUP(G18,'Listes déroulantes'!G:H,2,FALSE) -> CM_37 | AO18: 428648970581 | AP18: 0045 | AQ18: 1 | AR18: 17028 | AS18: 92282 | AT18: =VLOOKUP(G18,'Listes déroulantes'!G:N,8,FALSE) -> 28293060237 | AU18: 93 | AV18: 001 | AX18: =VLOOKUP(G18,'Listes déroulantes'!G:J,4,FALSE) -> 9556037 | BA18: EUR | BB18: 02 | BC18: 0000000000023977 | BD18: LMA-17028-I-2105-0013 | BE18: =VLOOKUP(G18,'Listes déroulantes'!G:M,7,FALSE) -> CM_37 | BF18: 191222 | BG18: 000000 | BI18: 0000000000024025 | BJ18: 0000000000024025 | BN18: 000000000000 | BO18: 000000000048 | BQ18: 00000 | BR18: 4643216546131356461 | BS18: 20221219 | BT18: 000013 | BU18: 002252 | BW18: 000000000000 | BX18: 000000000000 | CB18: 20228380141
A19: Enregistrement 12 | B19: oui | C19: 14000000X51702817028XACR1 090321702892282513264KHYODHNJ313222022121860903700190001 00000000000015509782IM I af2342567902FAC2022121937 RUE DU TEST 13FRACM_37 42864897058245 117028922822829306023793001 9556037 EUR020000000000001550LMA-17028-I-2105-0014CM_37 191222000000 00000000000015500000000000001550 000000000000000000000000 00000464321654613135646120221219000014002252 000000000000000000000000 | D19: PaymentChargeback | E19: 2022-12-19 | F19: MC | G19: CM_37_VADAG1 | H19: 15.5 | I19: 0 | J19: 0 | K19: 45 | L19: CRE 12 | M19: 14 | N19: 000000 | O19: X5 | P19: 17028 | Q19: 17028 | R19: XA | S19: CR1 | U19: 09 | V19: 03 | W19: 2 | X19: 17028 | Y19: 92282 | Z19: 513264KHYODHNJ31322 | AA19: 20221218 | AB19: =VLOOKUP(G19,'Listes déroulantes'!G:I,3,FALSE) -> 60903700190001 | AC19: 0000000000001550 | AD19: 978 | AE19: 2 | AF19: IM | AG19: I | AH19: af2342567902 | AI19: FAC | AJ19: 20221219 | AK19: =VLOOKUP(G19,'Listes déroulantes'!G:O,9,FALSE) -> 37 RUE DU TEST | AL19: 13 | AM19: FRA | AN19: =VLOOKUP(G19,'Listes déroulantes'!G:H,2,FALSE) -> CM_37 | AO19: 428648970582 | AP19: 45 | AQ19: 1 | AR19: 17028 | AS19: 92282 | AT19: =VLOOKUP(G19,'Listes déroulantes'!G:N,8,FALSE) -> 28293060237 | AU19: 93 | AV19: 001 | AX19: =VLOOKUP(G19,'Listes déroulantes'!G:J,4,FALSE) -> 9556037 | BA19: EUR | BB19: 02 | BC19: 0000000000001550 | BD19: LMA-17028-I-2105-0014 | BE19: =VLOOKUP(G19,'Listes déroulantes'!G:M,7,FALSE) -> CM_37 | BF19: 191222 | BG19: 000000 | BI19: 0000000000001550 | BJ19: 0000000000001550 | BN19: 000000000000 | BO19: 000000000000 | BQ19: 00000 | BR19: 4643216546131356461 | BS19: 20221219 | BT19: 000014 | BU19: 002252 | BW19: 000000000000 | BX19: 000000000000 | CB19: 20228380142
A20: Enregistrement 13 | B20: NON | C20: CRE NON ACTIF | D20: PaymentChargeback | E20: 2022-09-22 | F20: CB | G20: CM_16_RMFEC VAD2 | H20: 16 | I20: 25 | J20: 15 | K20: 45 | L20: CRE 13 | M20: 14 | N20: 000000 | O20: Z1 | P20: 17028 | Q20: 17028 | R20: XA | S20: CR1 | U20: 09 | V20: 03 | W20: 2 | X20: 17028 | Y20: 92282 | Z20: 513264KHYODHNJ31323 | AA20: 20220921 | AB20: =VLOOKUP(G20,'Listes déroulantes'!G:I,3,FALSE) -> 60929700180001 | AC20: 0000000000001600 | AD20: 978 | AE20: 2 | AF20: IM | AG20: S | AH20: af2342567903 | AI20: FAC | AJ20: 20220922 | AK20: =VLOOKUP(G20,'Listes déroulantes'!G:O,9,FALSE) -> 27 AVENUE DE LA CROI | AL20: 13 | AM20: FRA | AN20: =VLOOKUP(G20,'Listes déroulantes'!G:H,2,FALSE) -> CM_16_RMFEC | AO20: 428648970583 | AP20: 45 | AQ20: 1 | AR20: 17028 | AS20: 92282 | AT20: =VLOOKUP(G20,'Listes déroulantes'!G:N,8,FALSE) -> 28293060137 | AU20: 93 | AV20: 001 | AX20: =VLOOKUP(G20,'Listes déroulantes'!G:J,4,FALSE) -> 9256127 | BA20: EUR | BB20: 02 | BC20: 0000000000000100 | BD20: LMA-17028-I-2105-0015 | BE20: =VLOOKUP(G20,'Listes déroulantes'!G:M,7,FALSE) -> CM_16_RMFEC VAD | BF20: 220922 | BG20: 000000 | BI20: 0000000000001600 | BJ20: 0000000000001600 | BN20: 000000000000 | BO20: 000000001500 | BQ20: 00000 | BR20: 4643216546131356461 | BS20: 20220922 | BT20: 000015 | BU20: 500030561252209210300 | BW20: 000000002500 | BX20: 000000000000 | CB20: 20228380143
A21: Enregistrement 14 | B21: NON | C21: CRE NON ACTIF | D21: PaymentChargeback | E21: 2022-09-22 | F21: CB | G21: CM_16_RMFEC VAD2 | H21: 16.5 | I21: 25 | J21: 0 | K21: 45 | L21: CRE 14 | M21: 14 | N21: 000000 | O21: Z1 | P21: 17028 | Q21: 17028 | R21: XA | S21: CR1 | U21: 09 | V21: 03 | W21: 2 | X21: 17028 | Y21: 92282 | Z21: 513264KHYODHNJ31324 | AA21: 20220921 | AB21: =VLOOKUP(G21,'Listes déroulantes'!G:I,3,FALSE) -> 60929700180001 | AC21: 0000000000001650 | AD21: 978 | AE21: 2 | AF21: IM | AG21: S | AH21: af2342567904 | AI21: FAC | AJ21: 20220922 | AK21: =VLOOKUP(G21,'Listes déroulantes'!G:O,9,FALSE) -> 27 AVENUE DE LA CROI | AL21: 13 | AM21: FRA | AN21: =VLOOKUP(G21,'Listes déroulantes'!G:H,2,FALSE) -> CM_16_RMFEC | AO21: 428648970584 | AP21: 45 | AQ21: 1 | AR21: 17028 | AS21: 92282 | AT21: =VLOOKUP(G21,'Listes déroulantes'!G:N,8,FALSE) -> 28293060137 | AU21: 93 | AV21: 001 | AX21: =VLOOKUP(G21,'Listes déroulantes'!G:J,4,FALSE) -> 9256127 | BA21: EUR | BB21: 02 | BC21: 0000000000001650 | BD21: LMA-17028-I-2105-0016 | BE21: =VLOOKUP(G21,'Listes déroulantes'!G:M,7,FALSE) -> CM_16_RMFEC VAD | BF21: 220922 | BG21: 000000 | BI21: 0000000000001650 | BJ21: 0000000000001650 | BN21: 000000000000 | BO21: 000000000000 | BQ21: 00000 | BR21: 4643216546131356461 | BS21: 20220922 | BT21: 000016 | BU21: 500030561252209210300 | BW21: 000000002500 | BX21: 000000000000 | CB21: 20228380144
A22: Enregistrement 15 | B22: NON | C22: CRE NON ACTIF | D22: PaymentChargeback | E22: 2022-09-22 | F22: MC | G22: SAS MONEXT PDP | H22: 244 | I22: 25 | J22: 1 | K22: 29 | L22: CRE 15 | M22: 14 | N22: 000000 | O22: X5 | P22: 17028 | Q22: 17028 | R22: XA | S22: CR1 | U22: 09 | V22: 03 | W22: 2 | X22: 17028 | Y22: 92282 | Z22: 513264KHYODHNJ31325 | AA22: 20220921 | AB22: =VLOOKUP(G22,'Listes déroulantes'!G:I,3,FALSE) -> 50318500100032 | AC22: 0000000000024400 | AD22: 978 | AE22: 2 | AF22: IM | AG22: I | AH22: af2342567905 | AI22: FAC | AJ22: 20220922 | AK22: =VLOOKUP(G22,'Listes déroulantes'!G:O,9,FALSE) -> 260 RUE CLAUDE NICOL | AL22: 13 | AM22: FRA | AN22: =VLOOKUP(G22,'Listes déroulantes'!G:H,2,FALSE) -> SAS MONEXT | AO22: 428648970585 | AP22: 29 | AQ22: 1 | AR22: 17028 | AS22: 92282 | AT22: =VLOOKUP(G22,'Listes déroulantes'!G:N,8,FALSE) -> 20289045644 | AU22: 93 | AV22: 001 | AX22: =VLOOKUP(G22,'Listes déroulantes'!G:J,4,FALSE) -> 9255001 | BA22: EUR | BB22: 02 | BC22: 0000000000024300 | BD22: LMA-17028-I-2105-0017 | BE22: =VLOOKUP(G22,'Listes déroulantes'!G:M,7,FALSE) -> MONEXT | BF22: 220922 | BG22: 000000 | BI22: 0000000000024400 | BJ22: 0000000000024400 | BN22: 000000000000 | BO22: 000000000100 | BQ22: 00000 | BR22: 4643216546131356461 | BS22: 20220922 | BT22: 000017 | BU22: 002252 | BW22: 000000002500 | BX22: 000000000000 | CB22: 20228380145
A23: Enregistrement 16 | B23: NON | C23: CRE NON ACTIF | D23: PaymentChargeback | E23: 2022-09-22 | F23: MC | G23: SAS MONEXT PDP | H23: 245 | I23: 25 | J23: 1 | K23: 30 | L23: CRE 16 | M23: 14 | N23: 000000 | O23: X5 | P23: 17028 | Q23: 17028 | R23: XA | S23: CR1 | U23: 09 | V23: 03 | W23: 2 | X23: 17028 | Y23: 92282 | Z23: 513264KHYODHNJ31326 | AA23: 20220921 | AB23: =VLOOKUP(G23,'Listes déroulantes'!G:I,3,FALSE) -> 50318500100032 | AC23: 0000000000024500 | AD23: 978 | AE23: 2 | AF23: IM | AG23: I | AH23: af2342567906 | AI23: FAC | AJ23: 20220922 | AK23: =VLOOKUP(G23,'Listes déroulantes'!G:O,9,FALSE) -> 260 RUE CLAUDE NICOL | AL23: 13 | AM23: FRA | AN23: =VLOOKUP(G23,'Listes déroulantes'!G:H,2,FALSE) -> SAS MONEXT | AO23: 428648970586 | AP23: 30 | AQ23: 1 | AR23: 17028 | AS23: 92282 | AT23: =VLOOKUP(G23,'Listes déroulantes'!G:N,8,FALSE) -> 20289045644 | AU23: 93 | AV23: 001 | AX23: =VLOOKUP(G23,'Listes déroulantes'!G:J,4,FALSE) -> 9255001 | BA23: EUR | BB23: 02 | BC23: 0000000000024400 | BD23: LMA-17028-I-2105-0018 | BE23: =VLOOKUP(G23,'Listes déroulantes'!G:M,7,FALSE) -> MONEXT | BF23: 220922 | BG23: 000000 | BI23: 0000000000024500 | BJ23: 0000000000024500 | BN23: 000000000000 | BO23: 000000000100 | BQ23: 00000 | BR23: 4643216546131356461 | BS23: 20220922 | BT23: 000018 | BU23: 002252 | BW23: 000000002500 | BX23: 000000000000 | CB23: 20228380146
A24: Enregistrement 17 | B24: NON | C24: CRE NON ACTIF | D24: PaymentChargeback | E24: 2022-09-22 | F24: MC | G24: SAS MONEXT PDP | H24: 246 | I24: 25 | J24: 1 | K24: 31 | L24: CRE 17 | M24: 14 | N24: 000000 | O24: X5 | P24: 17028 | Q24: 17028 | R24: XA | S24: CR1 | U24: 09 | V24: 03 | W24: 2 | X24: 17028 | Y24: 92282 | Z24: 513264KHYODHNJ31327 | AA24: 20220921 | AB24: =VLOOKUP(G24,'Listes déroulantes'!G:I,3,FALSE) -> 50318500100032 | AC24: 0000000000024600 | AD24: 978 | AE24: 2 | AF24: IM | AG24: I | AH24: af2342567907 | AI24: FAC | AJ24: 20220922 | AK24: =VLOOKUP(G24,'Listes déroulantes'!G:O,9,FALSE) -> 260 RUE CLAUDE NICOL | AL24: 13 | AM24: FRA | AN24: =VLOOKUP(G24,'Listes déroulantes'!G:H,2,FALSE) -> SAS MONEXT | AO24: 428648970587 | AP24: 31 | AQ24: 1 | AR24: 17028 | AS24: 92282 | AT24: =VLOOKUP(G24,'Listes déroulantes'!G:N,8,FALSE) -> 20289045644 | AU24: 93 | AV24: 001 | AX24: =VLOOKUP(G24,'Listes déroulantes'!G:J,4,FALSE) -> 9255001 | BA24: EUR | BB24: 02 | BC24: 0000000000024500 | BD24: LMA-17028-I-2105-0019 | BE24: =VLOOKUP(G24,'Listes déroulantes'!G:M,7,FALSE) -> MONEXT | BF24: 220922 | BG24: 000000 | BI24: 0000000000024600 | BJ24: 0000000000024600 | BN24: 000000000000 | BO24: 000000000100 | BQ24: 00000 | BR24: 4643216546131356461 | BS24: 20220922 | BT24: 000019 | BU24: 002252 | BW24: 000000002500 | BX24: 000000000000 | CB24: 20228380147
A25: Enregistrement 18 | B25: NON | C25: CRE NON ACTIF | D25: PaymentChargeback | E25: 2022-09-22 | F25: MC | G25: SAS MONEXT PDP | H25: 247 | I25: 25 | J25: 1 | K25: 32 | L25: CRE 18 | M25: 14 | N25: 000000 | O25: X5 | P25: 17028 | Q25: 17028 | R25: XA | S25: CR1 | U25: 09 | V25: 03 | W25: 2 | X25: 17028 | Y25: 92282 | Z25: 513264KHYODHNJ31328 | AA25: 20220921 | AB25: =VLOOKUP(G25,'Listes déroulantes'!G:I,3,FALSE) -> 50318500100032 | AC25: 0000000000024700 | AD25: 978 | AE25: 2 | AF25: IM | AG25: I | AH25: af2342567908 | AI25: FAC | AJ25: 20220922 | AK25: =VLOOKUP(G25,'Listes déroulantes'!G:O,9,FALSE) -> 260 RUE CLAUDE NICOL | AL25: 13 | AM25: FRA | AN25: =VLOOKUP(G25,'Listes déroulantes'!G:H,2,FALSE) -> SAS MONEXT | AO25: 428648970588 | AP25: 32 | AQ25: 1 | AR25: 17028 | AS25: 92282 | AT25: =VLOOKUP(G25,'Listes déroulantes'!G:N,8,FALSE) -> 20289045644 | AU25: 93 | AV25: 001 | AX25: =VLOOKUP(G25,'Listes déroulantes'!G:J,4,FALSE) -> 9255001 | BA25: EUR | BB25: 02 | BC25: 0000000000024600 | BD25: LMA-17028-I-2105-0020 | BE25: =VLOOKUP(G25,'Listes déroulantes'!G:M,7,FALSE) -> MONEXT | BF25: 220922 | BG25: 000000 | BI25: 0000000000024700 | BJ25: 0000000000024700 | BN25: 000000000000 | BO25: 000000000100 | BQ25: 00000 | BR25: 4643216546131356461 | BS25: 20220922 | BT25: 000020 | BU25: 002252 | BW25: 000000002500 | BX25: 000000000000 | CB25: 20228380148
A26: Enregistrement 19 | B26: NON | C26: CRE NON ACTIF | D26: PaymentChargeback | E26: 2022-09-22 | F26: MC | G26: SAS MONEXT PDP | H26: 248 | I26: 25 | J26: 1 | K26: 33 | L26: CRE 19 | M26: 14 | N26: 000000 | O26: X5 | P26: 17028 | Q26: 17028 | R26: XA | S26: CR1 | U26: 09 | V26: 03 | W26: 2 | X26: 17028 | Y26: 92282 | Z26: 513264KHYODHNJ31329 | AA26: 20220921 | AB26: =VLOOKUP(G26,'Listes déroulantes'!G:I,3,FALSE) -> 50318500100032 | AC26: 0000000000024800 | AD26: 978 | AE26: 2 | AF26: IM | AG26: I | AH26: af2342567909 | AI26: FAC | AJ26: 20220922 | AK26: =VLOOKUP(G26,'Listes déroulantes'!G:O,9,FALSE) -> 260 RUE CLAUDE NICOL | AL26: 13 | AM26: FRA | AN26: =VLOOKUP(G26,'Listes déroulantes'!G:H,2,FALSE) -> SAS MONEXT | AO26: 428648970589 | AP26: 33 | AQ26: 1 | AR26: 17028 | AS26: 92282 | AT26: =VLOOKUP(G26,'Listes déroulantes'!G:N,8,FALSE) -> 20289045644 | AU26: 93 | AV26: 001 | AX26: =VLOOKUP(G26,'Listes déroulantes'!G:J,4,FALSE) -> 9255001 | BA26: EUR | BB26: 02 | BC26: 0000000000024700 | BD26: LMA-17028-I-2105-0021 | BE26: =VLOOKUP(G26,'Listes déroulantes'!G:M,7,FALSE) -> MONEXT | BF26: 220922 | BG26: 000000 | BI26: 0000000000024800 | BJ26: 0000000000024800 | BN26: 000000000000 | BO26: 000000000100 | BQ26: 00000 | BR26: 4643216546131356461 | BS26: 20220922 | BT26: 000021 | BU26: 002252 | BW26: 000000002500 | BX26: 000000000000 | CB26: 20228380149
A27: Enregistrement 20 | B27: NON | C27: CRE NON ACTIF | D27: PaymentChargeback | E27: 2022-09-22 | F27: MC | G27: SAS MONEXT PDP | H27: 249 | I27: 25 | J27: 1 | K27: 34 | L27: CRE 20 | M27: 14 | N27: 000000 | O27: X5 | P27: 17028 | Q27: 17028 | R27: XA | S27: CR1 | U27: 09 | V27: 03 | W27: 2 | X27: 17028 | Y27: 92282 | Z27: 513264KHYODHNJ31330 | AA27: 20220921 | AB27: =VLOOKUP(G27,'Listes déroulantes'!G:I,3,FALSE) -> 50318500100032 | AC27: 0000000000024900 | AD27: 978 | AE27: 2 | AF27: IM | AG27: I | AH27: af2342567910 | AI27: FAC | AJ27: 20220922 | AK27: =VLOOKUP(G27,'Listes déroulantes'!G:O,9,FALSE) -> 260 RUE CLAUDE NICOL | AL27: 13 | AM27: FRA | AN27: =VLOOKUP(G27,'Listes déroulantes'!G:H,2,FALSE) -> SAS MONEXT | AO27: 428648970590 | AP27: 34 | AQ27: 1 | AR27: 17028 | AS27: 92282 | AT27: =VLOOKUP(G27,'Listes déroulantes'!G:N,8,FALSE) -> 20289045644 | AU27: 93 | AV27: 001 | AX27: =VLOOKUP(G27,'Listes déroulantes'!G:J,4,FALSE) -> 9255001 | BA27: EUR | BB27: 02 | BC27: 0000000000024800 | BD27: LMA-17028-I-2105-0022 | BE27: =VLOOKUP(G27,'Listes déroulantes'!G:M,7,FALSE) -> MONEXT | BF27: 220922 | BG27: 000000 | BI27: 0000000000024900 | BJ27: 0000000000024900 | BN27: 000000000000 | BO27: 000000000100 | BQ27: 00000 | BR27: 4643216546131356461 | BS27: 20220922 | BT27: 000022 | BU27: 002252 | BW27: 000000002500 | BX27: 000000000000 | CB27: 20228380150
A28: Enregistrement 21 | B28: NON | C28: CRE NON ACTIF | D28: PaymentChargeback | E28: 2022-09-22 | F28: MC | G28: SAS MONEXT PDP | H28: 250 | I28: 25 | J28: 1 | K28: 35 | L28: CRE 21 | M28: 14 | N28: 000000 | O28: X5 | P28: 17028 | Q28: 17028 | R28: XA | S28: CR1 | U28: 09 | V28: 03 | W28: 2 | X28: 17028 | Y28: 92282 | Z28: 513264KHYODHNJ31331 | AA28: 20220921 | AB28: =VLOOKUP(G28,'Listes déroulantes'!G:I,3,FALSE) -> 50318500100032 | AC28: 0000000000025000 | AD28: 978 | AE28: 2 | AF28: IM | AG28: I | AH28: af2342567911 | AI28: FAC | AJ28: 20220922 | AK28: =VLOOKUP(G28,'Listes déroulantes'!G:O,9,FALSE) -> 260 RUE CLAUDE NICOL | AL28: 13 | AM28: FRA | AN28: =VLOOKUP(G28,'Listes déroulantes'!G:H,2,FALSE) -> SAS MONEXT | AO28: 428648970591 | AP28: 35 | AQ28: 1 | AR28: 17028 | AS28: 92282 | AT28: =VLOOKUP(G28,'Listes déroulantes'!G:N,8,FALSE) -> 20289045644 | AU28: 93 | AV28: 001 | AX28: =VLOOKUP(G28,'Listes déroulantes'!G:J,4,FALSE) -> 9255001 | BA28: EUR | BB28: 02 | BC28: 0000000000024900 | BD28: LMA-17028-I-2105-0023 | BE28: =VLOOKUP(G28,'Listes déroulantes'!G:M,7,FALSE) -> MONEXT | BF28: 220922 | BG28: 000000 | BI28: 0000000000025000 | BJ28: 0000000000025000 | BN28: 000000000000 | BO28: 000000000100 | BQ28: 00000 | BR28: 4643216546131356461 | BS28: 20220922 | BT28: 000023 | BU28: 002252 | BW28: 000000002500 | BX28: 000000000000 | CB28: 20228380151
A29: Enregistrement 22 | B29: NON | C29: =IF(B31="OUI",CONCATENATE(M29,N29,O29,P29,Q29,R29,S29,T29,U29,V29,W29,X29,Y29,Z29,AA29,AB29,AC29,AD29,AE29,AF29,AG29,AH29,AI29,AJ29,AK29,AL29,AM29,AN29,AO29,AP29,AQ29,AR29,AS29,AT29,AU29,AV29,AW29,AX29,AY29,AZ29,BA29,BB29,BC29,BD29,BE29,BF29,BG29,BH29,BI29,BJ29,BK29,BL29,BM29,BN29,BO29,BP29,BQ29,BR29,BS29,BT29,BU29,BV29,BW29,BX29),"CRE NON ACTIF") -> CRE NON ACTIF | D29: RefundChargeback | E29: 2022-09-22 | F29: VISA | G29: CM_12_RMFEC VAD | H29: 12 | I29: 0 | J29: 0 | K29: 73 | L29: CRE 22 | M29: 14 | N29: 000000 | O29: X4 | P29: 17028 | Q29: 17028 | R29: XA | S29: CR1 | U29: 09 | V29: 03 | W29: 2 | X29: 17028 | Y29: 92282 | Z29: 513264KHYODHNJ31332 | AA29: 20220921 | AB29: =VLOOKUP(G29,'Listes déroulantes'!G:I,3,FALSE) -> 60925700180001 | AC29: 0000000000001200 | AD29: 978 | AE29: 2 | AF29: IM | AG29: V | AH29: af2342567912 | AI29: AVO | AJ29: 20220922 | AK29: =VLOOKUP(G29,'Listes déroulantes'!G:O,9,FALSE) -> 8 RUE LOUBET | AL29: 13 | AM29: FRA | AN29: =VLOOKUP(G29,'Listes déroulantes'!G:H,2,FALSE) -> CM_12_RMFEC | AO29: 428648970592 | AP29: 73 | AQ29: 1 | AR29: 17028 | AS29: 92282 | AT29: =VLOOKUP(G29,'Listes déroulantes'!G:N,8,FALSE) -> 28293060134 | AU29: 93 | AV29: 001 | AX29: =VLOOKUP(G29,'Listes déroulantes'!G:J,4,FALSE) -> 9256020 | BA29: EUR | BB29: 02 | BC29: 0000000000001200 | BD29: LMA-17028-I-2105-0024 | BE29: =VLOOKUP(G29,'Listes déroulantes'!G:M,7,FALSE) -> CM_12_RMFEC VAD | BF29: 220922 | BG29: 000000 | BI29: 0000000000001200 | BJ29: 0000000000001200 | BN29: 000000000000 | BO29: 000000000000 | BQ29: 00000 | BR29: 4643216546131356461 | BS29: 20220922 | BT29: 000024 | BU29: 002252 | BW29: 000000000000 | BX29: 000000000000 | CB29: 20228380152
A30: Enregistrement 23 | B30: NON | C30: CRE NON ACTIF | D30: RefundChargeback | E30: 2022-09-22 | F30: VISA | G30: CM_22 VAD | H30: 33 | I30: 0 | J30: 0 | K30: 73 | L30: CRE 23 | M30: 14 | N30: 000000 | O30: X4 | P30: 17028 | Q30: 17028 | R30: XA | S30: CR1 | U30: 09 | V30: 03 | W30: 2 | X30: 17028 | Y30: 92282 | Z30: 513264KHYODHNJ31333 | AA30: 20220921 | AB30: =VLOOKUP(G30,'Listes déroulantes'!G:I,3,FALSE) -> 60934700180001 | AC30: 0000000000003300 | AD30: 978 | AE30: 2 | AF30: IM | AG30: V | AH30: af2342567913 | AI30: AVO | AJ30: 20220922 | AK30: =VLOOKUP(G30,'Listes déroulantes'!G:O,9,FALSE) -> 22 RUE DES FLEURS | AL30: 13 | AM30: FRA | AN30: =VLOOKUP(G30,'Listes déroulantes'!G:H,2,FALSE) -> CM_22 | AO30: 428648970593 | AP30: 73 | AQ30: 1 | AR30: 17028 | AS30: 92282 | AT30: =VLOOKUP(G30,'Listes déroulantes'!G:N,8,FALSE) -> 28293060142 | AU30: 93 | AV30: 001 | AX30: =VLOOKUP(G30,'Listes déroulantes'!G:J,4,FALSE) -> 9256033 | BA30: EUR | BB30: 02 | BC30: 0000000000003300 | BD30: LMA-17028-I-2105-0025 | BE30: =VLOOKUP(G30,'Listes déroulantes'!G:M,7,FALSE) -> CM_22 | BF30: 220922 | BG30: 000000 | BI30: 0000000000003300 | BJ30: 0000000000003300 | BN30: 000000000000 | BO30: 000000000000 | BQ30: 00000 | BR30: 4643216546131356461 | BS30: 20220922 | BT30: 000025 | BU30: 002252 | BW30: 000000000000 | BX30: 000000000000 | CB30: 20228380153
A31: Enregistrement 24 | B31: NON | C31: CRE NON ACTIF | D31: RefundChargeback | E31: 2022-09-22 | F31: MC | G31: CM_20 VAD | H31: 25 | I31: 0 | J31: 0 | K31: 4853 | L31: CRE 24 | M31: 14 | N31: 000000 | O31: X5 | P31: 17028 | Q31: 17028 | R31: XA | S31: CR1 | U31: 09 | V31: 03 | W31: 2 | X31: 17028 | Y31: 92282 | Z31: 513264KHYODHNJ31334 | AA31: 20220921 | AB31: =VLOOKUP(G31,'Listes déroulantes'!G:I,3,FALSE) -> 60932700180001 | AC31: 0000000000002500 | AD31: 978 | AE31: 2 | AF31: IM | AG31: I | AH31: af2342567914 | AI31: AVO | AJ31: 20220922 | AK31: =VLOOKUP(G31,'Listes déroulantes'!G:O,9,FALSE) -> 20 RUE DES FLEURS | AL31: 13 | AM31: FRA | AN31: =VLOOKUP(G31,'Listes déroulantes'!G:H,2,FALSE) -> CM_20 | AO31: 428648970594 | AP31: 4853 | AQ31: 1 | AR31: 17028 | AS31: 92282 | AT31: =VLOOKUP(G31,'Listes déroulantes'!G:N,8,FALSE) -> 28293060140 | AU31: 93 | AV31: 001 | AX31: =VLOOKUP(G31,'Listes déroulantes'!G:J,4,FALSE) -> 9256031 | BA31: EUR | BB31: 02 | BC31: 0000000000002500 | BD31: LMA-17028-I-2105-0026 | BE31: =VLOOKUP(G31,'Listes déroulantes'!G:M,7,FALSE) -> CM_20 | BF31: 220922 | BG31: 000000 | BI31: 0000000000002500 | BJ31: 0000000000002500 | BN31: 000000000000 | BO31: 000000000000 | BQ31: 00000 | BR31: 4643216546131356461 | BS31: 20220922 | BT31: 000026 | BU31: 002252 | BW31: 000000000000 | BX31: 000000000000 | CB31: 20228380154
A32: Enregistrement 25 | B32: NON | C32: CRE NON ACTIF | D32: RefundChargeback | E32: 2022-09-22 | F32: MC | G32: CM_23 VAD | H32: 15 | I32: 0 | J32: 0 | K32: 4853 | L32: CRE 25 | M32: 14 | N32: 000000 | O32: X5 | P32: 17028 | Q32: 17028 | R32: XA | S32: CR1 | U32: 09 | V32: 03 | W32: 2 | X32: 17028 | Y32: 92282 | Z32: 513264KHYODHNJ31335 | AA32: 20220921 | AB32: =VLOOKUP(G32,'Listes déroulantes'!G:I,3,FALSE) -> 60935700180001 | AC32: 0000000000001500 | AD32: 978 | AE32: 2 | AF32: IM | AG32: I | AH32: af2342567915 | AI32: AVO | AJ32: 20220922 | AK32: =VLOOKUP(G32,'Listes déroulantes'!G:O,9,FALSE) -> 23 RUE DES FLEURS | AL32: 13 | AM32: FRA | AN32: =VLOOKUP(G32,'Listes déroulantes'!G:H,2,FALSE) -> CM_23 | AO32: 428648970595 | AP32: 4853 | AQ32: 1 | AR32: 17028 | AS32: 92282 | AT32: =VLOOKUP(G32,'Listes déroulantes'!G:N,8,FALSE) -> 28293060143 | AU32: 93 | AV32: 001 | AX32: =VLOOKUP(G32,'Listes déroulantes'!G:J,4,FALSE) -> 9256034 | BA32: EUR | BB32: 02 | BC32: 0000000000001500 | BD32: LMA-17028-I-2105-0027 | BE32: =VLOOKUP(G32,'Listes déroulantes'!G:M,7,FALSE) -> CM_23 | BF32: 220922 | BG32: 000000 | BI32: 0000000000001500 | BJ32: 0000000000001500 | BN32: 000000000000 | BO32: 000000000000 | BQ32: 00000 | BR32: 4643216546131356461 | BS32: 20220922 | BT32: 000027 | BU32: 002252 | BW32: 000000000000 | BX32: 000000000000 | CB32: 20228380155
A33: Enregistrement 26 | B33: NON | C33: CRE NON ACTIF | D33: RefundChargeback | E33: 2022-09-22 | F33: MC | G33: CM_24b VAD | H33: 20 | I33: 0 | J33: 0 | K33: 4853 | L33: CRE 26 | M33: 14 | N33: 000000 | O33: X5 | P33: 17028 | Q33: 17028 | R33: XA | S33: CR1 | U33: 09 | V33: 03 | W33: 2 | X33: 17028 | Y33: 92282 | Z33: 513264KHYODHNJ31336 | AA33: 20220921 | AB33: =VLOOKUP(G33,'Listes déroulantes'!G:I,3,FALSE) ->  | AC33: 0000000000002000 | AD33: 978 | AE33: 2 | AF33: IM | AG33: I | AH33: af2342567916 | AI33: AVO | AJ33: 20220922 | AK33: =VLOOKUP(G33,'Listes déroulantes'!G:O,9,FALSE) ->  | AL33: 13 | AM33: FRA | AN33: =VLOOKUP(G33,'Listes déroulantes'!G:H,2,FALSE) ->  | AO33: 428648970596 | AP33: =K33 -> 4853 | AQ33: 1 | AR33: 17028 | AS33: 92282 | AT33: =VLOOKUP(G33,'Listes déroulantes'!G:N,8,FALSE) ->  | AU33: 93 | AV33: 001 | AX33: =VLOOKUP(G33,'Listes déroulantes'!G:J,4,FALSE) ->  | BA33: EUR | BB33: 02 | BC33: 0000000000002000 | BD33: LMA-17028-I-2105-0028 | BE33: =VLOOKUP(G33,'Listes déroulantes'!G:M,7,FALSE) ->  | BF33: 220922 | BG33: 000000 | BI33: 0000000000002000 | BJ33: 0000000000002000 | BN33: 000000000000 | BO33: 000000000000 | BQ33: 00000 | BR33: 4643216546131356461 | BS33: 20220922 | BT33: 000028 | BU33: 002252 | BW33: 000000000000 | BX33: 000000000000 | CB33: 20228380156
A34: Enregistrement 27 | B34: NON | C34: CRE NON ACTIF | D34: RefundChargeback | E34: 2022-09-22 | F34: CB | G34: CM_12_RMFEC VAD | H34: 50 | I34: 0 | J34: 0.1 | K34: 0045 | L34: CRE 27 | M34: 14 | N34: 000000 | O34: Z1 | P34: 17028 | Q34: 17028 | R34: XA | S34: CR1 | U34: 09 | V34: 03 | W34: 2 | X34: 17028 | Y34: 92282 | Z34: 513264KHYODHNJ31337 | AA34: 20220921 | AB34: =VLOOKUP(G34,'Listes déroulantes'!G:I,3,FALSE) -> 60925700180001 | AC34: 0000000000005000 | AD34: 978 | AE34: 2 | AF34: IM | AG34: S | AH34: af2342567917 | AI34: AVO | AJ34: 20220922 | AK34: =VLOOKUP(G34,'Listes déroulantes'!G:O,9,FALSE) -> 8 RUE LOUBET | AL34: 13 | AM34: FRA | AN34: =VLOOKUP(G34,'Listes déroulantes'!G:H,2,FALSE) -> CM_12_RMFEC | AO34: 428648970597 | AP34: 0045 | AQ34: 1 | AR34: 17028 | AS34: 92282 | AT34: =VLOOKUP(G34,'Listes déroulantes'!G:N,8,FALSE) -> 28293060134 | AU34: 93 | AV34: 001 | AX34: =VLOOKUP(G34,'Listes déroulantes'!G:J,4,FALSE) -> 9256020 | BA34: EUR | BB34: 02 | BC34: 0000000000004990 | BD34: LMA-17028-I-2105-0029 | BE34: =VLOOKUP(G34,'Listes déroulantes'!G:M,7,FALSE) -> CM_12_RMFEC VAD | BF34: 220922 | BG34: 000000 | BI34: 0000000000005000 | BJ34: 0000000000005000 | BN34: 000000000000 | BO34: 000000000010 | BQ34: 00000 | BR34: 4643216546131356461 | BS34: 20220922 | BT34: 000029 | BU34: 500030561252209210300 | BW34: 000000000000 | BX34: 000000000000 | CB34: 20228380157
A35: Enregistrement 28 | B35: NON | C35: CRE NON ACTIF | D35: RefundChargeback | E35: 2022-09-22 | F35: CB | G35: CM_14_RMFEC VAD | H35: 22.5 | I35: 0 | J35: 0.05 | K35: 0045 | L35: CRE 28 | M35: 14 | N35: 000000 | O35: Z1 | P35: 17028 | Q35: 17028 | R35: XA | S35: CR1 | U35: 09 | V35: 03 | W35: 2 | X35: 17028 | Y35: 92282 | Z35: 513264KHYODHNJ31338 | AA35: 20220921 | AB35: =VLOOKUP(G35,'Listes déroulantes'!G:I,3,FALSE) -> 60927700180001 | AC35: 0000000000002250 | AD35: 978 | AE35: 2 | AF35: IM | AG35: S | AH35: af2342567918 | AI35: AVO | AJ35: 20220922 | AK35: =VLOOKUP(G35,'Listes déroulantes'!G:O,9,FALSE) -> 132 RUE VINCENT EUVR | AL35: 13 | AM35: FRA | AN35: =VLOOKUP(G35,'Listes déroulantes'!G:H,2,FALSE) -> CM_14_RMFEC | AO35: 428648970598 | AP35: 0045 | AQ35: 1 | AR35: 17028 | AS35: 92282 | AT35: =VLOOKUP(G35,'Listes déroulantes'!G:N,8,FALSE) -> 28293060135 | AU35: 93 | AV35: 001 | AX35: =VLOOKUP(G35,'Listes déroulantes'!G:J,4,FALSE) -> 9256024 | BA35: EUR | BB35: 02 | BC35: 0000000000002245 | BD35: LMA-17028-I-2105-0030 | BE35: =VLOOKUP(G35,'Listes déroulantes'!G:M,7,FALSE) -> CM_14_RMFEC VAD | BF35: 220922 | BG35: 000000 | BI35: 0000000000002250 | BJ35: 0000000000002250 | BN35: 000000000000 | BO35: 000000000005 | BQ35: 00000 | BR35: 4643216546131356461 | BS35: 20220922 | BT35: 000030 | BU35: 500030561252209210300 | BW35: 000000000000 | BX35: 000000000000 | CB35: 20228380158
A36: Enregistrement 29 | B36: NON | C36: CRE NON ACTIF | D36: RefundChargeback | E36: 2022-09-22 | F36: CB | G36: CM_24b VAD | H36: 22.5 | I36: 0 | J36: 0.05 | K36: 0045 | L36: CRE 29 | M36: 14 | N36: 000000 | O36: Z1 | P36: 17028 | Q36: 17028 | R36: XA | S36: CR1 | U36: 09 | V36: 03 | W36: 2 | X36: 17028 | Y36: 92282 | Z36: 513264KHYODHNJ31339 | AA36: 20220921 | AB36: =VLOOKUP(G36,'Listes déroulantes'!G:I,3,FALSE) ->  | AC36: 0000000000002250 | AD36: 978 | AE36: 2 | AF36: IM | AG36: S | AH36: af2342567919 | AI36: AVO | AJ36: 20220922 | AK36: =VLOOKUP(G36,'Listes déroulantes'!G:O,9,FALSE) ->  | AL36: 13 | AM36: FRA | AN36: =VLOOKUP(G36,'Listes déroulantes'!G:H,2,FALSE) ->  | AO36: 428648970599 | AP36: 0045 | AQ36: 1 | AR36: 17028 | AS36: 92282 | AT36: =VLOOKUP(G36,'Listes déroulantes'!G:N,8,FALSE) ->  | AU36: 93 | AV36: 001 | AX36: =VLOOKUP(G36,'Listes déroulantes'!G:J,4,FALSE) ->  | BA36: EUR | BB36: 02 | BC36: 0000000000002245 | BD36: LMA-17028-I-2105-0031 | BE36: =VLOOKUP(G36,'Listes déroulantes'!G:M,7,FALSE) ->  | BF36: 220922 | BG36: 000000 | BI36: 0000000000002250 | BJ36: 0000000000002250 | BN36: 000000000000 | BO36: 000000000005 | BQ36: 00000 | BR36: 4643216546131356461 | BS36: 20220922 | BT36: 000031 | BU36: 500030561252209210300 | BW36: 000000000000 | BX36: 000000000000 | CB36: 20228380159
A37: Enregistrement 30 | B37: NON | C37: CRE NON ACTIF | D37: RefundChargeback | E37: 2022-06-13 | F37: MC | G37: SAS MONEXT PDP | H37: 259 | I37: 25 | J37: 1 | K37: 44 | L37: CRE 30 | M37: 14 | N37: 000000 | O37: X5 | P37: 17028 | Q37: 17028 | R37: XA | S37: CR1 | U37: 09 | V37: 03 | W37: 2 | X37: 17028 | Y37: 92282 | Z37: 513264KHYODHNJ31340 | AA37: 20220612 | AB37: =VLOOKUP(G37,'Listes déroulantes'!G:I,3,FALSE) -> 50318500100032 | AC37: 0000000000025900 | AD37: 978 | AE37: 2 | AF37: IM | AG37: I | AH37: af2342567920 | AI37: AVO | AJ37: 20220613 | AK37: =VLOOKUP(G37,'Listes déroulantes'!G:O,9,FALSE) -> 260 RUE CLAUDE NICOL | AL37: 13 | AM37: FRA | AN37: =VLOOKUP(G37,'Listes déroulantes'!G:H,2,FALSE) -> SAS MONEXT | AO37: 428648970600 | AP37: 44 | AQ37: 1 | AR37: 17028 | AS37: 92282 | AT37: =VLOOKUP(G37,'Listes déroulantes'!G:N,8,FALSE) -> 20289045644 | AU37: 93 | AV37: 001 | AX37: =VLOOKUP(G37,'Listes déroulantes'!G:J,4,FALSE) -> 9255001 | BA37: EUR | BB37: 02 | BC37: 0000000000025800 | BD37: LMA-17028-I-2105-0032 | BE37: =VLOOKUP(G37,'Listes déroulantes'!G:M,7,FALSE) -> MONEXT | BF37: 130622 | BG37: 000000 | BI37: 0000000000025900 | BJ37: 0000000000025900 | BN37: 000000000000 | BO37: 000000000100 | BQ37: 00000 | BR37: 4643216546131356461 | BS37: 20220613 | BT37: 000032 | BU37: 002252 | BW37: 000000002500 | BX37: 000000000000 | CB37: 20228380160
A38: Enregistrement 31 | B38: NON | C38: CRE NON ACTIF | D38: RefundChargeback | E38: 2021-06-22 | F38: MC | G38: SAS MONEXT PDP | H38: 260 | I38: 25 | J38: 1 | K38: 45 | L38: CRE 31 | M38: 14 | N38: 000000 | O38: X5 | P38: 17028 | Q38: 17028 | R38: XA | S38: CR1 | U38: 09 | V38: 03 | W38: 2 | X38: 17028 | Y38: 92282 | Z38: 513264KHYODHNJ31341 | AA38: 20210621 | AB38: =VLOOKUP(G38,'Listes déroulantes'!G:I,3,FALSE) -> 50318500100032 | AC38: 0000000000026000 | AD38: 978 | AE38: 2 | AF38: IM | AG38: I | AH38: af2342567921 | AI38: AVO | AJ38: 20210622 | AK38: =VLOOKUP(G38,'Listes déroulantes'!G:O,9,FALSE) -> 260 RUE CLAUDE NICOL | AL38: 13 | AM38: FRA | AN38: =VLOOKUP(G38,'Listes déroulantes'!G:H,2,FALSE) -> SAS MONEXT | AO38: 428648970601 | AP38: 45 | AQ38: 1 | AR38: 17028 | AS38: 92282 | AT38: =VLOOKUP(G38,'Listes déroulantes'!G:N,8,FALSE) -> 20289045644 | AU38: 93 | AV38: 001 | AX38: =VLOOKUP(G38,'Listes déroulantes'!G:J,4,FALSE) -> 9255001 | BA38: EUR | BB38: 02 | BC38: 0000000000025900 | BD38: LMA-17028-I-2105-0033 | BE38: =VLOOKUP(G38,'Listes déroulantes'!G:M,7,FALSE) -> MONEXT | BF38: 220621 | BG38: 000000 | BI38: 0000000000026000 | BJ38: 0000000000026000 | BN38: 000000000000 | BO38: 000000000100 | BQ38: 00000 | BR38: 4643216546131356461 | BS38: 20210622 | BT38: 000033 | BU38: 002252 | BW38: 000000002500 | BX38: 000000000000 | CB38: 20228380161
A39: Enregistrement 32 | B39: NON | C39: CRE NON ACTIF | D39: RefundChargeback | E39: 2021-06-22 | F39: MC | G39: SAS MONEXT PDP | H39: 261 | I39: 25 | J39: 1 | K39: 46 | L39: CRE 32 | M39: 14 | N39: 000000 | O39: X5 | P39: 17028 | Q39: 17028 | R39: XA | S39: CR1 | U39: 09 | V39: 03 | W39: 2 | X39: 17028 | Y39: 92282 | Z39: 513264KHYODHNJ31342 | AA39: 20210621 | AB39: =VLOOKUP(G39,'Listes déroulantes'!G:I,3,FALSE) -> 50318500100032 | AC39: 0000000000026100 | AD39: 978 | AE39: 2 | AF39: IM | AG39: I | AH39: af2342567922 | AI39: AVO | AJ39: 20210622 | AK39: =VLOOKUP(G39,'Listes déroulantes'!G:O,9,FALSE) -> 260 RUE CLAUDE NICOL | AL39: 13 | AM39: FRA | AN39: =VLOOKUP(G39,'Listes déroulantes'!G:H,2,FALSE) -> SAS MONEXT | AO39: 428648970602 | AP39: 46 | AQ39: 1 | AR39: 17028 | AS39: 92282 | AT39: =VLOOKUP(G39,'Listes déroulantes'!G:N,8,FALSE) -> 20289045644 | AU39: 93 | AV39: 001 | AX39: =VLOOKUP(G39,'Listes déroulantes'!G:J,4,FALSE) -> 9255001 | BA39: EUR | BB39: 02 | BC39: 0000000000026000 | BD39: LMA-17028-I-2105-0034 | BE39: =VLOOKUP(G39,'Listes déroulantes'!G:M,7,FALSE) -> MONEXT | BF39: 220621 | BG39: 000000 | BI39: 0000000000026100 | BJ39: 0000000000026100 | BN39: 000000000000 | BO39: 000000000100 | BQ39: 00000 | BR39: 4643216546131356461 | BS39: 20210622 | BT39: 000034 | BU39: 002252 | BW39: 000000002500 | BX39: 000000000000 | CB39: 20228380162
A40: Enregistrement 33 | B40: NON | C40: CRE NON ACTIF | D40: RefundChargeback | E40: 2021-06-22 | F40: MC | G40: SAS MONEXT PDP | H40: 262 | I40: 25 | J40: 1 | K40: 47 | L40: CRE 33 | M40: 14 | N40: 000000 | O40: X5 | P40: 17028 | Q40: 17028 | R40: XA | S40: CR1 | U40: 09 | V40: 03 | W40: 2 | X40: 17028 | Y40: 92282 | Z40: 513264KHYODHNJ31343 | AA40: 20210621 | AB40: =VLOOKUP(G40,'Listes déroulantes'!G:I,3,FALSE) -> 50318500100032 | AC40: 0000000000026200 | AD40: 978 | AE40: 2 | AF40: IM | AG40: I | AH40: af2342567923 | AI40: AVO | AJ40: 20210622 | AK40: =VLOOKUP(G40,'Listes déroulantes'!G:O,9,FALSE) -> 260 RUE CLAUDE NICOL | AL40: 13 | AM40: FRA | AN40: =VLOOKUP(G40,'Listes déroulantes'!G:H,2,FALSE) -> SAS MONEXT | AO40: 428648970603 | AP40: 47 | AQ40: 1 | AR40: 17028 | AS40: 92282 | AT40: =VLOOKUP(G40,'Listes déroulantes'!G:N,8,FALSE) -> 20289045644 | AU40: 93 | AV40: 001 | AX40: =VLOOKUP(G40,'Listes déroulantes'!G:J,4,FALSE) -> 9255001 | BA40: EUR | BB40: 02 | BC40: 0000000000026100 | BD40: LMA-17028-I-2105-0035 | BE40: =VLOOKUP(G40,'Listes déroulantes'!G:M,7,FALSE) -> MONEXT | BF40: 220621 | BG40: 000000 | BI40: 0000000000026200 | BJ40: 0000000000026200 | BN40: 000000000000 | BO40: 000000000100 | BQ40: 00000 | BR40: 4643216546131356461 | BS40: 20210622 | BT40: 000035 | BU40: 002252 | BW40: 000000002500 | BX40: 000000000000 | CB40: 20228380163
A41: Enregistrement 34 | B41: NON | C41: CRE NON ACTIF | D41: RefundChargeback | E41: 2021-06-22 | F41: MC | G41: SAS MONEXT PDP | H41: 263 | I41: 25 | J41: 1 | K41: 48 | L41: CRE 34 | M41: 14 | N41: 000000 | O41: X5 | P41: 17028 | Q41: 17028 | R41: XA | S41: CR1 | U41: 09 | V41: 03 | W41: 2 | X41: 17028 | Y41: 92282 | Z41: 513264KHYODHNJ31344 | AA41: 20210621 | AB41: =VLOOKUP(G41,'Listes déroulantes'!G:I,3,FALSE) -> 50318500100032 | AC41: 0000000000026300 | AD41: 978 | AE41: 2 | AF41: IM | AG41: I | AH41: af2342567924 | AI41: AVO | AJ41: 20210622 | AK41: =VLOOKUP(G41,'Listes déroulantes'!G:O,9,FALSE) -> 260 RUE CLAUDE NICOL | AL41: 13 | AM41: FRA | AN41: =VLOOKUP(G41,'Listes déroulantes'!G:H,2,FALSE) -> SAS MONEXT | AO41: 428648970604 | AP41: 48 | AQ41: 1 | AR41: 17028 | AS41: 92282 | AT41: =VLOOKUP(G41,'Listes déroulantes'!G:N,8,FALSE) -> 20289045644 | AU41: 93 | AV41: 001 | AX41: =VLOOKUP(G41,'Listes déroulantes'!G:J,4,FALSE) -> 9255001 | BA41: EUR | BB41: 02 | BC41: 0000000000026200 | BD41: LMA-17028-I-2105-0036 | BE41: =VLOOKUP(G41,'Listes déroulantes'!G:M,7,FALSE) -> MONEXT | BF41: 220621 | BG41: 000000 | BI41: 0000000000026300 | BJ41: 0000000000026300 | BN41: 000000000000 | BO41: 000000000100 | BQ41: 00000 | BR41: 4643216546131356461 | BS41: 20210622 | BT41: 000036 | BU41: 002252 | BW41: 000000002500 | BX41: 000000000000 | CB41: 20228380164
A42: Enregistrement 35 | B42: NON | C42: CRE NON ACTIF | D42: RefundChargeback | E42: 2021-06-22 | F42: MC | G42: SAS MONEXT PDP | H42: 264 | I42: 25 | J42: 1 | K42: 49 | L42: CRE 35 | M42: 14 | N42: 000000 | O42: X5 | P42: 17028 | Q42: 17028 | R42: XA | S42: CR1 | U42: 09 | V42: 03 | W42: 2 | X42: 17028 | Y42: 92282 | Z42: 513264KHYODHNJ31345 | AA42: 20210621 | AB42: =VLOOKUP(G42,'Listes déroulantes'!G:I,3,FALSE) -> 50318500100032 | AC42: 0000000000026400 | AD42: 978 | AE42: 2 | AF42: IM | AG42: I | AH42: af2342567925 | AI42: AVO | AJ42: 20210622 | AK42: =VLOOKUP(G42,'Listes déroulantes'!G:O,9,FALSE) -> 260 RUE CLAUDE NICOL | AL42: 13 | AM42: FRA | AN42: =VLOOKUP(G42,'Listes déroulantes'!G:H,2,FALSE) -> SAS MONEXT | AO42: 428648970605 | AP42: 49 | AQ42: 1 | AR42: 17028 | AS42: 92282 | AT42: =VLOOKUP(G42,'Listes déroulantes'!G:N,8,FALSE) -> 20289045644 | AU42: 93 | AV42: 001 | AX42: =VLOOKUP(G42,'Listes déroulantes'!G:J,4,FALSE) -> 9255001 | BA42: EUR | BB42: 02 | BC42: 0000000000026300 | BD42: LMA-17028-I-2105-0037 | BE42: =VLOOKUP(G42,'Listes déroulantes'!G:M,7,FALSE) -> MONEXT | BF42: 220621 | BG42: 000000 | BI42: 0000000000026400 | BJ42: 0000000000026400 | BN42: 000000000000 | BO42: 000000000100 | BQ42: 00000 | BR42: 4643216546131356461 | BS42: 20210622 | BT42: 000037 | BU42: 002252 | BW42: 000000002500 | BX42: 000000000000 | CB42: 20228380165
A43: Enregistrement 36 | B43: NON | C43: CRE NON ACTIF | D43: RefundChargeback | E43: 2021-06-22 | F43: MC | G43: SAS MONEXT PDP | H43: 265 | I43: 25 | J43: 1 | K43: 50 | L43: CRE 36 | M43: 14 | N43: 000000 | O43: X5 | P43: 17028 | Q43: 17028 | R43: XA | S43: CR1 | U43: 09 | V43: 03 | W43: 2 | X43: 17028 | Y43: 92282 | Z43: 513264KHYODHNJ31346 | AA43: 20210621 | AB43: =VLOOKUP(G43,'Listes déroulantes'!G:I,3,FALSE) -> 50318500100032 | AC43: 0000000000026500 | AD43: 978 | AE43: 2 | AF43: IM | AG43: I | AH43: af2342567926 | AI43: AVO | AJ43: 20210622 | AK43: =VLOOKUP(G43,'Listes déroulantes'!G:O,9,FALSE) -> 260 RUE CLAUDE NICOL | AL43: 13 | AM43: FRA | AN43: =VLOOKUP(G43,'Listes déroulantes'!G:H,2,FALSE) -> SAS MONEXT | AO43: 428648970606 | AP43: 50 | AQ43: 1 | AR43: 17028 | AS43: 92282 | AT43: =VLOOKUP(G43,'Listes déroulantes'!G:N,8,FALSE) -> 20289045644 | AU43: 93 | AV43: 001 | AX43: =VLOOKUP(G43,'Listes déroulantes'!G:J,4,FALSE) -> 9255001 | BA43: EUR | BB43: 02 | BC43: 0000000000026400 | BD43: LMA-17028-I-2105-0038 | BE43: =VLOOKUP(G43,'Listes déroulantes'!G:M,7,FALSE) -> MONEXT | BF43: 220621 | BG43: 000000 | BI43: 0000000000026500 | BJ43: 0000000000026500 | BN43: 000000000000 | BO43: 000000000100 | BQ43: 00000 | BR43: 4643216546131356461 | BS43: 20210622 | BT43: 000038 | BU43: 002252 | BW43: 000000002500 | BX43: 000000000000 | CB43: 20228380166
A44: Enregistrement 37 | B44: NON | C44: CRE NON ACTIF | D44: RefundChargeback | E44: 2021-06-22 | F44: MC | G44: SAS MONEXT PDP | H44: 266 | I44: 25 | J44: 1 | K44: 51 | L44: CRE 37 | M44: 14 | N44: 000000 | O44: X5 | P44: 17028 | Q44: 17028 | R44: XA | S44: CR1 | U44: 09 | V44: 03 | W44: 2 | X44: 17028 | Y44: 92282 | Z44: 513264KHYODHNJ31347 | AA44: 20210621 | AB44: =VLOOKUP(G44,'Listes déroulantes'!G:I,3,FALSE) -> 50318500100032 | AC44: 0000000000026600 | AD44: 978 | AE44: 2 | AF44: IM | AG44: I | AH44: af2342567927 | AI44: AVO | AJ44: 20210622 | AK44: =VLOOKUP(G44,'Listes déroulantes'!G:O,9,FALSE) -> 260 RUE CLAUDE NICOL | AL44: 13 | AM44: FRA | AN44: =VLOOKUP(G44,'Listes déroulantes'!G:H,2,FALSE) -> SAS MONEXT | AO44: 428648970607 | AP44: 51 | AQ44: 1 | AR44: 17028 | AS44: 92282 | AT44: =VLOOKUP(G44,'Listes déroulantes'!G:N,8,FALSE) -> 20289045644 | AU44: 93 | AV44: 001 | AX44: =VLOOKUP(G44,'Listes déroulantes'!G:J,4,FALSE) -> 9255001 | BA44: EUR | BB44: 02 | BC44: 0000000000026500 | BD44: LMA-17028-I-2105-0039 | BE44: =VLOOKUP(G44,'Listes déroulantes'!G:M,7,FALSE) -> MONEXT | BF44: 220621 | BG44: 000000 | BI44: 0000000000026600 | BJ44: 0000000000026600 | BN44: 000000000000 | BO44: 000000000100 | BQ44: 00000 | BR44: 4643216546131356461 | BS44: 20210622 | BT44: 000039 | BU44: 002252 | BW44: 000000002500 | BX44: 000000000000 | CB44: 20228380167
A45: Enregistrement 38 | B45: NON | C45: CRE NON ACTIF | D45: RefundChargeback | E45: 2021-06-22 | F45: MC | G45: SAS MONEXT PDP | H45: 267 | I45: 25 | J45: 1 | K45: 52 | L45: CRE 38 | M45: 14 | N45: 000000 | O45: X5 | P45: 17028 | Q45: 17028 | R45: XA | S45: CR1 | U45: 09 | V45: 03 | W45: 2 | X45: 17028 | Y45: 92282 | Z45: 513264KHYODHNJ31348 | AA45: 20210621 | AB45: =VLOOKUP(G45,'Listes déroulantes'!G:I,3,FALSE) -> 50318500100032 | AC45: 0000000000026700 | AD45: 978 | AE45: 2 | AF45: IM | AG45: I | AH45: af2342567928 | AI45: AVO | AJ45: 20210622 | AK45: =VLOOKUP(G45,'Listes déroulantes'!G:O,9,FALSE) -> 260 RUE CLAUDE NICOL | AL45: 13 | AM45: FRA | AN45: =VLOOKUP(G45,'Listes déroulantes'!G:H,2,FALSE) -> SAS MONEXT | AO45: 428648970608 | AP45: 52 | AQ45: 1 | AR45: 17028 | AS45: 92282 | AT45: =VLOOKUP(G45,'Listes déroulantes'!G:N,8,FALSE) -> 20289045644 | AU45: 93 | AV45: 001 | AX45: =VLOOKUP(G45,'Listes déroulantes'!G:J,4,FALSE) -> 9255001 | BA45: EUR | BB45: 02 | BC45: 0000000000026600 | BD45: LMA-17028-I-2105-0040 | BE45: =VLOOKUP(G45,'Listes déroulantes'!G:M,7,FALSE) -> MONEXT | BF45: 220621 | BG45: 000000 | BI45: 0000000000026700 | BJ45: 0000000000026700 | BN45: 000000000000 | BO45: 000000000100 | BQ45: 00000 | BR45: 4643216546131356461 | BS45: 20210622 | BT45: 000040 | BU45: 002252 | BW45: 000000002500 | BX45: 000000000000 | CB45: 20228380168
A46: Enregistrement 39 | B46: NON | C46: CRE NON ACTIF | D46: RefundChargeback | E46: 2021-06-22 | F46: MC | G46: SAS MONEXT PDP | H46: 268 | I46: 25 | J46: 1 | K46: 53 | L46: CRE 39 | M46: 14 | N46: 000000 | O46: X5 | P46: 17028 | Q46: 17028 | R46: XA | S46: CR1 | U46: 09 | V46: 03 | W46: 2 | X46: 17028 | Y46: 92282 | Z46: 513264KHYODHNJ31349 | AA46: 20210621 | AB46: =VLOOKUP(G46,'Listes déroulantes'!G:I,3,FALSE) -> 50318500100032 | AC46: 0000000000026800 | AD46: 978 | AE46: 2 | AF46: IM | AG46: I | AH46: af2342567929 | AI46: AVO | AJ46: 20210622 | AK46: =VLOOKUP(G46,'Listes déroulantes'!G:O,9,FALSE) -> 260 RUE CLAUDE NICOL | AL46: 13 | AM46: FRA | AN46: =VLOOKUP(G46,'Listes déroulantes'!G:H,2,FALSE) -> SAS MONEXT | AO46: 428648970609 | AP46: 53 | AQ46: 1 | AR46: 17028 | AS46: 92282 | AT46: =VLOOKUP(G46,'Listes déroulantes'!G:N,8,FALSE) -> 20289045644 | AU46: 93 | AV46: 001 | AX46: =VLOOKUP(G46,'Listes déroulantes'!G:J,4,FALSE) -> 9255001 | BA46: EUR | BB46: 02 | BC46: 0000000000026700 | BD46: LMA-17028-I-2105-0041 | BE46: =VLOOKUP(G46,'Listes déroulantes'!G:M,7,FALSE) -> MONEXT | BF46: 220621 | BG46: 000000 | BI46: 0000000000026800 | BJ46: 0000000000026800 | BN46: 000000000000 | BO46: 000000000100 | BQ46: 00000 | BR46: 4643216546131356461 | BS46: 20210622 | BT46: 000041 | BU46: 002252 | BW46: 000000002500 | BX46: 000000000000 | CB46: 20228380169
A47: Enregistrement 40 | B47: NON | C47: CRE NON ACTIF | D47: RefundChargeback | E47: 2021-06-22 | F47: MC | G47: SAS MONEXT PDP | H47: 269 | I47: 25 | J47: 1 | K47: 54 | L47: CRE 40 | M47: 14 | N47: 000000 | O47: X5 | P47: 17028 | Q47: 17028 | R47: XA | S47: CR1 | U47: 09 | V47: 03 | W47: 2 | X47: 17028 | Y47: 92282 | Z47: 513264KHYODHNJ31350 | AA47: 20210621 | AB47: =VLOOKUP(G47,'Listes déroulantes'!G:I,3,FALSE) -> 50318500100032 | AC47: 0000000000026900 | AD47: 978 | AE47: 2 | AF47: IM | AG47: I | AH47: af2342567930 | AI47: AVO | AJ47: 20210622 | AK47: =VLOOKUP(G47,'Listes déroulantes'!G:O,9,FALSE) -> 260 RUE CLAUDE NICOL | AL47: 13 | AM47: FRA | AN47: =VLOOKUP(G47,'Listes déroulantes'!G:H,2,FALSE) -> SAS MONEXT | AO47: 428648970610 | AP47: 54 | AQ47: 1 | AR47: 17028 | AS47: 92282 | AT47: =VLOOKUP(G47,'Listes déroulantes'!G:N,8,FALSE) -> 20289045644 | AU47: 93 | AV47: 001 | AX47: =VLOOKUP(G47,'Listes déroulantes'!G:J,4,FALSE) -> 9255001 | BA47: EUR | BB47: 02 | BC47: 0000000000026800 | BD47: LMA-17028-I-2105-0042 | BE47: =VLOOKUP(G47,'Listes déroulantes'!G:M,7,FALSE) -> MONEXT | BF47: 220621 | BG47: 000000 | BI47: 0000000000026900 | BJ47: 0000000000026900 | BN47: 000000000000 | BO47: 000000000100 | BQ47: 00000 | BR47: 4643216546131356461 | BS47: 20210622 | BT47: 000042 | BU47: 002252 | BW47: 000000002500 | BX47: 000000000000 | CB47: 20228380170
A48: Enregistrement 41 | B48: NON | C48: CRE NON ACTIF | D48: RefundChargeback | E48: 2021-06-22 | F48: MC | G48: SAS MONEXT PDP | H48: 270 | I48: 25 | J48: 1 | K48: 55 | L48: CRE 41 | M48: 14 | N48: 000000 | O48: X5 | P48: 17028 | Q48: 17028 | R48: XA | S48: CR1 | U48: 09 | V48: 03 | W48: 2 | X48: 17028 | Y48: 92282 | Z48: 513264KHYODHNJ31351 | AA48: 20210621 | AB48: =VLOOKUP(G48,'Listes déroulantes'!G:I,3,FALSE) -> 50318500100032 | AC48: 0000000000027000 | AD48: 978 | AE48: 2 | AF48: IM | AG48: I | AH48: af2342567931 | AI48: AVO | AJ48: 20210622 | AK48: =VLOOKUP(G48,'Listes déroulantes'!G:O,9,FALSE) -> 260 RUE CLAUDE NICOL | AL48: 13 | AM48: FRA | AN48: =VLOOKUP(G48,'Listes déroulantes'!G:H,2,FALSE) -> SAS MONEXT | AO48: 428648970611 | AP48: 55 | AQ48: 1 | AR48: 17028 | AS48: 92282 | AT48: =VLOOKUP(G48,'Listes déroulantes'!G:N,8,FALSE) -> 20289045644 | AU48: 93 | AV48: 001 | AX48: =VLOOKUP(G48,'Listes déroulantes'!G:J,4,FALSE) -> 9255001 | BA48: EUR | BB48: 02 | BC48: 0000000000026900 | BD48: LMA-17028-I-2105-0043 | BE48: =VLOOKUP(G48,'Listes déroulantes'!G:M,7,FALSE) -> MONEXT | BF48: 220621 | BG48: 000000 | BI48: 0000000000027000 | BJ48: 0000000000027000 | BN48: 000000000000 | BO48: 000000000100 | BQ48: 00000 | BR48: 4643216546131356461 | BS48: 20210622 | BT48: 000043 | BU48: 002252 | BW48: 000000002500 | BX48: 000000000000 | CB48: 20228380171
BX51: =LEN(BX8) -> 12
BU53: =LEN(BU14) -> 25

Sheet Création CRE IMP RT
A1: CRE CONCATENE (données de sortie) | E1: DONNEES PARAMETRABLES | M1: CRE DECOUPE (détails intermédiaires)
L2: Début | M2: 1 | N2: 3 | O2: 9 | P2: 11 | Q2: 16 | R2: 21 | S2: 23 | T2: 26 | U2: 30 | V2: 32 | W2: 34 | X2: 35 | Y2: 40 | Z2: 45 | AA2: 64 | AB2: 72 | AC2: 87 | AD2: 103 | AE2: 106 | AF2: 107 | AG2: 110 | AH2: 111 | AI2: 134 | AJ2: 137 | AK2: 145 | AL2: 165 | AM2: 167 | AN2: 170 | AO2: 190 | AP2: 202 | AQ2: 206 | AR2: 207 | AS2: 212 | AT2: 217 | AU2: 228 | AV2: 230 | AW2: 233 | AX2: 239 | AY2: 249 | AZ2: 252 | BA2: 286 | BB2: 289 | BC2: 291 | BD2: 307 | BE2: 328 | BF2: 352 | BG2: 358 | BH2: 364 | BI2: 369 | BJ2: 385 | BK2: 401 | BL2: 402 | BM2: 406 | BN2: 414 | BO2: 426 | BP2: 438 | BQ2: 439 | BR2: 444 | BS2: 463 | BT2: 471 | BU2: 477 | BV2: 502 | BW2: 670 | BX2: 682
L3: Lg | M3: 2 | N3: 6 | O3: 2 | P3: 5 | Q3: 5 | R3: 2 | S3: 3 | T3: 4 | U3: 2 | V3: 2 | W3: 1 | X3: 5 | Y3: 5 | Z3: 19 | AA3: 8 | AB3: 15 | AC3: 16 | AD3: 3 | AE3: 1 | AF3: 3 | AG3: 1 | AH3: 23 | AI3: 3 | AJ3: 8 | AK3: 20 | AL3: 2 | AM3: 3 | AN3: 20 | AO3: 12 | AP3: 4 | AQ3: 1 | AR3: 5 | AS3: 5 | AT3: 11 | AU3: 2 | AV3: 3 | AW3: 6 | AX3: 10 | AY3: 3 | AZ3: 34 | BA3: 3 | BB3: 2 | BC3: 16 | BD3: 21 | BE3: 24 | BF3: 6 | BG3: 6 | BH3: 5 | BI3: 16 | BJ3: 16 | BK3: 1 | BL3: 4 | BM3: 8 | BN3: 12 | BO3: 12 | BP3: 1 | BQ3: 5 | BR3: 19 | BS3: 8 | BT3: 6 | BU3: 25 | BV3: 168 | BW3: 12 | BX3: 320
L4: Specification | M4: ‘14’ | N4: 0 | O4: Domestique : « Z4 » : Décisions émises MasterCard : « X1 » : Décisions émises Visa : « X2 » : Décisions émises | P4: Code banque de domiciliation du porteur | Q4: Code banque de domiciliation du commerçant | R4: ‘XA’ Impayé RT | S4: RP1 Repr Impayé « 100 », « 102 » AR1 annulation représenattion si S04 = « 400 », « 402 » IC1 : Imputation commerçant AI1 : Annulation imputation commerçant PPT : perte et profit si imputation banque (un autre CRE) | T4: Spaces | U4: ? Spec en écart avec observation de prod | V4: ? Spec en écart avec observation de prod | W4: ? Spec en écart avec observation de prod | X4: Code établissement gestionnaire de l’acquéreur | Y4: CDGUICH de l’impayé | Z4: Numéro de carte porteur de l'impayé : si généré en 16 caractères alors paddé à droite avec les espaces PAN est tokénisé | AA4: Date de vente (SSAAMMJJ) pour une transaction de litige Date de remise pour une remise de paiement ou de retrait | AB4: SIRET de l’impayé | AC4: Montant brut en centimes correspondant à l’opération de : '- CR1 : Impayé (ou AOCT impayé) du montant brut de l’impayé partiel ou total reçu '- RP1 : Représentation ou AOCT de représentation montant brut de la représentation (correspondant au montant total ou partiel de l’impayé reçu) '- IC1 : Imputation commerçant è montant brut de l’impayé partiel ou total reçu '- PPT : Perte et profit du montant brut de l’impayé partiel ou total reçu '- AI1 : Annulation imputation commerçant du montant brut de l’impayé partiel ou total reçu | AD4: "978" | AE4: Nombre de décimales du montant brut | AF4: ? Spec en écart avec observation de prod | AG4: Code réseau de l'impayé | AH4: NUARN de l’impayé | AI4: FAC = 100 ou 402 AVO = 102 ou 400 | AJ4: Selon le réseau au format SSAAMMJJ | AK4: LILOCA de l’impayé | AL4: CDDEPT de l’impayé | AM4: CDPAYS de l’impayé | AN4: RAISOA de l’impayé | AO4: NURFI2 de l’impayé | AP4: Motif de l’impayé dans la codification du format de compensation reçu | AQ4: 1 : first chargeback 2 : second chargeback | AR4: Code banque issu du référentiel commerçant par rapport au SIRET | AS4: Code siège du RIB issu du référentiel commerçant par rapport au SIRET | AT4: Numéro de compte du RIB issu du référentiel commerçant par rapport au SIRET | AU4: Clé RIB calculée (YD04-CLRIBA) en se servant des informations issues du référentiel commerçant par rapport au SIRET | AV4: Numéro de terminal pour une remise commerçant | AW4: spaces | AX4: NUMCO de l'impayé | AY4: Code ICA de l’impayé reçu | AZ4: A blanc pour l’instant | BA4: Devise du montant compensé de l’impayé reçu en code ISO 3166-1 | BB4: NB décimale du montant compensé de l’impayé reçu | BC4: Montant compensé de l’impayé reçu | BD4: ex : LMA-16638-I-1911-0009 | BF4: Format : JJMMAA | BG4: Donnée uniquement pour les remises commerçant ou retrait | BH4: Donnée uniquement pour les remises commerçant ou retrait | BI4: Donnée uniquement pour les remises commerçant ou retrait | BJ4: Montant brut en euro | BK4: Code usage | BL4: Indique si le litige est géré dans LMA ou dans un outil réseau (VROL pour Visa) « LMA » si géré dans LMA « RSX » si géré dans les outils Réseaux (VROL pour Visa) | BM4: DTCERE de la transaction mis sous le format ssaammjj (non rempli pour imp) | BN4: Pas de comm commerçant | BO4: Différence entre (montant brut en euro et montant compensé) sur 2 décimales | BP4: spaces | BQ4: Code établissement gestionnaire de l’acquéreur | BR4: numéro de carte porteur : si généré du 16 caractères, complété par des blancs | BS4: Date d’enregistrement de la transaction dans les tables au format SSAAMMJJ | BT4: Numéro attribué à l’impayé : ce numéro est crée par LMA lors de la prise en compte de l’impayé | BU4: Identifiant de remise issue de l’header CB2C | BW4: Correspond au montant des frais d'impayé parametré dans la grille tarifiare du commerçant et alimenté par le module tarifiare. 2 décimales
L5: Libellé | M5: Code type d’enregistrement | N5: Numéro séquentiel | O5: Code opération | P5: Code banque émetteur | Q5: Code banque destinataire | R5: Code application échange | S5: Code sous application | U5: Code origine flux | V5: Code destination flux | W5: Code nature de flux comptable | X5: Code établissement | Y5: Guichet accepteur | Z5: Numéro de carte | AA5: Date de vente | AB5: SIRET | AC5: Montant brut | AD5: Devise de réconciliation nationale liée au montant brut | AE5: Nombre de décimales du montant brut | AF5: Type opération | AG5: Code réseau | AH5: Référence archivage | AI5: Code opération interne | AJ5: Date de règlement interbancaire | AK5: Localisation | AL5: Code département | AM5: Code pays | AN5: Raison sociale | AO5: Référence impayé reçue | AP5: Motif impayé | AQ5: Code cycle impayé | AR5: Code établissement du RIB | AS5: Code Guichet du RIB | AT5: Numéro de compte | AU5: Clé RIB | AV5: Numéro de terminal | AW5: Filler | AX5: Numéro de contrat accepteur | AY5: Code ICA | AZ5: IBAN | BA5: Devise du montant compensé | BB5: nombre décimal mt compensé | BC5: Montant compensé | BD5: Référence externe | BE5: Nom du commerçant | BF5: Date de Valeur | BG5: Nombre de factures | BH5: Numéro de remise | BI5: Montant net | BJ5: Montant brut en euro | BK5: Code usage | BL5: Mode de Traitement du Litige | BM5: Date envoi en compensation | BN5: Montant commission commerçant | BO5: Montant commission Interchange | BP5: Type de porteur | BQ5: code établissement | BR5: Numéro de carte | BS5: Date archivage | BT5: Numéro séquentiel | BU5: Identifiant de Remise | BV5: FILLER | BW5: Montant Frais d'impayé | BX5: FILLER
A6: Mode d'alimentation de ce fichier | C6: Généré automatiquement, nb de ligne voulu à copier coller dans Notepad) | D6: Fixe | E6: Variable à saisir JJ/MM/AAAA | F6: Variable liste déroulante | G6: Variable liste déroulante | H6: Variable à saisir 0,00 | I6: Variable à saisir 0,00 | J6: Variable à saisir 0,00 | K6: Variable à saisir | L6: Mode d'alimentation de ce fichier | M6: FIXE | N6: FIXE | O6: FIXE | P6: FIXE | Q6: FIXE | R6: FIXE | S6: FIXE | T6: FIXE | U6: FIXE | V6: FIXE | W6: FIXE | X6: FIXE | Y6: FIXE | Z6: FIXE | AA6: DEDUITE | AB6: DEDUITE | AC6: DEDUITE | AD6: FIXE | AE6: FIXE | AF6: FIXE | AG6: FIXE | AH6: FIXE | AI6: FIXE | AJ6: DEDUITE | AK6: FIXE | AL6: FIXE | AM6: FIXE | AN6: DEDUITE | AO6: FIXE | AP6: FIXE | AQ6: FIXE | AR6: FIXE | AS6: FIXE | AT6: DEDUITE | AU6: DEDUITE | AV6: FIXE | AW6: FIXE | AX6: DEDUITE | AY6: FIXE | AZ6: FIXE | BA6: FIXE | BB6: FIXE | BC6: DEDUITE | BD6: FIXE | BE6: DEDUITE | BF6: DEDUITE | BG6: FIXE | BH6: FIXE | BI6: DEDUITE | BJ6: DEDUITE | BK6: FIXE | BL6: FIXE | BM6: DEDUITE | BN6: DEDUITE | BP6: FIXE | BQ6: FIXE | BR6: DEDUITE | BS6: FIXE | BT6: FIXE | BU6: FIXE | BV6: FIXE | BW6: DEDUITE | BX6: FIXE
A7: CRE concerné | B7: CRE ACTIF | C7: CRE concaténé | D7: Opération (CDOPEI) | E7: Date de valeur de l'impayé (DTVAL) | F7: Réseau (IDSCPT) | G7: Commerçant | H7: Montant Brut impayé | I7: Montant Frais rejet à rembourser | J7: Montant interchange (non facturée au client) (MTINTVMC) | K7: Code motif impayé | L7: Code | M7: CEENR | N7: NUSQC | O7: CEOPE | P7: CEEMI | Q7: CEDES | R7: CEAPC | S7: CEMAP | T7: FILLER | U7: CECFTO | V7: CECFTD | W7: CDNAFL | X7: CDETB9 | Y7: CDGUICH | Z7: NUISOA | AA7: DTVEN | AB7: ZSIRET | AC7: MTBRUT | AD7: CDDEV | AE7: NBDEC | AF7: TYPOPE | AG7: IDSPCT | AH7: NUARN | AI7: CDOPEI | AJ7: DTREGLI | AK7: LILOCA | AL7: CDDEPT | AM7: CDPAYS | AN7: RAISOA | AO7: NURFI2 | AP7: COANO | AQ7: COCYIM | AR7: CEETRX | AS7: CEGUIX | AT7: NUCTEA | AU7: CLRIBX | AV7: NUTP | AW7: Filler | AX7: NUMCO | AY7: CDICA | AZ7: CDIBAN | BA7: CDDEVC | BB7: NBDECC | BC7: MTCOMP | BD7: REFEXT | BE7: NMCM | BF7: DTVL | BG7: NBFCT | BH7: NUREM | BI7: MTNT | BJ7: MTBREUR | BK7: DSPUSG | BL7: MDTRLT | BM7: DTCOMP | BN7: MTTTCITR | BO7: MTCOMINT | BP7: TYPO | BQ7: CDETB9 | BR7: NUISOA | BS7: DTARCH | BT7: NUSDI | BU7: IDREM | BV7: FILLER1 | BW7: FRAISIMP | BX7: FILLER
A8: Enregistrement 1 | B8: OUI | C8: =IF(B8="OUI",CONCATENATE(M8,N8,O8,P8,Q8,R8,S8,T8,U8,V8,W8,X8,Y8,Z8,AA8,AB8,AC8,AD8,AE8,AF8,AG8,AH8,AI8,AJ8,AK8,AL8,AM8,AN8,AO8,AP8,AQ8,AR8,AS8,AT8,AU8,AV8,AW8,AX8,AY8,AZ8,BA8,BB8,BC8,BD8,BE8,BF8,BG8,BH8,BI8,BJ8,BK8,BL8,BM8,BN8,BO8,BP8,BQ8,BR8,BS8,BT8,BU8,BV8,BW8,BX8),"CRE NON ACTIF") -> 14000000Z41702817028XAPPT 030731702892282513264KHYODHNJ313112022092160925700180001 00000000000025009782IM S af2342567891FAC202209228 RUE LOUBET 13FRACM_12_RMFEC 4286489705710045117028922822829306013493001 9256020 EUR020000000000002495LMA-17028-I-2105-0003CM_12_RMFEC VAD 220922000000 00000000000025000000000000002500 000000000000000000000005 00000464321654613135646120220922000003 000000000500 | D8: Impayés imputables Monext | E8: 2022-09-22 | F8: CB | G8: CM_12_RMFEC VAD | H8: 25 | I8: 5 | J8: 0.05 | K8: 0045 | L8: CRE 1 | M8: 14 | N8: 000000 | O8: =IF(F8="CB","Z4",IF(F8="MC","X1","X2")) -> Z4 | P8: 17028 | Q8: 17028 | R8: XA | S8: PPT | U8: 03 | V8: 07 | W8: 3 | X8: 17028 | Y8: 92282 | Z8: 513264KHYODHNJ31311 | AA8: =TEXT(E8-1,"aaaammjj") -> 20220921 | AB8: =VLOOKUP(G8,'Listes déroulantes'!G:I,3,FALSE) -> 60925700180001 | AC8: =RIGHT(CONCATENATE("0000000000000000",H8*100),16) -> 0000000000002500 | AD8: 978 | AE8: 2 | AF8: IM | AG8: =IF(F8="CB","S",IF(F8="MC","I","V")) -> S | AH8: af2342567891 | AI8: FAC | AJ8: =TEXT(E8,"aaaammjj") -> 20220922 | AK8: =VLOOKUP(G8,'Listes déroulantes'!G:O,9,FALSE) -> 8 RUE LOUBET | AL8: 13 | AM8: FRA | AN8: =VLOOKUP(G8,'Listes déroulantes'!G:H,2,FALSE) -> CM_12_RMFEC | AO8: 428648970571 | AP8: =K8 -> 0045 | AQ8: 1 | AR8: 17028 | AS8: 92282 | AT8: =VLOOKUP(G8,'Listes déroulantes'!G:N,8,FALSE) -> 28293060134 | AU8: 93 | AV8: 001 | AX8: =VLOOKUP(G8,'Listes déroulantes'!G:J,4,FALSE) -> 9256020 | BA8: EUR | BB8: 02 | BC8: =RIGHT(CONCATENATE("0000000000000000",(H8-J8)*100),16) -> 0000000000002495 | BD8: LMA-17028-I-2105-0003 | BE8: =VLOOKUP(G8,'Listes déroulantes'!G:M,7,FALSE) -> CM_12_RMFEC VAD | BF8: =TEXT(E8,"jjmmaa") -> 220922 | BG8: 000000 | BI8: =RIGHT(CONCATENATE("0000000000000000",H8*100),16) -> 0000000000002500 | BJ8: =RIGHT(CONCATENATE("0000000000000000",H8*100),16) -> 0000000000002500 | BN8: 000000000000 | BO8: =RIGHT(CONCATENATE("0000000000000000",J8*100),12) -> 000000000005 | BQ8: 00000 | BR8: 4643216546131356461 | BS8: =TEXT(E8,"aaaammjj") -> 20220922 | BT8: 000003 | BU8: =" " ->  | BW8: =RIGHT(CONCATENATE("0000000000000000",I8*100),12) -> 000000000500
A9: Enregistrement 2 | B9: OUI | C9: =IF(B9="OUI",CONCATENATE(M9,N9,O9,P9,Q9,R9,S9,T9,U9,V9,W9,X9,Y9,Z9,AA9,AB9,AC9,AD9,AE9,AF9,AG9,AH9,AI9,AJ9,AK9,AL9,AM9,AN9,AO9,AP9,AQ9,AR9,AS9,AT9,AU9,AV9,AW9,AX9,AY9,AZ9,BA9,BB9,BC9,BD9,BE9,BF9,BG9,BH9,BI9,BJ9,BK9,BL9,BM9,BN9,BO9,BP9,BQ9,BR9,BS9,BT9,BU9,BV9,BW9,BX9),"CRE NON ACTIF") -> 14000000Z41702817028XAPPT 030731702892282513264KHYODHNJ313122022092160923700180001 00000000000018009782IM S af2342567892FAC202209221 RUE AUDE 13FRACM_10_RMFEC 4286489705720045117028922822829306013293001 9256017 EUR020000000000001796LMA-17028-I-2105-0004CM_10_RMFEC VAD 220922000000 00000000000018000000000000001800 000000000000000000000004 00000464321654613135646120220922000004 000000000000 | D9: Impayés imputables Monext | E9: 2022-09-22 | F9: CB | G9: CM_10_RMFEC VAD | H9: 18 | I9: 0 | J9: 0.04 | K9: 0045 | L9: CRE 2 | M9: 14 | N9: 000000 | O9: =IF(F9="CB","Z4",IF(F9="MC","X1","X2")) -> Z4 | P9: 17028 | Q9: 17028 | R9: XA | S9: PPT | U9: 03 | V9: 07 | W9: 3 | X9: 17028 | Y9: 92282 | Z9: 513264KHYODHNJ31312 | AA9: =TEXT(E9-1,"aaaammjj") -> 20220921 | AB9: =VLOOKUP(G9,'Listes déroulantes'!G:I,3,FALSE) -> 60923700180001 | AC9: 0000000000001800 | AD9: 978 | AE9: 2 | AF9: IM | AG9: =IF(F9="CB","S",IF(F9="MC","I","V")) -> S | AH9: af2342567892 | AI9: FAC | AJ9: 20220922 | AK9: =VLOOKUP(G9,'Listes déroulantes'!G:O,9,FALSE) -> 1 RUE AUDE | AL9: 13 | AM9: FRA | AN9: =VLOOKUP(G9,'Listes déroulantes'!G:H,2,FALSE) -> CM_10_RMFEC | AO9: 428648970572 | AP9: =K9 -> 0045 | AQ9: 1 | AR9: 17028 | AS9: 92282 | AT9: =VLOOKUP(G9,'Listes déroulantes'!G:N,8,FALSE) -> 28293060132 | AU9: 93 | AV9: 001 | AX9: =VLOOKUP(G9,'Listes déroulantes'!G:J,4,FALSE) -> 9256017 | BA9: EUR | BB9: 02 | BC9: 0000000000001796 | BD9: LMA-17028-I-2105-0004 | BE9: =VLOOKUP(G9,'Listes déroulantes'!G:M,7,FALSE) -> CM_10_RMFEC VAD | BF9: 220922 | BG9: 000000 | BI9: =RIGHT(CONCATENATE("0000000000000000",H9*100),16) -> 0000000000001800 | BJ9: 0000000000001800 | BN9: 000000000000 | BO9: =RIGHT(CONCATENATE("0000000000000000",J9*100),12) -> 000000000004 | BQ9: 00000 | BR9: 4643216546131356461 | BS9: 20220922 | BT9: 000004 | BU9: =" " ->  | BW9: =RIGHT(CONCATENATE("0000000000000000",I9*100),12) -> 000000000000
A10: Enregistrement 3 | B10: OUI | C10: =IF(B10="OUI",CONCATENATE(M10,N10,O10,P10,Q10,R10,S10,T10,U10,V10,W10,X10,Y10,Z10,AA10,AB10,AC10,AD10,AE10,AF10,AG10,AH10,AI10,AJ10,AK10,AL10,AM10,AN10,AO10,AP10,AQ10,AR10,AS10,AT10,AU10,AV10,AW10,AX10,AY10,AZ10,BA10,BB10,BC10,BD10,BE10,BF10,BG10,BH10,BI10,BJ10,BK10,BL10,BM10,BN10,BO10,BP10,BQ10,BR10,BS10,BT10,BU10,BV10,BW10,BX10),"CRE NON ACTIF") -> 14000000Z41702817028XAPPT 030731702892282513264KHYODHNJ313132022092160923700180001 00000000000032009782IM S af2342567893FAC202209221 RUE AUDE 13FRACM_10_RMFEC 4286489705730045117028922822829306013293001 9256017 EUR020000000000003194LMA-17028-I-2105-0005CM_10_RMFEC VAD 220922000000 00000000000032000000000000003200 000000000000000000000006 00000464321654613135646120220922000005 000000000000 | D10: Impayés imputables Monext | E10: 2022-09-22 | F10: CB | G10: CM_10_RMFEC VAD | H10: 32 | I10: 0 | J10: 0.06 | K10: 0045 | L10: CRE 3 | M10: 14 | N10: 000000 | O10: Z4 | P10: 17028 | Q10: 17028 | R10: XA | S10: PPT | U10: 03 | V10: 07 | W10: 3 | X10: 17028 | Y10: 92282 | Z10: 513264KHYODHNJ31313 | AA10: 20220921 | AB10: =VLOOKUP(G10,'Listes déroulantes'!G:I,3,FALSE) -> 60923700180001 | AC10: 0000000000003200 | AD10: 978 | AE10: 2 | AF10: IM | AG10: S | AH10: af2342567893 | AI10: FAC | AJ10: 20220922 | AK10: =VLOOKUP(G10,'Listes déroulantes'!G:O,9,FALSE) -> 1 RUE AUDE | AL10: 13 | AM10: FRA | AN10: =VLOOKUP(G10,'Listes déroulantes'!G:H,2,FALSE) -> CM_10_RMFEC | AO10: 428648970573 | AP10: 0045 | AQ10: 1 | AR10: 17028 | AS10: 92282 | AT10: =VLOOKUP(G10,'Listes déroulantes'!G:N,8,FALSE) -> 28293060132 | AU10: 93 | AV10: 001 | AX10: =VLOOKUP(G10,'Listes déroulantes'!G:J,4,FALSE) -> 9256017 | BA10: EUR | BB10: 02 | BC10: 0000000000003194 | BD10: LMA-17028-I-2105-0005 | BE10: =VLOOKUP(G10,'Listes déroulantes'!G:M,7,FALSE) -> CM_10_RMFEC VAD | BF10: 220922 | BG10: 000000 | BI10: 0000000000003200 | BJ10: 0000000000003200 | BN10: 000000000000 | BO10: 000000000006 | BQ10: 00000 | BR10: 4643216546131356461 | BS10: 20220922 | BT10: 000005 | BW10: 000000000000
A11: Enregistrement 4 | B11: NON | C11: CRE NON ACTIF | D11: Impayés imputables Monext | E11: 2022-01-19 | F11: CB | G11: CM_21 VAD | H11: 22.11 | I11: 2.11 | J11: 0 | K11: 45 | L11: CRE 4 | M11: 14 | N11: 000000 | O11: Z4 | P11: 17028 | Q11: 17028 | R11: XA | S11: PPT | U11: 03 | V11: 07 | W11: 3 | X11: 17028 | Y11: 92282 | Z11: 513264KHYODHNJ31314 | AA11: 20220118 | AB11: =VLOOKUP(G11,'Listes déroulantes'!G:I,3,FALSE) -> 60933700180001 | AC11: 0000000000002211 | AD11: 978 | AE11: 2 | AF11: IM | AG11: S | AH11: af2342567894 | AI11: FAC | AJ11: 20220119 | AK11: =VLOOKUP(G11,'Listes déroulantes'!G:O,9,FALSE) -> 21 RUE DES FLEURS | AL11: 13 | AM11: FRA | AN11: =VLOOKUP(G11,'Listes déroulantes'!G:H,2,FALSE) -> CM_21 | AO11: 428648970574 | AP11: 45 | AQ11: 1 | AR11: 17028 | AS11: 92282 | AT11: =VLOOKUP(G11,'Listes déroulantes'!G:N,8,FALSE) -> 28293060141 | AU11: 93 | AV11: 001 | AX11: =VLOOKUP(G11,'Listes déroulantes'!G:J,4,FALSE) -> 9256032 | BA11: EUR | BB11: 02 | BC11: 0000000000002211 | BD11: LMA-17028-I-2105-0006 | BE11: =VLOOKUP(G11,'Listes déroulantes'!G:M,7,FALSE) -> CM_21 | BF11: 190122 | BG11: 000000 | BI11: 0000000000002211 | BJ11: 0000000000002211 | BN11: 000000000000 | BO11: 000000000000 | BQ11: 00000 | BR11: 4643216546131356461 | BS11: 20220119 | BT11: 000006 | BW11: 000000000211
A12: Enregistrement 5 | B12: NON | C12: CRE NON ACTIF | D12: Impayés imputables Monext | E12: 2022-01-19 | F12: CB | G12: CM_22 VAD | H12: 77.77 | I12: 23 | J12: 0.09 | K12: 45 | L12: CRE 5 | M12: 14 | N12: 000000 | O12: Z4 | P12: 17028 | Q12: 17028 | R12: XA | S12: PPT | U12: 03 | V12: 07 | W12: 3 | X12: 17028 | Y12: 92282 | Z12: 513264KHYODHNJ31315 | AA12: 20220118 | AB12: =VLOOKUP(G12,'Listes déroulantes'!G:I,3,FALSE) -> 60934700180001 | AC12: 0000000000007777 | AD12: 978 | AE12: 2 | AF12: IM | AG12: S | AH12: af2342567895 | AI12: FAC | AJ12: 20220119 | AK12: =VLOOKUP(G12,'Listes déroulantes'!G:O,9,FALSE) -> 22 RUE DES FLEURS | AL12: 13 | AM12: FRA | AN12: =VLOOKUP(G12,'Listes déroulantes'!G:H,2,FALSE) -> CM_22 | AO12: 428648970575 | AP12: 45 | AQ12: 1 | AR12: 17028 | AS12: 92282 | AT12: =VLOOKUP(G12,'Listes déroulantes'!G:N,8,FALSE) -> 28293060142 | AU12: 93 | AV12: 001 | AX12: =VLOOKUP(G12,'Listes déroulantes'!G:J,4,FALSE) -> 9256033 | BA12: EUR | BB12: 02 | BC12: 0000000000007768 | BD12: LMA-17028-I-2105-0007 | BE12: =VLOOKUP(G12,'Listes déroulantes'!G:M,7,FALSE) -> CM_22 | BF12: 190122 | BG12: 000000 | BI12: 0000000000007777 | BJ12: 0000000000007777 | BN12: 000000000000 | BO12: 000000000009 | BQ12: 00000 | BR12: 4643216546131356461 | BS12: 20220119 | BT12: 000007 | BW12: 000000002300
A13: Enregistrement 6 | B13: NON | C13: CRE NON ACTIF | D13: Impayés imputables Monext | E13: 2022-01-19 | F13: CB | G13: CM_12_RMFEC VAD | H13: 26 | I13: 18 | J13: 0 | K13: 4853 | L13: CRE 6 | M13: 14 | N13: 000000 | O13: Z4 | P13: 17028 | Q13: 17028 | R13: XA | S13: PPT | U13: 03 | V13: 07 | W13: 3 | X13: 17028 | Y13: 92282 | Z13: 513264KHYODHNJ31316 | AA13: 20220118 | AB13: =VLOOKUP(G13,'Listes déroulantes'!G:I,3,FALSE) -> 60925700180001 | AC13: 0000000000002600 | AD13: 978 | AE13: 2 | AF13: IM | AG13: S | AH13: af2342567896 | AI13: FAC | AJ13: 20220119 | AK13: =VLOOKUP(G13,'Listes déroulantes'!G:O,9,FALSE) -> 8 RUE LOUBET | AL13: 13 | AM13: FRA | AN13: =VLOOKUP(G13,'Listes déroulantes'!G:H,2,FALSE) -> CM_12_RMFEC | AO13: 428648970576 | AP13: 4853 | AQ13: 1 | AR13: 17028 | AS13: 92282 | AT13: =VLOOKUP(G13,'Listes déroulantes'!G:N,8,FALSE) -> 28293060134 | AU13: 93 | AV13: 001 | AX13: =VLOOKUP(G13,'Listes déroulantes'!G:J,4,FALSE) -> 9256020 | BA13: EUR | BB13: 02 | BC13: 0000000000002600 | BD13: LMA-17028-I-2105-0008 | BE13: =VLOOKUP(G13,'Listes déroulantes'!G:M,7,FALSE) -> CM_12_RMFEC VAD | BF13: 190122 | BG13: 000000 | BI13: 0000000000002600 | BJ13: 0000000000002600 | BN13: 000000000000 | BO13: 000000000000 | BQ13: 00000 | BR13: 4643216546131356461 | BS13: 20220119 | BT13: 000008 | BW13: 000000001800
A14: Enregistrement 7 | B14: NON | C14: CRE NON ACTIF | D14: Impayés imputables Monext | E14: 2021-10-21 | F14: CB | G14: CM_16_RMFEC PDPSC | H14: 13.1 | I14: 25 | J14: 1 | K14: 45 | L14: CRE 7 | M14: 14 | N14: 000000 | O14: Z4 | P14: 17028 | Q14: 17028 | R14: XA | S14: PPT | U14: 03 | V14: 07 | W14: 3 | X14: 17028 | Y14: 92282 | Z14: 513264KHYODHNJ31317 | AA14: 20211020 | AB14: =VLOOKUP(G14,'Listes déroulantes'!G:I,3,FALSE) -> 60929700180001 | AC14: 0000000000001310 | AD14: 978 | AE14: 2 | AF14: IM | AG14: S | AH14: af2342567897 | AI14: FAC | AJ14: 20211021 | AK14: =VLOOKUP(G14,'Listes déroulantes'!G:O,9,FALSE) -> 27 AVENUE DE LA CROI | AL14: 13 | AM14: FRA | AN14: =VLOOKUP(G14,'Listes déroulantes'!G:H,2,FALSE) -> CM_16_RMFEC | AO14: 428648970577 | AP14: 45 | AQ14: 1 | AR14: 17028 | AS14: 92282 | AT14: =VLOOKUP(G14,'Listes déroulantes'!G:N,8,FALSE) -> 28293060137 | AU14: 93 | AV14: 001 | AX14: =VLOOKUP(G14,'Listes déroulantes'!G:J,4,FALSE) -> 9256026 | BA14: EUR | BB14: 02 | BC14: 0000000000001210 | BD14: LMA-17028-I-2105-0009 | BE14: =VLOOKUP(G14,'Listes déroulantes'!G:M,7,FALSE) -> CM_16_RMFEC PDPSC | BF14: 211021 | BG14: 000000 | BI14: 0000000000001310 | BJ14: 0000000000001310 | BN14: 000000000000 | BO14: 000000000100 | BQ14: 00000 | BR14: 4643216546131356461 | BS14: 20211021 | BT14: 000009 | BW14: 000000002500
A15: Enregistrement 8 | B15: NON | C15: CRE NON ACTIF | D15: Impayés imputables Monext | E15: 2021-10-21 | F15: CB | G15: CM_16_RMFEC PDPSC | H15: 13.2 | I15: 25 | J15: 0 | K15: 45 | L15: CRE 8 | M15: 14 | N15: 000000 | O15: Z4 | P15: 17028 | Q15: 17028 | R15: XA | S15: PPT | U15: 03 | V15: 07 | W15: 3 | X15: 17028 | Y15: 92282 | Z15: 513264KHYODHNJ31318 | AA15: 20211020 | AB15: =VLOOKUP(G15,'Listes déroulantes'!G:I,3,FALSE) -> 60929700180001 | AC15: 0000000000001320 | AD15: 978 | AE15: 2 | AF15: IM | AG15: S | AH15: af2342567898 | AI15: FAC | AJ15: 20211021 | AK15: =VLOOKUP(G15,'Listes déroulantes'!G:O,9,FALSE) -> 27 AVENUE DE LA CROI | AL15: 13 | AM15: FRA | AN15: =VLOOKUP(G15,'Listes déroulantes'!G:H,2,FALSE) -> CM_16_RMFEC | AO15: 428648970578 | AP15: 45 | AQ15: 1 | AR15: 17028 | AS15: 92282 | AT15: =VLOOKUP(G15,'Listes déroulantes'!G:N,8,FALSE) -> 28293060137 | AU15: 93 | AV15: 001 | AX15: =VLOOKUP(G15,'Listes déroulantes'!G:J,4,FALSE) -> 9256026 | BA15: EUR | BB15: 02 | BC15: 0000000000001320 | BD15: LMA-17028-I-2105-0010 | BE15: =VLOOKUP(G15,'Listes déroulantes'!G:M,7,FALSE) -> CM_16_RMFEC PDPSC | BF15: 211021 | BG15: 000000 | BI15: 0000000000001320 | BJ15: 0000000000001320 | BN15: 000000000000 | BO15: 000000000000 | BQ15: 00000 | BR15: 4643216546131356461 | BS15: 20211021 | BT15: 000010 | BW15: 000000002500
A16: Enregistrement 9 | B16: NON | C16: CRE NON ACTIF | D16: Impayés imputables Monext | E16: 2021-10-21 | F16: VISA | G16: CM_16_RMFEC PDP | H16: 14.1 | I16: 25 | J16: 1 | K16: 0073 | L16: CRE 9 | M16: 14 | N16: 000000 | O16: X2 | P16: 17028 | Q16: 17028 | R16: XA | S16: PPT | U16: 03 | V16: 07 | W16: 3 | X16: 17028 | Y16: 92282 | Z16: 513264KHYODHNJ31319 | AA16: 20211020 | AB16: =VLOOKUP(G16,'Listes déroulantes'!G:I,3,FALSE) -> 60929700180001 | AC16: 0000000000001410 | AD16: 978 | AE16: 2 | AF16: IM | AG16: V | AH16: af2342567899 | AI16: FAC | AJ16: 20211021 | AK16: =VLOOKUP(G16,'Listes déroulantes'!G:O,9,FALSE) -> 27 AVENUE DE LA CROI | AL16: 13 | AM16: FRA | AN16: =VLOOKUP(G16,'Listes déroulantes'!G:H,2,FALSE) -> CM_16_RMFEC | AO16: 428648970579 | AP16: 0073 | AQ16: 1 | AR16: 17028 | AS16: 92282 | AT16: =VLOOKUP(G16,'Listes déroulantes'!G:N,8,FALSE) -> 28293060137 | AU16: 93 | AV16: 001 | AX16: =VLOOKUP(G16,'Listes déroulantes'!G:J,4,FALSE) -> 9256026 | BA16: EUR | BB16: 02 | BC16: 0000000000001310 | BD16: LMA-17028-I-2105-0011 | BE16: =VLOOKUP(G16,'Listes déroulantes'!G:M,7,FALSE) -> CM_16_RMFEC PDP | BF16: 211021 | BG16: 000000 | BI16: 0000000000001410 | BJ16: 0000000000001410 | BN16: 000000000000 | BO16: 000000000100 | BQ16: 00000 | BR16: 4643216546131356461 | BS16: 20211021 | BT16: 000011 | BW16: 000000002500
A17: Enregistrement 10 | B17: NON | C17: CRE NON ACTIF | D17: Impayés imputables Monext | E17: 2021-10-21 | F17: CB | G17: CM_16_RMFEC PDP | H17: 14.2 | I17: 25 | J17: 0 | K17: 45 | L17: CRE 10 | M17: 14 | N17: 000000 | O17: Z4 | P17: 17028 | Q17: 17028 | R17: XA | S17: PPT | U17: 03 | V17: 07 | W17: 3 | X17: 17028 | Y17: 92282 | Z17: 513264KHYODHNJ31320 | AA17: 20211020 | AB17: =VLOOKUP(G17,'Listes déroulantes'!G:I,3,FALSE) -> 60929700180001 | AC17: 0000000000001420 | AD17: 978 | AE17: 2 | AF17: IM | AG17: S | AH17: af2342567900 | AI17: FAC | AJ17: 20211021 | AK17: =VLOOKUP(G17,'Listes déroulantes'!G:O,9,FALSE) -> 27 AVENUE DE LA CROI | AL17: 13 | AM17: FRA | AN17: =VLOOKUP(G17,'Listes déroulantes'!G:H,2,FALSE) -> CM_16_RMFEC | AO17: 428648970580 | AP17: 45 | AQ17: 1 | AR17: 17028 | AS17: 92282 | AT17: =VLOOKUP(G17,'Listes déroulantes'!G:N,8,FALSE) -> 28293060137 | AU17: 93 | AV17: 001 | AX17: =VLOOKUP(G17,'Listes déroulantes'!G:J,4,FALSE) -> 9256026 | BA17: EUR | BB17: 02 | BC17: 0000000000001420 | BD17: LMA-17028-I-2105-0012 | BE17: =VLOOKUP(G17,'Listes déroulantes'!G:M,7,FALSE) -> CM_16_RMFEC PDP | BF17: 211021 | BG17: 000000 | BI17: 0000000000001420 | BJ17: 0000000000001420 | BN17: 000000000000 | BO17: 000000000000 | BQ17: 00000 | BR17: 4643216546131356461 | BS17: 20211021 | BT17: 000012 | BW17: 000000002500
A18: Enregistrement 11 | B18: NON | C18: CRE NON ACTIF | D18: Impayés imputables Monext | E18: 2021-10-21 | F18: MC | G18: CM_16_RMFEC VAD | H18: 15.1 | I18: 25 | J18: 1 | K18: 4853 | L18: CRE 11 | M18: 14 | N18: 000000 | O18: X1 | P18: 17028 | Q18: 17028 | R18: XA | S18: PPT | U18: 03 | V18: 07 | W18: 3 | X18: 17028 | Y18: 92282 | Z18: 513264KHYODHNJ31321 | AA18: 20211020 | AB18: =VLOOKUP(G18,'Listes déroulantes'!G:I,3,FALSE) -> 60929700180001 | AC18: 0000000000001510 | AD18: 978 | AE18: 2 | AF18: IM | AG18: I | AH18: af2342567901 | AI18: FAC | AJ18: 20211021 | AK18: =VLOOKUP(G18,'Listes déroulantes'!G:O,9,FALSE) -> 27 AVENUE DE LA CROI | AL18: 13 | AM18: FRA | AN18: =VLOOKUP(G18,'Listes déroulantes'!G:H,2,FALSE) -> CM_16_RMFEC | AO18: 428648970581 | AP18: 4853 | AQ18: 1 | AR18: 17028 | AS18: 92282 | AT18: =VLOOKUP(G18,'Listes déroulantes'!G:N,8,FALSE) -> 28293060137 | AU18: 93 | AV18: 001 | AX18: =VLOOKUP(G18,'Listes déroulantes'!G:J,4,FALSE) -> 9256027 | BA18: EUR | BB18: 02 | BC18: 0000000000001410 | BD18: LMA-17028-I-2105-0013 | BE18: =VLOOKUP(G18,'Listes déroulantes'!G:M,7,FALSE) -> CM_16_RMFEC VAD | BF18: 211021 | BG18: 000000 | BI18: 0000000000001510 | BJ18: 0000000000001510 | BN18: 000000000000 | BO18: 000000000100 | BQ18: 00000 | BR18: 4643216546131356461 | BS18: 20211021 | BT18: 000013 | BW18: 000000002500
A19: Enregistrement 12 | B19: NON | C19: CRE NON ACTIF | D19: Impayés imputables Monext | E19: 2021-10-21 | F19: CB | G19: CM_16_RMFEC VAD | H19: 15.2 | I19: 25 | J19: 0 | K19: 45 | L19: CRE 12 | M19: 14 | N19: 000000 | O19: Z4 | P19: 17028 | Q19: 17028 | R19: XA | S19: PPT | U19: 03 | V19: 07 | W19: 3 | X19: 17028 | Y19: 92282 | Z19: 513264KHYODHNJ31322 | AA19: 20211020 | AB19: =VLOOKUP(G19,'Listes déroulantes'!G:I,3,FALSE) -> 60929700180001 | AC19: 0000000000001520 | AD19: 978 | AE19: 2 | AF19: IM | AG19: S | AH19: af2342567902 | AI19: FAC | AJ19: 20211021 | AK19: =VLOOKUP(G19,'Listes déroulantes'!G:O,9,FALSE) -> 27 AVENUE DE LA CROI | AL19: 13 | AM19: FRA | AN19: =VLOOKUP(G19,'Listes déroulantes'!G:H,2,FALSE) -> CM_16_RMFEC | AO19: 428648970582 | AP19: 45 | AQ19: 1 | AR19: 17028 | AS19: 92282 | AT19: =VLOOKUP(G19,'Listes déroulantes'!G:N,8,FALSE) -> 28293060137 | AU19: 93 | AV19: 001 | AX19: =VLOOKUP(G19,'Listes déroulantes'!G:J,4,FALSE) -> 9256027 | BA19: EUR | BB19: 02 | BC19: 0000000000001520 | BD19: LMA-17028-I-2105-0014 | BE19: =VLOOKUP(G19,'Listes déroulantes'!G:M,7,FALSE) -> CM_16_RMFEC VAD | BF19: 211021 | BG19: 000000 | BI19: 0000000000001520 | BJ19: 0000000000001520 | BN19: 000000000000 | BO19: 000000000000 | BQ19: 00000 | BR19: 4643216546131356461 | BS19: 20211021 | BT19: 000014 | BW19: 000000002500
A20: Enregistrement 13 | B20: NON | C20: CRE NON ACTIF | D20: Impayés imputables Monext | E20: 2021-10-21 | F20: CB | G20: CM_16_RMFEC VAD2 | H20: 16.1 | I20: 25 | J20: 1 | K20: 45 | L20: CRE 13 | M20: 14 | N20: 000000 | O20: Z4 | P20: 17028 | Q20: 17028 | R20: XA | S20: PPT | U20: 03 | V20: 07 | W20: 3 | X20: 17028 | Y20: 92282 | Z20: 513264KHYODHNJ31323 | AA20: 20211020 | AB20: =VLOOKUP(G20,'Listes déroulantes'!G:I,3,FALSE) -> 60929700180001 | AC20: 0000000000001610 | AD20: 978 | AE20: 2 | AF20: IM | AG20: S | AH20: af2342567903 | AI20: FAC | AJ20: 20211021 | AK20: =VLOOKUP(G20,'Listes déroulantes'!G:O,9,FALSE) -> 27 AVENUE DE LA CROI | AL20: 13 | AM20: FRA | AN20: =VLOOKUP(G20,'Listes déroulantes'!G:H,2,FALSE) -> CM_16_RMFEC | AO20: 428648970583 | AP20: 45 | AQ20: 1 | AR20: 17028 | AS20: 92282 | AT20: =VLOOKUP(G20,'Listes déroulantes'!G:N,8,FALSE) -> 28293060137 | AU20: 93 | AV20: 001 | AX20: =VLOOKUP(G20,'Listes déroulantes'!G:J,4,FALSE) -> 9256127 | BA20: EUR | BB20: 02 | BC20: 0000000000001510 | BD20: LMA-17028-I-2105-0015 | BE20: =VLOOKUP(G20,'Listes déroulantes'!G:M,7,FALSE) -> CM_16_RMFEC VAD | BF20: 211021 | BG20: 000000 | BI20: 0000000000001610 | BJ20: 0000000000001610 | BN20: 000000000000 | BO20: 000000000100 | BQ20: 00000 | BR20: 4643216546131356461 | BS20: 20211021 | BT20: 000015 | BW20: 000000002500
A21: Enregistrement 14 | B21: NON | C21: CRE NON ACTIF | D21: Impayés imputables Monext | E21: 2021-10-21 | F21: CB | G21: CM_16_RMFEC VAD2 | H21: 16.2 | I21: 25 | J21: 0 | K21: 45 | L21: CRE 14 | M21: 14 | N21: 000000 | O21: Z4 | P21: 17028 | Q21: 17028 | R21: XA | S21: PPT | U21: 03 | V21: 07 | W21: 3 | X21: 17028 | Y21: 92282 | Z21: 513264KHYODHNJ31324 | AA21: 20211020 | AB21: =VLOOKUP(G21,'Listes déroulantes'!G:I,3,FALSE) -> 60929700180001 | AC21: 0000000000001620 | AD21: 978 | AE21: 2 | AF21: IM | AG21: S | AH21: af2342567904 | AI21: FAC | AJ21: 20211021 | AK21: =VLOOKUP(G21,'Listes déroulantes'!G:O,9,FALSE) -> 27 AVENUE DE LA CROI | AL21: 13 | AM21: FRA | AN21: =VLOOKUP(G21,'Listes déroulantes'!G:H,2,FALSE) -> CM_16_RMFEC | AO21: 428648970584 | AP21: 45 | AQ21: 1 | AR21: 17028 | AS21: 92282 | AT21: =VLOOKUP(G21,'Listes déroulantes'!G:N,8,FALSE) -> 28293060137 | AU21: 93 | AV21: 001 | AX21: =VLOOKUP(G21,'Listes déroulantes'!G:J,4,FALSE) -> 9256127 | BA21: EUR | BB21: 02 | BC21: 0000000000001620 | BD21: LMA-17028-I-2105-0016 | BE21: =VLOOKUP(G21,'Listes déroulantes'!G:M,7,FALSE) -> CM_16_RMFEC VAD | BF21: 211021 | BG21: 000000 | BI21: 0000000000001620 | BJ21: 0000000000001620 | BN21: 000000000000 | BO21: 000000000000 | BQ21: 00000 | BR21: 4643216546131356461 | BS21: 20211021 | BT21: 000016 | BW21: 000000002500
A22: Enregistrement 15 | B22: NON | C22: CRE NON ACTIF | D22: Impayés imputables Monext | E22: 2021-06-22 | F22: MC | G22: SAS MONEXT PDP | H22: 244 | I22: 25 | J22: 1 | K22: 29 | L22: CRE 15 | M22: 14 | N22: 000000 | O22: X1 | P22: 17028 | Q22: 17028 | R22: XA | S22: PPT | U22: 03 | V22: 07 | W22: 3 | X22: 17028 | Y22: 92282 | Z22: 513264KHYODHNJ31325 | AA22: 20210621 | AB22: =VLOOKUP(G22,'Listes déroulantes'!G:I,3,FALSE) -> 50318500100032 | AC22: 0000000000024400 | AD22: 978 | AE22: 2 | AF22: IM | AG22: I | AH22: af2342567905 | AI22: FAC | AJ22: 20210622 | AK22: =VLOOKUP(G22,'Listes déroulantes'!G:O,9,FALSE) -> 260 RUE CLAUDE NICOL | AL22: 13 | AM22: FRA | AN22: =VLOOKUP(G22,'Listes déroulantes'!G:H,2,FALSE) -> SAS MONEXT | AO22: 428648970585 | AP22: 29 | AQ22: 1 | AR22: 17028 | AS22: 92282 | AT22: =VLOOKUP(G22,'Listes déroulantes'!G:N,8,FALSE) -> 20289045644 | AU22: 93 | AV22: 001 | AX22: =VLOOKUP(G22,'Listes déroulantes'!G:J,4,FALSE) -> 9255001 | BA22: EUR | BB22: 02 | BC22: 0000000000024300 | BD22: LMA-17028-I-2105-0017 | BE22: =VLOOKUP(G22,'Listes déroulantes'!G:M,7,FALSE) -> MONEXT | BF22: 220621 | BG22: 000000 | BI22: 0000000000024400 | BJ22: 0000000000024400 | BN22: 000000000000 | BO22: 000000000100 | BQ22: 00000 | BR22: 4643216546131356461 | BS22: 20210622 | BT22: 000017 | BW22: 000000002500
A23: Enregistrement 16 | B23: NON | C23: CRE NON ACTIF | D23: Impayés imputables Monext | E23: 2021-06-22 | F23: MC | G23: SAS MONEXT PDP | H23: 245 | I23: 25 | J23: 1 | K23: 30 | L23: CRE 16 | M23: 14 | N23: 000000 | O23: X1 | P23: 17028 | Q23: 17028 | R23: XA | S23: PPT | U23: 03 | V23: 07 | W23: 3 | X23: 17028 | Y23: 92282 | Z23: 513264KHYODHNJ31326 | AA23: 20210621 | AB23: =VLOOKUP(G23,'Listes déroulantes'!G:I,3,FALSE) -> 50318500100032 | AC23: 0000000000024500 | AD23: 978 | AE23: 2 | AF23: IM | AG23: I | AH23: af2342567906 | AI23: FAC | AJ23: 20210622 | AK23: =VLOOKUP(G23,'Listes déroulantes'!G:O,9,FALSE) -> 260 RUE CLAUDE NICOL | AL23: 13 | AM23: FRA | AN23: =VLOOKUP(G23,'Listes déroulantes'!G:H,2,FALSE) -> SAS MONEXT | AO23: 428648970586 | AP23: 30 | AQ23: 1 | AR23: 17028 | AS23: 92282 | AT23: =VLOOKUP(G23,'Listes déroulantes'!G:N,8,FALSE) -> 20289045644 | AU23: 93 | AV23: 001 | AX23: =VLOOKUP(G23,'Listes déroulantes'!G:J,4,FALSE) -> 9255001 | BA23: EUR | BB23: 02 | BC23: 0000000000024400 | BD23: LMA-17028-I-2105-0018 | BE23: =VLOOKUP(G23,'Listes déroulantes'!G:M,7,FALSE) -> MONEXT | BF23: 220621 | BG23: 000000 | BI23: 0000000000024500 | BJ23: 0000000000024500 | BN23: 000000000000 | BO23: 000000000100 | BQ23: 00000 | BR23: 4643216546131356461 | BS23: 20210622 | BT23: 000018 | BW23: 000000002500
A24: Enregistrement 17 | B24: NON | C24: CRE NON ACTIF | D24: Impayés imputables Monext | E24: 2021-06-22 | F24: MC | G24: SAS MONEXT PDP | H24: 246 | I24: 25 | J24: 1 | K24: 31 | L24: CRE 17 | M24: 14 | N24: 000000 | O24: X1 | P24: 17028 | Q24: 17028 | R24: XA | S24: PPT | U24: 03 | V24: 07 | W24: 3 | X24: 17028 | Y24: 92282 | Z24: 513264KHYODHNJ31327 | AA24: 20210621 | AB24: =VLOOKUP(G24,'Listes déroulantes'!G:I,3,FALSE) -> 50318500100032 | AC24: 0000000000024600 | AD24: 978 | AE24: 2 | AF24: IM | AG24: I | AH24: af2342567907 | AI24: FAC | AJ24: 20210622 | AK24: =VLOOKUP(G24,'Listes déroulantes'!G:O,9,FALSE) -> 260 RUE CLAUDE NICOL | AL24: 13 | AM24: FRA | AN24: =VLOOKUP(G24,'Listes déroulantes'!G:H,2,FALSE) -> SAS MONEXT | AO24: 428648970587 | AP24: 31 | AQ24: 1 | AR24: 17028 | AS24: 92282 | AT24: =VLOOKUP(G24,'Listes déroulantes'!G:N,8,FALSE) -> 20289045644 | AU24: 93 | AV24: 001 | AX24: =VLOOKUP(G24,'Listes déroulantes'!G:J,4,FALSE) -> 9255001 | BA24: EUR | BB24: 02 | BC24: 0000000000024500 | BD24: LMA-17028-I-2105-0019 | BE24: =VLOOKUP(G24,'Listes déroulantes'!G:M,7,FALSE) -> MONEXT | BF24: 220621 | BG24: 000000 | BI24: 0000000000024600 | BJ24: 0000000000024600 | BN24: 000000000000 | BO24: 000000000100 | BQ24: 00000 | BR24: 4643216546131356461 | BS24: 20210622 | BT24: 000019 | BW24: 000000002500
A25: Enregistrement 18 | B25: NON | C25: CRE NON ACTIF | D25: Impayés imputables Monext | E25: 2021-06-22 | F25: MC | G25: SAS MONEXT PDP | H25: 247 | I25: 25 | J25: 1 | K25: 32 | L25: CRE 18 | M25: 14 | N25: 000000 | O25: X1 | P25: 17028 | Q25: 17028 | R25: XA | S25: PPT | U25: 03 | V25: 07 | W25: 3 | X25: 17028 | Y25: 92282 | Z25: 513264KHYODHNJ31328 | AA25: 20210621 | AB25: =VLOOKUP(G25,'Listes déroulantes'!G:I,3,FALSE) -> 50318500100032 | AC25: 0000000000024700 | AD25: 978 | AE25: 2 | AF25: IM | AG25: I | AH25: af2342567908 | AI25: FAC | AJ25: 20210622 | AK25: =VLOOKUP(G25,'Listes déroulantes'!G:O,9,FALSE) -> 260 RUE CLAUDE NICOL | AL25: 13 | AM25: FRA | AN25: =VLOOKUP(G25,'Listes déroulantes'!G:H,2,FALSE) -> SAS MONEXT | AO25: 428648970588 | AP25: 32 | AQ25: 1 | AR25: 17028 | AS25: 92282 | AT25: =VLOOKUP(G25,'Listes déroulantes'!G:N,8,FALSE) -> 20289045644 | AU25: 93 | AV25: 001 | AX25: =VLOOKUP(G25,'Listes déroulantes'!G:J,4,FALSE) -> 9255001 | BA25: EUR | BB25: 02 | BC25: 0000000000024600 | BD25: LMA-17028-I-2105-0020 | BE25: =VLOOKUP(G25,'Listes déroulantes'!G:M,7,FALSE) -> MONEXT | BF25: 220621 | BG25: 000000 | BI25: 0000000000024700 | BJ25: 0000000000024700 | BN25: 000000000000 | BO25: 000000000100 | BQ25: 00000 | BR25: 4643216546131356461 | BS25: 20210622 | BT25: 000020 | BW25: 000000002500
A26: Enregistrement 19 | B26: NON | C26: CRE NON ACTIF | D26: Impayés imputables Monext | E26: 2021-06-22 | F26: MC | G26: SAS MONEXT PDP | H26: 248 | I26: 25 | J26: 1 | K26: 33 | L26: CRE 19 | M26: 14 | N26: 000000 | O26: X1 | P26: 17028 | Q26: 17028 | R26: XA | S26: PPT | U26: 03 | V26: 07 | W26: 3 | X26: 17028 | Y26: 92282 | Z26: 513264KHYODHNJ31329 | AA26: 20210621 | AB26: =VLOOKUP(G26,'Listes déroulantes'!G:I,3,FALSE) -> 50318500100032 | AC26: 0000000000024800 | AD26: 978 | AE26: 2 | AF26: IM | AG26: I | AH26: af2342567909 | AI26: FAC | AJ26: 20210622 | AK26: =VLOOKUP(G26,'Listes déroulantes'!G:O,9,FALSE) -> 260 RUE CLAUDE NICOL | AL26: 13 | AM26: FRA | AN26: =VLOOKUP(G26,'Listes déroulantes'!G:H,2,FALSE) -> SAS MONEXT | AO26: 428648970589 | AP26: 33 | AQ26: 1 | AR26: 17028 | AS26: 92282 | AT26: =VLOOKUP(G26,'Listes déroulantes'!G:N,8,FALSE) -> 20289045644 | AU26: 93 | AV26: 001 | AX26: =VLOOKUP(G26,'Listes déroulantes'!G:J,4,FALSE) -> 9255001 | BA26: EUR | BB26: 02 | BC26: 0000000000024700 | BD26: LMA-17028-I-2105-0021 | BE26: =VLOOKUP(G26,'Listes déroulantes'!G:M,7,FALSE) -> MONEXT | BF26: 220621 | BG26: 000000 | BI26: 0000000000024800 | BJ26: 0000000000024800 | BN26: 000000000000 | BO26: 000000000100 | BQ26: 00000 | BR26: 4643216546131356461 | BS26: 20210622 | BT26: 000021 | BW26: 000000002500
A27: Enregistrement 20 | B27: NON | C27: CRE NON ACTIF | D27: Impayés imputables Monext | E27: 2021-06-22 | F27: MC | G27: SAS MONEXT PDP | H27: 249 | I27: 25 | J27: 1 | K27: 34 | L27: CRE 20 | M27: 14 | N27: 000000 | O27: X1 | P27: 17028 | Q27: 17028 | R27: XA | S27: PPT | U27: 03 | V27: 07 | W27: 3 | X27: 17028 | Y27: 92282 | Z27: 513264KHYODHNJ31330 | AA27: 20210621 | AB27: =VLOOKUP(G27,'Listes déroulantes'!G:I,3,FALSE) -> 50318500100032 | AC27: 0000000000024900 | AD27: 978 | AE27: 2 | AF27: IM | AG27: I | AH27: af2342567910 | AI27: FAC | AJ27: 20210622 | AK27: =VLOOKUP(G27,'Listes déroulantes'!G:O,9,FALSE) -> 260 RUE CLAUDE NICOL | AL27: 13 | AM27: FRA | AN27: =VLOOKUP(G27,'Listes déroulantes'!G:H,2,FALSE) -> SAS MONEXT | AO27: 428648970590 | AP27: 34 | AQ27: 1 | AR27: 17028 | AS27: 92282 | AT27: =VLOOKUP(G27,'Listes déroulantes'!G:N,8,FALSE) -> 20289045644 | AU27: 93 | AV27: 001 | AX27: =VLOOKUP(G27,'Listes déroulantes'!G:J,4,FALSE) -> 9255001 | BA27: EUR | BB27: 02 | BC27: 0000000000024800 | BD27: LMA-17028-I-2105-0022 | BE27: =VLOOKUP(G27,'Listes déroulantes'!G:M,7,FALSE) -> MONEXT | BF27: 220621 | BG27: 000000 | BI27: 0000000000024900 | BJ27: 0000000000024900 | BN27: 000000000000 | BO27: 000000000100 | BQ27: 00000 | BR27: 4643216546131356461 | BS27: 20210622 | BT27: 000022 | BW27: 000000002500
A28: Enregistrement 21 | B28: NON | C28: CRE NON ACTIF | D28: Impayés imputables Monext | E28: 2021-06-22 | F28: MC | G28: SAS MONEXT PDP | H28: 250 | I28: 25 | J28: 1 | K28: 35 | L28: CRE 21 | M28: 14 | N28: 000000 | O28: X1 | P28: 17028 | Q28: 17028 | R28: XA | S28: PPT | U28: 03 | V28: 07 | W28: 3 | X28: 17028 | Y28: 92282 | Z28: 513264KHYODHNJ31331 | AA28: 20210621 | AB28: =VLOOKUP(G28,'Listes déroulantes'!G:I,3,FALSE) -> 50318500100032 | AC28: 0000000000025000 | AD28: 978 | AE28: 2 | AF28: IM | AG28: I | AH28: af2342567911 | AI28: FAC | AJ28: 20210622 | AK28: =VLOOKUP(G28,'Listes déroulantes'!G:O,9,FALSE) -> 260 RUE CLAUDE NICOL | AL28: 13 | AM28: FRA | AN28: =VLOOKUP(G28,'Listes déroulantes'!G:H,2,FALSE) -> SAS MONEXT | AO28: 428648970591 | AP28: 35 | AQ28: 1 | AR28: 17028 | AS28: 92282 | AT28: =VLOOKUP(G28,'Listes déroulantes'!G:N,8,FALSE) -> 20289045644 | AU28: 93 | AV28: 001 | AX28: =VLOOKUP(G28,'Listes déroulantes'!G:J,4,FALSE) -> 9255001 | BA28: EUR | BB28: 02 | BC28: 0000000000024900 | BD28: LMA-17028-I-2105-0023 | BE28: =VLOOKUP(G28,'Listes déroulantes'!G:M,7,FALSE) -> MONEXT | BF28: 220621 | BG28: 000000 | BI28: 0000000000025000 | BJ28: 0000000000025000 | BN28: 000000000000 | BO28: 000000000100 | BQ28: 00000 | BR28: 4643216546131356461 | BS28: 20210622 | BT28: 000023 | BW28: 000000002500
A29: Enregistrement 22 | B29: NON | C29: CRE NON ACTIF | D29: Impayés imputables Monext | E29: 2021-06-22 | F29: MC | G29: SAS MONEXT PDP | H29: 251 | I29: 25 | J29: 1 | K29: 36 | L29: CRE 22 | M29: 14 | N29: 000000 | O29: X1 | P29: 17028 | Q29: 17028 | R29: XA | S29: PPT | U29: 03 | V29: 07 | W29: 3 | X29: 17028 | Y29: 92282 | Z29: 513264KHYODHNJ31332 | AA29: 20210621 | AB29: =VLOOKUP(G29,'Listes déroulantes'!G:I,3,FALSE) -> 50318500100032 | AC29: 0000000000025100 | AD29: 978 | AE29: 2 | AF29: IM | AG29: I | AH29: af2342567912 | AI29: FAC | AJ29: 20210622 | AK29: =VLOOKUP(G29,'Listes déroulantes'!G:O,9,FALSE) -> 260 RUE CLAUDE NICOL | AL29: 13 | AM29: FRA | AN29: =VLOOKUP(G29,'Listes déroulantes'!G:H,2,FALSE) -> SAS MONEXT | AO29: 428648970592 | AP29: 36 | AQ29: 1 | AR29: 17028 | AS29: 92282 | AT29: =VLOOKUP(G29,'Listes déroulantes'!G:N,8,FALSE) -> 20289045644 | AU29: 93 | AV29: 001 | AX29: =VLOOKUP(G29,'Listes déroulantes'!G:J,4,FALSE) -> 9255001 | BA29: EUR | BB29: 02 | BC29: 0000000000025000 | BD29: LMA-17028-I-2105-0024 | BE29: =VLOOKUP(G29,'Listes déroulantes'!G:M,7,FALSE) -> MONEXT | BF29: 220621 | BG29: 000000 | BI29: 0000000000025100 | BJ29: 0000000000025100 | BN29: 000000000000 | BO29: 000000000100 | BQ29: 00000 | BR29: 4643216546131356461 | BS29: 20210622 | BT29: 000024 | BW29: 000000002500
A30: Enregistrement 23 | B30: NON | C30: CRE NON ACTIF | D30: Impayés imputables Monext | E30: 2021-06-22 | F30: MC | G30: SAS MONEXT PDP | H30: 252 | I30: 25 | J30: 1 | K30: 37 | L30: CRE 23 | M30: 14 | N30: 000000 | O30: X1 | P30: 17028 | Q30: 17028 | R30: XA | S30: PPT | U30: 03 | V30: 07 | W30: 3 | X30: 17028 | Y30: 92282 | Z30: 513264KHYODHNJ31333 | AA30: 20210621 | AB30: =VLOOKUP(G30,'Listes déroulantes'!G:I,3,FALSE) -> 50318500100032 | AC30: 0000000000025200 | AD30: 978 | AE30: 2 | AF30: IM | AG30: I | AH30: af2342567913 | AI30: FAC | AJ30: 20210622 | AK30: =VLOOKUP(G30,'Listes déroulantes'!G:O,9,FALSE) -> 260 RUE CLAUDE NICOL | AL30: 13 | AM30: FRA | AN30: =VLOOKUP(G30,'Listes déroulantes'!G:H,2,FALSE) -> SAS MONEXT | AO30: 428648970593 | AP30: 37 | AQ30: 1 | AR30: 17028 | AS30: 92282 | AT30: =VLOOKUP(G30,'Listes déroulantes'!G:N,8,FALSE) -> 20289045644 | AU30: 93 | AV30: 001 | AX30: =VLOOKUP(G30,'Listes déroulantes'!G:J,4,FALSE) -> 9255001 | BA30: EUR | BB30: 02 | BC30: 0000000000025100 | BD30: LMA-17028-I-2105-0025 | BE30: =VLOOKUP(G30,'Listes déroulantes'!G:M,7,FALSE) -> MONEXT | BF30: 220621 | BG30: 000000 | BI30: 0000000000025200 | BJ30: 0000000000025200 | BN30: 000000000000 | BO30: 000000000100 | BQ30: 00000 | BR30: 4643216546131356461 | BS30: 20210622 | BT30: 000025 | BW30: 000000002500
A31: Enregistrement 24 | B31: NON | C31: CRE NON ACTIF | D31: Impayés imputables Monext | E31: 2021-06-22 | F31: MC | G31: SAS MONEXT PDP | H31: 253 | I31: 25 | J31: 1 | K31: 38 | L31: CRE 24 | M31: 14 | N31: 000000 | O31: X1 | P31: 17028 | Q31: 17028 | R31: XA | S31: PPT | U31: 03 | V31: 07 | W31: 3 | X31: 17028 | Y31: 92282 | Z31: 513264KHYODHNJ31334 | AA31: 20210621 | AB31: =VLOOKUP(G31,'Listes déroulantes'!G:I,3,FALSE) -> 50318500100032 | AC31: 0000000000025300 | AD31: 978 | AE31: 2 | AF31: IM | AG31: I | AH31: af2342567914 | AI31: FAC | AJ31: 20210622 | AK31: =VLOOKUP(G31,'Listes déroulantes'!G:O,9,FALSE) -> 260 RUE CLAUDE NICOL | AL31: 13 | AM31: FRA | AN31: =VLOOKUP(G31,'Listes déroulantes'!G:H,2,FALSE) -> SAS MONEXT | AO31: 428648970594 | AP31: 38 | AQ31: 1 | AR31: 17028 | AS31: 92282 | AT31: =VLOOKUP(G31,'Listes déroulantes'!G:N,8,FALSE) -> 20289045644 | AU31: 93 | AV31: 001 | AX31: =VLOOKUP(G31,'Listes déroulantes'!G:J,4,FALSE) -> 9255001 | BA31: EUR | BB31: 02 | BC31: 0000000000025200 | BD31: LMA-17028-I-2105-0026 | BE31: =VLOOKUP(G31,'Listes déroulantes'!G:M,7,FALSE) -> MONEXT | BF31: 220621 | BG31: 000000 | BI31: 0000000000025300 | BJ31: 0000000000025300 | BN31: 000000000000 | BO31: 000000000100 | BQ31: 00000 | BR31: 4643216546131356461 | BS31: 20210622 | BT31: 000026 | BW31: 000000002500
A32: Enregistrement 25 | B32: NON | C32: CRE NON ACTIF | D32: Impayés imputables Monext | E32: 2021-06-22 | F32: MC | G32: SAS MONEXT PDP | H32: 254 | I32: 25 | J32: 1 | K32: 39 | L32: CRE 25 | M32: 14 | N32: 000000 | O32: X1 | P32: 17028 | Q32: 17028 | R32: XA | S32: PPT | U32: 03 | V32: 07 | W32: 3 | X32: 17028 | Y32: 92282 | Z32: 513264KHYODHNJ31335 | AA32: 20210621 | AB32: =VLOOKUP(G32,'Listes déroulantes'!G:I,3,FALSE) -> 50318500100032 | AC32: 0000000000025400 | AD32: 978 | AE32: 2 | AF32: IM | AG32: I | AH32: af2342567915 | AI32: FAC | AJ32: 20210622 | AK32: =VLOOKUP(G32,'Listes déroulantes'!G:O,9,FALSE) -> 260 RUE CLAUDE NICOL | AL32: 13 | AM32: FRA | AN32: =VLOOKUP(G32,'Listes déroulantes'!G:H,2,FALSE) -> SAS MONEXT | AO32: 428648970595 | AP32: 39 | AQ32: 1 | AR32: 17028 | AS32: 92282 | AT32: =VLOOKUP(G32,'Listes déroulantes'!G:N,8,FALSE) -> 20289045644 | AU32: 93 | AV32: 001 | AX32: =VLOOKUP(G32,'Listes déroulantes'!G:J,4,FALSE) -> 9255001 | BA32: EUR | BB32: 02 | BC32: 0000000000025300 | BD32: LMA-17028-I-2105-0027 | BE32: =VLOOKUP(G32,'Listes déroulantes'!G:M,7,FALSE) -> MONEXT | BF32: 220621 | BG32: 000000 | BI32: 0000000000025400 | BJ32: 0000000000025400 | BN32: 000000000000 | BO32: 000000000100 | BQ32: 00000 | BR32: 4643216546131356461 | BS32: 20210622 | BT32: 000027 | BW32: 000000002500
A33: Enregistrement 26 | B33: NON | C33: CRE NON ACTIF | D33: Impayés imputables Monext | E33: 2021-06-22 | F33: MC | G33: SAS MONEXT PDP | H33: 255 | I33: 25 | J33: 1 | K33: 40 | L33: CRE 26 | M33: 14 | N33: 000000 | O33: X1 | P33: 17028 | Q33: 17028 | R33: XA | S33: PPT | U33: 03 | V33: 07 | W33: 3 | X33: 17028 | Y33: 92282 | Z33: 513264KHYODHNJ31336 | AA33: 20210621 | AB33: =VLOOKUP(G33,'Listes déroulantes'!G:I,3,FALSE) -> 50318500100032 | AC33: 0000000000025500 | AD33: 978 | AE33: 2 | AF33: IM | AG33: I | AH33: af2342567916 | AI33: FAC | AJ33: 20210622 | AK33: =VLOOKUP(G33,'Listes déroulantes'!G:O,9,FALSE) -> 260 RUE CLAUDE NICOL | AL33: 13 | AM33: FRA | AN33: =VLOOKUP(G33,'Listes déroulantes'!G:H,2,FALSE) -> SAS MONEXT | AO33: 428648970596 | AP33: 40 | AQ33: 1 | AR33: 17028 | AS33: 92282 | AT33: =VLOOKUP(G33,'Listes déroulantes'!G:N,8,FALSE) -> 20289045644 | AU33: 93 | AV33: 001 | AX33: =VLOOKUP(G33,'Listes déroulantes'!G:J,4,FALSE) -> 9255001 | BA33: EUR | BB33: 02 | BC33: 0000000000025400 | BD33: LMA-17028-I-2105-0028 | BE33: =VLOOKUP(G33,'Listes déroulantes'!G:M,7,FALSE) -> MONEXT | BF33: 220621 | BG33: 000000 | BI33: 0000000000025500 | BJ33: 0000000000025500 | BN33: 000000000000 | BO33: 000000000100 | BQ33: 00000 | BR33: 4643216546131356461 | BS33: 20210622 | BT33: 000028 | BW33: 000000002500
A34: Enregistrement 27 | B34: NON | C34: CRE NON ACTIF | D34: Impayés imputables Monext | E34: 2021-06-22 | F34: MC | G34: SAS MONEXT PDP | H34: 256 | I34: 25 | J34: 1 | K34: 41 | L34: CRE 27 | M34: 14 | N34: 000000 | O34: X1 | P34: 17028 | Q34: 17028 | R34: XA | S34: PPT | U34: 03 | V34: 07 | W34: 3 | X34: 17028 | Y34: 92282 | Z34: 513264KHYODHNJ31337 | AA34: 20210621 | AB34: =VLOOKUP(G34,'Listes déroulantes'!G:I,3,FALSE) -> 50318500100032 | AC34: 0000000000025600 | AD34: 978 | AE34: 2 | AF34: IM | AG34: I | AH34: af2342567917 | AI34: FAC | AJ34: 20210622 | AK34: =VLOOKUP(G34,'Listes déroulantes'!G:O,9,FALSE) -> 260 RUE CLAUDE NICOL | AL34: 13 | AM34: FRA | AN34: =VLOOKUP(G34,'Listes déroulantes'!G:H,2,FALSE) -> SAS MONEXT | AO34: 428648970597 | AP34: 41 | AQ34: 1 | AR34: 17028 | AS34: 92282 | AT34: =VLOOKUP(G34,'Listes déroulantes'!G:N,8,FALSE) -> 20289045644 | AU34: 93 | AV34: 001 | AX34: =VLOOKUP(G34,'Listes déroulantes'!G:J,4,FALSE) -> 9255001 | BA34: EUR | BB34: 02 | BC34: 0000000000025500 | BD34: LMA-17028-I-2105-0029 | BE34: =VLOOKUP(G34,'Listes déroulantes'!G:M,7,FALSE) -> MONEXT | BF34: 220621 | BG34: 000000 | BI34: 0000000000025600 | BJ34: 0000000000025600 | BN34: 000000000000 | BO34: 000000000100 | BQ34: 00000 | BR34: 4643216546131356461 | BS34: 20210622 | BT34: 000029 | BW34: 000000002500
A35: Enregistrement 28 | B35: NON | C35: CRE NON ACTIF | D35: Impayés imputables Monext | E35: 2021-06-22 | F35: MC | G35: SAS MONEXT PDP | H35: 257 | I35: 25 | J35: 1 | K35: 42 | L35: CRE 28 | M35: 14 | N35: 000000 | O35: X1 | P35: 17028 | Q35: 17028 | R35: XA | S35: PPT | U35: 03 | V35: 07 | W35: 3 | X35: 17028 | Y35: 92282 | Z35: 513264KHYODHNJ31338 | AA35: 20210621 | AB35: =VLOOKUP(G35,'Listes déroulantes'!G:I,3,FALSE) -> 50318500100032 | AC35: 0000000000025700 | AD35: 978 | AE35: 2 | AF35: IM | AG35: I | AH35: af2342567918 | AI35: FAC | AJ35: 20210622 | AK35: =VLOOKUP(G35,'Listes déroulantes'!G:O,9,FALSE) -> 260 RUE CLAUDE NICOL | AL35: 13 | AM35: FRA | AN35: =VLOOKUP(G35,'Listes déroulantes'!G:H,2,FALSE) -> SAS MONEXT | AO35: 428648970598 | AP35: 42 | AQ35: 1 | AR35: 17028 | AS35: 92282 | AT35: =VLOOKUP(G35,'Listes déroulantes'!G:N,8,FALSE) -> 20289045644 | AU35: 93 | AV35: 001 | AX35: =VLOOKUP(G35,'Listes déroulantes'!G:J,4,FALSE) -> 9255001 | BA35: EUR | BB35: 02 | BC35: 0000000000025600 | BD35: LMA-17028-I-2105-0030 | BE35: =VLOOKUP(G35,'Listes déroulantes'!G:M,7,FALSE) -> MONEXT | BF35: 220621 | BG35: 000000 | BI35: 0000000000025700 | BJ35: 0000000000025700 | BN35: 000000000000 | BO35: 000000000100 | BQ35: 00000 | BR35: 4643216546131356461 | BS35: 20210622 | BT35: 000030 | BW35: 000000002500
A36: Enregistrement 29 | B36: NON | C36: CRE NON ACTIF | D36: Impayés imputables Monext | E36: 2021-06-22 | F36: MC | G36: SAS MONEXT PDP | H36: 258 | I36: 25 | J36: 1 | K36: 43 | L36: CRE 29 | M36: 14 | N36: 000000 | O36: X1 | P36: 17028 | Q36: 17028 | R36: XA | S36: PPT | U36: 03 | V36: 07 | W36: 3 | X36: 17028 | Y36: 92282 | Z36: 513264KHYODHNJ31339 | AA36: 20210621 | AB36: =VLOOKUP(G36,'Listes déroulantes'!G:I,3,FALSE) -> 50318500100032 | AC36: 0000000000025800 | AD36: 978 | AE36: 2 | AF36: IM | AG36: I | AH36: af2342567919 | AI36: FAC | AJ36: 20210622 | AK36: =VLOOKUP(G36,'Listes déroulantes'!G:O,9,FALSE) -> 260 RUE CLAUDE NICOL | AL36: 13 | AM36: FRA | AN36: =VLOOKUP(G36,'Listes déroulantes'!G:H,2,FALSE) -> SAS MONEXT | AO36: 428648970599 | AP36: 43 | AQ36: 1 | AR36: 17028 | AS36: 92282 | AT36: =VLOOKUP(G36,'Listes déroulantes'!G:N,8,FALSE) -> 20289045644 | AU36: 93 | AV36: 001 | AX36: =VLOOKUP(G36,'Listes déroulantes'!G:J,4,FALSE) -> 9255001 | BA36: EUR | BB36: 02 | BC36: 0000000000025700 | BD36: LMA-17028-I-2105-0031 | BE36: =VLOOKUP(G36,'Listes déroulantes'!G:M,7,FALSE) -> MONEXT | BF36: 220621 | BG36: 000000 | BI36: 0000000000025800 | BJ36: 0000000000025800 | BN36: 000000000000 | BO36: 000000000100 | BQ36: 00000 | BR36: 4643216546131356461 | BS36: 20210622 | BT36: 000031 | BW36: 000000002500
A37: Enregistrement 30 | B37: NON | C37: CRE NON ACTIF | D37: Impayés imputables Monext | E37: 2021-06-22 | F37: MC | G37: SAS MONEXT PDP | H37: 259 | I37: 25 | J37: 1 | K37: 44 | L37: CRE 30 | M37: 14 | N37: 000000 | O37: X1 | P37: 17028 | Q37: 17028 | R37: XA | S37: PPT | U37: 03 | V37: 07 | W37: 3 | X37: 17028 | Y37: 92282 | Z37: 513264KHYODHNJ31340 | AA37: 20210621 | AB37: =VLOOKUP(G37,'Listes déroulantes'!G:I,3,FALSE) -> 50318500100032 | AC37: 0000000000025900 | AD37: 978 | AE37: 2 | AF37: IM | AG37: I | AH37: af2342567920 | AI37: FAC | AJ37: 20210622 | AK37: =VLOOKUP(G37,'Listes déroulantes'!G:O,9,FALSE) -> 260 RUE CLAUDE NICOL | AL37: 13 | AM37: FRA | AN37: =VLOOKUP(G37,'Listes déroulantes'!G:H,2,FALSE) -> SAS MONEXT | AO37: 428648970600 | AP37: 44 | AQ37: 1 | AR37: 17028 | AS37: 92282 | AT37: =VLOOKUP(G37,'Listes déroulantes'!G:N,8,FALSE) -> 20289045644 | AU37: 93 | AV37: 001 | AX37: =VLOOKUP(G37,'Listes déroulantes'!G:J,4,FALSE) -> 9255001 | BA37: EUR | BB37: 02 | BC37: 0000000000025800 | BD37: LMA-17028-I-2105-0032 | BE37: =VLOOKUP(G37,'Listes déroulantes'!G:M,7,FALSE) -> MONEXT | BF37: 220621 | BG37: 000000 | BI37: 0000000000025900 | BJ37: 0000000000025900 | BN37: 000000000000 | BO37: 000000000100 | BQ37: 00000 | BR37: 4643216546131356461 | BS37: 20210622 | BT37: 000032 | BW37: 000000002500
A38: Enregistrement 31 | B38: NON | C38: CRE NON ACTIF | D38: Impayés imputables Monext | E38: 2021-06-22 | F38: MC | G38: SAS MONEXT PDP | H38: 260 | I38: 25 | J38: 1 | K38: 45 | L38: CRE 31 | M38: 14 | N38: 000000 | O38: X1 | P38: 17028 | Q38: 17028 | R38: XA | S38: PPT | U38: 03 | V38: 07 | W38: 3 | X38: 17028 | Y38: 92282 | Z38: 513264KHYODHNJ31341 | AA38: 20210621 | AB38: =VLOOKUP(G38,'Listes déroulantes'!G:I,3,FALSE) -> 50318500100032 | AC38: 0000000000026000 | AD38: 978 | AE38: 2 | AF38: IM | AG38: I | AH38: af2342567921 | AI38: FAC | AJ38: 20210622 | AK38: =VLOOKUP(G38,'Listes déroulantes'!G:O,9,FALSE) -> 260 RUE CLAUDE NICOL | AL38: 13 | AM38: FRA | AN38: =VLOOKUP(G38,'Listes déroulantes'!G:H,2,FALSE) -> SAS MONEXT | AO38: 428648970601 | AP38: 45 | AQ38: 1 | AR38: 17028 | AS38: 92282 | AT38: =VLOOKUP(G38,'Listes déroulantes'!G:N,8,FALSE) -> 20289045644 | AU38: 93 | AV38: 001 | AX38: =VLOOKUP(G38,'Listes déroulantes'!G:J,4,FALSE) -> 9255001 | BA38: EUR | BB38: 02 | BC38: 0000000000025900 | BD38: LMA-17028-I-2105-0033 | BE38: =VLOOKUP(G38,'Listes déroulantes'!G:M,7,FALSE) -> MONEXT | BF38: 220621 | BG38: 000000 | BI38: 0000000000026000 | BJ38: 0000000000026000 | BN38: 000000000000 | BO38: 000000000100 | BQ38: 00000 | BR38: 4643216546131356461 | BS38: 20210622 | BT38: 000033 | BW38: 000000002500
A39: Enregistrement 32 | B39: NON | C39: CRE NON ACTIF | D39: Impayés imputables Monext | E39: 2021-06-22 | F39: MC | G39: SAS MONEXT PDP | H39: 261 | I39: 25 | J39: 1 | K39: 46 | L39: CRE 32 | M39: 14 | N39: 000000 | O39: X1 | P39: 17028 | Q39: 17028 | R39: XA | S39: PPT | U39: 03 | V39: 07 | W39: 3 | X39: 17028 | Y39: 92282 | Z39: 513264KHYODHNJ31342 | AA39: 20210621 | AB39: =VLOOKUP(G39,'Listes déroulantes'!G:I,3,FALSE) -> 50318500100032 | AC39: 0000000000026100 | AD39: 978 | AE39: 2 | AF39: IM | AG39: I | AH39: af2342567922 | AI39: FAC | AJ39: 20210622 | AK39: =VLOOKUP(G39,'Listes déroulantes'!G:O,9,FALSE) -> 260 RUE CLAUDE NICOL | AL39: 13 | AM39: FRA | AN39: =VLOOKUP(G39,'Listes déroulantes'!G:H,2,FALSE) -> SAS MONEXT | AO39: 428648970602 | AP39: 46 | AQ39: 1 | AR39: 17028 | AS39: 92282 | AT39: =VLOOKUP(G39,'Listes déroulantes'!G:N,8,FALSE) -> 20289045644 | AU39: 93 | AV39: 001 | AX39: =VLOOKUP(G39,'Listes déroulantes'!G:J,4,FALSE) -> 9255001 | BA39: EUR | BB39: 02 | BC39: 0000000000026000 | BD39: LMA-17028-I-2105-0034 | BE39: =VLOOKUP(G39,'Listes déroulantes'!G:M,7,FALSE) -> MONEXT | BF39: 220621 | BG39: 000000 | BI39: 0000000000026100 | BJ39: 0000000000026100 | BN39: 000000000000 | BO39: 000000000100 | BQ39: 00000 | BR39: 4643216546131356461 | BS39: 20210622 | BT39: 000034 | BW39: 000000002500
A40: Enregistrement 33 | B40: NON | C40: CRE NON ACTIF | D40: Impayés imputables Monext | E40: 2021-06-22 | F40: MC | G40: SAS MONEXT PDP | H40: 262 | I40: 25 | J40: 1 | K40: 47 | L40: CRE 33 | M40: 14 | N40: 000000 | O40: X1 | P40: 17028 | Q40: 17028 | R40: XA | S40: PPT | U40: 03 | V40: 07 | W40: 3 | X40: 17028 | Y40: 92282 | Z40: 513264KHYODHNJ31343 | AA40: 20210621 | AB40: =VLOOKUP(G40,'Listes déroulantes'!G:I,3,FALSE) -> 50318500100032 | AC40: 0000000000026200 | AD40: 978 | AE40: 2 | AF40: IM | AG40: I | AH40: af2342567923 | AI40: FAC | AJ40: 20210622 | AK40: =VLOOKUP(G40,'Listes déroulantes'!G:O,9,FALSE) -> 260 RUE CLAUDE NICOL | AL40: 13 | AM40: FRA | AN40: =VLOOKUP(G40,'Listes déroulantes'!G:H,2,FALSE) -> SAS MONEXT | AO40: 428648970603 | AP40: 47 | AQ40: 1 | AR40: 17028 | AS40: 92282 | AT40: =VLOOKUP(G40,'Listes déroulantes'!G:N,8,FALSE) -> 20289045644 | AU40: 93 | AV40: 001 | AX40: =VLOOKUP(G40,'Listes déroulantes'!G:J,4,FALSE) -> 9255001 | BA40: EUR | BB40: 02 | BC40: 0000000000026100 | BD40: LMA-17028-I-2105-0035 | BE40: =VLOOKUP(G40,'Listes déroulantes'!G:M,7,FALSE) -> MONEXT | BF40: 220621 | BG40: 000000 | BI40: 0000000000026200 | BJ40: 0000000000026200 | BN40: 000000000000 | BO40: 000000000100 | BQ40: 00000 | BR40: 4643216546131356461 | BS40: 20210622 | BT40: 000035 | BW40: 000000002500
A41: Enregistrement 34 | B41: NON | C41: CRE NON ACTIF | D41: Impayés imputables Monext | E41: 2021-06-22 | F41: MC | G41: SAS MONEXT PDP | H41: 263 | I41: 25 | J41: 1 | K41: 48 | L41: CRE 34 | M41: 14 | N41: 000000 | O41: X1 | P41: 17028 | Q41: 17028 | R41: XA | S41: PPT | U41: 03 | V41: 07 | W41: 3 | X41: 17028 | Y41: 92282 | Z41: 513264KHYODHNJ31344 | AA41: 20210621 | AB41: =VLOOKUP(G41,'Listes déroulantes'!G:I,3,FALSE) -> 50318500100032 | AC41: 0000000000026300 | AD41: 978 | AE41: 2 | AF41: IM | AG41: I | AH41: af2342567924 | AI41: FAC | AJ41: 20210622 | AK41: =VLOOKUP(G41,'Listes déroulantes'!G:O,9,FALSE) -> 260 RUE CLAUDE NICOL | AL41: 13 | AM41: FRA | AN41: =VLOOKUP(G41,'Listes déroulantes'!G:H,2,FALSE) -> SAS MONEXT | AO41: 428648970604 | AP41: 48 | AQ41: 1 | AR41: 17028 | AS41: 92282 | AT41: =VLOOKUP(G41,'Listes déroulantes'!G:N,8,FALSE) -> 20289045644 | AU41: 93 | AV41: 001 | AX41: =VLOOKUP(G41,'Listes déroulantes'!G:J,4,FALSE) -> 9255001 | BA41: EUR | BB41: 02 | BC41: 0000000000026200 | BD41: LMA-17028-I-2105-0036 | BE41: =VLOOKUP(G41,'Listes déroulantes'!G:M,7,FALSE) -> MONEXT | BF41: 220621 | BG41: 000000 | BI41: 0000000000026300 | BJ41: 0000000000026300 | BN41: 000000000000 | BO41: 000000000100 | BQ41: 00000 | BR41: 4643216546131356461 | BS41: 20210622 | BT41: 000036 | BW41: 000000002500
A42: Enregistrement 35 | B42: NON | C42: CRE NON ACTIF | D42: Impayés imputables Monext | E42: 2021-06-22 | F42: MC | G42: SAS MONEXT PDP | H42: 264 | I42: 25 | J42: 1 | K42: 49 | L42: CRE 35 | M42: 14 | N42: 000000 | O42: X1 | P42: 17028 | Q42: 17028 | R42: XA | S42: PPT | U42: 03 | V42: 07 | W42: 3 | X42: 17028 | Y42: 92282 | Z42: 513264KHYODHNJ31345 | AA42: 20210621 | AB42: =VLOOKUP(G42,'Listes déroulantes'!G:I,3,FALSE) -> 50318500100032 | AC42: 0000000000026400 | AD42: 978 | AE42: 2 | AF42: IM | AG42: I | AH42: af2342567925 | AI42: FAC | AJ42: 20210622 | AK42: =VLOOKUP(G42,'Listes déroulantes'!G:O,9,FALSE) -> 260 RUE CLAUDE NICOL | AL42: 13 | AM42: FRA | AN42: =VLOOKUP(G42,'Listes déroulantes'!G:H,2,FALSE) -> SAS MONEXT | AO42: 428648970605 | AP42: 49 | AQ42: 1 | AR42: 17028 | AS42: 92282 | AT42: =VLOOKUP(G42,'Listes déroulantes'!G:N,8,FALSE) -> 20289045644 | AU42: 93 | AV42: 001 | AX42: =VLOOKUP(G42,'Listes déroulantes'!G:J,4,FALSE) -> 9255001 | BA42: EUR | BB42: 02 | BC42: 0000000000026300 | BD42: LMA-17028-I-2105-0037 | BE42: =VLOOKUP(G42,'Listes déroulantes'!G:M,7,FALSE) -> MONEXT | BF42: 220621 | BG42: 000000 | BI42: 0000000000026400 | BJ42: 0000000000026400 | BN42: 000000000000 | BO42: 000000000100 | BQ42: 00000 | BR42: 4643216546131356461 | BS42: 20210622 | BT42: 000037 | BW42: 000000002500
A43: Enregistrement 36 | B43: NON | C43: CRE NON ACTIF | D43: Impayés imputables Monext | E43: 2021-06-22 | F43: MC | G43: SAS MONEXT PDP | H43: 265 | I43: 25 | J43: 1 | K43: 50 | L43: CRE 36 | M43: 14 | N43: 000000 | O43: X1 | P43: 17028 | Q43: 17028 | R43: XA | S43: PPT | U43: 03 | V43: 07 | W43: 3 | X43: 17028 | Y43: 92282 | Z43: 513264KHYODHNJ31346 | AA43: 20210621 | AB43: =VLOOKUP(G43,'Listes déroulantes'!G:I,3,FALSE) -> 50318500100032 | AC43: 0000000000026500 | AD43: 978 | AE43: 2 | AF43: IM | AG43: I | AH43: af2342567926 | AI43: FAC | AJ43: 20210622 | AK43: =VLOOKUP(G43,'Listes déroulantes'!G:O,9,FALSE) -> 260 RUE CLAUDE NICOL | AL43: 13 | AM43: FRA | AN43: =VLOOKUP(G43,'Listes déroulantes'!G:H,2,FALSE) -> SAS MONEXT | AO43: 428648970606 | AP43: 50 | AQ43: 1 | AR43: 17028 | AS43: 92282 | AT43: =VLOOKUP(G43,'Listes déroulantes'!G:N,8,FALSE) -> 20289045644 | AU43: 93 | AV43: 001 | AX43: =VLOOKUP(G43,'Listes déroulantes'!G:J,4,FALSE) -> 9255001 | BA43: EUR | BB43: 02 | BC43: 0000000000026400 | BD43: LMA-17028-I-2105-0038 | BE43: =VLOOKUP(G43,'Listes déroulantes'!G:M,7,FALSE) -> MONEXT | BF43: 220621 | BG43: 000000 | BI43: 0000000000026500 | BJ43: 0000000000026500 | BN43: 000000000000 | BO43: 000000000100 | BQ43: 00000 | BR43: 4643216546131356461 | BS43: 20210622 | BT43: 000038 | BW43: 000000002500
A44: Enregistrement 37 | B44: NON | C44: CRE NON ACTIF | D44: Impayés imputables Monext | E44: 2021-06-22 | F44: MC | G44: SAS MONEXT PDP | H44: 266 | I44: 25 | J44: 1 | K44: 51 | L44: CRE 37 | M44: 14 | N44: 000000 | O44: X1 | P44: 17028 | Q44: 17028 | R44: XA | S44: PPT | U44: 03 | V44: 07 | W44: 3 | X44: 17028 | Y44: 92282 | Z44: 513264KHYODHNJ31347 | AA44: 20210621 | AB44: =VLOOKUP(G44,'Listes déroulantes'!G:I,3,FALSE) -> 50318500100032 | AC44: 0000000000026600 | AD44: 978 | AE44: 2 | AF44: IM | AG44: I | AH44: af2342567927 | AI44: FAC | AJ44: 20210622 | AK44: =VLOOKUP(G44,'Listes déroulantes'!G:O,9,FALSE) -> 260 RUE CLAUDE NICOL | AL44: 13 | AM44: FRA | AN44: =VLOOKUP(G44,'Listes déroulantes'!G:H,2,FALSE) -> SAS MONEXT | AO44: 428648970607 | AP44: 51 | AQ44: 1 | AR44: 17028 | AS44: 92282 | AT44: =VLOOKUP(G44,'Listes déroulantes'!G:N,8,FALSE) -> 20289045644 | AU44: 93 | AV44: 001 | AX44: =VLOOKUP(G44,'Listes déroulantes'!G:J,4,FALSE) -> 9255001 | BA44: EUR | BB44: 02 | BC44: 0000000000026500 | BD44: LMA-17028-I-2105-0039 | BE44: =VLOOKUP(G44,'Listes déroulantes'!G:M,7,FALSE) -> MONEXT | BF44: 220621 | BG44: 000000 | BI44: 0000000000026600 | BJ44: 0000000000026600 | BN44: 000000000000 | BO44: 000000000100 | BQ44: 00000 | BR44: 4643216546131356461 | BS44: 20210622 | BT44: 000039 | BW44: 000000002500
A45: Enregistrement 38 | B45: NON | C45: CRE NON ACTIF | D45: Impayés imputables Monext | E45: 2021-06-22 | F45: MC | G45: SAS MONEXT PDP | H45: 267 | I45: 25 | J45: 1 | K45: 52 | L45: CRE 38 | M45: 14 | N45: 000000 | O45: X1 | P45: 17028 | Q45: 17028 | R45: XA | S45: PPT | U45: 03 | V45: 07 | W45: 3 | X45: 17028 | Y45: 92282 | Z45: 513264KHYODHNJ31348 | AA45: 20210621 | AB45: =VLOOKUP(G45,'Listes déroulantes'!G:I,3,FALSE) -> 50318500100032 | AC45: 0000000000026700 | AD45: 978 | AE45: 2 | AF45: IM | AG45: I | AH45: af2342567928 | AI45: FAC | AJ45: 20210622 | AK45: =VLOOKUP(G45,'Listes déroulantes'!G:O,9,FALSE) -> 260 RUE CLAUDE NICOL | AL45: 13 | AM45: FRA | AN45: =VLOOKUP(G45,'Listes déroulantes'!G:H,2,FALSE) -> SAS MONEXT | AO45: 428648970608 | AP45: 52 | AQ45: 1 | AR45: 17028 | AS45: 92282 | AT45: =VLOOKUP(G45,'Listes déroulantes'!G:N,8,FALSE) -> 20289045644 | AU45: 93 | AV45: 001 | AX45: =VLOOKUP(G45,'Listes déroulantes'!G:J,4,FALSE) -> 9255001 | BA45: EUR | BB45: 02 | BC45: 0000000000026600 | BD45: LMA-17028-I-2105-0040 | BE45: =VLOOKUP(G45,'Listes déroulantes'!G:M,7,FALSE) -> MONEXT | BF45: 220621 | BG45: 000000 | BI45: 0000000000026700 | BJ45: 0000000000026700 | BN45: 000000000000 | BO45: 000000000100 | BQ45: 00000 | BR45: 4643216546131356461 | BS45: 20210622 | BT45: 000040 | BW45: 000000002500
A46: Enregistrement 39 | B46: NON | C46: CRE NON ACTIF | D46: Impayés imputables Monext | E46: 2021-06-22 | F46: MC | G46: SAS MONEXT PDP | H46: 268 | I46: 25 | J46: 1 | K46: 53 | L46: CRE 39 | M46: 14 | N46: 000000 | O46: X1 | P46: 17028 | Q46: 17028 | R46: XA | S46: PPT | U46: 03 | V46: 07 | W46: 3 | X46: 17028 | Y46: 92282 | Z46: 513264KHYODHNJ31349 | AA46: 20210621 | AB46: =VLOOKUP(G46,'Listes déroulantes'!G:I,3,FALSE) -> 50318500100032 | AC46: 0000000000026800 | AD46: 978 | AE46: 2 | AF46: IM | AG46: I | AH46: af2342567929 | AI46: FAC | AJ46: 20210622 | AK46: =VLOOKUP(G46,'Listes déroulantes'!G:O,9,FALSE) -> 260 RUE CLAUDE NICOL | AL46: 13 | AM46: FRA | AN46: =VLOOKUP(G46,'Listes déroulantes'!G:H,2,FALSE) -> SAS MONEXT | AO46: 428648970609 | AP46: 53 | AQ46: 1 | AR46: 17028 | AS46: 92282 | AT46: =VLOOKUP(G46,'Listes déroulantes'!G:N,8,FALSE) -> 20289045644 | AU46: 93 | AV46: 001 | AX46: =VLOOKUP(G46,'Listes déroulantes'!G:J,4,FALSE) -> 9255001 | BA46: EUR | BB46: 02 | BC46: 0000000000026700 | BD46: LMA-17028-I-2105-0041 | BE46: =VLOOKUP(G46,'Listes déroulantes'!G:M,7,FALSE) -> MONEXT | BF46: 220621 | BG46: 000000 | BI46: 0000000000026800 | BJ46: 0000000000026800 | BN46: 000000000000 | BO46: 000000000100 | BQ46: 00000 | BR46: 4643216546131356461 | BS46: 20210622 | BT46: 000041 | BW46: 000000002500
A47: Enregistrement 40 | B47: NON | C47: CRE NON ACTIF | D47: Impayés imputables Monext | E47: 2021-06-22 | F47: MC | G47: SAS MONEXT PDP | H47: 269 | I47: 25 | J47: 1 | K47: 54 | L47: CRE 40 | M47: 14 | N47: 000000 | O47: X1 | P47: 17028 | Q47: 17028 | R47: XA | S47: PPT | U47: 03 | V47: 07 | W47: 3 | X47: 17028 | Y47: 92282 | Z47: 513264KHYODHNJ31350 | AA47: 20210621 | AB47: =VLOOKUP(G47,'Listes déroulantes'!G:I,3,FALSE) -> 50318500100032 | AC47: 0000000000026900 | AD47: 978 | AE47: 2 | AF47: IM | AG47: I | AH47: af2342567930 | AI47: FAC | AJ47: 20210622 | AK47: =VLOOKUP(G47,'Listes déroulantes'!G:O,9,FALSE) -> 260 RUE CLAUDE NICOL | AL47: 13 | AM47: FRA | AN47: =VLOOKUP(G47,'Listes déroulantes'!G:H,2,FALSE) -> SAS MONEXT | AO47: 428648970610 | AP47: 54 | AQ47: 1 | AR47: 17028 | AS47: 92282 | AT47: =VLOOKUP(G47,'Listes déroulantes'!G:N,8,FALSE) -> 20289045644 | AU47: 93 | AV47: 001 | AX47: =VLOOKUP(G47,'Listes déroulantes'!G:J,4,FALSE) -> 9255001 | BA47: EUR | BB47: 02 | BC47: 0000000000026800 | BD47: LMA-17028-I-2105-0042 | BE47: =VLOOKUP(G47,'Listes déroulantes'!G:M,7,FALSE) -> MONEXT | BF47: 220621 | BG47: 000000 | BI47: 0000000000026900 | BJ47: 0000000000026900 | BN47: 000000000000 | BO47: 000000000100 | BQ47: 00000 | BR47: 4643216546131356461 | BS47: 20210622 | BT47: 000042 | BW47: 000000002500
A48: Enregistrement 41 | B48: NON | C48: CRE NON ACTIF | D48: Impayés imputables Monext | E48: 2021-06-22 | F48: MC | G48: SAS MONEXT PDP | H48: 270 | I48: 25 | J48: 1 | K48: 55 | L48: CRE 41 | M48: 14 | N48: 000000 | O48: X1 | P48: 17028 | Q48: 17028 | R48: XA | S48: PPT | U48: 03 | V48: 07 | W48: 3 | X48: 17028 | Y48: 92282 | Z48: 513264KHYODHNJ31351 | AA48: 20210621 | AB48: =VLOOKUP(G48,'Listes déroulantes'!G:I,3,FALSE) -> 50318500100032 | AC48: 0000000000027000 | AD48: 978 | AE48: 2 | AF48: IM | AG48: I | AH48: af2342567931 | AI48: FAC | AJ48: 20210622 | AK48: =VLOOKUP(G48,'Listes déroulantes'!G:O,9,FALSE) -> 260 RUE CLAUDE NICOL | AL48: 13 | AM48: FRA | AN48: =VLOOKUP(G48,'Listes déroulantes'!G:H,2,FALSE) -> SAS MONEXT | AO48: 428648970611 | AP48: 55 | AQ48: 1 | AR48: 17028 | AS48: 92282 | AT48: =VLOOKUP(G48,'Listes déroulantes'!G:N,8,FALSE) -> 20289045644 | AU48: 93 | AV48: 001 | AX48: =VLOOKUP(G48,'Listes déroulantes'!G:J,4,FALSE) -> 9255001 | BA48: EUR | BB48: 02 | BC48: 0000000000026900 | BD48: LMA-17028-I-2105-0043 | BE48: =VLOOKUP(G48,'Listes déroulantes'!G:M,7,FALSE) -> MONEXT | BF48: 220621 | BG48: 000000 | BI48: 0000000000027000 | BJ48: 0000000000027000 | BN48: 000000000000 | BO48: 000000000100 | BQ48: 00000 | BR48: 4643216546131356461 | BS48: 20210622 | BT48: 000043 | BU48: =" " ->  | BW48: 000000002500

Sheet Listes déroulantes
H1: OBLIGATOIRE POUR CRE | I1: OBLIGATOIRE POUR CRE | J1: OBLIGATOIRE POUR CRE | K1: OBLIGATOIRE POUR CRE | L1: OBLIGATOIRE POUR CRE | M1: OBLIGATOIRE POUR CRE | N1: OBLIGATOIRE POUR CRE | O1: OBLIGATOIRE POUR CRE
A2: Info primaire | B2: Info primaire | D2: Info primaire | E2: Info primaire | F2: Info primaire | G2: Info primaire | H2: Déduit de commerçant | I2: Déduit de commerçant | J2: Déduit de commerçant | K2: Déduit de commerçant | L2: Déduit de commerçant | M2: Déduit de commerçant | N2: Déduit de commerçant | O2: Déduit de commerçant | P2: Déduit de commerçant | Q2: Déduit de commerçant | R2: Déduit de commerçant | S2: Déduit de commerçant | T2: Déduit de commerçant | V2: Info primaire actu | W2: Info primaire actu
H3: Doit etre sur 20 caractères | I3: Doit etre sur 15 caractères | J3: Doit etre sur 10 caractères | K3: Doit etre sur 7 caractères | L3: Doit etre sur 5 caractères | M3: Doit etre sur 24 caractères | N3: Doit etre sur 11 caractères | O3: Doit etre sur 20 caractères | P3: =LEN(P5) -> 10 | Q3: 11 | R3: 27 | S3: 27 | T3: 8 | U3: 1
A4: Type opération | B4: Réseau | C4: Devise | D4: Nature carte | E4: Type carte | F4: Zone Geo | G4: Commerçant | H4: Raison sociale | I4: SIRET | J4: Contrat primo | K4: Contrat secondo | L4: TYPAPPLI | M4: Nom du commerçant | N4: Numéro de compte du rib | O4: Adresse | P4: ACCOUNT_ID | Q4: BIC | R4: EXTERNAL_IBAN | S4: INTERNAL_IBAN | T4: CEGID_ID | U4: MODE DE VIREMENT | V4: ROLLING RESERVE | W4: CASHOUT
A5: Payment | B5: VISA | C5: EUR | D5: Débit | E5: Particulier | F5: FRA | G5: SAS MONEXT PDPSC | H5: SAS MONEXT | I5: 50318500100032 | J5: 9255001 | K5: 4319212 | L5: PDPSC | M5: MONEXT | N5: 20289045644 | O5: 260 RUE CLAUDE NICOL | P5: DC06983215 | Q5: CMBRFR2BARK | R5: FR7615589297530028192724052 | S5: FR7617028922820289045644093 | T5: C0009999 | U5: A | V5: 0.00 | W5: Oui
A6: Refund | B6: MC | C6: USD | D6: Crédit | E6: Entreprise | F6: UE | G6: SAS MONEXT PDP | H6: SAS MONEXT | I6: 50318500100032 | J6: 9255001 | K6: 4319211 | L6: PDP | M6: MONEXT | N6: 20289045644 | O6: 260 RUE CLAUDE NICOL | P6: DC06983215 | Q6: CMBRFR2BARK | R6: FR7615589297530028192724052 | S6: FR7617028922820289045644093 | T6: C0009999 | U6: A | V6: 0.00 | W6: Non
A7: PaymentChargeback | B7: CB | D7: Prépayé | F7: HUE | G7: SARL LOVINO PDP | H7: SARL LOVINO | I7: 53152017900023 | J7: 9255002 | K7: 4319376 | L7: PDP | M7: OENODEPOT | N7: 05260573540 | O7: 30 RUE FREDERIC JOLI | P7: DC07063052 | Q7: SMCTFR2A | R7: FR7630077048691338980020066 | S7: FR7617028922820526057354023 | T7: C0002537 | U7: A | V7: 0.00
G8: SARL LOVINO PDPSC | H8: SARL LOVINO | I8: 53152017900023 | J8: 9255002 | K8: 4319380 | L8: PDPSC | M8: OENODEPOT | N8: 05260573540 | O8: 30 RUE FREDERIC JOLI | P8: DC07063052 | Q8: SMCTFR2A | R8: FR7630077048691338980020066 | S8: FR7617028922820526057354023 | T8: C0002537 | U8: A | V8: 0.00
